Workbook

Sheet Contents
C2: Contents
F3: Colour Codes | K3: File Name: | M3: =IFERROR(File_name(),"") -> 
C4: Introduction | G4: Inputs | I4: 1234567890
D5: Debt Sizing with P50, P90 and Maximum Debt to Capital | G5: Section Titles | I5: TITLE ROW | K5: Last Save Date | M5: =IFERROR(lastsaved(),"") -> 
G6: Sum Column | I6: 1000000000
C7: Summary | G7: True or 1 | I7: =1=1 -> TRUE | K7: Last Save By | M7: =IFERROR(last_save_by(),"") -> 
G8: False or 0 | I8: =1=2 -> FALSE
C9: Inputs and Operations | G9: Other Sheet Links | I9: |||||||||||||||||||
D10: Non-Financing Inputs
D11: Financing Inputs
D12: Operations and Pre-tax Free Cash Flow
D13: Pre-tax Cash Flow and IRR
D14: Debt Sizing
D15: Project Finance
D16: Debt Repayment, Interest and Schedule
D17: Cash Flow Waterfall
D18: Graphs
C20: Financial Model
D21: Assumptions
D22: Financing Assumptions
D23: Re-financing Assumptions
D24: Operations
D25: Sources and Uses
D26: Re-financing Sources and Uses
D27: Sizing Using Alternative Methods with Different Parallel Models
D28: Re-Finance Debt Sizing
D29: Funding and Cash Flow Before COD
D30: Debt Schedule
D31: DSRA
D32: Profit and Loss
D33: Cash Flow Waterfall
D34: Balance Sheet
D35: Outputs
D36: Graphs
C38: Parallel Model P50
D39: Section 1: Get Time and Operating Inputs for the Parallel Model from Your Financial Model (Get Entire Line and start on line below)
D40: Start of General Debt Options Block Inputs Block (Start Selection Here and Select Entire Line)
D41: Issue by Issue Debt
D42: Function Output
D43: .
D44: .
D45: .
D46: .
D47: .
D48: .
D49: .
D50: .
D51: .
D52: .
D53: .
D54: .
D55: .
D56: .
D57: .
D58: .
D59: Go
C61: Parallel Model P99
D62: Section 1: Get Time and Operating Inputs for the Parallel Model from Your Financial Model (Get Entire Line and start on line below)
D63: Start of General Debt Options Block Inputs Block (Start Selection Here and Select Entire Line)
D64: Issue by Issue Debt
D65: Function Output
D66: .
D67: .
D68: .
D69: .
D70: .
D71: .
D72: .
D73: .
D74: .
D75: .
D76: .
D77: .
D78: .
D79: .
D80: .
D81: .
D82: Go
C84: Wind Study Back-up
D85: P50 Summary
D86: Probability Summary
D87: Standard Deviation and Mean Square Error
C89: Wind Study 1
D90: Wind Farm 2

Sheet Introduction
A2: Debt Sizing with P50, P90 and Maximum Debt to Capital
B4: Website Link Describing Wind Probability Issues
B6: Video Describing Wind Probability - Part 1
B8: Video Describing Wind Probability - Part 2
B10: Video Describing Wind Probability - Part 3
B12: Powerpoint Slides Reference (beginning on slide 312)
B14: Link to Relevant Part of this Workbook
B17: UDF Videos

Sheet Diagram
D8: Cost/kW | E8: ='Inputs and Operations'!F28 -> 1282
D9: Timing | E9: =Summary!D12 -> 21

Sheet Summary
C2: P50 or P99 | F2: Initial Tariff (Euro/MWH) | I2: =price -> 41.8468703 | L2: 1-Year Uncertainty | O2: ='Inputs and Operations'!F19 -> 0.1138
C3: Inflate Price | F3: O&M Expense | I3: ='Inputs and Operations'!$F$50 -> 1 | L3: P50/P99 Ratio | O3: ='Inputs and Operations'!I142 -> 1.552546625
F4: In Fixed Terms (USD/kW-yr) | I4: ='Inputs and Operations'!F48*'Inputs and Operations'!$F$50 -> 54.1089489 | L4: Project Life | O4: =life -> 35
C5: Pre-tax Project IRR | D5: ='Financial Model'!F8 -> 0.0760197252 | F5: In Variable Terms (USD/kW-yr) | I5: ='Inputs and Operations'!I48*'Inputs and Operations'!$F$50 -> 15.91878001 | L5: Target IRR | O5: ='Financial Model'!F28 -> 0.1
C6: A-T Project IRR/ Target | D6: ='Financial Model'!F7 -> 0.06354061067
C7: Debt IRR (pre-tax) | D7: ='Financial Model'!F5 -> 0.03764271438 | F7: Capacity (MW) | I7: ='Inputs and Operations'!$F$16 -> 120 | L7: Credit Spread Changes
C8: Equity IRR | D8: ='Financial Model'!F4 -> 0.09164170325 | F8: Net Capacity Factor | I8: ='Inputs and Operations'!$F$17 -> 0.3880209819
C9: Target | D9: =O5 -> 0.1 | F9: Gross Capacity Factor | I9: ='Wind Study Back-up'!C4 -> 0.475 | L9: Refinance
C11: Construction Cost | D11: ='Financial Model'!F23 -> 144000 | F11: Uses | I11: Cost | J11: Cost/kW | N11: Refi 1 | O11: Refi 2 | P11: Refi 2
C12: Construction Period | D12: ='Financial Model'!$F$13 -> 21 | F12: EPC | I12: ='Financial Model'!I136 -> 144000 | J12: =I12/$I$7 -> 1200 | L12: Refi Year | N12: =refi1 -> 36 | O12: ='Financial Model'!F87 -> 36 | P12: =refi3 -> 36
C13: Development Fee | D13: ='Financial Model'!F27 -> 0.1 | F13: Development Fee | I13: ='Financial Model'!I137 -> 16572.10222 | J13: 138.1008518 | L13: DSCR | N13: ='Financial Model'!F78 -> 1.25 | O13: ='Financial Model'!F90 -> 1.25 | P13: ='Financial Model'!F102 -> 1.2
F14: IDC | I14: ='Financial Model'!I138 -> 2573.987713 | J14: 21.44989761 | L14: Interest Rate | N14: ='Financial Model'!F84 -> 0.035 | O14: ='Financial Model'!F96 -> 0.03 | P14: ='Financial Model'!F108 -> 0.029
C15: Max Debt to Capital | D15: ='Financial Model'!$F$39 -> 0.79 | F15: IDC on Equity Bridge Loan | I15: ='Financial Model'!I139 -> 0 | J15: 0 | L15: Tail | N15: ='Financial Model'!F79 -> 2 | O15: ='Financial Model'!F91 -> 1 | P15: ='Financial Model'!F103 -> 0 | S15: EBL
C16: P50 DSCR Target | D16: ='Financial Model'!F35 -> 1.27 | F16: Up-Front Fees | I16: ='Financial Model'!I140 -> 1584.428368 | J16: 13.20356973
C17: P99 DSCR Target | D17: ='Financial Model'!$F$36 -> 1 | F17: Commitment Fees | I17: ='Financial Model'!I141 -> 990.5038581 | J17: 8.254198817 | N17: Cap Fac | O17: vs P50 | P17: P50/EBITDA | S17: IRR with EBL | U17: ='Financial Model'!$I$488 -> FALSE
F18: DSRA | I18: ='Financial Model'!I142 -> 0 | J18: 0 | L18: P50 DSCR/Amount | N18: ='Inputs and Operations'!F64 -> 0.3880209819 | O18: =N18/$N$18 -> 1 | P18: 1 | S18: IRR without EBL | U18: =D8 -> 0.09164170325
C19: Up-Front Equity Pct | D19: ='Financial Model'!F41 -> 1 | F19: Total | I19: =SUM(I12:I18) -> 165721.0222 | J19: 1381.008518 | L19: P90 DSCR/Amount | N19: ='Inputs and Operations'!F66 -> 0.3314317815 | O19: =N19/$N$18 -> 0.8541594318 | P19: ='Inputs and Operations'!I131 -> 1.243871622
F20: Sources | J20: Percent | L20: P99 DSCR/Amount | N20: ='Inputs and Operations'!F67 -> 0.2852969326 | O20: =N20/$N$18 -> 0.7352616119 | P20: ='Inputs and Operations'!I142 -> 1.552546625
C21: Maturity | D21: ='Financial Model'!$G$43 -> 19 | F21: Senior Debt (From Minimum) | I21: ='Financial Model'!I146 -> 105628.5579 | J21: =I21/I24 -> 0.6373878009
C22: Credit Spread | D22: ='Financial Model'!F49 -> 0.015 | F22: Mezzanine Debt | I22: ='Financial Model'!I147 -> 0 | L22: Levelised O&M (Euro/MWH) | O22: ='Inputs and Operations'!I48 -> 15.91878001
F23: Equity | I23: ='Financial Model'!I148 -> 60092.46428 | J23: =I23/I24 -> 0.3626121991
C24: P50 DSCR Size | D24: ='Financial Model'!E187 -> 121301.7268 | F24: Total | I24: =SUM(I21:I23) -> 165721.0222 | J24: =J21+J23 -> 1 | N24: Cash Flow Applied | P24: ='Financial Model'!E206 -> P99 Applied
C25: P99 DSCR Size | D25: ='Financial Model'!E196 -> 105628.5579 | N25: Debt Sizing | P25: ='Financial Model'!E207 -> DSCR
C26: Debt/Cap Size | D26: ='Financial Model'!E200 -> 130919.6075
C97: Credit Spread Scenario | D97: 2
C99: Credit Spread Scenarios
C100: Base | D100: ='Financial Model'!F49 -> 0.015 | E100: =D100+0.25% -> 0.0175 | F100: =E100+0.25% -> 0.02 | G100: 0.0225 | H100: 0.025
C101: Flat | D101: =D100 -> 0.015 | E101: =D101 -> 0.015 | F101: =E101 -> 0.015 | G101: 0.015 | H101: 0.015
C102: Declining | D102: =D101 -> 0.015 | E102: =D102-0.25% -> 0.0125 | F102: =E102-0.25% -> 0.01 | G102: 0.0075 | H102: 0.005
C104: =INDEX(C100:C102,$D$97) -> Flat | D104: =INDEX(D100:D102,$D$97) -> 0.015 | E104: 0.015 | F104: 0.015 | G104: 0.015 | H104: 0.015

Sheet Inputs and Operations
A1: Time Line | G1: 0 | H1: 1 | I1: 2 | J1: 3 | K1: 4 | L1: 5 | M1: 6 | N1: 7 | O1: 8 | P1: 9 | Q1: 10 | R1: 11 | S1: 12 | T1: 13 | U1: 14 | V1: 15 | W1: 16 | X1: 17 | Y1: 18 | Z1: 19 | AA1: 20 | AB1: 21 | AC1: 22 | AD1: 23 | AE1: 24 | AF1: 25 | AG1: 26 | AH1: 27 | AI1: 28 | AJ1: 29 | AK1: 30 | AL1: 31 | AM1: 32 | AN1: 33 | AO1: 34 | AP1: 35 | AQ1: 36 | AR1: 37 | AS1: 38 | AT1: 39 | AU1: 40 | AV1: 41 | AW1: 42 | AX1: 43 | AY1: 44 | AZ1: 45 | BA1: 46 | BB1: 47 | BC1: 48 | BD1: 49 | BE1: 50 | BF1: 51 | BG1: 52 | BH1: 53 | BI1: 54 | BJ1: 55 | BK1: 56 | BL1: 57 | BM1: 58 | BN1: 59 | BO1: 60 | BP1: 61 | BQ1: 62 | BR1: 63 | BS1: 64 | BT1: 65 | BU1: 66 | BV1: 67 | BW1: 68 | BX1: 69 | BY1: 70 | BZ1: 71 | CA1: 72 | CB1: 73 | CC1: 74 | CD1: 75 | CE1: 76 | CF1: 77 | CG1: 78 | CH1: 79 | CI1: 80 | CJ1: 81 | CK1: 82 | CL1: 83 | CM1: 84 | CN1: 85 | CO1: 86 | CP1: 87 | CQ1: 88 | CR1: 89 | CS1: 90 | CT1: 91 | CU1: 92 | CV1: 93 | CW1: 94 | CX1: 95 | CY1: 96 | CZ1: 97 | DA1: 98 | DB1: 99 | DC1: 100
B2: Start of period | E2: Price | F2: =price -> 41.8468703 | H2: =$F$9 -> 2020-08-01 | I2: =EDATE(H2,6) -> 2021-02-01 | J2: =EDATE(I2,6) -> 2021-08-01 | K2: 2022-02-01 | L2: 2022-08-01 | M2: 2023-02-01 | N2: 2023-08-01 | O2: 2024-02-01 | P2: 2024-08-01 | Q2: 2025-02-01 | R2: 2025-08-01 | S2: 2026-02-01 | T2: 2026-08-01 | U2: 2027-02-01 | V2: 2027-08-01 | W2: 2028-02-01 | X2: 2028-08-01 | Y2: 2029-02-01 | Z2: 2029-08-01 | AA2: 2030-02-01 | AB2: 2030-08-01 | AC2: 2031-02-01 | AD2: 2031-08-01 | AE2: 2032-02-01 | AF2: 2032-08-01 | AG2: 2033-02-01 | AH2: 2033-08-01 | AI2: 2034-02-01 | AJ2: 2034-08-01 | AK2: 2035-02-01 | AL2: 2035-08-01 | AM2: 2036-02-01 | AN2: 2036-08-01 | AO2: 2037-02-01 | AP2: 2037-08-01 | AQ2: 2038-02-01 | AR2: 2038-08-01 | AS2: 2039-02-01 | AT2: 2039-08-01 | AU2: 2040-02-01 | AV2: 2040-08-01 | AW2: 2041-02-01 | AX2: 2041-08-01 | AY2: 2042-02-01 | AZ2: 2042-08-01 | BA2: 2043-02-01 | BB2: 2043-08-01 | BC2: 2044-02-01 | BD2: 2044-08-01 | BE2: 2045-02-01 | BF2: 2045-08-01 | BG2: 2046-02-01 | BH2: 2046-08-01 | BI2: 2047-02-01 | BJ2: 2047-08-01 | BK2: 2048-02-01 | BL2: 2048-08-01 | BM2: 2049-02-01 | BN2: 2049-08-01 | BO2: 2050-02-01 | BP2: 2050-08-01 | BQ2: 2051-02-01 | BR2: 2051-08-01 | BS2: 2052-02-01 | BT2: 2052-08-01 | BU2: 2053-02-01 | BV2: =EDATE(BU2,6) -> 2053-08-01 | BW2: 2054-02-01 | BX2: 2054-08-01 | BY2: 2055-02-01 | BZ2: 2055-08-01 | CA2: 2056-02-01 | CB2: 2056-08-01 | CC2: 2057-02-01 | CD2: 2057-08-01 | CE2: 2058-02-01 | CF2: 2058-08-01 | CG2: 2059-02-01 | CH2: 2059-08-01 | CI2: 2060-02-01 | CJ2: 2060-08-01 | CK2: 2061-02-01 | CL2: 2061-08-01 | CM2: 2062-02-01 | CN2: 2062-08-01 | CO2: 2063-02-01 | CP2: 2063-08-01 | CQ2: 2064-02-01 | CR2: 2064-08-01 | CS2: 2065-02-01 | CT2: 2065-08-01 | CU2: 2066-02-01 | CV2: 2066-08-01 | CW2: 2067-02-01 | CX2: 2067-08-01 | CY2: 2068-02-01 | CZ2: 2068-08-01 | DA2: 2069-02-01 | DB2: 2069-08-01 | DC2: 2070-02-01
B3: End of period | E3: Equity IRR | F3: =#REF! ->  | H3: =EDATE(H2,6)-1 -> 2021-01-31 | I3: =EDATE(I2,6)-1 -> 2021-07-31 | J3: 2022-01-31 | K3: 2022-07-31 | L3: 2023-01-31 | M3: 2023-07-31 | N3: 2024-01-31 | O3: 2024-07-31 | P3: 2025-01-31 | Q3: 2025-07-31 | R3: 2026-01-31 | S3: 2026-07-31 | T3: 2027-01-31 | U3: 2027-07-31 | V3: 2028-01-31 | W3: 2028-07-31 | X3: 2029-01-31 | Y3: 2029-07-31 | Z3: 2030-01-31 | AA3: 2030-07-31 | AB3: 2031-01-31 | AC3: 2031-07-31 | AD3: 2032-01-31 | AE3: 2032-07-31 | AF3: 2033-01-31 | AG3: 2033-07-31 | AH3: 2034-01-31 | AI3: 2034-07-31 | AJ3: 2035-01-31 | AK3: 2035-07-31 | AL3: 2036-01-31 | AM3: 2036-07-31 | AN3: 2037-01-31 | AO3: 2037-07-31 | AP3: 2038-01-31 | AQ3: 2038-07-31 | AR3: 2039-01-31 | AS3: 2039-07-31 | AT3: 2040-01-31 | AU3: 2040-07-31 | AV3: 2041-01-31 | AW3: 2041-07-31 | AX3: 2042-01-31 | AY3: 2042-07-31 | AZ3: 2043-01-31 | BA3: 2043-07-31 | BB3: 2044-01-31 | BC3: 2044-07-31 | BD3: 2045-01-31 | BE3: 2045-07-31 | BF3: 2046-01-31 | BG3: 2046-07-31 | BH3: 2047-01-31 | BI3: 2047-07-31 | BJ3: 2048-01-31 | BK3: 2048-07-31 | BL3: 2049-01-31 | BM3: 2049-07-31 | BN3: 2050-01-31 | BO3: 2050-07-31 | BP3: 2051-01-31 | BQ3: 2051-07-31 | BR3: 2052-01-31 | BS3: 2052-07-31 | BT3: 2053-01-31 | BU3: =EDATE(BU2,6)-1 -> 2053-07-31 | BV3: 2054-01-31 | BW3: 2054-07-31 | BX3: 2055-01-31 | BY3: 2055-07-31 | BZ3: 2056-01-31 | CA3: 2056-07-31 | CB3: 2057-01-31 | CC3: 2057-07-31 | CD3: 2058-01-31 | CE3: 2058-07-31 | CF3: 2059-01-31 | CG3: 2059-07-31 | CH3: 2060-01-31 | CI3: 2060-07-31 | CJ3: 2061-01-31 | CK3: 2061-07-31 | CL3: 2062-01-31 | CM3: 2062-07-31 | CN3: 2063-01-31 | CO3: 2063-07-31 | CP3: 2064-01-31 | CQ3: 2064-07-31 | CR3: 2065-01-31 | CS3: 2065-07-31 | CT3: 2066-01-31 | CU3: 2066-07-31 | CV3: 2067-01-31 | CW3: 2067-07-31 | CX3: 2068-01-31 | CY3: 2068-07-31 | CZ3: 2069-01-31 | DA3: 2069-07-31 | DB3: 2070-01-31 | DC3: 2070-07-31
B4: Construction phase | F4: =F11 -> 2021-02-01 | H4: =H2<$F$4 -> TRUE | I4: =I2<$F$4 -> FALSE | J4: FALSE | K4: FALSE | L4: FALSE | M4: FALSE | N4: FALSE | O4: FALSE | P4: FALSE | Q4: FALSE | R4: FALSE | S4: FALSE | T4: FALSE | U4: FALSE | V4: FALSE | W4: FALSE | X4: FALSE | Y4: FALSE | Z4: FALSE | AA4: FALSE | AB4: FALSE | AC4: FALSE | AD4: FALSE | AE4: FALSE | AF4: FALSE | AG4: FALSE | AH4: FALSE | AI4: FALSE | AJ4: FALSE | AK4: FALSE | AL4: FALSE | AM4: FALSE | AN4: FALSE | AO4: FALSE | AP4: FALSE | AQ4: FALSE | AR4: FALSE | AS4: FALSE | AT4: FALSE | AU4: FALSE | AV4: FALSE | AW4: FALSE | AX4: FALSE | AY4: FALSE | AZ4: FALSE | BA4: FALSE | BB4: FALSE | BC4: FALSE | BD4: FALSE | BE4: FALSE | BF4: FALSE | BG4: FALSE | BH4: FALSE | BI4: FALSE | BJ4: FALSE | BK4: FALSE | BL4: FALSE | BM4: FALSE | BN4: FALSE | BO4: FALSE | BP4: FALSE | BQ4: FALSE | BR4: FALSE | BS4: FALSE | BT4: FALSE | BU4: =BU2<$F$4 -> FALSE | BV4: FALSE | BW4: FALSE | BX4: FALSE | BY4: FALSE | BZ4: FALSE | CA4: FALSE | CB4: FALSE | CC4: FALSE | CD4: FALSE | CE4: FALSE | CF4: FALSE | CG4: FALSE | CH4: FALSE | CI4: FALSE | CJ4: FALSE | CK4: FALSE | CL4: FALSE | CM4: FALSE | CN4: FALSE | CO4: FALSE | CP4: FALSE | CQ4: FALSE | CR4: FALSE | CS4: FALSE | CT4: FALSE | CU4: FALSE | CV4: FALSE | CW4: FALSE | CX4: FALSE | CY4: FALSE | CZ4: FALSE | DA4: FALSE | DB4: FALSE | DC4: FALSE
B5: Operating phase | F5: =F11 -> 2021-02-01 | G5: =F13 -> 2051-02-01 | H5: =AND(H2>=$F$5,H2<$G$5) -> FALSE | I5: =AND(I2>=$F$5,I2<$G$5) -> TRUE | J5: TRUE | K5: TRUE | L5: TRUE | M5: TRUE | N5: TRUE | O5: TRUE | P5: TRUE | Q5: TRUE | R5: TRUE | S5: TRUE | T5: TRUE | U5: TRUE | V5: TRUE | W5: TRUE | X5: TRUE | Y5: TRUE | Z5: TRUE | AA5: TRUE | AB5: TRUE | AC5: TRUE | AD5: TRUE | AE5: TRUE | AF5: TRUE | AG5: TRUE | AH5: TRUE | AI5: TRUE | AJ5: TRUE | AK5: TRUE | AL5: TRUE | AM5: TRUE | AN5: TRUE | AO5: TRUE | AP5: TRUE | AQ5: TRUE | AR5: TRUE | AS5: TRUE | AT5: TRUE | AU5: TRUE | AV5: TRUE | AW5: TRUE | AX5: TRUE | AY5: TRUE | AZ5: TRUE | BA5: TRUE | BB5: TRUE | BC5: TRUE | BD5: TRUE | BE5: TRUE | BF5: TRUE | BG5: TRUE | BH5: TRUE | BI5: TRUE | BJ5: TRUE | BK5: TRUE | BL5: TRUE | BM5: TRUE | BN5: TRUE | BO5: TRUE | BP5: TRUE | BQ5: FALSE | BR5: FALSE | BS5: FALSE | BT5: FALSE | BU5: =AND(BU2>=$F$5,BU2<$G$5) -> FALSE | BV5: FALSE | BW5: FALSE | BX5: FALSE | BY5: FALSE | BZ5: FALSE | CA5: FALSE | CB5: FALSE | CC5: FALSE | CD5: FALSE | CE5: FALSE | CF5: FALSE | CG5: FALSE | CH5: FALSE | CI5: FALSE | CJ5: FALSE | CK5: FALSE | CL5: FALSE | CM5: FALSE | CN5: FALSE | CO5: FALSE | CP5: FALSE | CQ5: FALSE | CR5: FALSE | CS5: FALSE | CT5: FALSE | CU5: FALSE | CV5: FALSE | CW5: FALSE | CX5: FALSE | CY5: FALSE | CZ5: FALSE | DA5: FALSE | DB5: FALSE | DC5: FALSE
A7: Non-Financing Inputs
B8: Timing Inputs
C9: Construction Start | E9: Date | F9: 2020-08-01
C10: Construction Period | E10: Periods | F10: 1
C11: Commercial Operation | E11: Date | F11: =EDATE(F9,F10*6) -> 2021-02-01
C12: Operating Period | E12: Years | F12: 30
C13: Decommissioning | E13: Date | F13: =EDATE(F11,F12*12) -> 2051-02-01
B15: Operation Inputs
D16: Capacity | E16: MW | F16: ='Wind Study Back-up'!C3 -> 120
D17: P50 Capacity Factor | E17: % p.a. | F17: ='Wind Study Back-up'!C13 -> 0.3880209819
F18: 1-yr | G18: 10-yr | H18: 20-yr
D19: Standard Deviation/P50 Case Production | F19: ='Wind Study Back-up'!D17 -> 0.1138 | G19: ='Wind Study Back-up'!E17 -> 0.08456922191 | H19: ='Wind Study Back-up'!F17 -> 0.08267092743
D21: Case applied (P50=1, P90=2, P99=3) | E21: Code | F21: 1 | J21: P50
J22: P90
B23: EPC, O&M and PPA contracts | J23: P99
C24: EPC and Development
D25: EPC Cost | E25: Euro/kW | F25: =G25 -> 1200 | G25: 1200
D26: Development Cost | E26: Euro/kW | F26: =F25*3% -> 36
D27: Owners Cost | E27: Euro/kW | F27: 46
D28: Total Cost | E28: Euro/kW | F28: =SUM(F25:F27) -> 1282
C30: General Inflation Rate | E30: % | F30: 0.02
C32: O&M Cost | F32: Euro/kW/yr | G32: Fixed | H32: Variable | I32: Euro/MWh
D33: Contracted Turbine O&M ($/MWh) | E33: Euro/kW-yr | F33: 18.53841379 | G33: FALSE | H33: =NOT(G33) -> TRUE | I33: =F33*1000/(8760*$F$17) -> 5.453976409
D34: BOP O&M | E34: Euro/kW-yr | F34: 4.211448549 | G34: FALSE | H34: =NOT(G34) -> TRUE | I34: =F34*1000/(8760*$F$17) -> 1.2390025
D35: BOP O&M Fee | E35: Euro/kW-yr | F35: 1.346821869 | G35: FALSE | H35: TRUE | I35: 0.3962331829
D36: Operation Expenses | E36: Euro/kW-yr | F36: 1.44934195 | G36: TRUE | H36: FALSE | I36: 0.4263944528
D37: Maintenance Expenses | E37: Euro/kW-yr | F37: 1.41528473 | G37: TRUE | H37: FALSE | I37: 0.4163748646
D38: G&A | E38: Euro/kW-yr | F38: 0.7683580345 | G38: TRUE | H38: FALSE | I38: 0.2260499006
D39: Asset Management | E39: Euro/kW-yr | F39: 0 | G39: TRUE | H39: FALSE | I39: 0
D40: Community Support | E40: Euro/kW-yr | F40: 0.0439061734 | G40: TRUE | H40: FALSE | I40: 0.01291713718
D41: 3rd Party Professional Services | E41: Euro/kW-yr | F41: 0.7244518611 | G41: TRUE | H41: FALSE | I41: 0.2131327634
D42: Landowner and Easement Royalties | E42: Euro/kW-yr | F42: 3.512650602 | G42: TRUE | H42: FALSE | I42: 1.033417084
D43: Royalties - based on % Revenues | E43: Euro/kW-yr | F43: 2.373185734 | G43: TRUE | H43: FALSE | I43: 0.698188052
D44: Property Taxes | E44: Euro/kW-yr | F44: 10.69409011 | G44: TRUE | H44: FALSE | I44: 3.146186931
D45: Environmental Monitoring | E45: Euro/kW-yr | F45: 0 | G45: TRUE | H45: FALSE | I45: 0
D46: Insurance | E46: Euro/kW-yr | F46: 1.56745039 | G46: TRUE | H46: FALSE | I46: 0.4611417972
D47: Annual Insurance Cash Premium & Origination Fee | E47: Euro/kW-yr | F47: 7.463545105 | G47: TRUE | H47: FALSE | I47: 2.195764934
D48: Total Operating Expenses | E48: Euro/kW-yr | F48: =SUM(F33:F47) -> 54.1089489 | I48: =SUM(I33:I47) -> 15.91878001
C50: O&M Sensitivity | F50: =G50/100 -> 1 | G50: 100
C52: PPA Price
D53: Starting Price | E53: USD/MWH | F53: 41.8468703 | G53: price
D54: Inflate | E54: Switch | F54: TRUE
A57: Operations and Pre-tax Free Cash Flow
B58: Operations
C59: Capacity and Generation
D60: Capacity | E60: MW | F60: =F16 -> 120 | H60: =$F60*H$5 -> 0 | I60: =$F60*I$5 -> 120 | J60: 120 | K60: 120 | L60: 120 | M60: 120 | N60: 120 | O60: 120 | P60: 120 | Q60: 120 | R60: 120 | S60: 120 | T60: 120 | U60: 120 | V60: 120 | W60: 120 | X60: 120 | Y60: 120 | Z60: 120 | AA60: 120 | AB60: 120 | AC60: 120 | AD60: 120 | AE60: 120 | AF60: 120 | AG60: 120 | AH60: 120 | AI60: 120 | AJ60: 120 | AK60: 120 | AL60: 120 | AM60: 120 | AN60: 120 | AO60: 120 | AP60: 120 | AQ60: 120 | AR60: 120 | AS60: 120 | AT60: 120 | AU60: 120 | AV60: 120 | AW60: 120 | AX60: 120 | AY60: 120 | AZ60: 120 | BA60: 120 | BB60: 120 | BC60: 120 | BD60: 120 | BE60: 120 | BF60: 120 | BG60: 120 | BH60: 120 | BI60: 120 | BJ60: 120 | BK60: 120 | BL60: 120 | BM60: 120 | BN60: 120 | BO60: 120 | BP60: 120 | BQ60: 0 | BR60: 0 | BS60: 0 | BT60: 0 | BU60: =$F60*BU$5 -> 0 | BV60: 0 | BW60: 0 | BX60: 0 | BY60: 0 | BZ60: 0 | CA60: 0 | CB60: 0 | CC60: 0 | CD60: 0 | CE60: 0 | CF60: 0 | CG60: 0 | CH60: 0 | CI60: 0 | CJ60: 0 | CK60: 0 | CL60: 0 | CM60: 0 | CN60: 0 | CO60: 0 | CP60: 0 | CQ60: 0 | CR60: 0 | CS60: 0 | CT60: 0 | CU60: 0 | CV60: 0 | CW60: 0 | CX60: 0 | CY60: 0 | CZ60: 0 | DA60: 0 | DB60: 0 | DC60: 0
D62: Hours in the period | E62: Hours | H62: =(H3-H2+1)*24 -> 4416 | I62: =(I3-I2+1)*24 -> 4344 | J62: =(J3-J2+1)*24 -> 4416 | K62: =(K3-K2+1)*24 -> 4344 | L62: =(L3-L2+1)*24 -> 4416 | M62: =(M3-M2+1)*24 -> 4344 | N62: =(N3-N2+1)*24 -> 4416 | O62: =(O3-O2+1)*24 -> 4368 | P62: =(P3-P2+1)*24 -> 4416 | Q62: =(Q3-Q2+1)*24 -> 4344 | R62: =(R3-R2+1)*24 -> 4416 | S62: =(S3-S2+1)*24 -> 4344 | T62: =(T3-T2+1)*24 -> 4416 | U62: =(U3-U2+1)*24 -> 4344 | V62: =(V3-V2+1)*24 -> 4416 | W62: =(W3-W2+1)*24 -> 4368 | X62: =(X3-X2+1)*24 -> 4416 | Y62: =(Y3-Y2+1)*24 -> 4344 | Z62: =(Z3-Z2+1)*24 -> 4416 | AA62: =(AA3-AA2+1)*24 -> 4344 | AB62: =(AB3-AB2+1)*24 -> 4416 | AC62: =(AC3-AC2+1)*24 -> 4344 | AD62: =(AD3-AD2+1)*24 -> 4416 | AE62: =(AE3-AE2+1)*24 -> 4368 | AF62: =(AF3-AF2+1)*24 -> 4416 | AG62: =(AG3-AG2+1)*24 -> 4344 | AH62: =(AH3-AH2+1)*24 -> 4416 | AI62: =(AI3-AI2+1)*24 -> 4344 | AJ62: =(AJ3-AJ2+1)*24 -> 4416 | AK62: =(AK3-AK2+1)*24 -> 4344 | AL62: =(AL3-AL2+1)*24 -> 4416 | AM62: =(AM3-AM2+1)*24 -> 4368 | AN62: =(AN3-AN2+1)*24 -> 4416 | AO62: =(AO3-AO2+1)*24 -> 4344 | AP62: =(AP3-AP2+1)*24 -> 4416 | AQ62: =(AQ3-AQ2+1)*24 -> 4344 | AR62: =(AR3-AR2+1)*24 -> 4416 | AS62: =(AS3-AS2+1)*24 -> 4344 | AT62: =(AT3-AT2+1)*24 -> 4416 | AU62: =(AU3-AU2+1)*24 -> 4368 | AV62: =(AV3-AV2+1)*24 -> 4416 | AW62: =(AW3-AW2+1)*24 -> 4344 | AX62: =(AX3-AX2+1)*24 -> 4416 | AY62: =(AY3-AY2+1)*24 -> 4344 | AZ62: =(AZ3-AZ2+1)*24 -> 4416 | BA62: =(BA3-BA2+1)*24 -> 4344 | BB62: =(BB3-BB2+1)*24 -> 4416 | BC62: =(BC3-BC2+1)*24 -> 4368 | BD62: =(BD3-BD2+1)*24 -> 4416 | BE62: =(BE3-BE2+1)*24 -> 4344 | BF62: =(BF3-BF2+1)*24 -> 4416 | BG62: =(BG3-BG2+1)*24 -> 4344 | BH62: =(BH3-BH2+1)*24 -> 4416 | BI62: =(BI3-BI2+1)*24 -> 4344 | BJ62: =(BJ3-BJ2+1)*24 -> 4416 | BK62: =(BK3-BK2+1)*24 -> 4368 | BL62: =(BL3-BL2+1)*24 -> 4416 | BM62: =(BM3-BM2+1)*24 -> 4344 | BN62: =(BN3-BN2+1)*24 -> 4416 | BO62: =(BO3-BO2+1)*24 -> 4344 | BP62: =(BP3-BP2+1)*24 -> 4416 | BQ62: =(BQ3-BQ2+1)*24 -> 4344 | BR62: =(BR3-BR2+1)*24 -> 4416 | BS62: =(BS3-BS2+1)*24 -> 4368 | BT62: =(BT3-BT2+1)*24 -> 4416 | BU62: =(BU3-BU2+1)*24 -> 4344 | BV62: =(BV3-BV2+1)*24 -> 4416 | BW62: =(BW3-BW2+1)*24 -> 4344 | BX62: =(BX3-BX2+1)*24 -> 4416 | BY62: =(BY3-BY2+1)*24 -> 4344 | BZ62: =(BZ3-BZ2+1)*24 -> 4416 | CA62: =(CA3-CA2+1)*24 -> 4368 | CB62: =(CB3-CB2+1)*24 -> 4416 | CC62: =(CC3-CC2+1)*24 -> 4344 | CD62: =(CD3-CD2+1)*24 -> 4416 | CE62: =(CE3-CE2+1)*24 -> 4344 | CF62: =(CF3-CF2+1)*24 -> 4416 | CG62: =(CG3-CG2+1)*24 -> 4344 | CH62: =(CH3-CH2+1)*24 -> 4416 | CI62: =(CI3-CI2+1)*24 -> 4368 | CJ62: =(CJ3-CJ2+1)*24 -> 4416 | CK62: =(CK3-CK2+1)*24 -> 4344 | CL62: =(CL3-CL2+1)*24 -> 4416 | CM62: =(CM3-CM2+1)*24 -> 4344 | CN62: =(CN3-CN2+1)*24 -> 4416 | CO62: =(CO3-CO2+1)*24 -> 4344 | CP62: =(CP3-CP2+1)*24 -> 4416 | CQ62: =(CQ3-CQ2+1)*24 -> 4368 | CR62: =(CR3-CR2+1)*24 -> 4416 | CS62: =(CS3-CS2+1)*24 -> 4344 | CT62: =(CT3-CT2+1)*24 -> 4416 | CU62: =(CU3-CU2+1)*24 -> 4344 | CV62: =(CV3-CV2+1)*24 -> 4416 | CW62: =(CW3-CW2+1)*24 -> 4344 | CX62: =(CX3-CX2+1)*24 -> 4416 | CY62: =(CY3-CY2+1)*24 -> 4368 | CZ62: =(CZ3-CZ2+1)*24 -> 4416 | DA62: =(DA3-DA2+1)*24 -> 4344 | DB62: =(DB3-DB2+1)*24 -> 4416 | DC62: =(DC3-DC2+1)*24 -> 4344
D64: P50 Capacity Factor | E64: % | F64: =F17 -> 0.3880209819 | H64: =$F64*H$5 -> 0 | I64: 0.3880209819 | J64: 0.3880209819 | K64: 0.3880209819 | L64: 0.3880209819 | M64: 0.3880209819 | N64: 0.3880209819 | O64: 0.3880209819 | P64: 0.3880209819 | Q64: 0.3880209819 | R64: 0.3880209819 | S64: 0.3880209819 | T64: 0.3880209819 | U64: 0.3880209819 | V64: 0.3880209819 | W64: 0.3880209819 | X64: 0.3880209819 | Y64: 0.3880209819 | Z64: 0.3880209819 | AA64: 0.3880209819 | AB64: 0.3880209819 | AC64: 0.3880209819 | AD64: 0.3880209819 | AE64: 0.3880209819 | AF64: 0.3880209819 | AG64: 0.3880209819 | AH64: 0.3880209819 | AI64: 0.3880209819 | AJ64: 0.3880209819 | AK64: 0.3880209819 | AL64: 0.3880209819 | AM64: 0.3880209819 | AN64: 0.3880209819 | AO64: 0.3880209819 | AP64: 0.3880209819 | AQ64: 0.3880209819 | AR64: 0.3880209819 | AS64: 0.3880209819 | AT64: 0.3880209819 | AU64: 0.3880209819 | AV64: 0.3880209819 | AW64: 0.3880209819 | AX64: 0.3880209819 | AY64: 0.3880209819 | AZ64: 0.3880209819 | BA64: 0.3880209819 | BB64: 0.3880209819 | BC64: 0.3880209819 | BD64: 0.3880209819 | BE64: 0.3880209819 | BF64: 0.3880209819 | BG64: 0.3880209819 | BH64: 0.3880209819 | BI64: 0.3880209819 | BJ64: 0.3880209819 | BK64: 0.3880209819 | BL64: 0.3880209819 | BM64: 0.3880209819 | BN64: 0.3880209819 | BO64: 0.3880209819 | BP64: 0.3880209819 | BQ64: 0 | BR64: 0 | BS64: 0 | BT64: 0 | BU64: 0 | BV64: 0 | BW64: 0 | BX64: 0 | BY64: 0 | BZ64: 0 | CA64: 0 | CB64: 0 | CC64: 0 | CD64: 0 | CE64: 0 | CF64: 0 | CG64: 0 | CH64: 0 | CI64: 0 | CJ64: 0 | CK64: 0 | CL64: 0 | CM64: 0 | CN64: 0 | CO64: 0 | CP64: 0 | CQ64: 0 | CR64: 0 | CS64: 0 | CT64: 0 | CU64: 0 | CV64: 0 | CW64: 0 | CX64: 0 | CY64: 0 | CZ64: 0 | DA64: 0 | DB64: 0 | DC64: 0
D65: 1-Year Standard Deviation as Percent | E65: % | F65: =F19 -> 0.1138 | H65: 0 | I65: 0.1138 | J65: 0.1138 | K65: 0.1138 | L65: 0.1138 | M65: 0.1138 | N65: 0.1138 | O65: 0.1138 | P65: 0.1138 | Q65: 0.1138 | R65: 0.1138 | S65: 0.1138 | T65: 0.1138 | U65: 0.1138 | V65: 0.1138 | W65: 0.1138 | X65: 0.1138 | Y65: 0.1138 | Z65: 0.1138 | AA65: 0.1138 | AB65: 0.1138 | AC65: 0.1138 | AD65: 0.1138 | AE65: 0.1138 | AF65: 0.1138 | AG65: 0.1138 | AH65: 0.1138 | AI65: 0.1138 | AJ65: 0.1138 | AK65: 0.1138 | AL65: 0.1138 | AM65: 0.1138 | AN65: 0.1138 | AO65: 0.1138 | AP65: 0.1138 | AQ65: 0.1138 | AR65: 0.1138 | AS65: 0.1138 | AT65: 0.1138 | AU65: 0.1138 | AV65: 0.1138 | AW65: 0.1138 | AX65: 0.1138 | AY65: 0.1138 | AZ65: 0.1138 | BA65: 0.1138 | BB65: 0.1138 | BC65: 0.1138 | BD65: 0.1138 | BE65: 0.1138 | BF65: 0.1138 | BG65: 0.1138 | BH65: 0.1138 | BI65: 0.1138 | BJ65: 0.1138 | BK65: 0.1138 | BL65: 0.1138 | BM65: 0.1138 | BN65: 0.1138 | BO65: 0.1138 | BP65: 0.1138 | BQ65: 0 | BR65: 0 | BS65: 0 | BT65: 0 | BU65: 0 | BV65: 0 | BW65: 0 | BX65: 0 | BY65: 0 | BZ65: 0 | CA65: 0 | CB65: 0 | CC65: 0 | CD65: 0 | CE65: 0 | CF65: 0 | CG65: 0 | CH65: 0 | CI65: 0 | CJ65: 0 | CK65: 0 | CL65: 0 | CM65: 0 | CN65: 0 | CO65: 0 | CP65: 0 | CQ65: 0 | CR65: 0 | CS65: 0 | CT65: 0 | CU65: 0 | CV65: 0 | CW65: 0 | CX65: 0 | CY65: 0 | CZ65: 0 | DA65: 0 | DB65: 0 | DC65: 0
D66: P90 Capacity Factor | E66: % | F66: =_xlfn.NORM.INV(0.1,F64,F64*F65) -> 0.3314317815 | H66: 0 | I66: 0.3314317815 | J66: 0.3314317815 | K66: 0.3314317815 | L66: 0.3314317815 | M66: 0.3314317815 | N66: 0.3314317815 | O66: 0.3314317815 | P66: 0.3314317815 | Q66: 0.3314317815 | R66: 0.3314317815 | S66: 0.3314317815 | T66: 0.3314317815 | U66: 0.3314317815 | V66: 0.3314317815 | W66: 0.3314317815 | X66: 0.3314317815 | Y66: 0.3314317815 | Z66: 0.3314317815 | AA66: 0.3314317815 | AB66: 0.3314317815 | AC66: 0.3314317815 | AD66: 0.3314317815 | AE66: 0.3314317815 | AF66: 0.3314317815 | AG66: 0.3314317815 | AH66: 0.3314317815 | AI66: 0.3314317815 | AJ66: 0.3314317815 | AK66: 0.3314317815 | AL66: 0.3314317815 | AM66: 0.3314317815 | AN66: 0.3314317815 | AO66: 0.3314317815 | AP66: 0.3314317815 | AQ66: 0.3314317815 | AR66: 0.3314317815 | AS66: 0.3314317815 | AT66: 0.3314317815 | AU66: 0.3314317815 | AV66: 0.3314317815 | AW66: 0.3314317815 | AX66: 0.3314317815 | AY66: 0.3314317815 | AZ66: 0.3314317815 | BA66: 0.3314317815 | BB66: 0.3314317815 | BC66: 0.3314317815 | BD66: 0.3314317815 | BE66: 0.3314317815 | BF66: 0.3314317815 | BG66: 0.3314317815 | BH66: 0.3314317815 | BI66: 0.3314317815 | BJ66: 0.3314317815 | BK66: 0.3314317815 | BL66: 0.3314317815 | BM66: 0.3314317815 | BN66: 0.3314317815 | BO66: 0.3314317815 | BP66: 0.3314317815 | BQ66: 0 | BR66: 0 | BS66: 0 | BT66: 0 | BU66: 0 | BV66: 0 | BW66: 0 | BX66: 0 | BY66: 0 | BZ66: 0 | CA66: 0 | CB66: 0 | CC66: 0 | CD66: 0 | CE66: 0 | CF66: 0 | CG66: 0 | CH66: 0 | CI66: 0 | CJ66: 0 | CK66: 0 | CL66: 0 | CM66: 0 | CN66: 0 | CO66: 0 | CP66: 0 | CQ66: 0 | CR66: 0 | CS66: 0 | CT66: 0 | CU66: 0 | CV66: 0 | CW66: 0 | CX66: 0 | CY66: 0 | CZ66: 0 | DA66: 0 | DB66: 0 | DC66: 0
D67: P99 Capacity Factor | E67: % | F67: =_xlfn.NORM.INV(0.01,F64,F64*F65) -> 0.2852969326 | H67: 0 | I67: 0.2852969326 | J67: 0.2852969326 | K67: 0.2852969326 | L67: 0.2852969326 | M67: 0.2852969326 | N67: 0.2852969326 | O67: 0.2852969326 | P67: 0.2852969326 | Q67: 0.2852969326 | R67: 0.2852969326 | S67: 0.2852969326 | T67: 0.2852969326 | U67: 0.2852969326 | V67: 0.2852969326 | W67: 0.2852969326 | X67: 0.2852969326 | Y67: 0.2852969326 | Z67: 0.2852969326 | AA67: 0.2852969326 | AB67: 0.2852969326 | AC67: 0.2852969326 | AD67: 0.2852969326 | AE67: 0.2852969326 | AF67: 0.2852969326 | AG67: 0.2852969326 | AH67: 0.2852969326 | AI67: 0.2852969326 | AJ67: 0.2852969326 | AK67: 0.2852969326 | AL67: 0.2852969326 | AM67: 0.2852969326 | AN67: 0.2852969326 | AO67: 0.2852969326 | AP67: 0.2852969326 | AQ67: 0.2852969326 | AR67: 0.2852969326 | AS67: 0.2852969326 | AT67: 0.2852969326 | AU67: 0.2852969326 | AV67: 0.2852969326 | AW67: 0.2852969326 | AX67: 0.2852969326 | AY67: 0.2852969326 | AZ67: 0.2852969326 | BA67: 0.2852969326 | BB67: 0.2852969326 | BC67: 0.2852969326 | BD67: 0.2852969326 | BE67: 0.2852969326 | BF67: 0.2852969326 | BG67: 0.2852969326 | BH67: 0.2852969326 | BI67: 0.2852969326 | BJ67: 0.2852969326 | BK67: 0.2852969326 | BL67: 0.2852969326 | BM67: 0.2852969326 | BN67: 0.2852969326 | BO67: 0.2852969326 | BP67: =$F67*BP$5 -> 0.2852969326 | BQ67: 0 | BR67: 0 | BS67: 0 | BT67: 0 | BU67: 0 | BV67: 0 | BW67: 0 | BX67: 0 | BY67: 0 | BZ67: 0 | CA67: 0 | CB67: 0 | CC67: 0 | CD67: 0 | CE67: 0 | CF67: 0 | CG67: 0 | CH67: 0 | CI67: 0 | CJ67: 0 | CK67: 0 | CL67: 0 | CM67: 0 | CN67: 0 | CO67: 0 | CP67: 0 | CQ67: 0 | CR67: 0 | CS67: 0 | CT67: 0 | CU67: 0 | CV67: 0 | CW67: 0 | CX67: 0 | CY67: 0 | CZ67: 0 | DA67: 0 | DB67: 0 | DC67: 0
D69: Generation at P50 | E69: MWH | H69: =H$60*H64*H$62 -> 0 | I69: 202267.5775 | J69: 205620.0787 | K69: 202267.5775 | L69: 205620.0787 | M69: 202267.5775 | N69: 205620.0787 | O69: 203385.0779 | P69: 205620.0787 | Q69: 202267.5775 | R69: 205620.0787 | S69: 202267.5775 | T69: 205620.0787 | U69: 202267.5775 | V69: 205620.0787 | W69: 203385.0779 | X69: 205620.0787 | Y69: 202267.5775 | Z69: 205620.0787 | AA69: 202267.5775 | AB69: 205620.0787 | AC69: 202267.5775 | AD69: 205620.0787 | AE69: 203385.0779 | AF69: 205620.0787 | AG69: 202267.5775 | AH69: 205620.0787 | AI69: 202267.5775 | AJ69: 205620.0787 | AK69: 202267.5775 | AL69: 205620.0787 | AM69: 203385.0779 | AN69: 205620.0787 | AO69: 202267.5775 | AP69: 205620.0787 | AQ69: 202267.5775 | AR69: 205620.0787 | AS69: 202267.5775 | AT69: 205620.0787 | AU69: 203385.0779 | AV69: 205620.0787 | AW69: 202267.5775 | AX69: 205620.0787 | AY69: 202267.5775 | AZ69: 205620.0787 | BA69: 202267.5775 | BB69: 205620.0787 | BC69: 203385.0779 | BD69: 205620.0787 | BE69: 202267.5775 | BF69: 205620.0787 | BG69: 202267.5775 | BH69: 205620.0787 | BI69: 202267.5775 | BJ69: 205620.0787 | BK69: 203385.0779 | BL69: 205620.0787 | BM69: 202267.5775 | BN69: 205620.0787 | BO69: 202267.5775 | BP69: 205620.0787 | BQ69: 0 | BR69: 0 | BS69: 0 | BT69: =BT$60*BT64*BT$62 -> 0 | BU69: 0 | BV69: 0 | BW69: 0 | BX69: 0 | BY69: 0 | BZ69: 0 | CA69: 0 | CB69: 0 | CC69: 0 | CD69: 0 | CE69: 0 | CF69: 0 | CG69: 0 | CH69: 0 | CI69: 0 | CJ69: 0 | CK69: 0 | CL69: 0 | CM69: 0 | CN69: 0 | CO69: 0 | CP69: 0 | CQ69: 0 | CR69: 0 | CS69: 0 | CT69: 0 | CU69: 0 | CV69: 0 | CW69: 0 | CX69: 0 | CY69: 0 | CZ69: 0 | DA69: 0 | DB69: 0 | DC69: 0
D70: Generation at P90 | E70: MWH | H70: =H$60*H66*H$62 -> 0 | I70: 172768.759 | J70: 175632.3296 | K70: 172768.759 | L70: 175632.3296 | M70: 172768.759 | N70: 175632.3296 | O70: 173723.2826 | P70: 175632.3296 | Q70: 172768.759 | R70: 175632.3296 | S70: 172768.759 | T70: 175632.3296 | U70: 172768.759 | V70: 175632.3296 | W70: 173723.2826 | X70: 175632.3296 | Y70: 172768.759 | Z70: 175632.3296 | AA70: 172768.759 | AB70: 175632.3296 | AC70: 172768.759 | AD70: 175632.3296 | AE70: 173723.2826 | AF70: 175632.3296 | AG70: 172768.759 | AH70: 175632.3296 | AI70: 172768.759 | AJ70: 175632.3296 | AK70: 172768.759 | AL70: 175632.3296 | AM70: 173723.2826 | AN70: 175632.3296 | AO70: 172768.759 | AP70: 175632.3296 | AQ70: 172768.759 | AR70: 175632.3296 | AS70: 172768.759 | AT70: 175632.3296 | AU70: 173723.2826 | AV70: 175632.3296 | AW70: 172768.759 | AX70: 175632.3296 | AY70: 172768.759 | AZ70: 175632.3296 | BA70: 172768.759 | BB70: 175632.3296 | BC70: 173723.2826 | BD70: 175632.3296 | BE70: 172768.759 | BF70: 175632.3296 | BG70: 172768.759 | BH70: 175632.3296 | BI70: 172768.759 | BJ70: 175632.3296 | BK70: 173723.2826 | BL70: 175632.3296 | BM70: 172768.759 | BN70: 175632.3296 | BO70: 172768.759 | BP70: 175632.3296 | BQ70: 0 | BR70: 0 | BS70: 0 | BT70: =BT$60*BT66*BT$62 -> 0 | BU70: 0 | BV70: 0 | BW70: 0 | BX70: 0 | BY70: 0 | BZ70: 0 | CA70: 0 | CB70: 0 | CC70: 0 | CD70: 0 | CE70: 0 | CF70: 0 | CG70: 0 | CH70: 0 | CI70: 0 | CJ70: 0 | CK70: 0 | CL70: 0 | CM70: 0 | CN70: 0 | CO70: 0 | CP70: 0 | CQ70: 0 | CR70: 0 | CS70: 0 | CT70: 0 | CU70: 0 | CV70: 0 | CW70: 0 | CX70: 0 | CY70: 0 | CZ70: 0 | DA70: 0 | DB70: 0 | DC70: 0
D71: Generation at P99 | E71: MWH | H71: =H60*H62*H67 -> 0 | I71: 148719.585 | J71: 151184.5505 | K71: 148719.585 | L71: 151184.5505 | M71: 148719.585 | N71: 151184.5505 | O71: 149541.2402 | P71: 151184.5505 | Q71: 148719.585 | R71: 151184.5505 | S71: 148719.585 | T71: 151184.5505 | U71: 148719.585 | V71: 151184.5505 | W71: 149541.2402 | X71: 151184.5505 | Y71: 148719.585 | Z71: 151184.5505 | AA71: 148719.585 | AB71: 151184.5505 | AC71: 148719.585 | AD71: 151184.5505 | AE71: 149541.2402 | AF71: 151184.5505 | AG71: 148719.585 | AH71: 151184.5505 | AI71: 148719.585 | AJ71: 151184.5505 | AK71: 148719.585 | AL71: 151184.5505 | AM71: 149541.2402 | AN71: 151184.5505 | AO71: 148719.585 | AP71: 151184.5505 | AQ71: 148719.585 | AR71: 151184.5505 | AS71: 148719.585 | AT71: 151184.5505 | AU71: 149541.2402 | AV71: 151184.5505 | AW71: 148719.585 | AX71: 151184.5505 | AY71: 148719.585 | AZ71: 151184.5505 | BA71: 148719.585 | BB71: 151184.5505 | BC71: 149541.2402 | BD71: 151184.5505 | BE71: 148719.585 | BF71: 151184.5505 | BG71: 148719.585 | BH71: 151184.5505 | BI71: 148719.585 | BJ71: 151184.5505 | BK71: 149541.2402 | BL71: 151184.5505 | BM71: 148719.585 | BN71: 151184.5505 | BO71: 148719.585 | BP71: 151184.5505 | BQ71: 0 | BR71: 0 | BS71: 0 | BT71: 0 | BU71: 0 | BV71: 0 | BW71: 0 | BX71: 0 | BY71: 0 | BZ71: 0 | CA71: 0 | CB71: 0 | CC71: 0 | CD71: 0 | CE71: 0 | CF71: 0 | CG71: 0 | CH71: 0 | CI71: 0 | CJ71: 0 | CK71: 0 | CL71: 0 | CM71: 0 | CN71: 0 | CO71: 0 | CP71: 0 | CQ71: 0 | CR71: 0 | CS71: 0 | CT71: 0 | CU71: 0 | CV71: 0 | CW71: 0 | CX71: 0 | CY71: 0 | CZ71: 0 | DA71: 0 | DB71: 0 | DC71: 0
D72: MWH Applied | E72: MWH | F72: =F21 -> 1 | H72: =INDEX(H69:H71,$F$72) -> 0 | I72: 202267.5775 | J72: 205620.0787 | K72: 202267.5775 | L72: 205620.0787 | M72: 202267.5775 | N72: 205620.0787 | O72: 203385.0779 | P72: 205620.0787 | Q72: 202267.5775 | R72: 205620.0787 | S72: 202267.5775 | T72: 205620.0787 | U72: 202267.5775 | V72: 205620.0787 | W72: 203385.0779 | X72: 205620.0787 | Y72: 202267.5775 | Z72: 205620.0787 | AA72: 202267.5775 | AB72: 205620.0787 | AC72: 202267.5775 | AD72: 205620.0787 | AE72: 203385.0779 | AF72: 205620.0787 | AG72: 202267.5775 | AH72: 205620.0787 | AI72: 202267.5775 | AJ72: 205620.0787 | AK72: 202267.5775 | AL72: 205620.0787 | AM72: 203385.0779 | AN72: 205620.0787 | AO72: 202267.5775 | AP72: 205620.0787 | AQ72: 202267.5775 | AR72: 205620.0787 | AS72: 202267.5775 | AT72: 205620.0787 | AU72: 203385.0779 | AV72: 205620.0787 | AW72: 202267.5775 | AX72: 205620.0787 | AY72: 202267.5775 | AZ72: 205620.0787 | BA72: 202267.5775 | BB72: 205620.0787 | BC72: 203385.0779 | BD72: 205620.0787 | BE72: 202267.5775 | BF72: 205620.0787 | BG72: 202267.5775 | BH72: 205620.0787 | BI72: 202267.5775 | BJ72: 205620.0787 | BK72: 203385.0779 | BL72: 205620.0787 | BM72: 202267.5775 | BN72: 205620.0787 | BO72: 202267.5775 | BP72: 205620.0787 | BQ72: 0 | BR72: 0 | BS72: 0 | BT72: =INDEX(BT69:BT71,$F$72) -> 0 | BU72: 0 | BV72: 0 | BW72: 0 | BX72: 0 | BY72: 0 | BZ72: 0 | CA72: 0 | CB72: 0 | CC72: 0 | CD72: 0 | CE72: 0 | CF72: 0 | CG72: 0 | CH72: 0 | CI72: 0 | CJ72: 0 | CK72: 0 | CL72: 0 | CM72: 0 | CN72: 0 | CO72: 0 | CP72: 0 | CQ72: 0 | CR72: 0 | CS72: 0 | CT72: 0 | CU72: 0 | CV72: 0 | CW72: 0 | CX72: 0 | CY72: 0 | CZ72: 0 | DA72: 0 | DB72: 0 | DC72: 0
B74: Construction Costs
D75: EPC Cost | E75: Euro 000's | F75: =F25*$F$60 -> 144000 | H75: =$F75*H$4 -> 144000 | I75: =$F75*I$4 -> 0 | J75: 0 | K75: 0 | L75: 0 | M75: 0 | N75: 0 | O75: 0 | P75: 0 | Q75: 0 | R75: 0 | S75: 0 | T75: 0 | U75: 0 | V75: 0 | W75: 0 | X75: 0 | Y75: 0 | Z75: 0 | AA75: 0 | AB75: 0 | AC75: 0 | AD75: 0 | AE75: 0 | AF75: 0 | AG75: 0 | AH75: 0 | AI75: 0 | AJ75: 0 | AK75: 0 | AL75: 0 | AM75: 0 | AN75: 0 | AO75: 0 | AP75: 0 | AQ75: 0 | AR75: 0 | AS75: 0 | AT75: 0 | AU75: 0 | AV75: 0 | AW75: 0 | AX75: 0 | AY75: 0 | AZ75: 0 | BA75: 0 | BB75: 0 | BC75: 0 | BD75: 0 | BE75: 0 | BF75: 0 | BG75: 0 | BH75: 0 | BI75: 0 | BJ75: 0 | BK75: 0 | BL75: 0 | BM75: 0 | BN75: 0 | BO75: 0 | BP75: 0 | BQ75: 0 | BR75: 0 | BS75: 0 | BT75: 0 | BU75: =$F75*BU$4 -> 0 | BV75: 0 | BW75: 0 | BX75: 0 | BY75: 0 | BZ75: 0 | CA75: 0 | CB75: 0 | CC75: 0 | CD75: 0 | CE75: 0 | CF75: 0 | CG75: 0 | CH75: 0 | CI75: 0 | CJ75: 0 | CK75: 0 | CL75: 0 | CM75: 0 | CN75: 0 | CO75: 0 | CP75: 0 | CQ75: 0 | CR75: 0 | CS75: 0 | CT75: 0 | CU75: 0 | CV75: 0 | CW75: 0 | CX75: 0 | CY75: 0 | CZ75: 0 | DA75: 0 | DB75: 0 | DC75: 0
D76: Development Cost | E76: Euro 000's | F76: =F26*$F$60 -> 4320 | H76: =$F76*H$4 -> 4320 | I76: 0 | J76: 0 | K76: 0 | L76: 0 | M76: 0 | N76: 0 | O76: 0 | P76: 0 | Q76: 0 | R76: 0 | S76: 0 | T76: 0 | U76: 0 | V76: 0 | W76: 0 | X76: 0 | Y76: 0 | Z76: 0 | AA76: 0 | AB76: 0 | AC76: 0 | AD76: 0 | AE76: 0 | AF76: 0 | AG76: 0 | AH76: 0 | AI76: 0 | AJ76: 0 | AK76: 0 | AL76: 0 | AM76: 0 | AN76: 0 | AO76: 0 | AP76: 0 | AQ76: 0 | AR76: 0 | AS76: 0 | AT76: 0 | AU76: 0 | AV76: 0 | AW76: 0 | AX76: 0 | AY76: 0 | AZ76: 0 | BA76: 0 | BB76: 0 | BC76: 0 | BD76: 0 | BE76: 0 | BF76: 0 | BG76: 0 | BH76: 0 | BI76: 0 | BJ76: 0 | BK76: 0 | BL76: 0 | BM76: 0 | BN76: 0 | BO76: 0 | BP76: 0 | BQ76: 0 | BR76: 0 | BS76: 0 | BT76: 0 | BU76: 0 | BV76: 0 | BW76: 0 | BX76: 0 | BY76: 0 | BZ76: 0 | CA76: 0 | CB76: 0 | CC76: 0 | CD76: 0 | CE76: 0 | CF76: 0 | CG76: 0 | CH76: 0 | CI76: 0 | CJ76: 0 | CK76: 0 | CL76: 0 | CM76: 0 | CN76: 0 | CO76: 0 | CP76: 0 | CQ76: 0 | CR76: 0 | CS76: 0 | CT76: 0 | CU76: 0 | CV76: 0 | CW76: 0 | CX76: 0 | CY76: 0 | CZ76: 0 | DA76: 0 | DB76: 0 | DC76: 0
D77: Owners Cost | E77: Euro 000's | F77: =F27*$F$60 -> 5520 | H77: 5520 | I77: 0 | J77: 0 | K77: 0 | L77: 0 | M77: 0 | N77: 0 | O77: 0 | P77: 0 | Q77: 0 | R77: 0 | S77: 0 | T77: 0 | U77: 0 | V77: 0 | W77: 0 | X77: 0 | Y77: 0 | Z77: 0 | AA77: 0 | AB77: 0 | AC77: 0 | AD77: 0 | AE77: 0 | AF77: 0 | AG77: 0 | AH77: 0 | AI77: 0 | AJ77: 0 | AK77: 0 | AL77: 0 | AM77: 0 | AN77: 0 | AO77: 0 | AP77: 0 | AQ77: 0 | AR77: 0 | AS77: 0 | AT77: 0 | AU77: 0 | AV77: 0 | AW77: 0 | AX77: 0 | AY77: 0 | AZ77: 0 | BA77: 0 | BB77: 0 | BC77: 0 | BD77: 0 | BE77: 0 | BF77: 0 | BG77: 0 | BH77: 0 | BI77: 0 | BJ77: 0 | BK77: 0 | BL77: 0 | BM77: 0 | BN77: 0 | BO77: 0 | BP77: 0 | BQ77: 0 | BR77: 0 | BS77: 0 | BT77: 0 | BU77: 0 | BV77: 0 | BW77: 0 | BX77: 0 | BY77: 0 | BZ77: 0 | CA77: 0 | CB77: 0 | CC77: 0 | CD77: 0 | CE77: 0 | CF77: 0 | CG77: 0 | CH77: 0 | CI77: 0 | CJ77: 0 | CK77: 0 | CL77: 0 | CM77: 0 | CN77: 0 | CO77: 0 | CP77: 0 | CQ77: 0 | CR77: 0 | CS77: 0 | CT77: 0 | CU77: 0 | CV77: 0 | CW77: 0 | CX77: 0 | CY77: 0 | CZ77: 0 | DA77: 0 | DB77: 0 | DC77: 0
D78: Total Cost | E78: Euro 000's | F78: =F28*$F$60 -> 153840 | H78: 153840 | I78: 0 | J78: 0 | K78: 0 | L78: 0 | M78: 0 | N78: 0 | O78: 0 | P78: 0 | Q78: 0 | R78: 0 | S78: 0 | T78: 0 | U78: 0 | V78: 0 | W78: 0 | X78: 0 | Y78: 0 | Z78: 0 | AA78: 0 | AB78: 0 | AC78: 0 | AD78: 0 | AE78: 0 | AF78: 0 | AG78: 0 | AH78: 0 | AI78: 0 | AJ78: 0 | AK78: 0 | AL78: 0 | AM78: 0 | AN78: 0 | AO78: 0 | AP78: 0 | AQ78: 0 | AR78: 0 | AS78: 0 | AT78: 0 | AU78: 0 | AV78: 0 | AW78: 0 | AX78: 0 | AY78: 0 | AZ78: 0 | BA78: 0 | BB78: 0 | BC78: 0 | BD78: 0 | BE78: 0 | BF78: 0 | BG78: 0 | BH78: 0 | BI78: 0 | BJ78: 0 | BK78: 0 | BL78: 0 | BM78: 0 | BN78: 0 | BO78: 0 | BP78: 0 | BQ78: 0 | BR78: 0 | BS78: 0 | BT78: 0 | BU78: 0 | BV78: 0 | BW78: 0 | BX78: 0 | BY78: 0 | BZ78: 0 | CA78: 0 | CB78: 0 | CC78: 0 | CD78: 0 | CE78: 0 | CF78: 0 | CG78: 0 | CH78: 0 | CI78: 0 | CJ78: 0 | CK78: 0 | CL78: 0 | CM78: 0 | CN78: 0 | CO78: 0 | CP78: 0 | CQ78: 0 | CR78: 0 | CS78: 0 | CT78: 0 | CU78: 0 | CV78: 0 | CW78: 0 | CX78: 0 | CY78: 0 | CZ78: 0 | DA78: 0 | DB78: 0 | DC78: 0
B80: Operations and Maintenance Cost
D81: Real Variable Cost per MWH | E81: Euro/MWH | F81: =SUMPRODUCT(I33:I47*H33:H47) -> 7.089212092 | G81: =F50 -> 1 | H81: =$F$81*H5*$G81 -> 0 | I81: =$F$81*I5 -> 7.089212092 | J81: =$F$81*J5 -> 7.089212092 | K81: =$F$81*K5 -> 7.089212092 | L81: =$F$81*L5 -> 7.089212092 | M81: =$F$81*M5 -> 7.089212092 | N81: =$F$81*N5 -> 7.089212092 | O81: =$F$81*O5 -> 7.089212092 | P81: =$F$81*P5 -> 7.089212092 | Q81: =$F$81*Q5 -> 7.089212092 | R81: =$F$81*R5 -> 7.089212092 | S81: =$F$81*S5 -> 7.089212092 | T81: =$F$81*T5 -> 7.089212092 | U81: =$F$81*U5 -> 7.089212092 | V81: =$F$81*V5 -> 7.089212092 | W81: =$F$81*W5 -> 7.089212092 | X81: =$F$81*X5 -> 7.089212092 | Y81: =$F$81*Y5 -> 7.089212092 | Z81: =$F$81*Z5 -> 7.089212092 | AA81: =$F$81*AA5 -> 7.089212092 | AB81: =$F$81*AB5 -> 7.089212092 | AC81: =$F$81*AC5 -> 7.089212092 | AD81: =$F$81*AD5 -> 7.089212092 | AE81: =$F$81*AE5 -> 7.089212092 | AF81: =$F$81*AF5 -> 7.089212092 | AG81: =$F$81*AG5 -> 7.089212092 | AH81: =$F$81*AH5 -> 7.089212092 | AI81: =$F$81*AI5 -> 7.089212092 | AJ81: =$F$81*AJ5 -> 7.089212092 | AK81: =$F$81*AK5 -> 7.089212092 | AL81: =$F$81*AL5 -> 7.089212092 | AM81: =$F$81*AM5 -> 7.089212092 | AN81: =$F$81*AN5 -> 7.089212092 | AO81: =$F$81*AO5 -> 7.089212092 | AP81: =$F$81*AP5 -> 7.089212092 | AQ81: =$F$81*AQ5 -> 7.089212092 | AR81: =$F$81*AR5 -> 7.089212092 | AS81: =$F$81*AS5 -> 7.089212092 | AT81: =$F$81*AT5 -> 7.089212092 | AU81: =$F$81*AU5 -> 7.089212092 | AV81: =$F$81*AV5 -> 7.089212092 | AW81: =$F$81*AW5 -> 7.089212092 | AX81: =$F$81*AX5 -> 7.089212092 | AY81: =$F$81*AY5 -> 7.089212092 | AZ81: =$F$81*AZ5 -> 7.089212092 | BA81: =$F$81*BA5 -> 7.089212092 | BB81: =$F$81*BB5 -> 7.089212092 | BC81: =$F$81*BC5 -> 7.089212092 | BD81: =$F$81*BD5 -> 7.089212092 | BE81: =$F$81*BE5 -> 7.089212092 | BF81: =$F$81*BF5 -> 7.089212092 | BG81: =$F$81*BG5 -> 7.089212092 | BH81: =$F$81*BH5 -> 7.089212092 | BI81: =$F$81*BI5 -> 7.089212092 | BJ81: =$F$81*BJ5 -> 7.089212092 | BK81: =$F$81*BK5 -> 7.089212092 | BL81: =$F$81*BL5 -> 7.089212092 | BM81: =$F$81*BM5 -> 7.089212092 | BN81: =$F$81*BN5 -> 7.089212092 | BO81: =$F$81*BO5 -> 7.089212092 | BP81: =$F$81*BP5 -> 7.089212092 | BQ81: =$F$81*BQ5 -> 0 | BR81: =$F$81*BR5 -> 0 | BS81: =$F$81*BS5 -> 0 | BT81: =$F$81*BT5 -> 0 | BU81: =$F$81*BU5 -> 0 | BV81: =$F$81*BV5 -> 0 | BW81: =$F$81*BW5 -> 0 | BX81: =$F$81*BX5 -> 0 | BY81: =$F$81*BY5 -> 0 | BZ81: =$F$81*BZ5 -> 0 | CA81: =$F$81*CA5 -> 0 | CB81: =$F$81*CB5 -> 0 | CC81: =$F$81*CC5 -> 0 | CD81: =$F$81*CD5 -> 0 | CE81: =$F$81*CE5 -> 0 | CF81: =$F$81*CF5 -> 0 | CG81: =$F$81*CG5 -> 0 | CH81: =$F$81*CH5 -> 0 | CI81: =$F$81*CI5 -> 0 | CJ81: =$F$81*CJ5 -> 0 | CK81: =$F$81*CK5 -> 0 | CL81: =$F$81*CL5 -> 0 | CM81: =$F$81*CM5 -> 0 | CN81: =$F$81*CN5 -> 0 | CO81: =$F$81*CO5 -> 0 | CP81: =$F$81*CP5 -> 0 | CQ81: =$F$81*CQ5 -> 0 | CR81: =$F$81*CR5 -> 0 | CS81: =$F$81*CS5 -> 0 | CT81: =$F$81*CT5 -> 0 | CU81: =$F$81*CU5 -> 0 | CV81: =$F$81*CV5 -> 0 | CW81: =$F$81*CW5 -> 0 | CX81: =$F$81*CX5 -> 0 | CY81: =$F$81*CY5 -> 0 | CZ81: =$F$81*CZ5 -> 0 | DA81: =$F$81*DA5 -> 0 | DB81: =$F$81*DB5 -> 0 | DC81: =$F$81*DC5 -> 0
D82: Real Fixed Cost per kW-year | E82: Euro/kW-yr | F82: =SUMPRODUCT(G33:G47*F33:F47) -> 30.01226469 | G82: =G81 -> 1 | H82: =$F$82/2*H5*$G82 -> 0 | I82: =$F$82/2*I5*$G82 -> 15.00613235 | J82: =$F$82/2*J5*$G82 -> 15.00613235 | K82: =$F$82/2*K5*$G82 -> 15.00613235 | L82: =$F$82/2*L5*$G82 -> 15.00613235 | M82: =$F$82/2*M5*$G82 -> 15.00613235 | N82: =$F$82/2*N5*$G82 -> 15.00613235 | O82: =$F$82/2*O5*$G82 -> 15.00613235 | P82: =$F$82/2*P5*$G82 -> 15.00613235 | Q82: =$F$82/2*Q5*$G82 -> 15.00613235 | R82: =$F$82/2*R5*$G82 -> 15.00613235 | S82: =$F$82/2*S5*$G82 -> 15.00613235 | T82: =$F$82/2*T5*$G82 -> 15.00613235 | U82: =$F$82/2*U5*$G82 -> 15.00613235 | V82: =$F$82/2*V5*$G82 -> 15.00613235 | W82: =$F$82/2*W5*$G82 -> 15.00613235 | X82: =$F$82/2*X5*$G82 -> 15.00613235 | Y82: =$F$82/2*Y5*$G82 -> 15.00613235 | Z82: =$F$82/2*Z5*$G82 -> 15.00613235 | AA82: =$F$82/2*AA5*$G82 -> 15.00613235 | AB82: =$F$82/2*AB5*$G82 -> 15.00613235 | AC82: =$F$82/2*AC5*$G82 -> 15.00613235 | AD82: =$F$82/2*AD5*$G82 -> 15.00613235 | AE82: =$F$82/2*AE5*$G82 -> 15.00613235 | AF82: =$F$82/2*AF5*$G82 -> 15.00613235 | AG82: =$F$82/2*AG5*$G82 -> 15.00613235 | AH82: =$F$82/2*AH5*$G82 -> 15.00613235 | AI82: =$F$82/2*AI5*$G82 -> 15.00613235 | AJ82: =$F$82/2*AJ5*$G82 -> 15.00613235 | AK82: =$F$82/2*AK5*$G82 -> 15.00613235 | AL82: =$F$82/2*AL5*$G82 -> 15.00613235 | AM82: =$F$82/2*AM5*$G82 -> 15.00613235 | AN82: =$F$82/2*AN5*$G82 -> 15.00613235 | AO82: =$F$82/2*AO5*$G82 -> 15.00613235 | AP82: =$F$82/2*AP5*$G82 -> 15.00613235 | AQ82: =$F$82/2*AQ5*$G82 -> 15.00613235 | AR82: =$F$82/2*AR5*$G82 -> 15.00613235 | AS82: =$F$82/2*AS5*$G82 -> 15.00613235 | AT82: =$F$82/2*AT5*$G82 -> 15.00613235 | AU82: =$F$82/2*AU5*$G82 -> 15.00613235 | AV82: =$F$82/2*AV5*$G82 -> 15.00613235 | AW82: =$F$82/2*AW5*$G82 -> 15.00613235 | AX82: =$F$82/2*AX5*$G82 -> 15.00613235 | AY82: =$F$82/2*AY5*$G82 -> 15.00613235 | AZ82: =$F$82/2*AZ5*$G82 -> 15.00613235 | BA82: =$F$82/2*BA5*$G82 -> 15.00613235 | BB82: =$F$82/2*BB5*$G82 -> 15.00613235 | BC82: =$F$82/2*BC5*$G82 -> 15.00613235 | BD82: =$F$82/2*BD5*$G82 -> 15.00613235 | BE82: =$F$82/2*BE5*$G82 -> 15.00613235 | BF82: =$F$82/2*BF5*$G82 -> 15.00613235 | BG82: =$F$82/2*BG5*$G82 -> 15.00613235 | BH82: =$F$82/2*BH5*$G82 -> 15.00613235 | BI82: =$F$82/2*BI5*$G82 -> 15.00613235 | BJ82: =$F$82/2*BJ5*$G82 -> 15.00613235 | BK82: =$F$82/2*BK5*$G82 -> 15.00613235 | BL82: =$F$82/2*BL5*$G82 -> 15.00613235 | BM82: =$F$82/2*BM5*$G82 -> 15.00613235 | BN82: =$F$82/2*BN5*$G82 -> 15.00613235 | BO82: =$F$82/2*BO5*$G82 -> 15.00613235 | BP82: =$F$82/2*BP5*$G82 -> 15.00613235 | BQ82: =$F$82/2*BQ5*$G82 -> 0 | BR82: =$F$82/2*BR5*$G82 -> 0 | BS82: =$F$82/2*BS5*$G82 -> 0 | BT82: =$F$82/2*BT5*$G82 -> 0 | BU82: =$F$82/2*BU5*$G82 -> 0 | BV82: =$F$82/2*BV5*$G82 -> 0 | BW82: =$F$82/2*BW5*$G82 -> 0 | BX82: =$F$82/2*BX5*$G82 -> 0 | BY82: =$F$82/2*BY5*$G82 -> 0 | BZ82: =$F$82/2*BZ5*$G82 -> 0 | CA82: =$F$82/2*CA5*$G82 -> 0 | CB82: =$F$82/2*CB5*$G82 -> 0 | CC82: =$F$82/2*CC5*$G82 -> 0 | CD82: =$F$82/2*CD5*$G82 -> 0 | CE82: =$F$82/2*CE5*$G82 -> 0 | CF82: =$F$82/2*CF5*$G82 -> 0 | CG82: =$F$82/2*CG5*$G82 -> 0 | CH82: =$F$82/2*CH5*$G82 -> 0 | CI82: =$F$82/2*CI5*$G82 -> 0 | CJ82: =$F$82/2*CJ5*$G82 -> 0 | CK82: =$F$82/2*CK5*$G82 -> 0 | CL82: =$F$82/2*CL5*$G82 -> 0 | CM82: =$F$82/2*CM5*$G82 -> 0 | CN82: =$F$82/2*CN5*$G82 -> 0 | CO82: =$F$82/2*CO5*$G82 -> 0 | CP82: =$F$82/2*CP5*$G82 -> 0 | CQ82: =$F$82/2*CQ5*$G82 -> 0 | CR82: =$F$82/2*CR5*$G82 -> 0 | CS82: =$F$82/2*CS5*$G82 -> 0 | CT82: =$F$82/2*CT5*$G82 -> 0 | CU82: =$F$82/2*CU5*$G82 -> 0 | CV82: =$F$82/2*CV5*$G82 -> 0 | CW82: =$F$82/2*CW5*$G82 -> 0 | CX82: =$F$82/2*CX5*$G82 -> 0 | CY82: =$F$82/2*CY5*$G82 -> 0 | CZ82: =$F$82/2*CZ5*$G82 -> 0 | DA82: =$F$82/2*DA5*$G82 -> 0 | DB82: =$F$82/2*DB5*$G82 -> 0 | DC82: =$F$82/2*DC5*$G82 -> 0
D84: Inflation Rate | E84: % | F84: =F30 -> 0.02 | H84: =(1+$F$84)^(1/2)-1 -> 0.009950493836 | I84: =(1+$F$84)^(1/2)-1 -> 0.009950493836 | J84: 0.009950493836 | K84: 0.009950493836 | L84: 0.009950493836 | M84: 0.009950493836 | N84: 0.009950493836 | O84: 0.009950493836 | P84: 0.009950493836 | Q84: 0.009950493836 | R84: 0.009950493836 | S84: 0.009950493836 | T84: 0.009950493836 | U84: 0.009950493836 | V84: 0.009950493836 | W84: 0.009950493836 | X84: 0.009950493836 | Y84: 0.009950493836 | Z84: 0.009950493836 | AA84: 0.009950493836 | AB84: 0.009950493836 | AC84: 0.009950493836 | AD84: 0.009950493836 | AE84: 0.009950493836 | AF84: 0.009950493836 | AG84: 0.009950493836 | AH84: 0.009950493836 | AI84: 0.009950493836 | AJ84: 0.009950493836 | AK84: 0.009950493836 | AL84: 0.009950493836 | AM84: 0.009950493836 | AN84: 0.009950493836 | AO84: 0.009950493836 | AP84: 0.009950493836 | AQ84: 0.009950493836 | AR84: 0.009950493836 | AS84: 0.009950493836 | AT84: 0.009950493836 | AU84: 0.009950493836 | AV84: 0.009950493836 | AW84: 0.009950493836 | AX84: 0.009950493836 | AY84: 0.009950493836 | AZ84: 0.009950493836 | BA84: 0.009950493836 | BB84: 0.009950493836 | BC84: 0.009950493836 | BD84: 0.009950493836 | BE84: 0.009950493836 | BF84: 0.009950493836 | BG84: 0.009950493836 | BH84: 0.009950493836 | BI84: 0.009950493836 | BJ84: 0.009950493836 | BK84: 0.009950493836 | BL84: 0.009950493836 | BM84: 0.009950493836 | BN84: 0.009950493836 | BO84: 0.009950493836 | BP84: 0.009950493836 | BQ84: 0.009950493836 | BR84: 0.009950493836 | BS84: 0.009950493836 | BT84: 0.009950493836 | BU84: =(1+$F$84)^(1/2)-1 -> 0.009950493836 | BV84: 0.009950493836 | BW84: 0.009950493836 | BX84: 0.009950493836 | BY84: 0.009950493836 | BZ84: 0.009950493836 | CA84: 0.009950493836 | CB84: 0.009950493836 | CC84: 0.009950493836 | CD84: 0.009950493836 | CE84: 0.009950493836 | CF84: 0.009950493836 | CG84: 0.009950493836 | CH84: 0.009950493836 | CI84: 0.009950493836 | CJ84: 0.009950493836 | CK84: 0.009950493836 | CL84: 0.009950493836 | CM84: 0.009950493836 | CN84: 0.009950493836 | CO84: 0.009950493836 | CP84: 0.009950493836 | CQ84: 0.009950493836 | CR84: 0.009950493836 | CS84: 0.009950493836 | CT84: 0.009950493836 | CU84: 0.009950493836 | CV84: 0.009950493836 | CW84: 0.009950493836 | CX84: 0.009950493836 | CY84: 0.009950493836 | CZ84: 0.009950493836 | DA84: 0.009950493836 | DB84: 0.009950493836 | DC84: 0.009950493836
D85: Inflation Index | E85: Index | G85: 1 | H85: =G85*(1+H84*H5) -> 1 | I85: =H85*(1+I84*I5) -> 1.009950494 | J85: =I85*(1+J84*J5) -> 1.02 | K85: =J85*(1+K84*K5) -> 1.030149504 | L85: =K85*(1+L84*L5) -> 1.0404 | M85: =L85*(1+M84*M5) -> 1.050752494 | N85: =M85*(1+N84*N5) -> 1.061208 | O85: =N85*(1+O84*O5) -> 1.071767544 | P85: =O85*(1+P84*P5) -> 1.08243216 | Q85: =P85*(1+Q84*Q5) -> 1.093202895 | R85: =Q85*(1+R84*R5) -> 1.104080803 | S85: =R85*(1+S84*S5) -> 1.115066952 | T85: =S85*(1+T84*T5) -> 1.126162419 | U85: =T85*(1+U84*U5) -> 1.137368291 | V85: =U85*(1+V84*V5) -> 1.148685668 | W85: =V85*(1+W84*W5) -> 1.160115657 | X85: =W85*(1+X84*X5) -> 1.171659381 | Y85: =X85*(1+Y84*Y5) -> 1.18331797 | Z85: =Y85*(1+Z84*Z5) -> 1.195092569 | AA85: =Z85*(1+AA84*AA5) -> 1.20698433 | AB85: =AA85*(1+AB84*AB5) -> 1.21899442 | AC85: =AB85*(1+AC84*AC5) -> 1.231124016 | AD85: =AC85*(1+AD84*AD5) -> 1.243374308 | AE85: =AD85*(1+AE84*AE5) -> 1.255746497 | AF85: =AE85*(1+AF84*AF5) -> 1.268241795 | AG85: =AF85*(1+AG84*AG5) -> 1.280861427 | AH85: =AG85*(1+AH84*AH5) -> 1.29360663 | AI85: =AH85*(1+AI84*AI5) -> 1.306478655 | AJ85: =AI85*(1+AJ84*AJ5) -> 1.319478763 | AK85: =AJ85*(1+AK84*AK5) -> 1.332608228 | AL85: =AK85*(1+AL84*AL5) -> 1.345868338 | AM85: =AL85*(1+AM84*AM5) -> 1.359260393 | AN85: =AM85*(1+AN84*AN5) -> 1.372785705 | AO85: =AN85*(1+AO84*AO5) -> 1.386445601 | AP85: =AO85*(1+AP84*AP5) -> 1.400241419 | AQ85: =AP85*(1+AQ84*AQ5) -> 1.414174513 | AR85: =AQ85*(1+AR84*AR5) -> 1.428246248 | AS85: =AR85*(1+AS84*AS5) -> 1.442458003 | AT85: =AS85*(1+AT84*AT5) -> 1.456811173 | AU85: =AT85*(1+AU84*AU5) -> 1.471307163 | AV85: =AU85*(1+AV84*AV5) -> 1.485947396 | AW85: =AV85*(1+AW84*AW5) -> 1.500733306 | AX85: =AW85*(1+AX84*AX5) -> 1.515666344 | AY85: =AX85*(1+AY84*AY5) -> 1.530747973 | AZ85: =AY85*(1+AZ84*AZ5) -> 1.545979671 | BA85: =AZ85*(1+BA84*BA5) -> 1.561362932 | BB85: =BA85*(1+BB84*BB5) -> 1.576899264 | BC85: =BB85*(1+BC84*BC5) -> 1.592590191 | BD85: =BC85*(1+BD84*BD5) -> 1.608437249 | BE85: =BD85*(1+BE84*BE5) -> 1.624441994 | BF85: =BE85*(1+BF84*BF5) -> 1.640605994 | BG85: =BF85*(1+BG84*BG5) -> 1.656930834 | BH85: =BG85*(1+BH84*BH5) -> 1.673418114 | BI85: =BH85*(1+BI84*BI5) -> 1.690069451 | BJ85: =BI85*(1+BJ84*BJ5) -> 1.706886477 | BK85: =BJ85*(1+BK84*BK5) -> 1.72387084 | BL85: =BK85*(1+BL84*BL5) -> 1.741024206 | BM85: =BL85*(1+BM84*BM5) -> 1.758348257 | BN85: =BM85*(1+BN84*BN5) -> 1.77584469 | BO85: =BN85*(1+BO84*BO5) -> 1.793515222 | BP85: =BO85*(1+BP84*BP5) -> 1.811361584 | BQ85: =BP85*(1+BQ84*BQ5) -> 1.811361584 | BR85: =BQ85*(1+BR84*BR5) -> 1.811361584 | BS85: =BR85*(1+BS84*BS5) -> 1.811361584 | BT85: =BS85*(1+BT84*BT5) -> 1.811361584 | BU85: =BT85*(1+BU84*BU5) -> 1.811361584 | BV85: =BU85*(1+BV84*BV5) -> 1.811361584 | BW85: =BV85*(1+BW84*BW5) -> 1.811361584 | BX85: =BW85*(1+BX84*BX5) -> 1.811361584 | BY85: =BX85*(1+BY84*BY5) -> 1.811361584 | BZ85: =BY85*(1+BZ84*BZ5) -> 1.811361584 | CA85: =BZ85*(1+CA84*CA5) -> 1.811361584 | CB85: =CA85*(1+CB84*CB5) -> 1.811361584 | CC85: =CB85*(1+CC84*CC5) -> 1.811361584 | CD85: =CC85*(1+CD84*CD5) -> 1.811361584 | CE85: =CD85*(1+CE84*CE5) -> 1.811361584 | CF85: =CE85*(1+CF84*CF5) -> 1.811361584 | CG85: =CF85*(1+CG84*CG5) -> 1.811361584 | CH85: =CG85*(1+CH84*CH5) -> 1.811361584 | CI85: =CH85*(1+CI84*CI5) -> 1.811361584 | CJ85: =CI85*(1+CJ84*CJ5) -> 1.811361584 | CK85: =CJ85*(1+CK84*CK5) -> 1.811361584 | CL85: =CK85*(1+CL84*CL5) -> 1.811361584 | CM85: =CL85*(1+CM84*CM5) -> 1.811361584 | CN85: =CM85*(1+CN84*CN5) -> 1.811361584 | CO85: =CN85*(1+CO84*CO5) -> 1.811361584 | CP85: =CO85*(1+CP84*CP5) -> 1.811361584 | CQ85: =CP85*(1+CQ84*CQ5) -> 1.811361584 | CR85: =CQ85*(1+CR84*CR5) -> 1.811361584 | CS85: =CR85*(1+CS84*CS5) -> 1.811361584 | CT85: =CS85*(1+CT84*CT5) -> 1.811361584 | CU85: =CT85*(1+CU84*CU5) -> 1.811361584 | CV85: =CU85*(1+CV84*CV5) -> 1.811361584 | CW85: =CV85*(1+CW84*CW5) -> 1.811361584 | CX85: =CW85*(1+CX84*CX5) -> 1.811361584 | CY85: =CX85*(1+CY84*CY5) -> 1.811361584 | CZ85: =CY85*(1+CZ84*CZ5) -> 1.811361584 | DA85: =CZ85*(1+DA84*DA5) -> 1.811361584 | DB85: =DA85*(1+DB84*DB5) -> 1.811361584 | DC85: =DB85*(1+DC84*DC5) -> 1.811361584
D87: Nominal Variable Cost per MWH | H87: =H81*H85 -> 0 | I87: =I81*I85 -> 7.159753253 | J87: 7.230996334 | K87: 7.302948318 | L87: 7.37561626 | M87: 7.449007284 | N87: 7.523128586 | O87: 7.59798743 | P87: 7.673591157 | Q87: 7.749947179 | R87: 7.82706298 | S87: 7.904946122 | T87: 7.98360424 | U87: 8.063045045 | V87: 8.143276325 | W87: 8.224305946 | X87: 8.306141851 | Y87: 8.388792065 | Z87: 8.472264688 | AA87: 8.556567906 | AB87: 8.641709982 | AC87: 8.727699264 | AD87: 8.814544182 | AE87: 8.902253249 | AF87: 8.990835065 | AG87: 9.080298314 | AH87: 9.170651767 | AI87: 9.261904281 | AJ87: 9.354064802 | AK87: 9.447142366 | AL87: 9.541146098 | AM87: 9.636085213 | AN87: 9.73196902 | AO87: 9.828806918 | AP87: 9.9266084 | AQ87: 10.02538306 | AR87: 10.12514057 | AS87: 10.22589072 | AT87: 10.32764338 | AU87: 10.43040853 | AV87: 10.53419625 | AW87: 10.6390167 | AX87: 10.74488017 | AY87: 10.85179704 | AZ87: 10.95977778 | BA87: 11.06883298 | BB87: 11.17897333 | BC87: 11.29020964 | BD87: 11.4025528 | BE87: 11.51601383 | BF87: 11.63060385 | BG87: 11.74633411 | BH87: 11.86321593 | BI87: 11.98126079 | BJ87: 12.10048025 | BK87: 12.220886 | BL87: 12.34248985 | BM87: 12.46530372 | BN87: 12.58933965 | BO87: 12.7146098 | BP87: 12.84112644 | BQ87: 0 | BR87: 0 | BS87: 0 | BT87: 0 | BU87: =BU81*BU85 -> 0 | BV87: 0 | BW87: 0 | BX87: 0 | BY87: 0 | BZ87: 0 | CA87: 0 | CB87: 0 | CC87: 0 | CD87: 0 | CE87: 0 | CF87: 0 | CG87: 0 | CH87: 0 | CI87: 0 | CJ87: 0 | CK87: 0 | CL87: 0 | CM87: 0 | CN87: 0 | CO87: 0 | CP87: 0 | CQ87: 0 | CR87: 0 | CS87: 0 | CT87: 0 | CU87: 0 | CV87: 0 | CW87: 0 | CX87: 0 | CY87: 0 | CZ87: 0 | DA87: 0 | DB87: 0 | DC87: 0
D88: Nominal Fixed Cost per kW-year | H88: =H82*H85 -> 0 | I88: =I82*I85 -> 15.15545077 | J88: 15.30625499 | K88: 15.45855979 | L88: 15.61238009 | M88: 15.76773098 | N88: 15.92462769 | O88: 16.0830856 | P88: 16.24312025 | Q88: 16.40474732 | R88: 16.56798265 | S88: 16.73284226 | T88: 16.89934231 | U88: 17.06749911 | V88: 17.23732915 | W88: 17.40884909 | X88: 17.58207574 | Y88: 17.75702607 | Z88: 17.93371725 | AA88: 18.11216659 | AB88: 18.2923916 | AC88: 18.47440993 | AD88: 18.65823943 | AE88: 18.84389812 | AF88: 19.03140422 | AG88: 19.22077609 | AH88: 19.4120323 | AI88: 19.60519161 | AJ88: 19.80027295 | AK88: 19.99729544 | AL88: 20.19627841 | AM88: 20.39724135 | AN88: 20.60020397 | AO88: 20.80518618 | AP88: 21.01220805 | AQ88: 21.2212899 | AR88: 21.43245221 | AS88: 21.6457157 | AT88: 21.86110126 | AU88: 22.07863001 | AV88: 22.29832328 | AW88: 22.52020261 | AX88: 22.74428975 | AY88: 22.97060666 | AZ88: 23.19917554 | BA88: 23.4300188 | BB88: 23.66315905 | BC88: 23.89861917 | BD88: 24.13642224 | BE88: 24.37659156 | BF88: 24.61915068 | BG88: 24.86412339 | BH88: 25.11153369 | BI88: 25.36140586 | BJ88: 25.61376437 | BK88: 25.86863397 | BL88: 26.12603966 | BM88: 26.38600665 | BN88: 26.64856045 | BO88: 26.91372678 | BP88: 27.18153166 | BQ88: 0 | BR88: 0 | BS88: 0 | BT88: 0 | BU88: =BU82*BU85 -> 0 | BV88: 0 | BW88: 0 | BX88: 0 | BY88: 0 | BZ88: 0 | CA88: 0 | CB88: 0 | CC88: 0 | CD88: 0 | CE88: 0 | CF88: 0 | CG88: 0 | CH88: 0 | CI88: 0 | CJ88: 0 | CK88: 0 | CL88: 0 | CM88: 0 | CN88: 0 | CO88: 0 | CP88: 0 | CQ88: 0 | CR88: 0 | CS88: 0 | CT88: 0 | CU88: 0 | CV88: 0 | CW88: 0 | CX88: 0 | CY88: 0 | CZ88: 0 | DA88: 0 | DB88: 0 | DC88: 0
D90: Inflated Variable Cost | E90: Euro 000's | H90: =H72*H81*H85/1000 -> 0 | I90: 1448.185946 | J90: 1486.838036 | K90: 1477.149665 | L90: 1516.574796 | M90: 1506.692658 | N90: 1546.906292 | O90: 1545.317265 | P90: 1577.844418 | Q90: 1567.563041 | R90: 1609.401306 | S90: 1598.914302 | T90: 1641.589333 | U90: 1630.892588 | V90: 1674.421119 | W90: 1672.701105 | X90: 1707.909542 | Y90: 1696.780649 | Z90: 1742.067732 | AA90: 1730.716262 | AB90: 1776.909087 | AC90: 1765.330587 | AD90: 1812.447269 | AE90: 1810.585471 | AF90: 1848.696214 | AG90: 1836.649943 | AH90: 1885.670138 | AI90: 1873.382942 | AJ90: 1923.383541 | AK90: 1910.8506 | AL90: 1961.851212 | AM90: 1959.835942 | AN90: 2001.088236 | AO90: 1988.048965 | AP90: 2041.110001 | AQ90: 2027.809944 | AR90: 2081.932201 | AS90: 2068.366143 | AT90: 2123.570845 | AU90: 2121.389452 | AV90: 2166.042262 | AW90: 2151.928135 | AX90: 2209.363107 | AY90: 2194.966698 | AZ90: 2253.550369 | BA90: 2238.866032 | BB90: 2298.621377 | BC90: 2296.260166 | BD90: 2344.593804 | BE90: 2329.316219 | BF90: 2391.48568 | BG90: 2375.902544 | BH90: 2439.315394 | BI90: 2423.420595 | BJ90: 2488.101702 | BK90: 2485.545852 | BL90: 2537.863736 | BM90: 2521.326787 | BN90: 2588.621011 | BO90: 2571.753322 | BP90: 2640.393431 | BQ90: 0 | BR90: 0 | BS90: 0 | BT90: =BT72*BT81*BT85/1000 -> 0 | BU90: 0 | BV90: 0 | BW90: 0 | BX90: 0 | BY90: 0 | BZ90: 0 | CA90: 0 | CB90: 0 | CC90: 0 | CD90: 0 | CE90: 0 | CF90: 0 | CG90: 0 | CH90: 0 | CI90: 0 | CJ90: 0 | CK90: 0 | CL90: 0 | CM90: 0 | CN90: 0 | CO90: 0 | CP90: 0 | CQ90: 0 | CR90: 0 | CS90: 0 | CT90: 0 | CU90: 0 | CV90: 0 | CW90: 0 | CX90: 0 | CY90: 0 | CZ90: 0 | DA90: 0 | DB90: 0 | DC90: 0
D91: Inflated Fixed Cost | E91: Euro 000's | H91: =H60*H82*H85 -> 0 | I91: 1818.654093 | J91: 1836.750599 | K91: 1855.027175 | L91: 1873.485611 | M91: 1892.127718 | N91: 1910.955323 | O91: 1929.970273 | P91: 1949.17443 | Q91: 1968.569678 | R91: 1988.157918 | S91: 2007.941072 | T91: 2027.921077 | U91: 2048.099893 | V91: 2068.479498 | W91: 2089.061891 | X91: 2109.849088 | Y91: 2130.843129 | Z91: 2152.04607 | AA91: 2173.459991 | AB91: 2195.086991 | AC91: 2216.929191 | AD91: 2238.988731 | AE91: 2261.267775 | AF91: 2283.768506 | AG91: 2306.49313 | AH91: 2329.443876 | AI91: 2352.622993 | AJ91: 2376.032754 | AK91: 2399.675453 | AL91: 2423.553409 | AM91: 2447.668962 | AN91: 2472.024477 | AO91: 2496.622341 | AP91: 2521.464966 | AQ91: 2546.554788 | AR91: 2571.894266 | AS91: 2597.485884 | AT91: 2623.332151 | AU91: 2649.435601 | AV91: 2675.798794 | AW91: 2702.424313 | AX91: 2729.31477 | AY91: 2756.4728 | AZ91: 2783.901065 | BA91: 2811.602256 | BB91: 2839.579087 | BC91: 2867.834301 | BD91: 2896.370668 | BE91: 2925.190987 | BF91: 2954.298082 | BG91: 2983.694807 | BH91: 3013.384043 | BI91: 3043.368703 | BJ91: 3073.651724 | BK91: 3104.236077 | BL91: 3135.124759 | BM91: 3166.320798 | BN91: 3197.827254 | BO91: 3229.647214 | BP91: 3261.783799 | BQ91: 0 | BR91: 0 | BS91: 0 | BT91: =BT60*BT82*BT85 -> 0 | BU91: 0 | BV91: 0 | BW91: 0 | BX91: 0 | BY91: 0 | BZ91: 0 | CA91: 0 | CB91: 0 | CC91: 0 | CD91: 0 | CE91: 0 | CF91: 0 | CG91: 0 | CH91: 0 | CI91: 0 | CJ91: 0 | CK91: 0 | CL91: 0 | CM91: 0 | CN91: 0 | CO91: 0 | CP91: 0 | CQ91: 0 | CR91: 0 | CS91: 0 | CT91: 0 | CU91: 0 | CV91: 0 | CW91: 0 | CX91: 0 | CY91: 0 | CZ91: 0 | DA91: 0 | DB91: 0 | DC91: 0
D92: Total O&M Cost | E92: Euro 000's | H92: =SUM(H90:H91) -> 0 | I92: =SUM(I90:I91) -> 3266.840039 | J92: 3323.588635 | K92: 3332.176839 | L92: 3390.060407 | M92: 3398.820376 | N92: 3457.861616 | O92: 3475.287538 | P92: 3527.018848 | Q92: 3536.132719 | R92: 3597.559225 | S92: 3606.855374 | T92: 3669.510409 | U92: 3678.992481 | V92: 3742.900617 | W92: 3761.762996 | X92: 3817.75863 | Y92: 3827.623777 | Z92: 3894.113802 | AA92: 3904.176253 | AB92: 3971.996078 | AC92: 3982.259778 | AD92: 4051.436 | AE92: 4071.853245 | AF92: 4132.46472 | AG92: 4143.143073 | AH92: 4215.114014 | AI92: 4226.005934 | AJ92: 4299.416295 | AK92: 4310.526053 | AL92: 4385.404621 | AM92: 4407.504904 | AN92: 4473.112713 | AO92: 4484.671306 | AP92: 4562.574967 | AQ92: 4574.364732 | AR92: 4653.826467 | AS92: 4665.852026 | AT92: 4746.902996 | AU92: 4770.825053 | AV92: 4841.841056 | AW92: 4854.352448 | AX92: 4938.677877 | AY92: 4951.439497 | AZ92: 5037.451435 | BA92: 5050.468287 | BB92: 5138.200463 | BC92: 5164.094467 | BD92: 5240.964473 | BE92: 5254.507206 | BF92: 5345.783762 | BG92: 5359.59735 | BH92: 5452.699437 | BI92: 5466.789297 | BJ92: 5561.753426 | BK92: 5589.781928 | BL92: 5672.988494 | BM92: 5687.647585 | BN92: 5786.448264 | BO92: 5801.400537 | BP92: 5902.17723 | BQ92: 0 | BR92: 0 | BS92: 0 | BT92: 0 | BU92: =SUM(BU90:BU91) -> 0 | BV92: 0 | BW92: 0 | BX92: 0 | BY92: 0 | BZ92: 0 | CA92: 0 | CB92: 0 | CC92: 0 | CD92: 0 | CE92: 0 | CF92: 0 | CG92: 0 | CH92: 0 | CI92: 0 | CJ92: 0 | CK92: 0 | CL92: 0 | CM92: 0 | CN92: 0 | CO92: 0 | CP92: 0 | CQ92: 0 | CR92: 0 | CS92: 0 | CT92: 0 | CU92: 0 | CV92: 0 | CW92: 0 | CX92: 0 | CY92: 0 | CZ92: 0 | DA92: 0 | DB92: 0 | DC92: 0
B94: Revenues and PPA
C95: PPA Contract
D96: Base Price | E96: USD/MWH | F96: =F53 -> 41.8468703 | H96: =$F$96*H5 -> 0 | I96: =$F$96*I5 -> 41.8468703 | J96: =$F$96*J5 -> 41.8468703 | K96: =$F$96*K5 -> 41.8468703 | L96: =$F$96*L5 -> 41.8468703 | M96: =$F$96*M5 -> 41.8468703 | N96: =$F$96*N5 -> 41.8468703 | O96: =$F$96*O5 -> 41.8468703 | P96: =$F$96*P5 -> 41.8468703 | Q96: =$F$96*Q5 -> 41.8468703 | R96: =$F$96*R5 -> 41.8468703 | S96: =$F$96*S5 -> 41.8468703 | T96: =$F$96*T5 -> 41.8468703 | U96: =$F$96*U5 -> 41.8468703 | V96: =$F$96*V5 -> 41.8468703 | W96: =$F$96*W5 -> 41.8468703 | X96: =$F$96*X5 -> 41.8468703 | Y96: =$F$96*Y5 -> 41.8468703 | Z96: =$F$96*Z5 -> 41.8468703 | AA96: =$F$96*AA5 -> 41.8468703 | AB96: =$F$96*AB5 -> 41.8468703 | AC96: =$F$96*AC5 -> 41.8468703 | AD96: =$F$96*AD5 -> 41.8468703 | AE96: =$F$96*AE5 -> 41.8468703 | AF96: =$F$96*AF5 -> 41.8468703 | AG96: =$F$96*AG5 -> 41.8468703 | AH96: =$F$96*AH5 -> 41.8468703 | AI96: =$F$96*AI5 -> 41.8468703 | AJ96: =$F$96*AJ5 -> 41.8468703 | AK96: =$F$96*AK5 -> 41.8468703 | AL96: =$F$96*AL5 -> 41.8468703 | AM96: =$F$96*AM5 -> 41.8468703 | AN96: =$F$96*AN5 -> 41.8468703 | AO96: =$F$96*AO5 -> 41.8468703 | AP96: =$F$96*AP5 -> 41.8468703 | AQ96: =$F$96*AQ5 -> 41.8468703 | AR96: =$F$96*AR5 -> 41.8468703 | AS96: =$F$96*AS5 -> 41.8468703 | AT96: =$F$96*AT5 -> 41.8468703 | AU96: =$F$96*AU5 -> 41.8468703 | AV96: =$F$96*AV5 -> 41.8468703 | AW96: =$F$96*AW5 -> 41.8468703 | AX96: =$F$96*AX5 -> 41.8468703 | AY96: =$F$96*AY5 -> 41.8468703 | AZ96: =$F$96*AZ5 -> 41.8468703 | BA96: =$F$96*BA5 -> 41.8468703 | BB96: =$F$96*BB5 -> 41.8468703 | BC96: =$F$96*BC5 -> 41.8468703 | BD96: =$F$96*BD5 -> 41.8468703 | BE96: =$F$96*BE5 -> 41.8468703 | BF96: =$F$96*BF5 -> 41.8468703 | BG96: =$F$96*BG5 -> 41.8468703 | BH96: =$F$96*BH5 -> 41.8468703 | BI96: =$F$96*BI5 -> 41.8468703 | BJ96: =$F$96*BJ5 -> 41.8468703 | BK96: =$F$96*BK5 -> 41.8468703 | BL96: =$F$96*BL5 -> 41.8468703 | BM96: =$F$96*BM5 -> 41.8468703 | BN96: =$F$96*BN5 -> 41.8468703 | BO96: =$F$96*BO5 -> 41.8468703 | BP96: =$F$96*BP5 -> 41.8468703 | BQ96: =$F$96*BQ5 -> 0 | BR96: =$F$96*BR5 -> 0 | BS96: =$F$96*BS5 -> 0 | BT96: =$F$96*BT5 -> 0 | BU96: =$F$96*BU5 -> 0 | BV96: =$F$96*BV5 -> 0 | BW96: =$F$96*BW5 -> 0 | BX96: =$F$96*BX5 -> 0 | BY96: =$F$96*BY5 -> 0 | BZ96: =$F$96*BZ5 -> 0 | CA96: =$F$96*CA5 -> 0 | CB96: =$F$96*CB5 -> 0 | CC96: =$F$96*CC5 -> 0 | CD96: =$F$96*CD5 -> 0 | CE96: =$F$96*CE5 -> 0 | CF96: =$F$96*CF5 -> 0 | CG96: =$F$96*CG5 -> 0 | CH96: =$F$96*CH5 -> 0 | CI96: =$F$96*CI5 -> 0 | CJ96: =$F$96*CJ5 -> 0 | CK96: =$F$96*CK5 -> 0 | CL96: =$F$96*CL5 -> 0 | CM96: =$F$96*CM5 -> 0 | CN96: =$F$96*CN5 -> 0 | CO96: =$F$96*CO5 -> 0 | CP96: =$F$96*CP5 -> 0 | CQ96: =$F$96*CQ5 -> 0 | CR96: =$F$96*CR5 -> 0 | CS96: =$F$96*CS5 -> 0 | CT96: =$F$96*CT5 -> 0 | CU96: =$F$96*CU5 -> 0 | CV96: =$F$96*CV5 -> 0 | CW96: =$F$96*CW5 -> 0 | CX96: =$F$96*CX5 -> 0 | CY96: =$F$96*CY5 -> 0 | CZ96: =$F$96*CZ5 -> 0 | DA96: =$F$96*DA5 -> 0 | DB96: =$F$96*DB5 -> 0 | DC96: =$F$96*DC5 -> 0
D97: Inflation Index/Applied | E97: Index | F97: =F54 -> TRUE | H97: =IF($F$97,H85,1) -> 1 | I97: =IF($F$97,I85,1) -> 1.009950494 | J97: 1.02 | K97: 1.030149504 | L97: 1.0404 | M97: 1.050752494 | N97: 1.061208 | O97: 1.071767544 | P97: 1.08243216 | Q97: 1.093202895 | R97: 1.104080803 | S97: 1.115066952 | T97: 1.126162419 | U97: 1.137368291 | V97: 1.148685668 | W97: 1.160115657 | X97: 1.171659381 | Y97: 1.18331797 | Z97: 1.195092569 | AA97: 1.20698433 | AB97: 1.21899442 | AC97: 1.231124016 | AD97: 1.243374308 | AE97: 1.255746497 | AF97: 1.268241795 | AG97: 1.280861427 | AH97: 1.29360663 | AI97: 1.306478655 | AJ97: 1.319478763 | AK97: 1.332608228 | AL97: 1.345868338 | AM97: 1.359260393 | AN97: 1.372785705 | AO97: 1.386445601 | AP97: 1.400241419 | AQ97: 1.414174513 | AR97: 1.428246248 | AS97: 1.442458003 | AT97: 1.456811173 | AU97: 1.471307163 | AV97: 1.485947396 | AW97: 1.500733306 | AX97: 1.515666344 | AY97: 1.530747973 | AZ97: 1.545979671 | BA97: 1.561362932 | BB97: 1.576899264 | BC97: 1.592590191 | BD97: 1.608437249 | BE97: 1.624441994 | BF97: 1.640605994 | BG97: 1.656930834 | BH97: 1.673418114 | BI97: 1.690069451 | BJ97: 1.706886477 | BK97: 1.72387084 | BL97: 1.741024206 | BM97: 1.758348257 | BN97: 1.77584469 | BO97: 1.793515222 | BP97: 1.811361584 | BQ97: 1.811361584 | BR97: 1.811361584 | BS97: 1.811361584 | BT97: 1.811361584 | BU97: =IF($F$97,BU85,1) -> 1.811361584 | BV97: 1.811361584 | BW97: 1.811361584 | BX97: 1.811361584 | BY97: 1.811361584 | BZ97: 1.811361584 | CA97: 1.811361584 | CB97: 1.811361584 | CC97: 1.811361584 | CD97: 1.811361584 | CE97: 1.811361584 | CF97: 1.811361584 | CG97: 1.811361584 | CH97: 1.811361584 | CI97: 1.811361584 | CJ97: 1.811361584 | CK97: 1.811361584 | CL97: 1.811361584 | CM97: 1.811361584 | CN97: 1.811361584 | CO97: 1.811361584 | CP97: 1.811361584 | CQ97: 1.811361584 | CR97: 1.811361584 | CS97: 1.811361584 | CT97: 1.811361584 | CU97: 1.811361584 | CV97: 1.811361584 | CW97: 1.811361584 | CX97: 1.811361584 | CY97: 1.811361584 | CZ97: 1.811361584 | DA97: 1.811361584 | DB97: 1.811361584 | DC97: 1.811361584
D98: Inflated Price | E98: USD/MWH | H98: =H96*H97 -> 0 | I98: =I96*I97 -> 42.26326732 | J98: 42.6838077 | K98: 43.10853267 | L98: 43.53748386 | M98: 43.97070332 | N98: 44.40823353 | O98: 44.85011739 | P98: 45.2963982 | Q98: 45.74711974 | R98: 46.20232617 | S98: 46.66206213 | T98: 47.12637269 | U98: 47.59530337 | V98: 48.06890015 | W98: 48.54720944 | X98: 49.03027815 | Y98: 49.51815363 | Z98: 50.01088371 | AA98: 50.5085167 | AB98: 51.01110139 | AC98: 51.51868704 | AD98: 52.03132341 | AE98: 52.54906078 | AF98: 53.07194988 | AG98: 53.60004199 | AH98: 54.13338888 | AI98: 54.67204283 | AJ98: 55.21605666 | AK98: 55.76548369 | AL98: 56.32037779 | AM98: 56.88079336 | AN98: 57.44678535 | AO98: 58.01840923 | AP98: 58.59572105 | AQ98: 59.17877741 | AR98: 59.76763547 | AS98: 60.36235296 | AT98: 60.96298818 | AU98: 61.56960002 | AV98: 62.18224795 | AW98: 62.80099202 | AX98: 63.42589291 | AY98: 64.05701186 | AZ98: 64.69441076 | BA98: 65.3381521 | BB98: 65.98829898 | BC98: 66.64491514 | BD98: 67.30806496 | BE98: 67.97781344 | BF98: 68.65422626 | BG98: 69.33736971 | BH98: 70.02731078 | BI98: 70.72411711 | BJ98: 71.427857 | BK98: 72.13859945 | BL98: 72.85641414 | BM98: 73.58137144 | BN98: 74.31354242 | BO98: 75.05299887 | BP98: 75.79981327 | BQ98: 0 | BR98: 0 | BS98: 0 | BT98: 0 | BU98: =BU96*BU97 -> 0 | BV98: 0 | BW98: 0 | BX98: 0 | BY98: 0 | BZ98: 0 | CA98: 0 | CB98: 0 | CC98: 0 | CD98: 0 | CE98: 0 | CF98: 0 | CG98: 0 | CH98: 0 | CI98: 0 | CJ98: 0 | CK98: 0 | CL98: 0 | CM98: 0 | CN98: 0 | CO98: 0 | CP98: 0 | CQ98: 0 | CR98: 0 | CS98: 0 | CT98: 0 | CU98: 0 | CV98: 0 | CW98: 0 | CX98: 0 | CY98: 0 | CZ98: 0 | DA98: 0 | DB98: 0 | DC98: 0
D99: Revenues | E99: Euro 000's | H99: =H98*H72/1000 -> 0 | I99: =I98*I72/1000 -> 8548.488697 | J99: 8776.647901 | K99: 8719.458471 | L99: 8952.180859 | M99: 8893.84764 | N99: 9131.224476 | O99: 9121.844618 | P99: 9313.848966 | Q99: 9253.159085 | R99: 9500.125945 | S99: 9438.222267 | T99: 9690.128464 | U99: 9626.986712 | V99: 9883.931033 | W99: 9873.777974 | X99: 10081.60965 | Y99: 10015.91698 | Z99: 10283.24185 | AA99: 10216.23531 | AB99: 10488.90668 | AC99: 10420.56002 | AD99: 10698.68482 | AE99: 10687.69482 | AF99: 10912.65851 | AG99: 10841.55065 | AH99: 11130.91168 | AI99: 11058.38166 | AJ99: 11353.52992 | AK99: 11279.54929 | AL99: 11580.60052 | AM99: 11568.70459 | AN99: 11812.21253 | AO99: 11735.24308 | AP99: 12048.45678 | AQ99: 11969.94794 | AR99: 12289.42591 | AS99: 12209.3469 | AT99: 12535.21443 | AU99: 12522.3379 | AV99: 12785.91872 | AW99: 12702.60452 | AX99: 13041.63709 | AY99: 12956.65661 | AZ99: 13302.46984 | BA99: 13215.78974 | BB99: 13568.51923 | BC99: 13554.58126 | BD99: 13839.88962 | BE99: 13749.70765 | BF99: 14116.68741 | BG99: 14024.7018 | BH99: 14399.02116 | BI99: 14305.19584 | BJ99: 14687.00158 | BK99: 14671.91467 | BL99: 14980.74161 | BM99: 14883.12575 | BN99: 15280.35644 | BO99: 15180.78826 | BP99: 15585.96357 | BQ99: 0 | BR99: 0 | BS99: 0 | BT99: =BT98*BT72/1000 -> 0 | BU99: 0 | BV99: 0 | BW99: 0 | BX99: 0 | BY99: 0 | BZ99: 0 | CA99: 0 | CB99: 0 | CC99: 0 | CD99: 0 | CE99: 0 | CF99: 0 | CG99: 0 | CH99: 0 | CI99: 0 | CJ99: 0 | CK99: 0 | CL99: 0 | CM99: 0 | CN99: 0 | CO99: 0 | CP99: 0 | CQ99: 0 | CR99: 0 | CS99: 0 | CT99: 0 | CU99: 0 | CV99: 0 | CW99: 0 | CX99: 0 | CY99: 0 | CZ99: 0 | DA99: 0 | DB99: 0 | DC99: 0
A101: Pre-tax Cash Flow and IRR
D102: Revenues | E102: Euro 000's | H102: =H99 -> 0 | I102: =I99 -> 8548.488697 | J102: 8776.647901 | K102: 8719.458471 | L102: 8952.180859 | M102: 8893.84764 | N102: 9131.224476 | O102: 9121.844618 | P102: 9313.848966 | Q102: 9253.159085 | R102: 9500.125945 | S102: 9438.222267 | T102: 9690.128464 | U102: 9626.986712 | V102: 9883.931033 | W102: 9873.777974 | X102: 10081.60965 | Y102: 10015.91698 | Z102: 10283.24185 | AA102: 10216.23531 | AB102: 10488.90668 | AC102: 10420.56002 | AD102: 10698.68482 | AE102: 10687.69482 | AF102: 10912.65851 | AG102: 10841.55065 | AH102: 11130.91168 | AI102: 11058.38166 | AJ102: 11353.52992 | AK102: 11279.54929 | AL102: 11580.60052 | AM102: 11568.70459 | AN102: 11812.21253 | AO102: 11735.24308 | AP102: 12048.45678 | AQ102: 11969.94794 | AR102: 12289.42591 | AS102: 12209.3469 | AT102: 12535.21443 | AU102: 12522.3379 | AV102: 12785.91872 | AW102: 12702.60452 | AX102: 13041.63709 | AY102: 12956.65661 | AZ102: 13302.46984 | BA102: 13215.78974 | BB102: 13568.51923 | BC102: 13554.58126 | BD102: 13839.88962 | BE102: 13749.70765 | BF102: 14116.68741 | BG102: 14024.7018 | BH102: 14399.02116 | BI102: 14305.19584 | BJ102: 14687.00158 | BK102: 14671.91467 | BL102: 14980.74161 | BM102: 14883.12575 | BN102: 15280.35644 | BO102: 15180.78826 | BP102: 15585.96357 | BQ102: 0 | BR102: 0 | BS102: 0 | BT102: 0 | BU102: =BU99 -> 0 | BV102: 0 | BW102: 0 | BX102: 0 | BY102: 0 | BZ102: 0 | CA102: 0 | CB102: 0 | CC102: 0 | CD102: 0 | CE102: 0 | CF102: 0 | CG102: 0 | CH102: 0 | CI102: 0 | CJ102: 0 | CK102: 0 | CL102: 0 | CM102: 0 | CN102: 0 | CO102: 0 | CP102: 0 | CQ102: 0 | CR102: 0 | CS102: 0 | CT102: 0 | CU102: 0 | CV102: 0 | CW102: 0 | CX102: 0 | CY102: 0 | CZ102: 0 | DA102: 0 | DB102: 0 | DC102: 0
D103: Total O&M costs | E103: Euro 000's | H103: =H92 -> 0 | I103: =I92 -> 3266.840039 | J103: 3323.588635 | K103: 3332.176839 | L103: 3390.060407 | M103: 3398.820376 | N103: 3457.861616 | O103: 3475.287538 | P103: 3527.018848 | Q103: 3536.132719 | R103: 3597.559225 | S103: 3606.855374 | T103: 3669.510409 | U103: 3678.992481 | V103: 3742.900617 | W103: 3761.762996 | X103: 3817.75863 | Y103: 3827.623777 | Z103: 3894.113802 | AA103: 3904.176253 | AB103: 3971.996078 | AC103: 3982.259778 | AD103: 4051.436 | AE103: 4071.853245 | AF103: 4132.46472 | AG103: 4143.143073 | AH103: 4215.114014 | AI103: 4226.005934 | AJ103: 4299.416295 | AK103: 4310.526053 | AL103: 4385.404621 | AM103: 4407.504904 | AN103: 4473.112713 | AO103: 4484.671306 | AP103: 4562.574967 | AQ103: 4574.364732 | AR103: 4653.826467 | AS103: 4665.852026 | AT103: 4746.902996 | AU103: 4770.825053 | AV103: 4841.841056 | AW103: 4854.352448 | AX103: 4938.677877 | AY103: 4951.439497 | AZ103: 5037.451435 | BA103: 5050.468287 | BB103: 5138.200463 | BC103: 5164.094467 | BD103: 5240.964473 | BE103: 5254.507206 | BF103: 5345.783762 | BG103: 5359.59735 | BH103: 5452.699437 | BI103: 5466.789297 | BJ103: 5561.753426 | BK103: 5589.781928 | BL103: 5672.988494 | BM103: 5687.647585 | BN103: 5786.448264 | BO103: 5801.400537 | BP103: 5902.17723 | BQ103: 0 | BR103: 0 | BS103: 0 | BT103: 0 | BU103: =BU92 -> 0 | BV103: 0 | BW103: 0 | BX103: 0 | BY103: 0 | BZ103: 0 | CA103: 0 | CB103: 0 | CC103: 0 | CD103: 0 | CE103: 0 | CF103: 0 | CG103: 0 | CH103: 0 | CI103: 0 | CJ103: 0 | CK103: 0 | CL103: 0 | CM103: 0 | CN103: 0 | CO103: 0 | CP103: 0 | CQ103: 0 | CR103: 0 | CS103: 0 | CT103: 0 | CU103: 0 | CV103: 0 | CW103: 0 | CX103: 0 | CY103: 0 | CZ103: 0 | DA103: 0 | DB103: 0 | DC103: 0
D104: EBITDA | E104: Euro 000's | H104: =H102-H103 -> 0 | I104: =I102-I103 -> 5281.648658 | J104: 5453.059266 | K104: 5387.281632 | L104: 5562.120452 | M104: 5495.027264 | N104: 5673.362861 | O104: 5646.557081 | P104: 5786.830118 | Q104: 5717.026366 | R104: 5902.56672 | S104: 5831.366893 | T104: 6020.618055 | U104: 5947.994231 | V104: 6141.030416 | W104: 6112.014977 | X104: 6263.851024 | Y104: 6188.293198 | Z104: 6389.128045 | AA104: 6312.059062 | AB104: 6516.910606 | AC104: 6438.300243 | AD104: 6647.248818 | AE104: 6615.841574 | AF104: 6780.193794 | AG104: 6698.407573 | AH104: 6915.79767 | AI104: 6832.375724 | AJ104: 7054.113623 | AK104: 6969.023239 | AL104: 7195.195896 | AM104: 7161.199685 | AN104: 7339.099814 | AO104: 7250.571777 | AP104: 7485.88181 | AQ104: 7395.583213 | AR104: 7635.599446 | AS104: 7543.494877 | AT104: 7788.311435 | AU104: 7751.512843 | AV104: 7944.077664 | AW104: 7848.25207 | AX104: 8102.959217 | AY104: 8005.217112 | AZ104: 8265.018401 | BA104: 8165.321454 | BB104: 8430.318769 | BC104: 8390.48679 | BD104: 8598.925145 | BE104: 8495.200441 | BF104: 8770.903648 | BG104: 8665.10445 | BH104: 8946.321721 | BI104: 8838.406539 | BJ104: 9125.248155 | BK104: 9082.13274 | BL104: 9307.753118 | BM104: 9195.478163 | BN104: 9493.908181 | BO104: 9379.387726 | BP104: 9683.786344 | BQ104: 0 | BR104: 0 | BS104: 0 | BT104: 0 | BU104: =BU102-BU103 -> 0 | BV104: 0 | BW104: 0 | BX104: 0 | BY104: 0 | BZ104: 0 | CA104: 0 | CB104: 0 | CC104: 0 | CD104: 0 | CE104: 0 | CF104: 0 | CG104: 0 | CH104: 0 | CI104: 0 | CJ104: 0 | CK104: 0 | CL104: 0 | CM104: 0 | CN104: 0 | CO104: 0 | CP104: 0 | CQ104: 0 | CR104: 0 | CS104: 0 | CT104: 0 | CU104: 0 | CV104: 0 | CW104: 0 | CX104: 0 | CY104: 0 | CZ104: 0 | DA104: 0 | DB104: 0 | DC104: 0
D105: CAPEX | E105: Euro 000's | H105: =H78 -> 153840 | I105: =I78 -> 0 | J105: 0 | K105: 0 | L105: 0 | M105: 0 | N105: 0 | O105: 0 | P105: 0 | Q105: 0 | R105: 0 | S105: 0 | T105: 0 | U105: 0 | V105: 0 | W105: 0 | X105: 0 | Y105: 0 | Z105: 0 | AA105: 0 | AB105: 0 | AC105: 0 | AD105: 0 | AE105: 0 | AF105: 0 | AG105: 0 | AH105: 0 | AI105: 0 | AJ105: 0 | AK105: 0 | AL105: 0 | AM105: 0 | AN105: 0 | AO105: 0 | AP105: 0 | AQ105: 0 | AR105: 0 | AS105: 0 | AT105: 0 | AU105: 0 | AV105: 0 | AW105: 0 | AX105: 0 | AY105: 0 | AZ105: 0 | BA105: 0 | BB105: 0 | BC105: 0 | BD105: 0 | BE105: 0 | BF105: 0 | BG105: 0 | BH105: 0 | BI105: 0 | BJ105: 0 | BK105: 0 | BL105: 0 | BM105: 0 | BN105: 0 | BO105: 0 | BP105: 0 | BQ105: 0 | BR105: 0 | BS105: 0 | BT105: 0 | BU105: =BU78 -> 0 | BV105: 0 | BW105: 0 | BX105: 0 | BY105: 0 | BZ105: 0 | CA105: 0 | CB105: 0 | CC105: 0 | CD105: 0 | CE105: 0 | CF105: 0 | CG105: 0 | CH105: 0 | CI105: 0 | CJ105: 0 | CK105: 0 | CL105: 0 | CM105: 0 | CN105: 0 | CO105: 0 | CP105: 0 | CQ105: 0 | CR105: 0 | CS105: 0 | CT105: 0 | CU105: 0 | CV105: 0 | CW105: 0 | CX105: 0 | CY105: 0 | CZ105: 0 | DA105: 0 | DB105: 0 | DC105: 0
D106: Free Cash Flow | H106: =H104-H105 -> -153840 | I106: =I104-I105 -> 5281.648658 | J106: 5453.059266 | K106: 5387.281632 | L106: 5562.120452 | M106: 5495.027264 | N106: 5673.362861 | O106: 5646.557081 | P106: 5786.830118 | Q106: 5717.026366 | R106: 5902.56672 | S106: 5831.366893 | T106: 6020.618055 | U106: 5947.994231 | V106: 6141.030416 | W106: 6112.014977 | X106: 6263.851024 | Y106: 6188.293198 | Z106: 6389.128045 | AA106: 6312.059062 | AB106: 6516.910606 | AC106: 6438.300243 | AD106: 6647.248818 | AE106: 6615.841574 | AF106: 6780.193794 | AG106: 6698.407573 | AH106: 6915.79767 | AI106: 6832.375724 | AJ106: 7054.113623 | AK106: 6969.023239 | AL106: 7195.195896 | AM106: 7161.199685 | AN106: 7339.099814 | AO106: 7250.571777 | AP106: 7485.88181 | AQ106: 7395.583213 | AR106: 7635.599446 | AS106: 7543.494877 | AT106: 7788.311435 | AU106: 7751.512843 | AV106: 7944.077664 | AW106: 7848.25207 | AX106: 8102.959217 | AY106: 8005.217112 | AZ106: 8265.018401 | BA106: 8165.321454 | BB106: 8430.318769 | BC106: 8390.48679 | BD106: 8598.925145 | BE106: 8495.200441 | BF106: 8770.903648 | BG106: 8665.10445 | BH106: 8946.321721 | BI106: 8838.406539 | BJ106: 9125.248155 | BK106: 9082.13274 | BL106: 9307.753118 | BM106: 9195.478163 | BN106: 9493.908181 | BO106: 9379.387726 | BP106: 9683.786344 | BQ106: 0 | BR106: 0 | BS106: 0 | BT106: 0 | BU106: =BU104-BU105 -> 0 | BV106: 0 | BW106: 0 | BX106: 0 | BY106: 0 | BZ106: 0 | CA106: 0 | CB106: 0 | CC106: 0 | CD106: 0 | CE106: 0 | CF106: 0 | CG106: 0 | CH106: 0 | CI106: 0 | CJ106: 0 | CK106: 0 | CL106: 0 | CM106: 0 | CN106: 0 | CO106: 0 | CP106: 0 | CQ106: 0 | CR106: 0 | CS106: 0 | CT106: 0 | CU106: 0 | CV106: 0 | CW106: 0 | CX106: 0 | CY106: 0 | CZ106: 0 | DA106: 0 | DB106: 0 | DC106: 0
D108: Project IRR | E108: =XIRR(H106:DC106,H3:DC3) -> 0.07732446492
D109: NPV at target IRR | G109: npv_out
A111: Debt Sizing
B113: P50 DSCR
C114: Cash flow P50 case
D115: MWh P50 case | E115: MWh | H115: =H69 -> 0 | I115: =I69 -> 202267.5775 | J115: =J69 -> 205620.0787 | K115: =K69 -> 202267.5775 | L115: =L69 -> 205620.0787 | M115: =M69 -> 202267.5775 | N115: =N69 -> 205620.0787 | O115: =O69 -> 203385.0779 | P115: =P69 -> 205620.0787 | Q115: =Q69 -> 202267.5775 | R115: =R69 -> 205620.0787 | S115: =S69 -> 202267.5775 | T115: =T69 -> 205620.0787 | U115: =U69 -> 202267.5775 | V115: =V69 -> 205620.0787 | W115: =W69 -> 203385.0779 | X115: =X69 -> 205620.0787 | Y115: =Y69 -> 202267.5775 | Z115: =Z69 -> 205620.0787 | AA115: =AA69 -> 202267.5775 | AB115: =AB69 -> 205620.0787 | AC115: =AC69 -> 202267.5775 | AD115: =AD69 -> 205620.0787 | AE115: =AE69 -> 203385.0779 | AF115: =AF69 -> 205620.0787 | AG115: =AG69 -> 202267.5775 | AH115: =AH69 -> 205620.0787 | AI115: =AI69 -> 202267.5775 | AJ115: =AJ69 -> 205620.0787 | AK115: =AK69 -> 202267.5775 | AL115: =AL69 -> 205620.0787 | AM115: =AM69 -> 203385.0779 | AN115: =AN69 -> 205620.0787 | AO115: =AO69 -> 202267.5775 | AP115: =AP69 -> 205620.0787 | AQ115: =AQ69 -> 202267.5775 | AR115: =AR69 -> 205620.0787 | AS115: =AS69 -> 202267.5775 | AT115: =AT69 -> 205620.0787 | AU115: =AU69 -> 203385.0779 | AV115: =AV69 -> 205620.0787 | AW115: =AW69 -> 202267.5775 | AX115: =AX69 -> 205620.0787 | AY115: =AY69 -> 202267.5775 | AZ115: =AZ69 -> 205620.0787 | BA115: =BA69 -> 202267.5775 | BB115: =BB69 -> 205620.0787 | BC115: =BC69 -> 203385.0779 | BD115: =BD69 -> 205620.0787 | BE115: =BE69 -> 202267.5775 | BF115: =BF69 -> 205620.0787 | BG115: =BG69 -> 202267.5775 | BH115: =BH69 -> 205620.0787 | BI115: =BI69 -> 202267.5775 | BJ115: =BJ69 -> 205620.0787 | BK115: =BK69 -> 203385.0779 | BL115: =BL69 -> 205620.0787 | BM115: =BM69 -> 202267.5775 | BN115: =BN69 -> 205620.0787 | BO115: =BO69 -> 202267.5775 | BP115: =BP69 -> 205620.0787 | BQ115: =BQ69 -> 0 | BR115: =BR69 -> 0 | BS115: =BS69 -> 0 | BT115: =BT69 -> 0 | BU115: =BU69 -> 0 | BV115: =BV69 -> 0 | BW115: =BW69 -> 0 | BX115: =BX69 -> 0 | BY115: =BY69 -> 0 | BZ115: =BZ69 -> 0 | CA115: =CA69 -> 0 | CB115: =CB69 -> 0 | CC115: =CC69 -> 0 | CD115: =CD69 -> 0 | CE115: =CE69 -> 0 | CF115: =CF69 -> 0 | CG115: =CG69 -> 0 | CH115: =CH69 -> 0 | CI115: =CI69 -> 0 | CJ115: =CJ69 -> 0 | CK115: =CK69 -> 0 | CL115: =CL69 -> 0 | CM115: =CM69 -> 0 | CN115: =CN69 -> 0 | CO115: =CO69 -> 0 | CP115: =CP69 -> 0 | CQ115: =CQ69 -> 0 | CR115: =CR69 -> 0 | CS115: =CS69 -> 0 | CT115: =CT69 -> 0 | CU115: =CU69 -> 0 | CV115: =CV69 -> 0 | CW115: =CW69 -> 0 | CX115: =CX69 -> 0 | CY115: =CY69 -> 0 | CZ115: =CZ69 -> 0 | DA115: =DA69 -> 0 | DB115: =DB69 -> 0 | DC115: =DC69 -> 0
D116: Price - variable cost | E116: Euro/MWh | H116: =H98-(H81*H85) -> 0 | I116: =I98-(I81*I85) -> 35.10351407 | J116: =J98-(J81*J85) -> 35.45281137 | K116: =K98-(K81*K85) -> 35.80558435 | L116: =L98-(L81*L85) -> 36.1618676 | M116: =M98-(M81*M85) -> 36.52169604 | N116: =N98-(N81*N85) -> 36.88510495 | O116: =O98-(O81*O85) -> 37.25212996 | P116: =P98-(P81*P85) -> 37.62280705 | Q116: =Q98-(Q81*Q85) -> 37.99717256 | R116: =R98-(R81*R85) -> 38.37526319 | S116: =S98-(S81*S85) -> 38.75711601 | T116: =T98-(T81*T85) -> 39.14276845 | U116: =U98-(U81*U85) -> 39.53225833 | V116: =V98-(V81*V85) -> 39.92562382 | W116: =W98-(W81*W85) -> 40.32290349 | X116: =X98-(X81*X85) -> 40.7241363 | Y116: =Y98-(Y81*Y85) -> 41.12936156 | Z116: =Z98-(Z81*Z85) -> 41.53861902 | AA116: =AA98-(AA81*AA85) -> 41.9519488 | AB116: =AB98-(AB81*AB85) -> 42.3693914 | AC116: =AC98-(AC81*AC85) -> 42.79098777 | AD116: =AD98-(AD81*AD85) -> 43.21677923 | AE116: =AE98-(AE81*AE85) -> 43.64680753 | AF116: =AF98-(AF81*AF85) -> 44.08111482 | AG116: =AG98-(AG81*AG85) -> 44.51974368 | AH116: =AH98-(AH81*AH85) -> 44.96273711 | AI116: =AI98-(AI81*AI85) -> 45.41013855 | AJ116: =AJ98-(AJ81*AJ85) -> 45.86199186 | AK116: =AK98-(AK81*AK85) -> 46.31834132 | AL116: =AL98-(AL81*AL85) -> 46.77923169 | AM116: =AM98-(AM81*AM85) -> 47.24470815 | AN116: =AN98-(AN81*AN85) -> 47.71481633 | AO116: =AO98-(AO81*AO85) -> 48.18960231 | AP116: =AP98-(AP81*AP85) -> 48.66911265 | AQ116: =AQ98-(AQ81*AQ85) -> 49.15339436 | AR116: =AR98-(AR81*AR85) -> 49.64249491 | AS116: =AS98-(AS81*AS85) -> 50.13646225 | AT116: =AT98-(AT81*AT85) -> 50.6353448 | AU116: =AU98-(AU81*AU85) -> 51.13919149 | AV116: =AV98-(AV81*AV85) -> 51.6480517 | AW116: =AW98-(AW81*AW85) -> 52.16197532 | AX116: =AX98-(AX81*AX85) -> 52.68101273 | AY116: =AY98-(AY81*AY85) -> 53.20521483 | AZ116: =AZ98-(AZ81*AZ85) -> 53.73463299 | BA116: =BA98-(BA81*BA85) -> 54.26931912 | BB116: =BB98-(BB81*BB85) -> 54.80932565 | BC116: =BC98-(BC81*BC85) -> 55.35470551 | BD116: =BD98-(BD81*BD85) -> 55.90551216 | BE116: =BE98-(BE81*BE85) -> 56.46179962 | BF116: =BF98-(BF81*BF85) -> 57.0236224 | BG116: =BG98-(BG81*BG85) -> 57.59103561 | BH116: =BH98-(BH81*BH85) -> 58.16409485 | BI116: =BI98-(BI81*BI85) -> 58.74285632 | BJ116: =BJ98-(BJ81*BJ85) -> 59.32737675 | BK116: =BK98-(BK81*BK85) -> 59.91771345 | BL116: =BL98-(BL81*BL85) -> 60.51392428 | BM116: =BM98-(BM81*BM85) -> 61.11606772 | BN116: =BN98-(BN81*BN85) -> 61.72420277 | BO116: =BO98-(BO81*BO85) -> 62.33838907 | BP116: =BP98-(BP81*BP85) -> 62.95868683 | BQ116: =BQ98-(BQ81*BQ85) -> 0 | BR116: =BR98-(BR81*BR85) -> 0 | BS116: =BS98-(BS81*BS85) -> 0 | BT116: =BT98-(BT81*BT85) -> 0 | BU116: =BU98-(BU81*BU85) -> 0 | BV116: =BV98-(BV81*BV85) -> 0 | BW116: =BW98-(BW81*BW85) -> 0 | BX116: =BX98-(BX81*BX85) -> 0 | BY116: =BY98-(BY81*BY85) -> 0 | BZ116: =BZ98-(BZ81*BZ85) -> 0 | CA116: =CA98-(CA81*CA85) -> 0 | CB116: =CB98-(CB81*CB85) -> 0 | CC116: =CC98-(CC81*CC85) -> 0 | CD116: =CD98-(CD81*CD85) -> 0 | CE116: =CE98-(CE81*CE85) -> 0 | CF116: =CF98-(CF81*CF85) -> 0 | CG116: =CG98-(CG81*CG85) -> 0 | CH116: =CH98-(CH81*CH85) -> 0 | CI116: =CI98-(CI81*CI85) -> 0 | CJ116: =CJ98-(CJ81*CJ85) -> 0 | CK116: =CK98-(CK81*CK85) -> 0 | CL116: =CL98-(CL81*CL85) -> 0 | CM116: =CM98-(CM81*CM85) -> 0 | CN116: =CN98-(CN81*CN85) -> 0 | CO116: =CO98-(CO81*CO85) -> 0 | CP116: =CP98-(CP81*CP85) -> 0 | CQ116: =CQ98-(CQ81*CQ85) -> 0 | CR116: =CR98-(CR81*CR85) -> 0 | CS116: =CS98-(CS81*CS85) -> 0 | CT116: =CT98-(CT81*CT85) -> 0 | CU116: =CU98-(CU81*CU85) -> 0 | CV116: =CV98-(CV81*CV85) -> 0 | CW116: =CW98-(CW81*CW85) -> 0 | CX116: =CX98-(CX81*CX85) -> 0 | CY116: =CY98-(CY81*CY85) -> 0 | CZ116: =CZ98-(CZ81*CZ85) -> 0 | DA116: =DA98-(DA81*DA85) -> 0 | DB116: =DB98-(DB81*DB85) -> 0 | DC116: =DC98-(DC81*DC85) -> 0
D117: Margin P50 case | E117: Euro 000's | H117: =H115*H116/1000 -> 0 | I117: =I115*I116/1000 -> 7100.302751 | J117: 7289.809866 | K117: 7242.308806 | L117: 7435.606063 | M117: 7387.154982 | N117: 7584.318184 | O117: 7576.527353 | P117: 7736.004548 | Q117: 7685.596044 | R117: 7890.724639 | S117: 7839.307964 | T117: 8048.539132 | U117: 7996.094124 | V117: 8209.509914 | W117: 8201.076868 | X117: 8373.700112 | Y117: 8319.136326 | Z117: 8541.174115 | AA117: 8485.519053 | AB117: 8711.997597 | AC117: 8655.229434 | AD117: 8886.237549 | AE117: 8877.109349 | AF117: 9063.9623 | AG117: 9004.900703 | AH117: 9245.241546 | AI117: 9184.998717 | AJ117: 9430.146377 | AK117: 9368.698691 | AL117: 9618.749304 | AM117: 9608.868647 | AN117: 9811.12429 | AO117: 9747.194119 | AP117: 10007.34678 | AQ117: 9942.138001 | AR117: 10207.49371 | AS117: 10140.98076 | AT117: 10411.64359 | AU117: 10400.94844 | AV117: 10619.87646 | AW117: 10550.67638 | AX117: 10832.27399 | AY117: 10761.68991 | AZ117: 11048.91947 | BA117: 10976.92371 | BB117: 11269.89786 | BC117: 11258.32109 | BD117: 11495.29581 | BE117: 11420.39143 | BF117: 11725.20173 | BG117: 11648.79926 | BH117: 11959.70576 | BI117: 11881.77524 | BJ117: 12198.89988 | BK117: 12186.36882 | BL117: 12442.87788 | BM117: 12361.79896 | BN117: 12691.73543 | BO117: 12609.03494 | BP117: 12945.57014 | BQ117: 0 | BR117: 0 | BS117: 0 | BT117: 0 | BU117: =BU115*BU116/1000 -> 0 | BV117: 0 | BW117: 0 | BX117: 0 | BY117: 0 | BZ117: 0 | CA117: 0 | CB117: 0 | CC117: 0 | CD117: 0 | CE117: 0 | CF117: 0 | CG117: 0 | CH117: 0 | CI117: 0 | CJ117: 0 | CK117: 0 | CL117: 0 | CM117: 0 | CN117: 0 | CO117: 0 | CP117: 0 | CQ117: 0 | CR117: 0 | CS117: 0 | CT117: 0 | CU117: 0 | CV117: 0 | CW117: 0 | CX117: 0 | CY117: 0 | CZ117: 0 | DA117: 0 | DB117: 0 | DC117: 0
D118: Fixed Cost | E118: Euro 000's | H118: =H91 -> 0 | I118: =I91 -> 1818.654093 | J118: =J91 -> 1836.750599 | K118: =K91 -> 1855.027175 | L118: =L91 -> 1873.485611 | M118: =M91 -> 1892.127718 | N118: =N91 -> 1910.955323 | O118: =O91 -> 1929.970273 | P118: =P91 -> 1949.17443 | Q118: =Q91 -> 1968.569678 | R118: =R91 -> 1988.157918 | S118: =S91 -> 2007.941072 | T118: =T91 -> 2027.921077 | U118: =U91 -> 2048.099893 | V118: =V91 -> 2068.479498 | W118: =W91 -> 2089.061891 | X118: =X91 -> 2109.849088 | Y118: =Y91 -> 2130.843129 | Z118: =Z91 -> 2152.04607 | AA118: =AA91 -> 2173.459991 | AB118: =AB91 -> 2195.086991 | AC118: =AC91 -> 2216.929191 | AD118: =AD91 -> 2238.988731 | AE118: =AE91 -> 2261.267775 | AF118: =AF91 -> 2283.768506 | AG118: =AG91 -> 2306.49313 | AH118: =AH91 -> 2329.443876 | AI118: =AI91 -> 2352.622993 | AJ118: =AJ91 -> 2376.032754 | AK118: =AK91 -> 2399.675453 | AL118: =AL91 -> 2423.553409 | AM118: =AM91 -> 2447.668962 | AN118: =AN91 -> 2472.024477 | AO118: =AO91 -> 2496.622341 | AP118: =AP91 -> 2521.464966 | AQ118: =AQ91 -> 2546.554788 | AR118: =AR91 -> 2571.894266 | AS118: =AS91 -> 2597.485884 | AT118: =AT91 -> 2623.332151 | AU118: =AU91 -> 2649.435601 | AV118: =AV91 -> 2675.798794 | AW118: =AW91 -> 2702.424313 | AX118: =AX91 -> 2729.31477 | AY118: =AY91 -> 2756.4728 | AZ118: =AZ91 -> 2783.901065 | BA118: =BA91 -> 2811.602256 | BB118: =BB91 -> 2839.579087 | BC118: =BC91 -> 2867.834301 | BD118: =BD91 -> 2896.370668 | BE118: =BE91 -> 2925.190987 | BF118: =BF91 -> 2954.298082 | BG118: =BG91 -> 2983.694807 | BH118: =BH91 -> 3013.384043 | BI118: =BI91 -> 3043.368703 | BJ118: =BJ91 -> 3073.651724 | BK118: =BK91 -> 3104.236077 | BL118: =BL91 -> 3135.124759 | BM118: =BM91 -> 3166.320798 | BN118: =BN91 -> 3197.827254 | BO118: =BO91 -> 3229.647214 | BP118: =BP91 -> 3261.783799 | BQ118: =BQ91 -> 0 | BR118: =BR91 -> 0 | BS118: =BS91 -> 0 | BT118: =BT91 -> 0 | BU118: =BU91 -> 0 | BV118: =BV91 -> 0 | BW118: =BW91 -> 0 | BX118: =BX91 -> 0 | BY118: =BY91 -> 0 | BZ118: =BZ91 -> 0 | CA118: =CA91 -> 0 | CB118: =CB91 -> 0 | CC118: =CC91 -> 0 | CD118: =CD91 -> 0 | CE118: =CE91 -> 0 | CF118: =CF91 -> 0 | CG118: =CG91 -> 0 | CH118: =CH91 -> 0 | CI118: =CI91 -> 0 | CJ118: =CJ91 -> 0 | CK118: =CK91 -> 0 | CL118: =CL91 -> 0 | CM118: =CM91 -> 0 | CN118: =CN91 -> 0 | CO118: =CO91 -> 0 | CP118: =CP91 -> 0 | CQ118: =CQ91 -> 0 | CR118: =CR91 -> 0 | CS118: =CS91 -> 0 | CT118: =CT91 -> 0 | CU118: =CU91 -> 0 | CV118: =CV91 -> 0 | CW118: =CW91 -> 0 | CX118: =CX91 -> 0 | CY118: =CY91 -> 0 | CZ118: =CZ91 -> 0 | DA118: =DA91 -> 0 | DB118: =DB91 -> 0 | DC118: =DC91 -> 0
D119: EBITDA P50 | E119: Euro 000's | H119: =H117-H118 -> 0 | I119: =I117-I118 -> 5281.648658 | J119: 5453.059266 | K119: 5387.281632 | L119: 5562.120452 | M119: 5495.027264 | N119: 5673.362861 | O119: 5646.557081 | P119: 5786.830118 | Q119: 5717.026366 | R119: 5902.56672 | S119: 5831.366893 | T119: 6020.618055 | U119: 5947.994231 | V119: 6141.030416 | W119: 6112.014977 | X119: 6263.851024 | Y119: 6188.293198 | Z119: 6389.128045 | AA119: 6312.059062 | AB119: 6516.910606 | AC119: 6438.300243 | AD119: 6647.248818 | AE119: 6615.841574 | AF119: 6780.193794 | AG119: 6698.407573 | AH119: 6915.79767 | AI119: 6832.375724 | AJ119: 7054.113623 | AK119: 6969.023239 | AL119: 7195.195896 | AM119: 7161.199685 | AN119: 7339.099814 | AO119: 7250.571777 | AP119: 7485.88181 | AQ119: 7395.583213 | AR119: 7635.599446 | AS119: 7543.494877 | AT119: 7788.311435 | AU119: 7751.512843 | AV119: 7944.077664 | AW119: 7848.25207 | AX119: 8102.959217 | AY119: 8005.217112 | AZ119: 8265.018401 | BA119: 8165.321454 | BB119: 8430.318769 | BC119: 8390.48679 | BD119: 8598.925145 | BE119: 8495.200441 | BF119: 8770.903648 | BG119: 8665.10445 | BH119: 8946.321721 | BI119: 8838.406539 | BJ119: 9125.248155 | BK119: 9082.13274 | BL119: 9307.753118 | BM119: 9195.478163 | BN119: 9493.908181 | BO119: 9379.387726 | BP119: 9683.786344 | BQ119: 0 | BR119: 0 | BS119: 0 | BT119: 0 | BU119: =BU117-BU118 -> 0 | BV119: 0 | BW119: 0 | BX119: 0 | BY119: 0 | BZ119: 0 | CA119: 0 | CB119: 0 | CC119: 0 | CD119: 0 | CE119: 0 | CF119: 0 | CG119: 0 | CH119: 0 | CI119: 0 | CJ119: 0 | CK119: 0 | CL119: 0 | CM119: 0 | CN119: 0 | CO119: 0 | CP119: 0 | CQ119: 0 | CR119: 0 | CS119: 0 | CT119: 0 | CU119: 0 | CV119: 0 | CW119: 0 | CX119: 0 | CY119: 0 | CZ119: 0 | DA119: 0 | DB119: 0 | DC119: 0
D120: CFADS P50 case | E120: Euro 000's | H120: =H119 -> 0 | I120: =I119 -> 5281.648658 | J120: 5453.059266 | K120: 5387.281632 | L120: 5562.120452 | M120: 5495.027264 | N120: 5673.362861 | O120: 5646.557081 | P120: 5786.830118 | Q120: 5717.026366 | R120: 5902.56672 | S120: 5831.366893 | T120: 6020.618055 | U120: 5947.994231 | V120: 6141.030416 | W120: 6112.014977 | X120: 6263.851024 | Y120: 6188.293198 | Z120: 6389.128045 | AA120: 6312.059062 | AB120: 6516.910606 | AC120: 6438.300243 | AD120: 6647.248818 | AE120: 6615.841574 | AF120: 6780.193794 | AG120: 6698.407573 | AH120: 6915.79767 | AI120: 6832.375724 | AJ120: 7054.113623 | AK120: 6969.023239 | AL120: 7195.195896 | AM120: 7161.199685 | AN120: 7339.099814 | AO120: 7250.571777 | AP120: 7485.88181 | AQ120: 7395.583213 | AR120: 7635.599446 | AS120: 7543.494877 | AT120: 7788.311435 | AU120: 7751.512843 | AV120: 7944.077664 | AW120: 7848.25207 | AX120: 8102.959217 | AY120: 8005.217112 | AZ120: 8265.018401 | BA120: 8165.321454 | BB120: 8430.318769 | BC120: 8390.48679 | BD120: 8598.925145 | BE120: 8495.200441 | BF120: 8770.903648 | BG120: 8665.10445 | BH120: 8946.321721 | BI120: 8838.406539 | BJ120: 9125.248155 | BK120: 9082.13274 | BL120: 9307.753118 | BM120: 9195.478163 | BN120: 9493.908181 | BO120: 9379.387726 | BP120: 9683.786344 | BQ120: 0 | BR120: 0 | BS120: 0 | BT120: 0 | BU120: =BU119 -> 0 | BV120: 0 | BW120: 0 | BX120: 0 | BY120: 0 | BZ120: 0 | CA120: 0 | CB120: 0 | CC120: 0 | CD120: 0 | CE120: 0 | CF120: 0 | CG120: 0 | CH120: 0 | CI120: 0 | CJ120: 0 | CK120: 0 | CL120: 0 | CM120: 0 | CN120: 0 | CO120: 0 | CP120: 0 | CQ120: 0 | CR120: 0 | CS120: 0 | CT120: 0 | CU120: 0 | CV120: 0 | CW120: 0 | CX120: 0 | CY120: 0 | CZ120: 0 | DA120: 0 | DB120: 0 | DC120: 0
B122: P90 DSCR
C123: Cash flow P90 case
D124: MWh P90 case | E124: MWh | H124: =H70 -> 0 | I124: =I70 -> 172768.759 | J124: =J70 -> 175632.3296 | K124: =K70 -> 172768.759 | L124: =L70 -> 175632.3296 | M124: =M70 -> 172768.759 | N124: =N70 -> 175632.3296 | O124: =O70 -> 173723.2826 | P124: =P70 -> 175632.3296 | Q124: =Q70 -> 172768.759 | R124: =R70 -> 175632.3296 | S124: =S70 -> 172768.759 | T124: =T70 -> 175632.3296 | U124: =U70 -> 172768.759 | V124: =V70 -> 175632.3296 | W124: =W70 -> 173723.2826 | X124: =X70 -> 175632.3296 | Y124: =Y70 -> 172768.759 | Z124: =Z70 -> 175632.3296 | AA124: =AA70 -> 172768.759 | AB124: =AB70 -> 175632.3296 | AC124: =AC70 -> 172768.759 | AD124: =AD70 -> 175632.3296 | AE124: =AE70 -> 173723.2826 | AF124: =AF70 -> 175632.3296 | AG124: =AG70 -> 172768.759 | AH124: =AH70 -> 175632.3296 | AI124: =AI70 -> 172768.759 | AJ124: =AJ70 -> 175632.3296 | AK124: =AK70 -> 172768.759 | AL124: =AL70 -> 175632.3296 | AM124: =AM70 -> 173723.2826 | AN124: =AN70 -> 175632.3296 | AO124: =AO70 -> 172768.759 | AP124: =AP70 -> 175632.3296 | AQ124: =AQ70 -> 172768.759 | AR124: =AR70 -> 175632.3296 | AS124: =AS70 -> 172768.759 | AT124: =AT70 -> 175632.3296 | AU124: =AU70 -> 173723.2826 | AV124: =AV70 -> 175632.3296 | AW124: =AW70 -> 172768.759 | AX124: =AX70 -> 175632.3296 | AY124: =AY70 -> 172768.759 | AZ124: =AZ70 -> 175632.3296 | BA124: =BA70 -> 172768.759 | BB124: =BB70 -> 175632.3296 | BC124: =BC70 -> 173723.2826 | BD124: =BD70 -> 175632.3296 | BE124: =BE70 -> 172768.759 | BF124: =BF70 -> 175632.3296 | BG124: =BG70 -> 172768.759 | BH124: =BH70 -> 175632.3296 | BI124: =BI70 -> 172768.759 | BJ124: =BJ70 -> 175632.3296 | BK124: =BK70 -> 173723.2826 | BL124: =BL70 -> 175632.3296 | BM124: =BM70 -> 172768.759 | BN124: =BN70 -> 175632.3296 | BO124: =BO70 -> 172768.759 | BP124: =BP70 -> 175632.3296 | BQ124: =BQ70 -> 0 | BR124: =BR70 -> 0 | BS124: =BS70 -> 0 | BT124: =BT70 -> 0 | BU124: =BU70 -> 0 | BV124: =BV70 -> 0 | BW124: =BW70 -> 0 | BX124: =BX70 -> 0 | BY124: =BY70 -> 0 | BZ124: =BZ70 -> 0 | CA124: =CA70 -> 0 | CB124: =CB70 -> 0 | CC124: =CC70 -> 0 | CD124: =CD70 -> 0 | CE124: =CE70 -> 0 | CF124: =CF70 -> 0 | CG124: =CG70 -> 0 | CH124: =CH70 -> 0 | CI124: =CI70 -> 0 | CJ124: =CJ70 -> 0 | CK124: =CK70 -> 0 | CL124: =CL70 -> 0 | CM124: =CM70 -> 0 | CN124: =CN70 -> 0 | CO124: =CO70 -> 0 | CP124: =CP70 -> 0 | CQ124: =CQ70 -> 0 | CR124: =CR70 -> 0 | CS124: =CS70 -> 0 | CT124: =CT70 -> 0 | CU124: =CU70 -> 0 | CV124: =CV70 -> 0 | CW124: =CW70 -> 0 | CX124: =CX70 -> 0 | CY124: =CY70 -> 0 | CZ124: =CZ70 -> 0 | DA124: =DA70 -> 0 | DB124: =DB70 -> 0 | DC124: =DC70 -> 0
D125: Price - variable cost | E125: Euro/MWh | H125: =H116 -> 0 | I125: 35.10351407 | J125: 35.45281137 | K125: 35.80558435 | L125: 36.1618676 | M125: 36.52169604 | N125: 36.88510495 | O125: 37.25212996 | P125: 37.62280705 | Q125: 37.99717256 | R125: 38.37526319 | S125: 38.75711601 | T125: 39.14276845 | U125: 39.53225833 | V125: 39.92562382 | W125: 40.32290349 | X125: 40.7241363 | Y125: 41.12936156 | Z125: 41.53861902 | AA125: 41.9519488 | AB125: 42.3693914 | AC125: 42.79098777 | AD125: 43.21677923 | AE125: 43.64680753 | AF125: 44.08111482 | AG125: 44.51974368 | AH125: 44.96273711 | AI125: 45.41013855 | AJ125: 45.86199186 | AK125: 46.31834132 | AL125: 46.77923169 | AM125: 47.24470815 | AN125: 47.71481633 | AO125: 48.18960231 | AP125: 48.66911265 | AQ125: 49.15339436 | AR125: 49.64249491 | AS125: 50.13646225 | AT125: 50.6353448 | AU125: 51.13919149 | AV125: 51.6480517 | AW125: 52.16197532 | AX125: 52.68101273 | AY125: 53.20521483 | AZ125: 53.73463299 | BA125: 54.26931912 | BB125: 54.80932565 | BC125: 55.35470551 | BD125: 55.90551216 | BE125: 56.46179962 | BF125: 57.0236224 | BG125: 57.59103561 | BH125: 58.16409485 | BI125: 58.74285632 | BJ125: 59.32737675 | BK125: 59.91771345 | BL125: 60.51392428 | BM125: 61.11606772 | BN125: 61.72420277 | BO125: 62.33838907 | BP125: 62.95868683 | BQ125: 0 | BR125: 0 | BS125: 0 | BT125: =BT116 -> 0 | BU125: 0 | BV125: 0 | BW125: 0 | BX125: 0 | BY125: 0 | BZ125: 0 | CA125: 0 | CB125: 0 | CC125: 0 | CD125: 0 | CE125: 0 | CF125: 0 | CG125: 0 | CH125: 0 | CI125: 0 | CJ125: 0 | CK125: 0 | CL125: 0 | CM125: 0 | CN125: 0 | CO125: 0 | CP125: 0 | CQ125: 0 | CR125: 0 | CS125: 0 | CT125: 0 | CU125: 0 | CV125: 0 | CW125: 0 | CX125: 0 | CY125: 0 | CZ125: 0 | DA125: 0 | DB125: 0 | DC125: 0
D126: Margin P90 case | E126: Euro 000's | H126: =H124*H125/1000 -> 0 | I126: =I124*I125/1000 -> 6064.790564 | J126: 6226.659853 | K126: 6186.086375 | L126: 6351.19305 | M126: 6309.808103 | N126: 6478.216911 | O126: 6471.562299 | P126: 6607.781249 | Q126: 6564.72435 | R126: 6739.936874 | S126: 6696.018837 | T126: 6874.735612 | U126: 6829.939214 | V126: 7012.230324 | W126: 7005.027158 | X126: 7152.47493 | Y126: 7105.868758 | Z126: 7295.524429 | AA126: 7247.986133 | AB126: 7441.434918 | AC126: 7392.945856 | AD126: 7590.263616 | AE126: 7582.466678 | AF126: 7742.068888 | AG126: 7691.620868 | AH126: 7896.910266 | AI126: 7845.453286 | AJ126: 8054.848471 | AK126: 8002.362351 | AL126: 8215.945441 | AM126: 8207.505784 | AN126: 8380.26435 | AO126: 8325.65779 | AP126: 8547.869637 | AQ126: 8492.170946 | AR126: 8718.827029 | AS126: 8662.014365 | AT126: 8893.20357 | AU126: 8884.068214 | AV126: 9071.067641 | AW126: 9011.959745 | AX126: 9252.488994 | AY126: 9192.19894 | AZ126: 9437.538774 | BA126: 9376.042919 | BB126: 9626.28955 | BC126: 9616.401147 | BD126: 9818.815341 | BE126: 9754.835053 | BF126: 10015.19165 | BG126: 9949.931754 | BH126: 10215.49548 | BI126: 10148.93039 | BJ126: 10419.80539 | BK126: 10409.10186 | BL126: 10628.2015 | BM126: 10558.94718 | BN126: 10840.76553 | BO126: 10770.12612 | BP126: 11057.58084 | BQ126: 0 | BR126: 0 | BS126: 0 | BT126: 0 | BU126: =BU124*BU125/1000 -> 0 | BV126: 0 | BW126: 0 | BX126: 0 | BY126: 0 | BZ126: 0 | CA126: 0 | CB126: 0 | CC126: 0 | CD126: 0 | CE126: 0 | CF126: 0 | CG126: 0 | CH126: 0 | CI126: 0 | CJ126: 0 | CK126: 0 | CL126: 0 | CM126: 0 | CN126: 0 | CO126: 0 | CP126: 0 | CQ126: 0 | CR126: 0 | CS126: 0 | CT126: 0 | CU126: 0 | CV126: 0 | CW126: 0 | CX126: 0 | CY126: 0 | CZ126: 0 | DA126: 0 | DB126: 0 | DC126: 0
D127: Fixed Cost | E127: Euro 000's | H127: =H118 -> 0 | I127: =I118 -> 1818.654093 | J127: =J118 -> 1836.750599 | K127: =K118 -> 1855.027175 | L127: =L118 -> 1873.485611 | M127: =M118 -> 1892.127718 | N127: =N118 -> 1910.955323 | O127: =O118 -> 1929.970273 | P127: =P118 -> 1949.17443 | Q127: =Q118 -> 1968.569678 | R127: =R118 -> 1988.157918 | S127: =S118 -> 2007.941072 | T127: =T118 -> 2027.921077 | U127: =U118 -> 2048.099893 | V127: =V118 -> 2068.479498 | W127: =W118 -> 2089.061891 | X127: =X118 -> 2109.849088 | Y127: =Y118 -> 2130.843129 | Z127: =Z118 -> 2152.04607 | AA127: =AA118 -> 2173.459991 | AB127: =AB118 -> 2195.086991 | AC127: =AC118 -> 2216.929191 | AD127: =AD118 -> 2238.988731 | AE127: =AE118 -> 2261.267775 | AF127: =AF118 -> 2283.768506 | AG127: =AG118 -> 2306.49313 | AH127: =AH118 -> 2329.443876 | AI127: =AI118 -> 2352.622993 | AJ127: =AJ118 -> 2376.032754 | AK127: =AK118 -> 2399.675453 | AL127: =AL118 -> 2423.553409 | AM127: =AM118 -> 2447.668962 | AN127: =AN118 -> 2472.024477 | AO127: =AO118 -> 2496.622341 | AP127: =AP118 -> 2521.464966 | AQ127: =AQ118 -> 2546.554788 | AR127: =AR118 -> 2571.894266 | AS127: =AS118 -> 2597.485884 | AT127: =AT118 -> 2623.332151 | AU127: =AU118 -> 2649.435601 | AV127: =AV118 -> 2675.798794 | AW127: =AW118 -> 2702.424313 | AX127: =AX118 -> 2729.31477 | AY127: =AY118 -> 2756.4728 | AZ127: =AZ118 -> 2783.901065 | BA127: =BA118 -> 2811.602256 | BB127: =BB118 -> 2839.579087 | BC127: =BC118 -> 2867.834301 | BD127: =BD118 -> 2896.370668 | BE127: =BE118 -> 2925.190987 | BF127: =BF118 -> 2954.298082 | BG127: =BG118 -> 2983.694807 | BH127: =BH118 -> 3013.384043 | BI127: =BI118 -> 3043.368703 | BJ127: =BJ118 -> 3073.651724 | BK127: =BK118 -> 3104.236077 | BL127: =BL118 -> 3135.124759 | BM127: =BM118 -> 3166.320798 | BN127: =BN118 -> 3197.827254 | BO127: =BO118 -> 3229.647214 | BP127: =BP118 -> 3261.783799 | BQ127: =BQ118 -> 0 | BR127: =BR118 -> 0 | BS127: =BS118 -> 0 | BT127: =BT118 -> 0 | BU127: =BU118 -> 0 | BV127: =BV118 -> 0 | BW127: =BW118 -> 0 | BX127: =BX118 -> 0 | BY127: =BY118 -> 0 | BZ127: =BZ118 -> 0 | CA127: =CA118 -> 0 | CB127: =CB118 -> 0 | CC127: =CC118 -> 0 | CD127: =CD118 -> 0 | CE127: =CE118 -> 0 | CF127: =CF118 -> 0 | CG127: =CG118 -> 0 | CH127: =CH118 -> 0 | CI127: =CI118 -> 0 | CJ127: =CJ118 -> 0 | CK127: =CK118 -> 0 | CL127: =CL118 -> 0 | CM127: =CM118 -> 0 | CN127: =CN118 -> 0 | CO127: =CO118 -> 0 | CP127: =CP118 -> 0 | CQ127: =CQ118 -> 0 | CR127: =CR118 -> 0 | CS127: =CS118 -> 0 | CT127: =CT118 -> 0 | CU127: =CU118 -> 0 | CV127: =CV118 -> 0 | CW127: =CW118 -> 0 | CX127: =CX118 -> 0 | CY127: =CY118 -> 0 | CZ127: =CZ118 -> 0 | DA127: =DA118 -> 0 | DB127: =DB118 -> 0 | DC127: =DC118 -> 0
D128: EBITDA P90 | E128: Euro 000's | H128: =H126-H127 -> 0 | I128: =I126-I127 -> 4246.136471 | J128: 4389.909254 | K128: 4331.0592 | L128: 4477.707439 | M128: 4417.680384 | N128: 4567.261588 | O128: 4541.592027 | P128: 4658.606819 | Q128: 4596.154672 | R128: 4751.778956 | S128: 4688.077765 | T128: 4846.814535 | U128: 4781.839321 | V128: 4943.750826 | W128: 4915.965267 | X128: 5042.625842 | Y128: 4975.025629 | Z128: 5143.478359 | AA128: 5074.526142 | AB128: 5246.347926 | AC128: 5176.016665 | AD128: 5351.274885 | AE128: 5321.198903 | AF128: 5458.300382 | AG128: 5385.127738 | AH128: 5567.46639 | AI128: 5492.830293 | AJ128: 5678.815718 | AK128: 5602.686899 | AL128: 5792.392032 | AM128: 5759.836822 | AN128: 5908.239873 | AO128: 5829.035449 | AP128: 6026.40467 | AQ128: 5945.616158 | AR128: 6146.932764 | AS128: 6064.528481 | AT128: 6269.871419 | AU128: 6234.632613 | AV128: 6395.268847 | AW128: 6309.535432 | AX128: 6523.174224 | AY128: 6435.726141 | AZ128: 6653.637709 | BA128: 6564.440664 | BB128: 6786.710463 | BC128: 6748.566846 | BD128: 6922.444672 | BE128: 6829.644066 | BF128: 7060.893566 | BG128: 6966.236948 | BH128: 7202.111437 | BI128: 7105.561687 | BJ128: 7346.153666 | BK128: 7304.865788 | BL128: 7493.076739 | BM128: 7392.626379 | BN128: 7642.938274 | BO128: 7540.478906 | BP128: 7795.797039 | BQ128: 0 | BR128: 0 | BS128: 0 | BT128: 0 | BU128: =BU126-BU127 -> 0 | BV128: 0 | BW128: 0 | BX128: 0 | BY128: 0 | BZ128: 0 | CA128: 0 | CB128: 0 | CC128: 0 | CD128: 0 | CE128: 0 | CF128: 0 | CG128: 0 | CH128: 0 | CI128: 0 | CJ128: 0 | CK128: 0 | CL128: 0 | CM128: 0 | CN128: 0 | CO128: 0 | CP128: 0 | CQ128: 0 | CR128: 0 | CS128: 0 | CT128: 0 | CU128: 0 | CV128: 0 | CW128: 0 | CX128: 0 | CY128: 0 | CZ128: 0 | DA128: 0 | DB128: 0 | DC128: 0
D129: CFADS P90 case | E129: Euro 000's | H129: =H128 -> 0 | I129: =I128 -> 4246.136471 | J129: 4389.909254 | K129: 4331.0592 | L129: 4477.707439 | M129: 4417.680384 | N129: 4567.261588 | O129: 4541.592027 | P129: 4658.606819 | Q129: 4596.154672 | R129: 4751.778956 | S129: 4688.077765 | T129: 4846.814535 | U129: 4781.839321 | V129: 4943.750826 | W129: 4915.965267 | X129: 5042.625842 | Y129: 4975.025629 | Z129: 5143.478359 | AA129: 5074.526142 | AB129: 5246.347926 | AC129: 5176.016665 | AD129: 5351.274885 | AE129: 5321.198903 | AF129: 5458.300382 | AG129: 5385.127738 | AH129: 5567.46639 | AI129: 5492.830293 | AJ129: 5678.815718 | AK129: 5602.686899 | AL129: 5792.392032 | AM129: 5759.836822 | AN129: 5908.239873 | AO129: 5829.035449 | AP129: 6026.40467 | AQ129: 5945.616158 | AR129: 6146.932764 | AS129: 6064.528481 | AT129: 6269.871419 | AU129: 6234.632613 | AV129: 6395.268847 | AW129: 6309.535432 | AX129: 6523.174224 | AY129: 6435.726141 | AZ129: 6653.637709 | BA129: 6564.440664 | BB129: 6786.710463 | BC129: 6748.566846 | BD129: 6922.444672 | BE129: 6829.644066 | BF129: 7060.893566 | BG129: 6966.236948 | BH129: 7202.111437 | BI129: 7105.561687 | BJ129: 7346.153666 | BK129: 7304.865788 | BL129: 7493.076739 | BM129: 7392.626379 | BN129: 7642.938274 | BO129: 7540.478906 | BP129: 7795.797039 | BQ129: 0 | BR129: 0 | BS129: 0 | BT129: 0 | BU129: =BU128 -> 0 | BV129: 0 | BW129: 0 | BX129: 0 | BY129: 0 | BZ129: 0 | CA129: 0 | CB129: 0 | CC129: 0 | CD129: 0 | CE129: 0 | CF129: 0 | CG129: 0 | CH129: 0 | CI129: 0 | CJ129: 0 | CK129: 0 | CL129: 0 | CM129: 0 | CN129: 0 | CO129: 0 | CP129: 0 | CQ129: 0 | CR129: 0 | CS129: 0 | CT129: 0 | CU129: 0 | CV129: 0 | CW129: 0 | CX129: 0 | CY129: 0 | CZ129: 0 | DA129: 0 | DB129: 0 | DC129: 0
D131: P50/P90 EBITDA | I131: =I120/I128 -> 1.243871622 | J131: =J120/J128 -> 1.242180408 | K131: =K120/K128 -> 1.243871622 | L131: =L120/L128 -> 1.242180408 | M131: =M120/M128 -> 1.243871622 | N131: =N120/N128 -> 1.242180408 | O131: =O120/O128 -> 1.243299056 | P131: =P120/P128 -> 1.242180408 | Q131: =Q120/Q128 -> 1.243871622 | R131: =R120/R128 -> 1.242180408 | S131: =S120/S128 -> 1.243871622 | T131: =T120/T128 -> 1.242180408 | U131: =U120/U128 -> 1.243871622 | V131: =V120/V128 -> 1.242180408 | W131: =W120/W128 -> 1.243299056 | X131: =X120/X128 -> 1.242180408 | Y131: =Y120/Y128 -> 1.243871622 | Z131: =Z120/Z128 -> 1.242180408 | AA131: =AA120/AA128 -> 1.243871622 | AB131: =AB120/AB128 -> 1.242180408 | AC131: =AC120/AC128 -> 1.243871622 | AD131: =AD120/AD128 -> 1.242180408 | AE131: =AE120/AE128 -> 1.243299056 | AF131: =AF120/AF128 -> 1.242180408 | AG131: =AG120/AG128 -> 1.243871622 | AH131: =AH120/AH128 -> 1.242180408 | AI131: =AI120/AI128 -> 1.243871622 | AJ131: =AJ120/AJ128 -> 1.242180408 | AK131: =AK120/AK128 -> 1.243871622 | AL131: =AL120/AL128 -> 1.242180408 | AM131: =AM120/AM128 -> 1.243299056 | AN131: =AN120/AN128 -> 1.242180408 | AO131: =AO120/AO128 -> 1.243871622 | AP131: =AP120/AP128 -> 1.242180408 | AQ131: =AQ120/AQ128 -> 1.243871622 | AR131: =AR120/AR128 -> 1.242180408 | AS131: =AS120/AS128 -> 1.243871622 | AT131: =AT120/AT128 -> 1.242180408 | AU131: =AU120/AU128 -> 1.243299056 | AV131: =AV120/AV128 -> 1.242180408 | AW131: =AW120/AW128 -> 1.243871622 | AX131: =AX120/AX128 -> 1.242180408 | AY131: =AY120/AY128 -> 1.243871622 | AZ131: =AZ120/AZ128 -> 1.242180408 | BA131: =BA120/BA128 -> 1.243871622 | BB131: =BB120/BB128 -> 1.242180408 | BC131: =BC120/BC128 -> 1.243299056 | BD131: =BD120/BD128 -> 1.242180408 | BE131: =BE120/BE128 -> 1.243871622 | BF131: =BF120/BF128 -> 1.242180408 | BG131: =BG120/BG128 -> 1.243871622 | BH131: =BH120/BH128 -> 1.242180408 | BI131: =BI120/BI128 -> 1.243871622 | BJ131: =BJ120/BJ128 -> 1.242180408 | BK131: =BK120/BK128 -> 1.243299056 | BL131: =BL120/BL128 -> 1.242180408 | BM131: =BM120/BM128 -> 1.243871622 | BN131: =BN120/BN128 -> 1.242180408 | BO131: =BO120/BO128 -> 1.243871622 | BP131: =BP120/BP128 -> 1.242180408 | BQ131: =BQ120/BQ128 ->  | BR131: =BR120/BR128 ->  | BS131: =BS120/BS128 ->  | BT131: =BT120/BT128 ->  | BU131: =BU120/BU128 ->  | BV131: =BV120/BV128 ->  | BW131: =BW120/BW128 ->  | BX131: =BX120/BX128 ->  | BY131: =BY120/BY128 ->  | BZ131: =BZ120/BZ128 ->  | CA131: =CA120/CA128 ->  | CB131: =CB120/CB128 ->  | CC131: =CC120/CC128 ->  | CD131: =CD120/CD128 ->  | CE131: =CE120/CE128 ->  | CF131: =CF120/CF128 ->  | CG131: =CG120/CG128 ->  | CH131: =CH120/CH128 ->  | CI131: =CI120/CI128 ->  | CJ131: =CJ120/CJ128 ->  | CK131: =CK120/CK128 ->  | CL131: =CL120/CL128 ->  | CM131: =CM120/CM128 ->  | CN131: =CN120/CN128 ->  | CO131: =CO120/CO128 ->  | CP131: =CP120/CP128 ->  | CQ131: =CQ120/CQ128 ->  | CR131: =CR120/CR128 ->  | CS131: =CS120/CS128 ->  | CT131: =CT120/CT128 ->  | CU131: =CU120/CU128 ->  | CV131: =CV120/CV128 ->  | CW131: =CW120/CW128 ->  | CX131: =CX120/CX128 ->  | CY131: =CY120/CY128 ->  | CZ131: =CZ120/CZ128 ->  | DA131: =DA120/DA128 ->  | DB131: =DB120/DB128 ->  | DC131: =DC120/DC128 -> 
B133: P99 DSCR
C134: Cash flow P99 case
D135: MWh P99 case | E135: MWh | H135: =H71 -> 0 | I135: =I71 -> 148719.585 | J135: =J71 -> 151184.5505 | K135: =K71 -> 148719.585 | L135: =L71 -> 151184.5505 | M135: =M71 -> 148719.585 | N135: =N71 -> 151184.5505 | O135: =O71 -> 149541.2402 | P135: =P71 -> 151184.5505 | Q135: =Q71 -> 148719.585 | R135: =R71 -> 151184.5505 | S135: =S71 -> 148719.585 | T135: =T71 -> 151184.5505 | U135: =U71 -> 148719.585 | V135: =V71 -> 151184.5505 | W135: =W71 -> 149541.2402 | X135: =X71 -> 151184.5505 | Y135: =Y71 -> 148719.585 | Z135: =Z71 -> 151184.5505 | AA135: =AA71 -> 148719.585 | AB135: =AB71 -> 151184.5505 | AC135: =AC71 -> 148719.585 | AD135: =AD71 -> 151184.5505 | AE135: =AE71 -> 149541.2402 | AF135: =AF71 -> 151184.5505 | AG135: =AG71 -> 148719.585 | AH135: =AH71 -> 151184.5505 | AI135: =AI71 -> 148719.585 | AJ135: =AJ71 -> 151184.5505 | AK135: =AK71 -> 148719.585 | AL135: =AL71 -> 151184.5505 | AM135: =AM71 -> 149541.2402 | AN135: =AN71 -> 151184.5505 | AO135: =AO71 -> 148719.585 | AP135: =AP71 -> 151184.5505 | AQ135: =AQ71 -> 148719.585 | AR135: =AR71 -> 151184.5505 | AS135: =AS71 -> 148719.585 | AT135: =AT71 -> 151184.5505 | AU135: =AU71 -> 149541.2402 | AV135: =AV71 -> 151184.5505 | AW135: =AW71 -> 148719.585 | AX135: =AX71 -> 151184.5505 | AY135: =AY71 -> 148719.585 | AZ135: =AZ71 -> 151184.5505 | BA135: =BA71 -> 148719.585 | BB135: =BB71 -> 151184.5505 | BC135: =BC71 -> 149541.2402 | BD135: =BD71 -> 151184.5505 | BE135: =BE71 -> 148719.585 | BF135: =BF71 -> 151184.5505 | BG135: =BG71 -> 148719.585 | BH135: =BH71 -> 151184.5505 | BI135: =BI71 -> 148719.585 | BJ135: =BJ71 -> 151184.5505 | BK135: =BK71 -> 149541.2402 | BL135: =BL71 -> 151184.5505 | BM135: =BM71 -> 148719.585 | BN135: =BN71 -> 151184.5505 | BO135: =BO71 -> 148719.585 | BP135: =BP71 -> 151184.5505 | BQ135: =BQ71 -> 0 | BR135: =BR71 -> 0 | BS135: =BS71 -> 0 | BT135: =BT71 -> 0 | BU135: =BU71 -> 0 | BV135: =BV71 -> 0 | BW135: =BW71 -> 0 | BX135: =BX71 -> 0 | BY135: =BY71 -> 0 | BZ135: =BZ71 -> 0 | CA135: =CA71 -> 0 | CB135: =CB71 -> 0 | CC135: =CC71 -> 0 | CD135: =CD71 -> 0 | CE135: =CE71 -> 0 | CF135: =CF71 -> 0 | CG135: =CG71 -> 0 | CH135: =CH71 -> 0 | CI135: =CI71 -> 0 | CJ135: =CJ71 -> 0 | CK135: =CK71 -> 0 | CL135: =CL71 -> 0 | CM135: =CM71 -> 0 | CN135: =CN71 -> 0 | CO135: =CO71 -> 0 | CP135: =CP71 -> 0 | CQ135: =CQ71 -> 0 | CR135: =CR71 -> 0 | CS135: =CS71 -> 0 | CT135: =CT71 -> 0 | CU135: =CU71 -> 0 | CV135: =CV71 -> 0 | CW135: =CW71 -> 0 | CX135: =CX71 -> 0 | CY135: =CY71 -> 0 | CZ135: =CZ71 -> 0 | DA135: =DA71 -> 0 | DB135: =DB71 -> 0 | DC135: =DC71 -> 0
D136: Price - variable cost | E136: Euro/MWh | H136: =H116 -> 0 | I136: =I116 -> 35.10351407 | J136: =J116 -> 35.45281137 | K136: =K116 -> 35.80558435 | L136: =L116 -> 36.1618676 | M136: =M116 -> 36.52169604 | N136: =N116 -> 36.88510495 | O136: =O116 -> 37.25212996 | P136: =P116 -> 37.62280705 | Q136: =Q116 -> 37.99717256 | R136: =R116 -> 38.37526319 | S136: =S116 -> 38.75711601 | T136: =T116 -> 39.14276845 | U136: =U116 -> 39.53225833 | V136: =V116 -> 39.92562382 | W136: =W116 -> 40.32290349 | X136: =X116 -> 40.7241363 | Y136: =Y116 -> 41.12936156 | Z136: =Z116 -> 41.53861902 | AA136: =AA116 -> 41.9519488 | AB136: =AB116 -> 42.3693914 | AC136: =AC116 -> 42.79098777 | AD136: =AD116 -> 43.21677923 | AE136: =AE116 -> 43.64680753 | AF136: =AF116 -> 44.08111482 | AG136: =AG116 -> 44.51974368 | AH136: =AH116 -> 44.96273711 | AI136: =AI116 -> 45.41013855 | AJ136: =AJ116 -> 45.86199186 | AK136: =AK116 -> 46.31834132 | AL136: =AL116 -> 46.77923169 | AM136: =AM116 -> 47.24470815 | AN136: =AN116 -> 47.71481633 | AO136: =AO116 -> 48.18960231 | AP136: =AP116 -> 48.66911265 | AQ136: =AQ116 -> 49.15339436 | AR136: =AR116 -> 49.64249491 | AS136: =AS116 -> 50.13646225 | AT136: =AT116 -> 50.6353448 | AU136: =AU116 -> 51.13919149 | AV136: =AV116 -> 51.6480517 | AW136: =AW116 -> 52.16197532 | AX136: =AX116 -> 52.68101273 | AY136: =AY116 -> 53.20521483 | AZ136: =AZ116 -> 53.73463299 | BA136: =BA116 -> 54.26931912 | BB136: =BB116 -> 54.80932565 | BC136: =BC116 -> 55.35470551 | BD136: =BD116 -> 55.90551216 | BE136: =BE116 -> 56.46179962 | BF136: =BF116 -> 57.0236224 | BG136: =BG116 -> 57.59103561 | BH136: =BH116 -> 58.16409485 | BI136: =BI116 -> 58.74285632 | BJ136: =BJ116 -> 59.32737675 | BK136: =BK116 -> 59.91771345 | BL136: =BL116 -> 60.51392428 | BM136: =BM116 -> 61.11606772 | BN136: =BN116 -> 61.72420277 | BO136: =BO116 -> 62.33838907 | BP136: =BP116 -> 62.95868683 | BQ136: =BQ116 -> 0 | BR136: =BR116 -> 0 | BS136: =BS116 -> 0 | BT136: =BT116 -> 0 | BU136: =BU116 -> 0 | BV136: =BV116 -> 0 | BW136: =BW116 -> 0 | BX136: =BX116 -> 0 | BY136: =BY116 -> 0 | BZ136: =BZ116 -> 0 | CA136: =CA116 -> 0 | CB136: =CB116 -> 0 | CC136: =CC116 -> 0 | CD136: =CD116 -> 0 | CE136: =CE116 -> 0 | CF136: =CF116 -> 0 | CG136: =CG116 -> 0 | CH136: =CH116 -> 0 | CI136: =CI116 -> 0 | CJ136: =CJ116 -> 0 | CK136: =CK116 -> 0 | CL136: =CL116 -> 0 | CM136: =CM116 -> 0 | CN136: =CN116 -> 0 | CO136: =CO116 -> 0 | CP136: =CP116 -> 0 | CQ136: =CQ116 -> 0 | CR136: =CR116 -> 0 | CS136: =CS116 -> 0 | CT136: =CT116 -> 0 | CU136: =CU116 -> 0 | CV136: =CV116 -> 0 | CW136: =CW116 -> 0 | CX136: =CX116 -> 0 | CY136: =CY116 -> 0 | CZ136: =CZ116 -> 0 | DA136: =DA116 -> 0 | DB136: =DB116 -> 0 | DC136: =DC116 -> 0
D137: Margin P99 case | E137: Euro 000's | H137: =H135*H136/1000 -> 0 | I137: =I135*I136/1000 -> 5220.580046 | J137: 5359.917352 | K137: 5324.991647 | L137: 5467.115699 | M137: 5431.49148 | N137: 5576.458013 | O137: 5570.729715 | P137: 5687.987174 | Q137: 5650.923736 | R137: 5801.746917 | S137: 5763.94221 | T137: 5917.781856 | U137: 5879.221055 | V137: 6036.137493 | W137: 6029.936998 | X137: 6156.860243 | Y137: 6116.741585 | Z137: 6279.997447 | AA137: 6239.076417 | AB137: 6405.597396 | AC137: 6363.857945 | AD137: 6533.709344 | AE137: 6526.997729 | AF137: 6664.383531 | AG137: 6620.957806 | AH137: 6797.671202 | AI137: 6753.376962 | AJ137: 6933.624626 | AK137: 6888.444502 | AL137: 7072.297118 | AM137: 7065.03225 | AN137: 7213.743061 | AO137: 7166.737659 | AP137: 7358.017922 | AQ137: 7310.072413 | AR137: 7505.17828 | AS137: 7456.273861 | AT137: 7655.281846 | AU137: 7647.418119 | AV137: 7808.387483 | AW137: 7757.507325 | AX137: 7964.555233 | AY137: 7912.657471 | AZ137: 8123.846337 | BA137: 8070.910621 | BB137: 8286.323264 | BC137: 8277.811313 | BD137: 8452.049729 | BE137: 8396.97541 | BF137: 8621.090724 | BG137: 8564.914918 | BH137: 8793.512538 | BI137: 8736.213216 | BJ137: 8969.382789 | BK137: 8960.16918 | BL137: 9148.770445 | BM137: 9089.15623 | BN137: 9331.745854 | BO137: 9270.939355 | BP137: 9518.380771 | BQ137: 0 | BR137: 0 | BS137: 0 | BT137: 0 | BU137: =BU135*BU136/1000 -> 0 | BV137: 0 | BW137: 0 | BX137: 0 | BY137: 0 | BZ137: 0 | CA137: 0 | CB137: 0 | CC137: 0 | CD137: 0 | CE137: 0 | CF137: 0 | CG137: 0 | CH137: 0 | CI137: 0 | CJ137: 0 | CK137: 0 | CL137: 0 | CM137: 0 | CN137: 0 | CO137: 0 | CP137: 0 | CQ137: 0 | CR137: 0 | CS137: 0 | CT137: 0 | CU137: 0 | CV137: 0 | CW137: 0 | CX137: 0 | CY137: 0 | CZ137: 0 | DA137: 0 | DB137: 0 | DC137: 0
D138: Fixed Cost | E138: Euro 000's | H138: =H91 -> 0 | I138: =I91 -> 1818.654093 | J138: =J91 -> 1836.750599 | K138: =K91 -> 1855.027175 | L138: =L91 -> 1873.485611 | M138: =M91 -> 1892.127718 | N138: =N91 -> 1910.955323 | O138: =O91 -> 1929.970273 | P138: =P91 -> 1949.17443 | Q138: =Q91 -> 1968.569678 | R138: =R91 -> 1988.157918 | S138: =S91 -> 2007.941072 | T138: =T91 -> 2027.921077 | U138: =U91 -> 2048.099893 | V138: =V91 -> 2068.479498 | W138: =W91 -> 2089.061891 | X138: =X91 -> 2109.849088 | Y138: =Y91 -> 2130.843129 | Z138: =Z91 -> 2152.04607 | AA138: =AA91 -> 2173.459991 | AB138: =AB91 -> 2195.086991 | AC138: =AC91 -> 2216.929191 | AD138: =AD91 -> 2238.988731 | AE138: =AE91 -> 2261.267775 | AF138: =AF91 -> 2283.768506 | AG138: =AG91 -> 2306.49313 | AH138: =AH91 -> 2329.443876 | AI138: =AI91 -> 2352.622993 | AJ138: =AJ91 -> 2376.032754 | AK138: =AK91 -> 2399.675453 | AL138: =AL91 -> 2423.553409 | AM138: =AM91 -> 2447.668962 | AN138: =AN91 -> 2472.024477 | AO138: =AO91 -> 2496.622341 | AP138: =AP91 -> 2521.464966 | AQ138: =AQ91 -> 2546.554788 | AR138: =AR91 -> 2571.894266 | AS138: =AS91 -> 2597.485884 | AT138: =AT91 -> 2623.332151 | AU138: =AU91 -> 2649.435601 | AV138: =AV91 -> 2675.798794 | AW138: =AW91 -> 2702.424313 | AX138: =AX91 -> 2729.31477 | AY138: =AY91 -> 2756.4728 | AZ138: =AZ91 -> 2783.901065 | BA138: =BA91 -> 2811.602256 | BB138: =BB91 -> 2839.579087 | BC138: =BC91 -> 2867.834301 | BD138: =BD91 -> 2896.370668 | BE138: =BE91 -> 2925.190987 | BF138: =BF91 -> 2954.298082 | BG138: =BG91 -> 2983.694807 | BH138: =BH91 -> 3013.384043 | BI138: =BI91 -> 3043.368703 | BJ138: =BJ91 -> 3073.651724 | BK138: =BK91 -> 3104.236077 | BL138: =BL91 -> 3135.124759 | BM138: =BM91 -> 3166.320798 | BN138: =BN91 -> 3197.827254 | BO138: =BO91 -> 3229.647214 | BP138: =BP91 -> 3261.783799 | BQ138: =BQ91 -> 0 | BR138: =BR91 -> 0 | BS138: =BS91 -> 0 | BT138: =BT91 -> 0 | BU138: =BU91 -> 0 | BV138: =BV91 -> 0 | BW138: =BW91 -> 0 | BX138: =BX91 -> 0 | BY138: =BY91 -> 0 | BZ138: =BZ91 -> 0 | CA138: =CA91 -> 0 | CB138: =CB91 -> 0 | CC138: =CC91 -> 0 | CD138: =CD91 -> 0 | CE138: =CE91 -> 0 | CF138: =CF91 -> 0 | CG138: =CG91 -> 0 | CH138: =CH91 -> 0 | CI138: =CI91 -> 0 | CJ138: =CJ91 -> 0 | CK138: =CK91 -> 0 | CL138: =CL91 -> 0 | CM138: =CM91 -> 0 | CN138: =CN91 -> 0 | CO138: =CO91 -> 0 | CP138: =CP91 -> 0 | CQ138: =CQ91 -> 0 | CR138: =CR91 -> 0 | CS138: =CS91 -> 0 | CT138: =CT91 -> 0 | CU138: =CU91 -> 0 | CV138: =CV91 -> 0 | CW138: =CW91 -> 0 | CX138: =CX91 -> 0 | CY138: =CY91 -> 0 | CZ138: =CZ91 -> 0 | DA138: =DA91 -> 0 | DB138: =DB91 -> 0 | DC138: =DC91 -> 0
D139: EBITDA P99 | E139: Euro 000's | H139: =H137-H138 -> 0 | I139: =I137-I138 -> 3401.925953 | J139: 3523.166753 | K139: 3469.964472 | L139: 3593.630088 | M139: 3539.363762 | N139: 3665.50269 | O139: 3640.759442 | P139: 3738.812744 | Q139: 3682.354058 | R139: 3813.588999 | S139: 3756.001139 | T139: 3889.860779 | U139: 3831.121162 | V139: 3967.657994 | W139: 3940.875107 | X139: 4047.011154 | Y139: 3985.898457 | Z139: 4127.951377 | AA139: 4065.616426 | AB139: 4210.510405 | AC139: 4146.928754 | AD139: 4294.720613 | AE139: 4265.729954 | AF139: 4380.615025 | AG139: 4314.464676 | AH139: 4468.227326 | AI139: 4400.753969 | AJ139: 4557.591872 | AK139: 4488.769049 | AL139: 4648.74371 | AM139: 4617.363288 | AN139: 4741.718584 | AO139: 4670.115318 | AP139: 4836.552956 | AQ139: 4763.517625 | AR139: 4933.284015 | AS139: 4858.787977 | AT139: 5031.949695 | AU139: 4997.982518 | AV139: 5132.588689 | AW139: 5055.083012 | AX139: 5235.240463 | AY139: 5156.184672 | AZ139: 5339.945272 | BA139: 5259.308365 | BB139: 5446.744177 | BC139: 5409.977012 | BD139: 5555.679061 | BE139: 5471.784423 | BF139: 5666.792642 | BG139: 5581.220112 | BH139: 5780.128495 | BI139: 5692.844514 | BJ139: 5895.731065 | BK139: 5855.933103 | BL139: 6013.645686 | BM139: 5922.835432 | BN139: 6133.9186 | BO139: 6041.292141 | BP139: 6256.596972 | BQ139: 0 | BR139: 0 | BS139: 0 | BT139: 0 | BU139: =BU137-BU138 -> 0 | BV139: 0 | BW139: 0 | BX139: 0 | BY139: 0 | BZ139: 0 | CA139: 0 | CB139: 0 | CC139: 0 | CD139: 0 | CE139: 0 | CF139: 0 | CG139: 0 | CH139: 0 | CI139: 0 | CJ139: 0 | CK139: 0 | CL139: 0 | CM139: 0 | CN139: 0 | CO139: 0 | CP139: 0 | CQ139: 0 | CR139: 0 | CS139: 0 | CT139: 0 | CU139: 0 | CV139: 0 | CW139: 0 | CX139: 0 | CY139: 0 | CZ139: 0 | DA139: 0 | DB139: 0 | DC139: 0
D140: CFADS P99 case | E140: Euro 000's | H140: =H139 -> 0 | I140: =I139 -> 3401.925953 | J140: 3523.166753 | K140: 3469.964472 | L140: 3593.630088 | M140: 3539.363762 | N140: 3665.50269 | O140: 3640.759442 | P140: 3738.812744 | Q140: 3682.354058 | R140: 3813.588999 | S140: 3756.001139 | T140: 3889.860779 | U140: 3831.121162 | V140: 3967.657994 | W140: 3940.875107 | X140: 4047.011154 | Y140: 3985.898457 | Z140: 4127.951377 | AA140: 4065.616426 | AB140: 4210.510405 | AC140: 4146.928754 | AD140: 4294.720613 | AE140: 4265.729954 | AF140: 4380.615025 | AG140: 4314.464676 | AH140: 4468.227326 | AI140: 4400.753969 | AJ140: 4557.591872 | AK140: 4488.769049 | AL140: 4648.74371 | AM140: 4617.363288 | AN140: 4741.718584 | AO140: 4670.115318 | AP140: 4836.552956 | AQ140: 4763.517625 | AR140: 4933.284015 | AS140: 4858.787977 | AT140: 5031.949695 | AU140: 4997.982518 | AV140: 5132.588689 | AW140: 5055.083012 | AX140: 5235.240463 | AY140: 5156.184672 | AZ140: 5339.945272 | BA140: 5259.308365 | BB140: 5446.744177 | BC140: 5409.977012 | BD140: 5555.679061 | BE140: 5471.784423 | BF140: 5666.792642 | BG140: 5581.220112 | BH140: 5780.128495 | BI140: 5692.844514 | BJ140: 5895.731065 | BK140: 5855.933103 | BL140: 6013.645686 | BM140: 5922.835432 | BN140: 6133.9186 | BO140: 6041.292141 | BP140: 6256.596972 | BQ140: 0 | BR140: 0 | BS140: 0 | BT140: 0 | BU140: =BU139 -> 0 | BV140: 0 | BW140: 0 | BX140: 0 | BY140: 0 | BZ140: 0 | CA140: 0 | CB140: 0 | CC140: 0 | CD140: 0 | CE140: 0 | CF140: 0 | CG140: 0 | CH140: 0 | CI140: 0 | CJ140: 0 | CK140: 0 | CL140: 0 | CM140: 0 | CN140: 0 | CO140: 0 | CP140: 0 | CQ140: 0 | CR140: 0 | CS140: 0 | CT140: 0 | CU140: 0 | CV140: 0 | CW140: 0 | CX140: 0 | CY140: 0 | CZ140: 0 | DA140: 0 | DB140: 0 | DC140: 0
D142: P50/P99 EBITDA | I142: =I119/I139 -> 1.552546625 | J142: =J119/J139 -> 1.547772118 | K142: 1.552546625 | L142: 1.547772118 | M142: 1.552546625 | N142: 1.547772118 | O142: 1.550928363 | P142: 1.547772118 | Q142: 1.552546625 | R142: 1.547772118 | S142: 1.552546625 | T142: 1.547772118 | U142: 1.552546625 | V142: 1.547772118 | W142: 1.550928363 | X142: 1.547772118 | Y142: 1.552546625 | Z142: 1.547772118 | AA142: 1.552546625 | AB142: 1.547772118 | AC142: 1.552546625 | AD142: 1.547772118 | AE142: 1.550928363 | AF142: 1.547772118 | AG142: 1.552546625 | AH142: 1.547772118 | AI142: 1.552546625 | AJ142: 1.547772118 | AK142: 1.552546625 | AL142: 1.547772118 | AM142: 1.550928363 | AN142: 1.547772118 | AO142: 1.552546625 | AP142: 1.547772118 | AQ142: 1.552546625 | AR142: 1.547772118 | AS142: 1.552546625 | AT142: 1.547772118 | AU142: 1.550928363 | AV142: 1.547772118 | AW142: 1.552546625 | AX142: 1.547772118 | AY142: 1.552546625 | AZ142: 1.547772118 | BA142: 1.552546625 | BB142: 1.547772118 | BC142: 1.550928363 | BD142: 1.547772118 | BE142: 1.552546625 | BF142: 1.547772118 | BG142: 1.552546625 | BH142: 1.547772118 | BI142: 1.552546625 | BJ142: 1.547772118 | BK142: 1.550928363 | BL142: 1.547772118 | BM142: 1.552546625 | BN142: 1.547772118 | BO142: 1.552546625 | BP142: 1.547772118 | BV142: =BV119/BV139 -> 

Sheet Scenario
D3: Max Debt to Capital | E3: 0.85
D4: P50 DSCR | E4: 1.35
D5: P99 DSCR | E5: 1
D6: Maturity | E6: 17
D7: Base Interest Rate
D8: Credit Spread
D10: Re-financing
D11: Tariff | E11: 42
C14: EPC Cost | D14: Std Deviation | E14: O&M Sensitivity | F14: O&M Fixed/Variable Distribution | G14: Operating Life | H14: Construction Period | K14: Project IRR | L14: Equity IRR | M14: Debt Sizing
B15: Base Case | C15: 1200 | D15: 0.1138 | E15: 1 | F15: 3 | G15: 30 | H15: 15
B16: Low Case | C16: 1400 | D16: 0.05 | E16: 1.2 | F16: 2 | G16: 25 | H16: 26
B17: High Case | C17: 1050 | D17: 0.2 | E17: 0.9 | F17: 1 | G17: 35 | H17: 12
A55: O&M Fixed and Variable Split
C57: Fixed Case | F57: Variable Case | I57: Mixed Case
C58: Fixed | D58: Variable | F58: Fixed | G58: Variable | I58: Fixed | J58: Variable
C59: TRUE | D59: FALSE | F59: TRUE | G59: FALSE | I59: FALSE | J59: FALSE
C60: TRUE | D60: FALSE | F60: TRUE | G60: FALSE | I60: FALSE | J60: FALSE
C61: TRUE | D61: FALSE | F61: TRUE | G61: FALSE | I61: FALSE | J61: FALSE
C62: TRUE | D62: FALSE | F62: TRUE | G62: FALSE | I62: FALSE | J62: FALSE
C63: TRUE | D63: FALSE | F63: TRUE | G63: FALSE | I63: TRUE | J63: TRUE
C64: TRUE | D64: FALSE | F64: TRUE | G64: FALSE | I64: TRUE | J64: TRUE
C65: TRUE | D65: FALSE | F65: TRUE | G65: FALSE | I65: TRUE | J65: TRUE
C66: TRUE | D66: FALSE | F66: TRUE | G66: FALSE | I66: TRUE | J66: TRUE
C67: TRUE | D67: FALSE | F67: TRUE | G67: FALSE | I67: TRUE | J67: TRUE
C68: TRUE | D68: FALSE | F68: TRUE | G68: FALSE | I68: TRUE | J68: TRUE
C69: TRUE | D69: FALSE | F69: TRUE | G69: FALSE | I69: TRUE | J69: TRUE
C70: TRUE | D70: FALSE | F70: TRUE | G70: FALSE | I70: TRUE | J70: TRUE
C71: TRUE | D71: FALSE | F71: TRUE | G71: FALSE | I71: TRUE | J71: TRUE
C72: TRUE | D72: FALSE | F72: TRUE | G72: FALSE | I72: TRUE | J72: TRUE
C73: TRUE | D73: FALSE | F73: TRUE | G73: FALSE | I73: TRUE | J73: TRUE

Sheet Financial Model
A1: Timing | J1: 1 | K1: 2 | L1: 3 | M1: 4 | N1: 5 | O1: 6 | P1: 7 | Q1: 8 | R1: 9 | S1: 10 | T1: 11 | U1: 12 | V1: 13 | W1: 14 | X1: 15 | Y1: 16 | Z1: 17 | AA1: 18 | AB1: 19 | AC1: 20 | AD1: 21 | AE1: 22 | AF1: 23 | AG1: 24 | AH1: 25 | AI1: 26 | AJ1: 27 | AK1: 28 | AL1: 29 | AM1: 30 | AN1: 31 | AO1: 32 | AP1: 33 | AQ1: 34 | AR1: 35 | AS1: 36 | AT1: 37 | AU1: 38 | AV1: 39 | AW1: 40 | AX1: 41 | AY1: 42 | AZ1: 43 | BA1: 44 | BB1: 45 | BC1: 46 | BD1: 47 | BE1: 48 | BF1: 49 | BG1: 50 | BH1: 51 | BI1: 52 | BJ1: 53 | BK1: 54 | BL1: 55 | BM1: 56 | BN1: 57 | BO1: 58 | BP1: 59 | BQ1: 60 | BR1: 61 | BS1: 62 | BT1: 63 | BU1: 64 | BV1: 65 | BW1: 66 | BX1: 67 | BY1: 68 | BZ1: 69 | CA1: 70 | CB1: 71 | CC1: 72 | CD1: 73 | CE1: 74 | CF1: 75 | CG1: 76 | CH1: 77 | CI1: 78 | CJ1: 79 | CK1: 80 | CL1: 81 | CM1: 82 | CN1: 83 | CO1: 84 | CP1: 85 | CQ1: 86 | CR1: 87 | CS1: 88 | CT1: 89 | CU1: 90 | CV1: 91 | CW1: 92 | CX1: 93 | CY1: 94 | CZ1: 95 | DA1: 96 | DB1: 97 | DC1: 98 | DD1: 99 | DE1: 100 | DF1: 101 | DG1: 102 | DH1: 103 | DI1: 104 | DJ1: 105 | DK1: 106 | DL1: 107 | DM1: 108 | DN1: 109 | DO1: 110 | DP1: 111 | DQ1: 112 | DR1: 113 | DS1: 114 | DT1: 115 | DU1: 116 | DV1: 117 | DW1: 118 | DX1: 119 | DY1: 120 | DZ1: 121 | EA1: 122 | EB1: 123 | EC1: 124 | ED1: 125 | EE1: 126 | EF1: 127 | EG1: 128 | EH1: 129 | EI1: 130 | EJ1: 131 | EK1: 132 | EL1: 133 | EM1: 134 | EN1: 135 | EO1: 136 | EP1: 137 | EQ1: 138 | ER1: 139 | ES1: 140 | ET1: 141 | EU1: 142 | EV1: 143 | EW1: 144 | EX1: 145 | EY1: 146 | EZ1: 147
E2: Debt Size | F2: =E206 -> P99 Applied | G2: =E207 -> DSCR | H2: =F13 -> 21 | J2: =J1<=$H$2 -> TRUE | K2: =K1<=$H$2 -> TRUE | L2: TRUE | M2: TRUE | N2: TRUE | O2: TRUE | P2: TRUE | Q2: TRUE | R2: TRUE | S2: TRUE | T2: TRUE | U2: TRUE | V2: TRUE | W2: TRUE | X2: TRUE | Y2: TRUE | Z2: TRUE | AA2: TRUE | AB2: TRUE | AC2: TRUE | AD2: TRUE | AE2: FALSE | AF2: FALSE | AG2: FALSE | AH2: FALSE | AI2: FALSE | AJ2: FALSE | AK2: FALSE | AL2: FALSE | AM2: FALSE | AN2: FALSE | AO2: FALSE | AP2: FALSE | AQ2: FALSE | AR2: FALSE | AS2: FALSE | AT2: FALSE | AU2: FALSE | AV2: FALSE | AW2: FALSE | AX2: FALSE | AY2: FALSE | AZ2: FALSE | BA2: FALSE | BB2: FALSE | BC2: FALSE | BD2: FALSE | BE2: FALSE | BF2: FALSE | BG2: FALSE | BH2: FALSE | BI2: FALSE | BJ2: FALSE | BK2: FALSE | BL2: FALSE | BM2: FALSE | BN2: FALSE | BO2: FALSE | BP2: FALSE | BQ2: FALSE | BR2: FALSE | BS2: FALSE | BT2: FALSE | BU2: FALSE | BV2: FALSE | BW2: =BW1<=$H$2 -> FALSE | BX2: FALSE | BY2: FALSE | BZ2: FALSE | CA2: FALSE | CB2: FALSE | CC2: FALSE | CD2: FALSE | CE2: FALSE | CF2: FALSE | CG2: FALSE | CH2: FALSE | CI2: FALSE | CJ2: FALSE | CK2: FALSE | CL2: FALSE | CM2: FALSE | CN2: FALSE | CO2: FALSE | CP2: FALSE | CQ2: FALSE | CR2: FALSE | CS2: FALSE | CT2: FALSE | CU2: FALSE | CV2: FALSE | CW2: FALSE | CX2: FALSE | CY2: FALSE | CZ2: FALSE | DA2: FALSE | DB2: FALSE | DC2: FALSE | DD2: FALSE | DE2: FALSE | DF2: FALSE | DG2: FALSE | DH2: FALSE | DI2: FALSE | DJ2: FALSE | DK2: FALSE | DL2: FALSE | DM2: FALSE | DN2: FALSE | DO2: FALSE | DP2: FALSE | DQ2: FALSE | DR2: FALSE | DS2: FALSE | DT2: FALSE | DU2: FALSE | DV2: FALSE | DW2: FALSE | DX2: FALSE | DY2: FALSE | DZ2: FALSE | EA2: FALSE | EB2: FALSE | EC2: FALSE | ED2: FALSE | EE2: FALSE | EF2: FALSE | EG2: FALSE | EH2: FALSE | EI2: =EI1<=$H$2 -> FALSE | EJ2: FALSE | EK2: FALSE | EL2: FALSE | EM2: FALSE | EN2: FALSE | EO2: FALSE | EP2: FALSE | EQ2: FALSE | ER2: FALSE | ES2: FALSE | ET2: FALSE | EU2: FALSE | EV2: FALSE | EW2: FALSE | EX2: FALSE | EY2: FALSE | EZ2: FALSE
B3: Months in Period | G3: 1 | H3: 6 | J3: =IF(J2,$G$3,$H$3) -> 1 | K3: =IF(K2,$G$3,$H$3) -> 1 | L3: 1 | M3: 1 | N3: 1 | O3: 1 | P3: 1 | Q3: 1 | R3: 1 | S3: 1 | T3: 1 | U3: 1 | V3: 1 | W3: 1 | X3: 1 | Y3: 1 | Z3: 1 | AA3: 1 | AB3: 1 | AC3: 1 | AD3: 1 | AE3: 6 | AF3: 6 | AG3: 6 | AH3: 6 | AI3: 6 | AJ3: 6 | AK3: 6 | AL3: 6 | AM3: 6 | AN3: 6 | AO3: 6 | AP3: 6 | AQ3: 6 | AR3: 6 | AS3: 6 | AT3: 6 | AU3: 6 | AV3: 6 | AW3: 6 | AX3: 6 | AY3: 6 | AZ3: 6 | BA3: 6 | BB3: 6 | BC3: 6 | BD3: 6 | BE3: 6 | BF3: 6 | BG3: 6 | BH3: 6 | BI3: 6 | BJ3: 6 | BK3: 6 | BL3: 6 | BM3: 6 | BN3: 6 | BO3: 6 | BP3: 6 | BQ3: 6 | BR3: 6 | BS3: 6 | BT3: 6 | BU3: 6 | BV3: 6 | BW3: =IF(BW2,$G$3,$H$3) -> 6 | BX3: 6 | BY3: 6 | BZ3: 6 | CA3: 6 | CB3: 6 | CC3: 6 | CD3: 6 | CE3: 6 | CF3: 6 | CG3: 6 | CH3: 6 | CI3: 6 | CJ3: 6 | CK3: 6 | CL3: 6 | CM3: 6 | CN3: 6 | CO3: 6 | CP3: 6 | CQ3: 6 | CR3: 6 | CS3: 6 | CT3: 6 | CU3: 6 | CV3: 6 | CW3: 6 | CX3: 6 | CY3: 6 | CZ3: 6 | DA3: 6 | DB3: 6 | DC3: 6 | DD3: 6 | DE3: 6 | DF3: 6 | DG3: 6 | DH3: 6 | DI3: 6 | DJ3: 6 | DK3: 6 | DL3: 6 | DM3: 6 | DN3: 6 | DO3: 6 | DP3: 6 | DQ3: 6 | DR3: 6 | DS3: 6 | DT3: 6 | DU3: 6 | DV3: 6 | DW3: 6 | DX3: 6 | DY3: 6 | DZ3: 6 | EA3: 6 | EB3: 6 | EC3: 6 | ED3: 6 | EE3: 6 | EF3: 6 | EG3: 6 | EH3: 6 | EI3: =IF(EI2,$G$3,$H$3) -> 6 | EJ3: 6 | EK3: 6 | EL3: 6 | EM3: 6 | EN3: 6 | EO3: 6 | EP3: 6 | EQ3: 6 | ER3: 6 | ES3: 6 | ET3: 6 | EU3: 6 | EV3: 6 | EW3: 6 | EX3: 6 | EY3: 6 | EZ3: 6
B4: Start of Period | E4: Equity IRR | F4: =F451 -> 0.09164170325 | J4: =I5+1 -> 2019-01-01 | K4: =J5+1 -> 2019-02-01 | L4: 2019-03-01 | M4: 2019-04-01 | N4: 2019-05-01 | O4: 2019-06-01 | P4: 2019-07-01 | Q4: 2019-08-01 | R4: 2019-09-01 | S4: 2019-10-01 | T4: 2019-11-01 | U4: 2019-12-01 | V4: 2020-01-01 | W4: 2020-02-01 | X4: 2020-03-01 | Y4: 2020-04-01 | Z4: 2020-05-01 | AA4: 2020-06-01 | AB4: 2020-07-01 | AC4: 2020-08-01 | AD4: 2020-09-01 | AE4: 2020-10-01 | AF4: 2021-04-01 | AG4: 2021-10-01 | AH4: 2022-04-01 | AI4: 2022-10-01 | AJ4: 2023-04-01 | AK4: 2023-10-01 | AL4: 2024-04-01 | AM4: 2024-10-01 | AN4: 2025-04-01 | AO4: 2025-10-01 | AP4: 2026-04-01 | AQ4: 2026-10-01 | AR4: 2027-04-01 | AS4: 2027-10-01 | AT4: 2028-04-01 | AU4: 2028-10-01 | AV4: 2029-04-01 | AW4: 2029-10-01 | AX4: 2030-04-01 | AY4: 2030-10-01 | AZ4: 2031-04-01 | BA4: 2031-10-01 | BB4: 2032-04-01 | BC4: 2032-10-01 | BD4: 2033-04-01 | BE4: 2033-10-01 | BF4: 2034-04-01 | BG4: 2034-10-01 | BH4: 2035-04-01 | BI4: 2035-10-01 | BJ4: 2036-04-01 | BK4: 2036-10-01 | BL4: 2037-04-01 | BM4: 2037-10-01 | BN4: 2038-04-01 | BO4: 2038-10-01 | BP4: 2039-04-01 | BQ4: 2039-10-01 | BR4: 2040-04-01 | BS4: 2040-10-01 | BT4: 2041-04-01 | BU4: 2041-10-01 | BV4: 2042-04-01 | BW4: =BV5+1 -> 2042-10-01 | BX4: 2043-04-01 | BY4: 2043-10-01 | BZ4: 2044-04-01 | CA4: 2044-10-01 | CB4: 2045-04-01 | CC4: 2045-10-01 | CD4: 2046-04-01 | CE4: 2046-10-01 | CF4: 2047-04-01 | CG4: 2047-10-01 | CH4: 2048-04-01 | CI4: 2048-10-01 | CJ4: 2049-04-01 | CK4: 2049-10-01 | CL4: 2050-04-01 | CM4: 2050-10-01 | CN4: 2051-04-01 | CO4: 2051-10-01 | CP4: 2052-04-01 | CQ4: 2052-10-01 | CR4: 2053-04-01 | CS4: 2053-10-01 | CT4: 2054-04-01 | CU4: 2054-10-01 | CV4: 2055-04-01 | CW4: 2055-10-01 | CX4: 2056-04-01 | CY4: 2056-10-01 | CZ4: 2057-04-01 | DA4: 2057-10-01 | DB4: 2058-04-01 | DC4: 2058-10-01 | DD4: 2059-04-01 | DE4: 2059-10-01 | DF4: 2060-04-01 | DG4: 2060-10-01 | DH4: 2061-04-01 | DI4: 2061-10-01 | DJ4: 2062-04-01 | DK4: 2062-10-01 | DL4: 2063-04-01 | DM4: 2063-10-01 | DN4: 2064-04-01 | DO4: 2064-10-01 | DP4: 2065-04-01 | DQ4: 2065-10-01 | DR4: 2066-04-01 | DS4: 2066-10-01 | DT4: 2067-04-01 | DU4: 2067-10-01 | DV4: 2068-04-01 | DW4: 2068-10-01 | DX4: 2069-04-01 | DY4: 2069-10-01 | DZ4: 2070-04-01 | EA4: 2070-10-01 | EB4: 2071-04-01 | EC4: 2071-10-01 | ED4: 2072-04-01 | EE4: 2072-10-01 | EF4: 2073-04-01 | EG4: 2073-10-01 | EH4: 2074-04-01 | EI4: =EH5+1 -> 2074-10-01 | EJ4: 2075-04-01 | EK4: 2075-10-01 | EL4: 2076-04-01 | EM4: 2076-10-01 | EN4: 2077-04-01 | EO4: 2077-10-01 | EP4: 2078-04-01 | EQ4: 2078-10-01 | ER4: 2079-04-01 | ES4: 2079-10-01 | ET4: 2080-04-01 | EU4: 2080-10-01 | EV4: 2081-04-01 | EW4: 2081-10-01 | EX4: 2082-04-01 | EY4: 2082-10-01 | EZ4: 2083-04-01
B5: End of Period | E5: Debt IRR | F5: =E464 -> 0.03764271438 | I5: =F12-1 -> 2018-12-31 | J5: =EDATE(J4,J3)-1 -> 2019-01-31 | K5: =EDATE(K4,K3)-1 -> 2019-02-28 | L5: 2019-03-31 | M5: 2019-04-30 | N5: 2019-05-31 | O5: 2019-06-30 | P5: 2019-07-31 | Q5: 2019-08-31 | R5: 2019-09-30 | S5: 2019-10-31 | T5: 2019-11-30 | U5: 2019-12-31 | V5: 2020-01-31 | W5: 2020-02-29 | X5: 2020-03-31 | Y5: 2020-04-30 | Z5: 2020-05-31 | AA5: 2020-06-30 | AB5: 2020-07-31 | AC5: 2020-08-31 | AD5: 2020-09-30 | AE5: 2021-03-31 | AF5: 2021-09-30 | AG5: 2022-03-31 | AH5: 2022-09-30 | AI5: 2023-03-31 | AJ5: 2023-09-30 | AK5: 2024-03-31 | AL5: 2024-09-30 | AM5: 2025-03-31 | AN5: 2025-09-30 | AO5: 2026-03-31 | AP5: 2026-09-30 | AQ5: 2027-03-31 | AR5: 2027-09-30 | AS5: 2028-03-31 | AT5: 2028-09-30 | AU5: 2029-03-31 | AV5: 2029-09-30 | AW5: 2030-03-31 | AX5: 2030-09-30 | AY5: 2031-03-31 | AZ5: 2031-09-30 | BA5: 2032-03-31 | BB5: 2032-09-30 | BC5: 2033-03-31 | BD5: 2033-09-30 | BE5: 2034-03-31 | BF5: 2034-09-30 | BG5: 2035-03-31 | BH5: 2035-09-30 | BI5: 2036-03-31 | BJ5: 2036-09-30 | BK5: 2037-03-31 | BL5: 2037-09-30 | BM5: 2038-03-31 | BN5: 2038-09-30 | BO5: 2039-03-31 | BP5: 2039-09-30 | BQ5: 2040-03-31 | BR5: 2040-09-30 | BS5: 2041-03-31 | BT5: 2041-09-30 | BU5: 2042-03-31 | BV5: 2042-09-30 | BW5: =EDATE(BW4,BW3)-1 -> 2043-03-31 | BX5: 2043-09-30 | BY5: 2044-03-31 | BZ5: 2044-09-30 | CA5: 2045-03-31 | CB5: 2045-09-30 | CC5: 2046-03-31 | CD5: 2046-09-30 | CE5: 2047-03-31 | CF5: 2047-09-30 | CG5: 2048-03-31 | CH5: 2048-09-30 | CI5: 2049-03-31 | CJ5: 2049-09-30 | CK5: 2050-03-31 | CL5: 2050-09-30 | CM5: 2051-03-31 | CN5: 2051-09-30 | CO5: 2052-03-31 | CP5: 2052-09-30 | CQ5: 2053-03-31 | CR5: 2053-09-30 | CS5: 2054-03-31 | CT5: 2054-09-30 | CU5: 2055-03-31 | CV5: 2055-09-30 | CW5: 2056-03-31 | CX5: 2056-09-30 | CY5: 2057-03-31 | CZ5: 2057-09-30 | DA5: 2058-03-31 | DB5: 2058-09-30 | DC5: 2059-03-31 | DD5: 2059-09-30 | DE5: 2060-03-31 | DF5: 2060-09-30 | DG5: 2061-03-31 | DH5: 2061-09-30 | DI5: 2062-03-31 | DJ5: 2062-09-30 | DK5: 2063-03-31 | DL5: 2063-09-30 | DM5: 2064-03-31 | DN5: 2064-09-30 | DO5: 2065-03-31 | DP5: 2065-09-30 | DQ5: 2066-03-31 | DR5: 2066-09-30 | DS5: 2067-03-31 | DT5: 2067-09-30 | DU5: 2068-03-31 | DV5: 2068-09-30 | DW5: 2069-03-31 | DX5: 2069-09-30 | DY5: 2070-03-31 | DZ5: 2070-09-30 | EA5: 2071-03-31 | EB5: 2071-09-30 | EC5: 2072-03-31 | ED5: 2072-09-30 | EE5: 2073-03-31 | EF5: 2073-09-30 | EG5: 2074-03-31 | EH5: 2074-09-30 | EI5: =EDATE(EI4,EI3)-1 -> 2075-03-31 | EJ5: 2075-09-30 | EK5: 2076-03-31 | EL5: 2076-09-30 | EM5: 2077-03-31 | EN5: 2077-09-30 | EO5: 2078-03-31 | EP5: 2078-09-30 | EQ5: 2079-03-31 | ER5: 2079-09-30 | ES5: 2080-03-31 | ET5: 2080-09-30 | EU5: 2081-03-31 | EV5: 2081-09-30 | EW5: 2082-03-31 | EX5: 2082-09-30 | EY5: 2083-03-31 | EZ5: 2083-09-30
B6: Construction
B7: Construction | E7: Project IRR | F7: =F130 -> 0.06354061067 | G7: =F12 -> 2019-01-01 | H7: =F14 -> 2020-10-01 | J7: =J4<$H$7 -> TRUE | K7: =K4<$H$7 -> TRUE | L7: TRUE | M7: TRUE | N7: TRUE | O7: TRUE | P7: TRUE | Q7: TRUE | R7: TRUE | S7: TRUE | T7: TRUE | U7: TRUE | V7: TRUE | W7: TRUE | X7: TRUE | Y7: TRUE | Z7: TRUE | AA7: TRUE | AB7: TRUE | AC7: TRUE | AD7: TRUE | AE7: FALSE | AF7: FALSE | AG7: FALSE | AH7: FALSE | AI7: =AI4<$H$7 -> FALSE | AJ7: FALSE | AK7: FALSE | AL7: FALSE | AM7: FALSE | AN7: FALSE | AO7: FALSE | AP7: FALSE | AQ7: FALSE | AR7: FALSE | AS7: FALSE | AT7: FALSE | AU7: FALSE | AV7: FALSE | AW7: FALSE | AX7: FALSE | AY7: FALSE | AZ7: FALSE | BA7: FALSE | BB7: FALSE | BC7: FALSE | BD7: FALSE | BE7: FALSE | BF7: FALSE | BG7: FALSE | BH7: FALSE | BI7: FALSE | BJ7: FALSE | BK7: FALSE | BL7: FALSE | BM7: FALSE | BN7: FALSE | BO7: FALSE | BP7: FALSE | BQ7: FALSE | BR7: FALSE | BS7: FALSE | BT7: FALSE | BU7: FALSE | BV7: FALSE | BW7: FALSE | BX7: FALSE | BY7: FALSE | BZ7: FALSE | CA7: FALSE | CB7: FALSE | CC7: FALSE | CD7: FALSE | CE7: FALSE | CF7: FALSE | CG7: FALSE | CH7: FALSE | CI7: FALSE | CJ7: FALSE | CK7: FALSE | CL7: FALSE | CM7: FALSE | CN7: FALSE | CO7: FALSE | CP7: FALSE | CQ7: FALSE | CR7: FALSE | CS7: FALSE | CT7: FALSE | CU7: =CU4<$H$7 -> FALSE | CV7: FALSE | CW7: FALSE | CX7: FALSE | CY7: FALSE | CZ7: FALSE | DA7: FALSE | DB7: FALSE | DC7: FALSE | DD7: FALSE | DE7: FALSE | DF7: FALSE | DG7: FALSE | DH7: FALSE | DI7: FALSE | DJ7: FALSE | DK7: FALSE | DL7: FALSE | DM7: FALSE | DN7: FALSE | DO7: FALSE | DP7: FALSE | DQ7: FALSE | DR7: FALSE | DS7: FALSE | DT7: FALSE | DU7: FALSE | DV7: FALSE | DW7: FALSE | DX7: FALSE | DY7: FALSE | DZ7: FALSE | EA7: FALSE | EB7: FALSE | EC7: FALSE | ED7: FALSE | EE7: FALSE | EF7: FALSE | EG7: FALSE | EH7: FALSE | EI7: FALSE | EJ7: FALSE | EK7: FALSE | EL7: FALSE | EM7: FALSE | EN7: FALSE | EO7: FALSE | EP7: FALSE | EQ7: FALSE | ER7: FALSE | ES7: FALSE | ET7: FALSE | EU7: FALSE | EV7: FALSE | EW7: FALSE | EX7: FALSE | EY7: FALSE | EZ7: FALSE
B8: Operation | E8: Pre-tax IRR | F8: =F121 -> 0.0760197252 | G8: =F14 -> 2020-10-01 | H8: =F16 -> 2055-10-01 | J8: =AND(NOT(J7),J4<$H$8) -> FALSE | K8: =AND(NOT(K7),K4<$H$8) -> FALSE | L8: FALSE | M8: FALSE | N8: FALSE | O8: FALSE | P8: FALSE | Q8: FALSE | R8: FALSE | S8: FALSE | T8: FALSE | U8: FALSE | V8: FALSE | W8: FALSE | X8: FALSE | Y8: FALSE | Z8: FALSE | AA8: FALSE | AB8: FALSE | AC8: FALSE | AD8: FALSE | AE8: TRUE | AF8: TRUE | AG8: TRUE | AH8: TRUE | AI8: =AND(NOT(AI7),AI4<$H$8) -> TRUE | AJ8: TRUE | AK8: TRUE | AL8: TRUE | AM8: TRUE | AN8: TRUE | AO8: TRUE | AP8: TRUE | AQ8: TRUE | AR8: TRUE | AS8: TRUE | AT8: TRUE | AU8: TRUE | AV8: TRUE | AW8: TRUE | AX8: TRUE | AY8: TRUE | AZ8: TRUE | BA8: TRUE | BB8: TRUE | BC8: TRUE | BD8: TRUE | BE8: TRUE | BF8: TRUE | BG8: TRUE | BH8: TRUE | BI8: TRUE | BJ8: TRUE | BK8: TRUE | BL8: TRUE | BM8: TRUE | BN8: TRUE | BO8: TRUE | BP8: TRUE | BQ8: TRUE | BR8: TRUE | BS8: TRUE | BT8: TRUE | BU8: TRUE | BV8: TRUE | BW8: TRUE | BX8: TRUE | BY8: TRUE | BZ8: TRUE | CA8: TRUE | CB8: TRUE | CC8: TRUE | CD8: TRUE | CE8: TRUE | CF8: TRUE | CG8: TRUE | CH8: TRUE | CI8: TRUE | CJ8: TRUE | CK8: TRUE | CL8: TRUE | CM8: TRUE | CN8: TRUE | CO8: TRUE | CP8: TRUE | CQ8: TRUE | CR8: TRUE | CS8: TRUE | CT8: TRUE | CU8: =AND(NOT(CU7),CU4<$H$8) -> TRUE | CV8: TRUE | CW8: FALSE | CX8: FALSE | CY8: FALSE | CZ8: FALSE | DA8: FALSE | DB8: FALSE | DC8: FALSE | DD8: FALSE | DE8: FALSE | DF8: FALSE | DG8: FALSE | DH8: FALSE | DI8: FALSE | DJ8: FALSE | DK8: FALSE | DL8: FALSE | DM8: FALSE | DN8: FALSE | DO8: FALSE | DP8: FALSE | DQ8: FALSE | DR8: FALSE | DS8: FALSE | DT8: FALSE | DU8: FALSE | DV8: FALSE | DW8: FALSE | DX8: FALSE | DY8: FALSE | DZ8: FALSE | EA8: FALSE | EB8: FALSE | EC8: FALSE | ED8: FALSE | EE8: FALSE | EF8: FALSE | EG8: FALSE | EH8: FALSE | EI8: FALSE | EJ8: FALSE | EK8: FALSE | EL8: FALSE | EM8: FALSE | EN8: FALSE | EO8: FALSE | EP8: FALSE | EQ8: FALSE | ER8: FALSE | ES8: FALSE | ET8: FALSE | EU8: FALSE | EV8: FALSE | EW8: FALSE | EX8: FALSE | EY8: FALSE | EZ8: FALSE
A10: Assumptions
B11: Timing
C12: Financial Close | E12: Date | F12: 2019-01-01
C13: Construction | E13: Years | F13: =G13 -> 21 | G13: 21
C14: COD | E14: Date | F14: =EDATE(F12,F13*$G$3) -> 2020-10-01
C15: Operations | E15: Years | F15: =G15 -> 35 | G15: 35
C16: Decommissioning | E16: Date | F16: =EDATE(F14,F15*12) -> 2055-10-01
B18: Operating
C19: Apply P50 Case | E19: Euro | F19: TRUE
C20: Apply P99 Case | E20: Euro | F20: =NOT(F19) -> FALSE
C22: EPC Cost/kW | E22: Euro/kW | F22: ='Inputs and Operations'!F25 -> 1200
C23: Capital Expenditure | E23: Euro | F23: ='Inputs and Operations'!F75 -> 144000 | G23: 1100
C24: S-Cruve Mean | E24: Periods | F24: =F13/2.5 -> 8.4 | G24: Euro
C25: S-Cruve Standard Deviation | E25: Periods | F25: =F13/4 -> 5.25
C27: Development Fee | E27: % | F27: =G27/100 -> 0.1 | G27: 10
C28: Target IRR | E28: % | F28: =G28/100 -> 0.1 | G28: 10
C30: Tax Rate | E30: Percent | F30: 0.21
A32: Financing Assumptions
B33: Senior Financing
C34: Debt Size
D35: DSCR - P50 | E35: Times | F35: =G35/100 -> 1.27 | G35: 127
D36: DSCR - P99 | E36: Times | F36: =G36/100 -> 1 | G36: 100
D37: DSCR Applied | F37: =SUMPRODUCT(F19:F20*F35:F36) -> 1.27
D39: Maximum Debt to Capital | E39: % | F39: =G39/100 -> 0.79 | G39: 79
D41: Up-Front Equity | E41: Percent | F41: =G41/100 -> 1 | G41: 100
D43: Tenure - Years | E43: Years | F43: =G43 -> 19 | G43: 19
D44: Tenure - Periods | E44: Periods | F44: =F43*12/H3 -> 38
D45: Repayment Date | E45: Date | F45: =EDATE(F14,F43*12) -> 2039-10-01
F47: =F12 -> 2019-01-01 | G47: =F14 -> 2020-10-01 | H47: =EDATE(G47,4*12) -> 2024-10-01 | I47: =EDATE(H47,4*12) -> 2028-10-01 | J47: 2032-10-01
D48: Annual Base Rate | E48: % p.a. | F48: 0.015 | G48: 0.015 | H48: 0.015 | I48: 0.015 | J48: 0.015
D49: Annual Credit Spread | E49: % p.a. | F49: =E50/1000 -> 0.015 | G49: =F49+0.25% -> 0.0175 | H49: =G49+0.25% -> 0.02 | I49: 0.0225 | J49: =I49+0.25% -> 0.025
D50: Total | E50: 15 | F50: =F48+F49 -> 0.03 | G50: =G48+G49 -> 0.0325 | H50: 0.035 | I50: 0.0375 | J50: 0.04
D52: Commitment Fee | E52: % p.a. | F52: 0.01
D53: Up-Front Fee | E53: % | F53: 0.015
D55: DSRA Percent | E55: Percent | F55: 0
D56: Cash Sweep Percent | E56: Percent | F56: 0
B58: Mezzanine Financing
C59: Debt Size
D60: Total DSCR - P50 | F60: 1.2
D61: Debt to Capital | F61: 0
D63: Tenor | E63: Years | F63: =G63 -> 18 | G63: 18
F64: 1 | G64: 5 | H64: 9 | I64: 14
D65: Interest Rate | E65: % p.a. | F65: 0.05 | G65: 0.05 | H65: 0.05 | I65: 0.05
D67: Cash Sweep | E67: % | F67: 0
B69: EBL Loan
C70: Include EBL | E70: Switch | F70: FALSE
C71: Interest Rate on EBL | E71: % p.a. | F71: 0.015
A73: Re-financing Assumptions
B74: Re-financing Issue Number 1
C75: Re-financing Period After COD (Year) | E75: Year | F75: =[0]!refi1 -> 36 | G75: 36
C76: Re-financing Period After COD (Period) | E76: Period | F76: =F75*12/$H$3 -> 72
C77: Re-finance Date | F77: =EDATE($F$14,F75*12) -> 2056-10-01
C78: Re-financing DSCR - Sizing | F78: 1.25
C79: Re-financing Tenor - Tail (Years) | F79: 2
C80: Re-financing Tenor - Tail (Periods) | F80: =F79*12/$H$3 -> 4
C81: Maturity of Re-financing | F81: =EDATE($F$16,-F80*$H$3) -> 2053-10-01
C82: Re-financing Term (Years) | F82: =DAYS360(F77,F81)/360 -> -3
C83: Re-financing Term (Periods) | F83: =F82*12/H3 -> -6
C84: Re-financing Interest Rate | F84: 0.035
B86: Re-financing Issue Number 2
C87: Re-financing Period After COD (Year) | F87: =G87 -> 36 | G87: 36
C88: Re-financing Period After COD (Period) | E88: Period | F88: =F87*12/$H$3 -> 72
C89: Re-finance Date | F89: =EDATE($F$14,F88*$H$3) -> 2056-10-01
C90: Re-financing DSCR - Sizing | F90: 1.25
C91: Re-financing Tenor - Tail (Years) | F91: 1
C92: Re-financing Tenor - Tail (Periods) | F92: =F91*12/$H$3 -> 2
C93: Maturity of Re-financing | F93: =EDATE($F$16,-F92*$H$3) -> 2054-10-01
C94: Re-financing Term (Years) | F94: =DAYS360(F89,F93)/360 -> -2
C95: Re-financing Term (Periods) | F95: =F94*12/$H$3 -> -4
C96: Re-financing Interest Rate | F96: 0.03
B98: Re-financing Issue Number 3
C99: Re-financing Period After COD (Year) | F99: =G99 -> 36 | G99: 36
C100: Re-financing Period After COD | F100: =F99*12/H3 -> 72
C101: Re-finance Date | F101: =EDATE($F$14,F100*$H$3) -> 2056-10-01
C102: Re-financing DSCR - Sizing | F102: 1.2
C103: Re-financing Tenor - Tail (Years) | F103: 0
C104: Re-financing Tenor - Tail (Periods) | F104: =F103*12/$H$3 -> 0
C105: Maturity of Re-financing | F105: =EDATE($F$16,-F104*$H$3) -> 2055-10-01
C106: Re-financing Term (Years) | F106: =DAYS360(F101,F105)/360 -> -1
C107: Re-financing Term (Periods) | F107: =F106*12/$H$3 -> -2
C108: Re-financing Interest Rate | F108: 0.029
A110: Operations
B111: Operation Period | J111: =I111+J8 -> 0 | K111: 0 | L111: 0 | M111: 0 | N111: 0 | O111: 0 | P111: 0 | Q111: 0 | R111: 0 | S111: 0 | T111: 0 | U111: 0 | V111: 0 | W111: 0 | X111: 0 | Y111: 0 | Z111: 0 | AA111: 0 | AB111: 0 | AC111: 0 | AD111: 0 | AE111: 1 | AF111: 2 | AG111: 3 | AH111: 4 | AI111: 5 | AJ111: 6 | AK111: 7 | AL111: 8 | AM111: 9 | AN111: 10 | AO111: 11 | AP111: =AO111+AP8 -> 12 | AQ111: 13 | AR111: 14 | AS111: 15 | AT111: 16 | AU111: 17 | AV111: 18 | AW111: 19 | AX111: 20 | AY111: 21 | AZ111: 22 | BA111: 23 | BB111: 24 | BC111: 25 | BD111: 26 | BE111: 27 | BF111: 28 | BG111: 29 | BH111: 30 | BI111: 31 | BJ111: 32 | BK111: 33 | BL111: 34 | BM111: 35 | BN111: 36 | BO111: 37 | BP111: 38 | BQ111: 39 | BR111: 40 | BS111: 41 | BT111: 42 | BU111: 43 | BV111: =BU111+BV8 -> 44 | BW111: 45 | BX111: 46 | BY111: 47 | BZ111: 48 | CA111: 49 | CB111: 50 | CC111: 51 | CD111: 52 | CE111: 53 | CF111: 54 | CG111: 55 | CH111: 56 | CI111: 57 | CJ111: 58 | CK111: 59 | CL111: 60 | CM111: 61 | CN111: 62 | CO111: 63 | CP111: 64 | CQ111: 65 | CR111: 66 | CS111: 67 | CT111: 68 | CU111: 69 | CV111: 70 | CW111: 70 | CX111: 70 | CY111: 70 | CZ111: 70 | DA111: 70 | DB111: =DA111+DB8 -> 70 | DC111: 70 | DD111: 70 | DE111: 70 | DF111: 70 | DG111: 70 | DH111: 70 | DI111: 70 | DJ111: 70 | DK111: 70 | DL111: 70 | DM111: 70 | DN111: 70 | DO111: 70 | DP111: 70 | DQ111: 70 | DR111: 70 | DS111: 70 | DT111: 70 | DU111: 70 | DV111: 70 | DW111: 70 | DX111: 70 | DY111: 70 | DZ111: 70 | EA111: 70 | EB111: 70 | EC111: 70 | ED111: 70 | EE111: 70 | EF111: 70 | EG111: 70 | EH111: =EG111+EH8 -> 70 | EI111: 70 | EJ111: 70 | EK111: 70 | EL111: 70 | EM111: 70 | EN111: 70 | EO111: 70 | EP111: 70 | EQ111: 70 | ER111: 70 | ES111: 70 | ET111: 70 | EU111: 70 | EV111: 70 | EW111: 70 | EX111: 70 | EY111: 70 | EZ111: 70
C112: EBITDA - P50 | J112: =LOOKUP(J111,'Inputs and Operations'!1:1,'Inputs and Operations'!119:119) -> 0 | K112: =LOOKUP(K111,'Inputs and Operations'!1:1,'Inputs and Operations'!119:119) -> 0 | L112: =LOOKUP(L111,'Inputs and Operations'!1:1,'Inputs and Operations'!119:119) -> 0 | M112: =LOOKUP(M111,'Inputs and Operations'!1:1,'Inputs and Operations'!119:119) -> 0 | N112: =LOOKUP(N111,'Inputs and Operations'!1:1,'Inputs and Operations'!119:119) -> 0 | O112: =LOOKUP(O111,'Inputs and Operations'!1:1,'Inputs and Operations'!119:119) -> 0 | P112: =LOOKUP(P111,'Inputs and Operations'!1:1,'Inputs and Operations'!119:119) -> 0 | Q112: =LOOKUP(Q111,'Inputs and Operations'!1:1,'Inputs and Operations'!119:119) -> 0 | R112: =LOOKUP(R111,'Inputs and Operations'!1:1,'Inputs and Operations'!119:119) -> 0 | S112: =LOOKUP(S111,'Inputs and Operations'!1:1,'Inputs and Operations'!119:119) -> 0 | T112: =LOOKUP(T111,'Inputs and Operations'!1:1,'Inputs and Operations'!119:119) -> 0 | U112: =LOOKUP(U111,'Inputs and Operations'!1:1,'Inputs and Operations'!119:119) -> 0 | V112: =LOOKUP(V111,'Inputs and Operations'!1:1,'Inputs and Operations'!119:119) -> 0 | W112: =LOOKUP(W111,'Inputs and Operations'!1:1,'Inputs and Operations'!119:119) -> 0 | X112: =LOOKUP(X111,'Inputs and Operations'!1:1,'Inputs and Operations'!119:119) -> 0 | Y112: =LOOKUP(Y111,'Inputs and Operations'!1:1,'Inputs and Operations'!119:119) -> 0 | Z112: =LOOKUP(Z111,'Inputs and Operations'!1:1,'Inputs and Operations'!119:119) -> 0 | AA112: =LOOKUP(AA111,'Inputs and Operations'!1:1,'Inputs and Operations'!119:119) -> 0 | AB112: =LOOKUP(AB111,'Inputs and Operations'!1:1,'Inputs and Operations'!119:119) -> 0 | AC112: =LOOKUP(AC111,'Inputs and Operations'!1:1,'Inputs and Operations'!119:119) -> 0 | AD112: =LOOKUP(AD111,'Inputs and Operations'!1:1,'Inputs and Operations'!119:119) -> 0 | AE112: =LOOKUP(AE111,'Inputs and Operations'!1:1,'Inputs and Operations'!119:119) -> 0 | AF112: =LOOKUP(AF111,'Inputs and Operations'!1:1,'Inputs and Operations'!119:119) -> 5281.648658 | AG112: =LOOKUP(AG111,'Inputs and Operations'!1:1,'Inputs and Operations'!119:119) -> 5453.059266 | AH112: =LOOKUP(AH111,'Inputs and Operations'!1:1,'Inputs and Operations'!119:119) -> 5387.281632 | AI112: =LOOKUP(AI111,'Inputs and Operations'!1:1,'Inputs and Operations'!119:119) -> 5562.120452 | AJ112: =LOOKUP(AJ111,'Inputs and Operations'!1:1,'Inputs and Operations'!119:119) -> 5495.027264 | AK112: =LOOKUP(AK111,'Inputs and Operations'!1:1,'Inputs and Operations'!119:119) -> 5673.362861 | AL112: =LOOKUP(AL111,'Inputs and Operations'!1:1,'Inputs and Operations'!119:119) -> 5646.557081 | AM112: =LOOKUP(AM111,'Inputs and Operations'!1:1,'Inputs and Operations'!119:119) -> 5786.830118 | AN112: =LOOKUP(AN111,'Inputs and Operations'!1:1,'Inputs and Operations'!119:119) -> 5717.026366 | AO112: =LOOKUP(AO111,'Inputs and Operations'!1:1,'Inputs and Operations'!119:119) -> 5902.56672 | AP112: =LOOKUP(AP111,'Inputs and Operations'!1:1,'Inputs and Operations'!119:119) -> 5831.366893 | AQ112: =LOOKUP(AQ111,'Inputs and Operations'!1:1,'Inputs and Operations'!119:119) -> 6020.618055 | AR112: =LOOKUP(AR111,'Inputs and Operations'!1:1,'Inputs and Operations'!119:119) -> 5947.994231 | AS112: =LOOKUP(AS111,'Inputs and Operations'!1:1,'Inputs and Operations'!119:119) -> 6141.030416 | AT112: =LOOKUP(AT111,'Inputs and Operations'!1:1,'Inputs and Operations'!119:119) -> 6112.014977 | AU112: =LOOKUP(AU111,'Inputs and Operations'!1:1,'Inputs and Operations'!119:119) -> 6263.851024 | AV112: =LOOKUP(AV111,'Inputs and Operations'!1:1,'Inputs and Operations'!119:119) -> 6188.293198 | AW112: =LOOKUP(AW111,'Inputs and Operations'!1:1,'Inputs and Operations'!119:119) -> 6389.128045 | AX112: =LOOKUP(AX111,'Inputs and Operations'!1:1,'Inputs and Operations'!119:119) -> 6312.059062 | AY112: =LOOKUP(AY111,'Inputs and Operations'!1:1,'Inputs and Operations'!119:119) -> 6516.910606 | AZ112: =LOOKUP(AZ111,'Inputs and Operations'!1:1,'Inputs and Operations'!119:119) -> 6438.300243 | BA112: =LOOKUP(BA111,'Inputs and Operations'!1:1,'Inputs and Operations'!119:119) -> 6647.248818 | BB112: =LOOKUP(BB111,'Inputs and Operations'!1:1,'Inputs and Operations'!119:119) -> 6615.841574 | BC112: =LOOKUP(BC111,'Inputs and Operations'!1:1,'Inputs and Operations'!119:119) -> 6780.193794 | BD112: =LOOKUP(BD111,'Inputs and Operations'!1:1,'Inputs and Operations'!119:119) -> 6698.407573 | BE112: =LOOKUP(BE111,'Inputs and Operations'!1:1,'Inputs and Operations'!119:119) -> 6915.79767 | BF112: =LOOKUP(BF111,'Inputs and Operations'!1:1,'Inputs and Operations'!119:119) -> 6832.375724 | BG112: =LOOKUP(BG111,'Inputs and Operations'!1:1,'Inputs and Operations'!119:119) -> 7054.113623 | BH112: =LOOKUP(BH111,'Inputs and Operations'!1:1,'Inputs and Operations'!119:119) -> 6969.023239 | BI112: =LOOKUP(BI111,'Inputs and Operations'!1:1,'Inputs and Operations'!119:119) -> 7195.195896 | BJ112: =LOOKUP(BJ111,'Inputs and Operations'!1:1,'Inputs and Operations'!119:119) -> 7161.199685 | BK112: =LOOKUP(BK111,'Inputs and Operations'!1:1,'Inputs and Operations'!119:119) -> 7339.099814 | BL112: =LOOKUP(BL111,'Inputs and Operations'!1:1,'Inputs and Operations'!119:119) -> 7250.571777 | BM112: =LOOKUP(BM111,'Inputs and Operations'!1:1,'Inputs and Operations'!119:119) -> 7485.88181 | BN112: =LOOKUP(BN111,'Inputs and Operations'!1:1,'Inputs and Operations'!119:119) -> 7395.583213 | BO112: =LOOKUP(BO111,'Inputs and Operations'!1:1,'Inputs and Operations'!119:119) -> 7635.599446 | BP112: =LOOKUP(BP111,'Inputs and Operations'!1:1,'Inputs and Operations'!119:119) -> 7543.494877 | BQ112: =LOOKUP(BQ111,'Inputs and Operations'!1:1,'Inputs and Operations'!119:119) -> 7788.311435 | BR112: =LOOKUP(BR111,'Inputs and Operations'!1:1,'Inputs and Operations'!119:119) -> 7751.512843 | BS112: =LOOKUP(BS111,'Inputs and Operations'!1:1,'Inputs and Operations'!119:119) -> 7944.077664 | BT112: =LOOKUP(BT111,'Inputs and Operations'!1:1,'Inputs and Operations'!119:119) -> 7848.25207 | BU112: =LOOKUP(BU111,'Inputs and Operations'!1:1,'Inputs and Operations'!119:119) -> 8102.959217 | BV112: =LOOKUP(BV111,'Inputs and Operations'!1:1,'Inputs and Operations'!119:119) -> 8005.217112 | BW112: =LOOKUP(BW111,'Inputs and Operations'!1:1,'Inputs and Operations'!119:119) -> 8265.018401 | BX112: =LOOKUP(BX111,'Inputs and Operations'!1:1,'Inputs and Operations'!119:119) -> 8165.321454 | BY112: =LOOKUP(BY111,'Inputs and Operations'!1:1,'Inputs and Operations'!119:119) -> 8430.318769 | BZ112: =LOOKUP(BZ111,'Inputs and Operations'!1:1,'Inputs and Operations'!119:119) -> 8390.48679 | CA112: =LOOKUP(CA111,'Inputs and Operations'!1:1,'Inputs and Operations'!119:119) -> 8598.925145 | CB112: =LOOKUP(CB111,'Inputs and Operations'!1:1,'Inputs and Operations'!119:119) -> 8495.200441 | CC112: =LOOKUP(CC111,'Inputs and Operations'!1:1,'Inputs and Operations'!119:119) -> 8770.903648 | CD112: =LOOKUP(CD111,'Inputs and Operations'!1:1,'Inputs and Operations'!119:119) -> 8665.10445 | CE112: =LOOKUP(CE111,'Inputs and Operations'!1:1,'Inputs and Operations'!119:119) -> 8946.321721 | CF112: =LOOKUP(CF111,'Inputs and Operations'!1:1,'Inputs and Operations'!119:119) -> 8838.406539 | CG112: =LOOKUP(CG111,'Inputs and Operations'!1:1,'Inputs and Operations'!119:119) -> 9125.248155 | CH112: =LOOKUP(CH111,'Inputs and Operations'!1:1,'Inputs and Operations'!119:119) -> 9082.13274 | CI112: =LOOKUP(CI111,'Inputs and Operations'!1:1,'Inputs and Operations'!119:119) -> 9307.753118 | CJ112: =LOOKUP(CJ111,'Inputs and Operations'!1:1,'Inputs and Operations'!119:119) -> 9195.478163 | CK112: =LOOKUP(CK111,'Inputs and Operations'!1:1,'Inputs and Operations'!119:119) -> 9493.908181 | CL112: =LOOKUP(CL111,'Inputs and Operations'!1:1,'Inputs and Operations'!119:119) -> 9379.387726 | CM112: =LOOKUP(CM111,'Inputs and Operations'!1:1,'Inputs and Operations'!119:119) -> 9683.786344 | CN112: =LOOKUP(CN111,'Inputs and Operations'!1:1,'Inputs and Operations'!119:119) -> 0 | CO112: =LOOKUP(CO111,'Inputs and Operations'!1:1,'Inputs and Operations'!119:119) -> 0 | CP112: =LOOKUP(CP111,'Inputs and Operations'!1:1,'Inputs and Operations'!119:119) -> 0 | CQ112: =LOOKUP(CQ111,'Inputs and Operations'!1:1,'Inputs and Operations'!119:119) -> 0 | CR112: =LOOKUP(CR111,'Inputs and Operations'!1:1,'Inputs and Operations'!119:119) -> 0 | CS112: =LOOKUP(CS111,'Inputs and Operations'!1:1,'Inputs and Operations'!119:119) -> 0 | CT112: =LOOKUP(CT111,'Inputs and Operations'!1:1,'Inputs and Operations'!119:119) -> 0 | CU112: =LOOKUP(CU111,'Inputs and Operations'!1:1,'Inputs and Operations'!119:119) -> 0 | CV112: =LOOKUP(CV111,'Inputs and Operations'!1:1,'Inputs and Operations'!119:119) -> 0 | CW112: =LOOKUP(CW111,'Inputs and Operations'!1:1,'Inputs and Operations'!119:119) -> 0 | CX112: =LOOKUP(CX111,'Inputs and Operations'!1:1,'Inputs and Operations'!119:119) -> 0 | CY112: =LOOKUP(CY111,'Inputs and Operations'!1:1,'Inputs and Operations'!119:119) -> 0 | CZ112: =LOOKUP(CZ111,'Inputs and Operations'!1:1,'Inputs and Operations'!119:119) -> 0 | DA112: =LOOKUP(DA111,'Inputs and Operations'!1:1,'Inputs and Operations'!119:119) -> 0 | DB112: =LOOKUP(DB111,'Inputs and Operations'!1:1,'Inputs and Operations'!119:119) -> 0 | DC112: =LOOKUP(DC111,'Inputs and Operations'!1:1,'Inputs and Operations'!119:119) -> 0 | DD112: =LOOKUP(DD111,'Inputs and Operations'!1:1,'Inputs and Operations'!119:119) -> 0 | DE112: =LOOKUP(DE111,'Inputs and Operations'!1:1,'Inputs and Operations'!119:119) -> 0 | DF112: =LOOKUP(DF111,'Inputs and Operations'!1:1,'Inputs and Operations'!119:119) -> 0 | DG112: =LOOKUP(DG111,'Inputs and Operations'!1:1,'Inputs and Operations'!119:119) -> 0 | DH112: =LOOKUP(DH111,'Inputs and Operations'!1:1,'Inputs and Operations'!119:119) -> 0 | DI112: =LOOKUP(DI111,'Inputs and Operations'!1:1,'Inputs and Operations'!119:119) -> 0 | DJ112: =LOOKUP(DJ111,'Inputs and Operations'!1:1,'Inputs and Operations'!119:119) -> 0 | DK112: =LOOKUP(DK111,'Inputs and Operations'!1:1,'Inputs and Operations'!119:119) -> 0 | DL112: =LOOKUP(DL111,'Inputs and Operations'!1:1,'Inputs and Operations'!119:119) -> 0 | DM112: =LOOKUP(DM111,'Inputs and Operations'!1:1,'Inputs and Operations'!119:119) -> 0 | DN112: =LOOKUP(DN111,'Inputs and Operations'!1:1,'Inputs and Operations'!119:119) -> 0 | DO112: =LOOKUP(DO111,'Inputs and Operations'!1:1,'Inputs and Operations'!119:119) -> 0 | DP112: =LOOKUP(DP111,'Inputs and Operations'!1:1,'Inputs and Operations'!119:119) -> 0 | DQ112: =LOOKUP(DQ111,'Inputs and Operations'!1:1,'Inputs and Operations'!119:119) -> 0 | DR112: =LOOKUP(DR111,'Inputs and Operations'!1:1,'Inputs and Operations'!119:119) -> 0 | DS112: =LOOKUP(DS111,'Inputs and Operations'!1:1,'Inputs and Operations'!119:119) -> 0 | DT112: =LOOKUP(DT111,'Inputs and Operations'!1:1,'Inputs and Operations'!119:119) -> 0 | DU112: =LOOKUP(DU111,'Inputs and Operations'!1:1,'Inputs and Operations'!119:119) -> 0 | DV112: =LOOKUP(DV111,'Inputs and Operations'!1:1,'Inputs and Operations'!119:119) -> 0 | DW112: =LOOKUP(DW111,'Inputs and Operations'!1:1,'Inputs and Operations'!119:119) -> 0 | DX112: =LOOKUP(DX111,'Inputs and Operations'!1:1,'Inputs and Operations'!119:119) -> 0 | DY112: =LOOKUP(DY111,'Inputs and Operations'!1:1,'Inputs and Operations'!119:119) -> 0 | DZ112: =LOOKUP(DZ111,'Inputs and Operations'!1:1,'Inputs and Operations'!119:119) -> 0 | EA112: =LOOKUP(EA111,'Inputs and Operations'!1:1,'Inputs and Operations'!119:119) -> 0 | EB112: =LOOKUP(EB111,'Inputs and Operations'!1:1,'Inputs and Operations'!119:119) -> 0 | EC112: =LOOKUP(EC111,'Inputs and Operations'!1:1,'Inputs and Operations'!119:119) -> 0 | ED112: =LOOKUP(ED111,'Inputs and Operations'!1:1,'Inputs and Operations'!119:119) -> 0 | EE112: =LOOKUP(EE111,'Inputs and Operations'!1:1,'Inputs and Operations'!119:119) -> 0 | EF112: =LOOKUP(EF111,'Inputs and Operations'!1:1,'Inputs and Operations'!119:119) -> 0 | EG112: =LOOKUP(EG111,'Inputs and Operations'!1:1,'Inputs and Operations'!119:119) -> 0 | EH112: =LOOKUP(EH111,'Inputs and Operations'!1:1,'Inputs and Operations'!119:119) -> 0 | EI112: =LOOKUP(EI111,'Inputs and Operations'!1:1,'Inputs and Operations'!119:119) -> 0 | EJ112: =LOOKUP(EJ111,'Inputs and Operations'!1:1,'Inputs and Operations'!119:119) -> 0 | EK112: =LOOKUP(EK111,'Inputs and Operations'!1:1,'Inputs and Operations'!119:119) -> 0 | EL112: =LOOKUP(EL111,'Inputs and Operations'!1:1,'Inputs and Operations'!119:119) -> 0 | EM112: =LOOKUP(EM111,'Inputs and Operations'!1:1,'Inputs and Operations'!119:119) -> 0 | EN112: =LOOKUP(EN111,'Inputs and Operations'!1:1,'Inputs and Operations'!119:119) -> 0 | EO112: =LOOKUP(EO111,'Inputs and Operations'!1:1,'Inputs and Operations'!119:119) -> 0 | EP112: =LOOKUP(EP111,'Inputs and Operations'!1:1,'Inputs and Operations'!119:119) -> 0 | EQ112: =LOOKUP(EQ111,'Inputs and Operations'!1:1,'Inputs and Operations'!119:119) -> 0 | ER112: =LOOKUP(ER111,'Inputs and Operations'!1:1,'Inputs and Operations'!119:119) -> 0 | ES112: =LOOKUP(ES111,'Inputs and Operations'!1:1,'Inputs and Operations'!119:119) -> 0 | ET112: =LOOKUP(ET111,'Inputs and Operations'!1:1,'Inputs and Operations'!119:119) -> 0 | EU112: =LOOKUP(EU111,'Inputs and Operations'!1:1,'Inputs and Operations'!119:119) -> 0 | EV112: =LOOKUP(EV111,'Inputs and Operations'!1:1,'Inputs and Operations'!119:119) -> 0 | EW112: =LOOKUP(EW111,'Inputs and Operations'!1:1,'Inputs and Operations'!119:119) -> 0 | EX112: =LOOKUP(EX111,'Inputs and Operations'!1:1,'Inputs and Operations'!119:119) -> 0 | EY112: =LOOKUP(EY111,'Inputs and Operations'!1:1,'Inputs and Operations'!119:119) -> 0 | EZ112: =LOOKUP(EZ111,'Inputs and Operations'!1:1,'Inputs and Operations'!119:119) -> 0
C113: EBITDA - P99 | J113: =LOOKUP(J111,'Inputs and Operations'!1:1,'Inputs and Operations'!140:140) -> 0 | K113: =LOOKUP(K111,'Inputs and Operations'!1:1,'Inputs and Operations'!140:140) -> 0 | L113: =LOOKUP(L111,'Inputs and Operations'!1:1,'Inputs and Operations'!140:140) -> 0 | M113: =LOOKUP(M111,'Inputs and Operations'!1:1,'Inputs and Operations'!140:140) -> 0 | N113: =LOOKUP(N111,'Inputs and Operations'!1:1,'Inputs and Operations'!140:140) -> 0 | O113: =LOOKUP(O111,'Inputs and Operations'!1:1,'Inputs and Operations'!140:140) -> 0 | P113: =LOOKUP(P111,'Inputs and Operations'!1:1,'Inputs and Operations'!140:140) -> 0 | Q113: =LOOKUP(Q111,'Inputs and Operations'!1:1,'Inputs and Operations'!140:140) -> 0 | R113: =LOOKUP(R111,'Inputs and Operations'!1:1,'Inputs and Operations'!140:140) -> 0 | S113: =LOOKUP(S111,'Inputs and Operations'!1:1,'Inputs and Operations'!140:140) -> 0 | T113: =LOOKUP(T111,'Inputs and Operations'!1:1,'Inputs and Operations'!140:140) -> 0 | U113: =LOOKUP(U111,'Inputs and Operations'!1:1,'Inputs and Operations'!140:140) -> 0 | V113: =LOOKUP(V111,'Inputs and Operations'!1:1,'Inputs and Operations'!140:140) -> 0 | W113: =LOOKUP(W111,'Inputs and Operations'!1:1,'Inputs and Operations'!140:140) -> 0 | X113: =LOOKUP(X111,'Inputs and Operations'!1:1,'Inputs and Operations'!140:140) -> 0 | Y113: =LOOKUP(Y111,'Inputs and Operations'!1:1,'Inputs and Operations'!140:140) -> 0 | Z113: =LOOKUP(Z111,'Inputs and Operations'!1:1,'Inputs and Operations'!140:140) -> 0 | AA113: =LOOKUP(AA111,'Inputs and Operations'!1:1,'Inputs and Operations'!140:140) -> 0 | AB113: =LOOKUP(AB111,'Inputs and Operations'!1:1,'Inputs and Operations'!140:140) -> 0 | AC113: =LOOKUP(AC111,'Inputs and Operations'!1:1,'Inputs and Operations'!140:140) -> 0 | AD113: =LOOKUP(AD111,'Inputs and Operations'!1:1,'Inputs and Operations'!140:140) -> 0 | AE113: =LOOKUP(AE111,'Inputs and Operations'!1:1,'Inputs and Operations'!140:140) -> 0 | AF113: =LOOKUP(AF111,'Inputs and Operations'!1:1,'Inputs and Operations'!140:140) -> 3401.925953 | AG113: =LOOKUP(AG111,'Inputs and Operations'!1:1,'Inputs and Operations'!140:140) -> 3523.166753 | AH113: =LOOKUP(AH111,'Inputs and Operations'!1:1,'Inputs and Operations'!140:140) -> 3469.964472 | AI113: =LOOKUP(AI111,'Inputs and Operations'!1:1,'Inputs and Operations'!140:140) -> 3593.630088 | AJ113: =LOOKUP(AJ111,'Inputs and Operations'!1:1,'Inputs and Operations'!140:140) -> 3539.363762 | AK113: =LOOKUP(AK111,'Inputs and Operations'!1:1,'Inputs and Operations'!140:140) -> 3665.50269 | AL113: =LOOKUP(AL111,'Inputs and Operations'!1:1,'Inputs and Operations'!140:140) -> 3640.759442 | AM113: =LOOKUP(AM111,'Inputs and Operations'!1:1,'Inputs and Operations'!140:140) -> 3738.812744 | AN113: =LOOKUP(AN111,'Inputs and Operations'!1:1,'Inputs and Operations'!140:140) -> 3682.354058 | AO113: =LOOKUP(AO111,'Inputs and Operations'!1:1,'Inputs and Operations'!140:140) -> 3813.588999 | AP113: =LOOKUP(AP111,'Inputs and Operations'!1:1,'Inputs and Operations'!140:140) -> 3756.001139 | AQ113: =LOOKUP(AQ111,'Inputs and Operations'!1:1,'Inputs and Operations'!140:140) -> 3889.860779 | AR113: =LOOKUP(AR111,'Inputs and Operations'!1:1,'Inputs and Operations'!140:140) -> 3831.121162 | AS113: =LOOKUP(AS111,'Inputs and Operations'!1:1,'Inputs and Operations'!140:140) -> 3967.657994 | AT113: =LOOKUP(AT111,'Inputs and Operations'!1:1,'Inputs and Operations'!140:140) -> 3940.875107 | AU113: =LOOKUP(AU111,'Inputs and Operations'!1:1,'Inputs and Operations'!140:140) -> 4047.011154 | AV113: =LOOKUP(AV111,'Inputs and Operations'!1:1,'Inputs and Operations'!140:140) -> 3985.898457 | AW113: =LOOKUP(AW111,'Inputs and Operations'!1:1,'Inputs and Operations'!140:140) -> 4127.951377 | AX113: =LOOKUP(AX111,'Inputs and Operations'!1:1,'Inputs and Operations'!140:140) -> 4065.616426 | AY113: =LOOKUP(AY111,'Inputs and Operations'!1:1,'Inputs and Operations'!140:140) -> 4210.510405 | AZ113: =LOOKUP(AZ111,'Inputs and Operations'!1:1,'Inputs and Operations'!140:140) -> 4146.928754 | BA113: =LOOKUP(BA111,'Inputs and Operations'!1:1,'Inputs and Operations'!140:140) -> 4294.720613 | BB113: =LOOKUP(BB111,'Inputs and Operations'!1:1,'Inputs and Operations'!140:140) -> 4265.729954 | BC113: =LOOKUP(BC111,'Inputs and Operations'!1:1,'Inputs and Operations'!140:140) -> 4380.615025 | BD113: =LOOKUP(BD111,'Inputs and Operations'!1:1,'Inputs and Operations'!140:140) -> 4314.464676 | BE113: =LOOKUP(BE111,'Inputs and Operations'!1:1,'Inputs and Operations'!140:140) -> 4468.227326 | BF113: =LOOKUP(BF111,'Inputs and Operations'!1:1,'Inputs and Operations'!140:140) -> 4400.753969 | BG113: =LOOKUP(BG111,'Inputs and Operations'!1:1,'Inputs and Operations'!140:140) -> 4557.591872 | BH113: =LOOKUP(BH111,'Inputs and Operations'!1:1,'Inputs and Operations'!140:140) -> 4488.769049 | BI113: =LOOKUP(BI111,'Inputs and Operations'!1:1,'Inputs and Operations'!140:140) -> 4648.74371 | BJ113: =LOOKUP(BJ111,'Inputs and Operations'!1:1,'Inputs and Operations'!140:140) -> 4617.363288 | BK113: =LOOKUP(BK111,'Inputs and Operations'!1:1,'Inputs and Operations'!140:140) -> 4741.718584 | BL113: =LOOKUP(BL111,'Inputs and Operations'!1:1,'Inputs and Operations'!140:140) -> 4670.115318 | BM113: =LOOKUP(BM111,'Inputs and Operations'!1:1,'Inputs and Operations'!140:140) -> 4836.552956 | BN113: =LOOKUP(BN111,'Inputs and Operations'!1:1,'Inputs and Operations'!140:140) -> 4763.517625 | BO113: =LOOKUP(BO111,'Inputs and Operations'!1:1,'Inputs and Operations'!140:140) -> 4933.284015 | BP113: =LOOKUP(BP111,'Inputs and Operations'!1:1,'Inputs and Operations'!140:140) -> 4858.787977 | BQ113: =LOOKUP(BQ111,'Inputs and Operations'!1:1,'Inputs and Operations'!140:140) -> 5031.949695 | BR113: =LOOKUP(BR111,'Inputs and Operations'!1:1,'Inputs and Operations'!140:140) -> 4997.982518 | BS113: =LOOKUP(BS111,'Inputs and Operations'!1:1,'Inputs and Operations'!140:140) -> 5132.588689 | BT113: =LOOKUP(BT111,'Inputs and Operations'!1:1,'Inputs and Operations'!140:140) -> 5055.083012 | BU113: =LOOKUP(BU111,'Inputs and Operations'!1:1,'Inputs and Operations'!140:140) -> 5235.240463 | BV113: =LOOKUP(BV111,'Inputs and Operations'!1:1,'Inputs and Operations'!140:140) -> 5156.184672 | BW113: =LOOKUP(BW111,'Inputs and Operations'!1:1,'Inputs and Operations'!140:140) -> 5339.945272 | BX113: =LOOKUP(BX111,'Inputs and Operations'!1:1,'Inputs and Operations'!140:140) -> 5259.308365 | BY113: =LOOKUP(BY111,'Inputs and Operations'!1:1,'Inputs and Operations'!140:140) -> 5446.744177 | BZ113: =LOOKUP(BZ111,'Inputs and Operations'!1:1,'Inputs and Operations'!140:140) -> 5409.977012 | CA113: =LOOKUP(CA111,'Inputs and Operations'!1:1,'Inputs and Operations'!140:140) -> 5555.679061 | CB113: =LOOKUP(CB111,'Inputs and Operations'!1:1,'Inputs and Operations'!140:140) -> 5471.784423 | CC113: =LOOKUP(CC111,'Inputs and Operations'!1:1,'Inputs and Operations'!140:140) -> 5666.792642 | CD113: =LOOKUP(CD111,'Inputs and Operations'!1:1,'Inputs and Operations'!140:140) -> 5581.220112 | CE113: =LOOKUP(CE111,'Inputs and Operations'!1:1,'Inputs and Operations'!140:140) -> 5780.128495 | CF113: =LOOKUP(CF111,'Inputs and Operations'!1:1,'Inputs and Operations'!140:140) -> 5692.844514 | CG113: =LOOKUP(CG111,'Inputs and Operations'!1:1,'Inputs and Operations'!140:140) -> 5895.731065 | CH113: =LOOKUP(CH111,'Inputs and Operations'!1:1,'Inputs and Operations'!140:140) -> 5855.933103 | CI113: =LOOKUP(CI111,'Inputs and Operations'!1:1,'Inputs and Operations'!140:140) -> 6013.645686 | CJ113: =LOOKUP(CJ111,'Inputs and Operations'!1:1,'Inputs and Operations'!140:140) -> 5922.835432 | CK113: =LOOKUP(CK111,'Inputs and Operations'!1:1,'Inputs and Operations'!140:140) -> 6133.9186 | CL113: =LOOKUP(CL111,'Inputs and Operations'!1:1,'Inputs and Operations'!140:140) -> 6041.292141 | CM113: =LOOKUP(CM111,'Inputs and Operations'!1:1,'Inputs and Operations'!140:140) -> 6256.596972 | CN113: =LOOKUP(CN111,'Inputs and Operations'!1:1,'Inputs and Operations'!140:140) -> 0 | CO113: =LOOKUP(CO111,'Inputs and Operations'!1:1,'Inputs and Operations'!140:140) -> 0 | CP113: =LOOKUP(CP111,'Inputs and Operations'!1:1,'Inputs and Operations'!140:140) -> 0 | CQ113: =LOOKUP(CQ111,'Inputs and Operations'!1:1,'Inputs and Operations'!140:140) -> 0 | CR113: =LOOKUP(CR111,'Inputs and Operations'!1:1,'Inputs and Operations'!140:140) -> 0 | CS113: =LOOKUP(CS111,'Inputs and Operations'!1:1,'Inputs and Operations'!140:140) -> 0 | CT113: =LOOKUP(CT111,'Inputs and Operations'!1:1,'Inputs and Operations'!140:140) -> 0 | CU113: =LOOKUP(CU111,'Inputs and Operations'!1:1,'Inputs and Operations'!140:140) -> 0 | CV113: =LOOKUP(CV111,'Inputs and Operations'!1:1,'Inputs and Operations'!140:140) -> 0 | CW113: =LOOKUP(CW111,'Inputs and Operations'!1:1,'Inputs and Operations'!140:140) -> 0 | CX113: =LOOKUP(CX111,'Inputs and Operations'!1:1,'Inputs and Operations'!140:140) -> 0 | CY113: =LOOKUP(CY111,'Inputs and Operations'!1:1,'Inputs and Operations'!140:140) -> 0 | CZ113: =LOOKUP(CZ111,'Inputs and Operations'!1:1,'Inputs and Operations'!140:140) -> 0 | DA113: =LOOKUP(DA111,'Inputs and Operations'!1:1,'Inputs and Operations'!140:140) -> 0 | DB113: =LOOKUP(DB111,'Inputs and Operations'!1:1,'Inputs and Operations'!140:140) -> 0 | DC113: =LOOKUP(DC111,'Inputs and Operations'!1:1,'Inputs and Operations'!140:140) -> 0 | DD113: =LOOKUP(DD111,'Inputs and Operations'!1:1,'Inputs and Operations'!140:140) -> 0 | DE113: =LOOKUP(DE111,'Inputs and Operations'!1:1,'Inputs and Operations'!140:140) -> 0 | DF113: =LOOKUP(DF111,'Inputs and Operations'!1:1,'Inputs and Operations'!140:140) -> 0 | DG113: =LOOKUP(DG111,'Inputs and Operations'!1:1,'Inputs and Operations'!140:140) -> 0 | DH113: =LOOKUP(DH111,'Inputs and Operations'!1:1,'Inputs and Operations'!140:140) -> 0 | DI113: =LOOKUP(DI111,'Inputs and Operations'!1:1,'Inputs and Operations'!140:140) -> 0 | DJ113: =LOOKUP(DJ111,'Inputs and Operations'!1:1,'Inputs and Operations'!140:140) -> 0 | DK113: =LOOKUP(DK111,'Inputs and Operations'!1:1,'Inputs and Operations'!140:140) -> 0 | DL113: =LOOKUP(DL111,'Inputs and Operations'!1:1,'Inputs and Operations'!140:140) -> 0 | DM113: =LOOKUP(DM111,'Inputs and Operations'!1:1,'Inputs and Operations'!140:140) -> 0 | DN113: =LOOKUP(DN111,'Inputs and Operations'!1:1,'Inputs and Operations'!140:140) -> 0 | DO113: =LOOKUP(DO111,'Inputs and Operations'!1:1,'Inputs and Operations'!140:140) -> 0 | DP113: =LOOKUP(DP111,'Inputs and Operations'!1:1,'Inputs and Operations'!140:140) -> 0 | DQ113: =LOOKUP(DQ111,'Inputs and Operations'!1:1,'Inputs and Operations'!140:140) -> 0 | DR113: =LOOKUP(DR111,'Inputs and Operations'!1:1,'Inputs and Operations'!140:140) -> 0 | DS113: =LOOKUP(DS111,'Inputs and Operations'!1:1,'Inputs and Operations'!140:140) -> 0 | DT113: =LOOKUP(DT111,'Inputs and Operations'!1:1,'Inputs and Operations'!140:140) -> 0 | DU113: =LOOKUP(DU111,'Inputs and Operations'!1:1,'Inputs and Operations'!140:140) -> 0 | DV113: =LOOKUP(DV111,'Inputs and Operations'!1:1,'Inputs and Operations'!140:140) -> 0 | DW113: =LOOKUP(DW111,'Inputs and Operations'!1:1,'Inputs and Operations'!140:140) -> 0 | DX113: =LOOKUP(DX111,'Inputs and Operations'!1:1,'Inputs and Operations'!140:140) -> 0 | DY113: =LOOKUP(DY111,'Inputs and Operations'!1:1,'Inputs and Operations'!140:140) -> 0 | DZ113: =LOOKUP(DZ111,'Inputs and Operations'!1:1,'Inputs and Operations'!140:140) -> 0 | EA113: =LOOKUP(EA111,'Inputs and Operations'!1:1,'Inputs and Operations'!140:140) -> 0 | EB113: =LOOKUP(EB111,'Inputs and Operations'!1:1,'Inputs and Operations'!140:140) -> 0 | EC113: =LOOKUP(EC111,'Inputs and Operations'!1:1,'Inputs and Operations'!140:140) -> 0 | ED113: =LOOKUP(ED111,'Inputs and Operations'!1:1,'Inputs and Operations'!140:140) -> 0 | EE113: =LOOKUP(EE111,'Inputs and Operations'!1:1,'Inputs and Operations'!140:140) -> 0 | EF113: =LOOKUP(EF111,'Inputs and Operations'!1:1,'Inputs and Operations'!140:140) -> 0 | EG113: =LOOKUP(EG111,'Inputs and Operations'!1:1,'Inputs and Operations'!140:140) -> 0 | EH113: =LOOKUP(EH111,'Inputs and Operations'!1:1,'Inputs and Operations'!140:140) -> 0 | EI113: =LOOKUP(EI111,'Inputs and Operations'!1:1,'Inputs and Operations'!140:140) -> 0 | EJ113: =LOOKUP(EJ111,'Inputs and Operations'!1:1,'Inputs and Operations'!140:140) -> 0 | EK113: =LOOKUP(EK111,'Inputs and Operations'!1:1,'Inputs and Operations'!140:140) -> 0 | EL113: =LOOKUP(EL111,'Inputs and Operations'!1:1,'Inputs and Operations'!140:140) -> 0 | EM113: =LOOKUP(EM111,'Inputs and Operations'!1:1,'Inputs and Operations'!140:140) -> 0 | EN113: =LOOKUP(EN111,'Inputs and Operations'!1:1,'Inputs and Operations'!140:140) -> 0 | EO113: =LOOKUP(EO111,'Inputs and Operations'!1:1,'Inputs and Operations'!140:140) -> 0 | EP113: =LOOKUP(EP111,'Inputs and Operations'!1:1,'Inputs and Operations'!140:140) -> 0 | EQ113: =LOOKUP(EQ111,'Inputs and Operations'!1:1,'Inputs and Operations'!140:140) -> 0 | ER113: =LOOKUP(ER111,'Inputs and Operations'!1:1,'Inputs and Operations'!140:140) -> 0 | ES113: =LOOKUP(ES111,'Inputs and Operations'!1:1,'Inputs and Operations'!140:140) -> 0 | ET113: =LOOKUP(ET111,'Inputs and Operations'!1:1,'Inputs and Operations'!140:140) -> 0 | EU113: =LOOKUP(EU111,'Inputs and Operations'!1:1,'Inputs and Operations'!140:140) -> 0 | EV113: =LOOKUP(EV111,'Inputs and Operations'!1:1,'Inputs and Operations'!140:140) -> 0 | EW113: =LOOKUP(EW111,'Inputs and Operations'!1:1,'Inputs and Operations'!140:140) -> 0 | EX113: =LOOKUP(EX111,'Inputs and Operations'!1:1,'Inputs and Operations'!140:140) -> 0 | EY113: =LOOKUP(EY111,'Inputs and Operations'!1:1,'Inputs and Operations'!140:140) -> 0 | EZ113: =LOOKUP(EZ111,'Inputs and Operations'!1:1,'Inputs and Operations'!140:140) -> 0
C114: EBITDA Applied (P50 is TRUE) | F114: =F19 -> TRUE | J114: =IF($F$114,J112,J113) -> 0 | K114: 0 | L114: 0 | M114: 0 | N114: 0 | O114: 0 | P114: 0 | Q114: 0 | R114: 0 | S114: 0 | T114: 0 | U114: 0 | V114: 0 | W114: 0 | X114: 0 | Y114: 0 | Z114: 0 | AA114: 0 | AB114: 0 | AC114: 0 | AD114: 0 | AE114: 0 | AF114: 5281.648658 | AG114: 5453.059266 | AH114: 5387.281632 | AI114: 5562.120452 | AJ114: 5495.027264 | AK114: 5673.362861 | AL114: 5646.557081 | AM114: 5786.830118 | AN114: 5717.026366 | AO114: 5902.56672 | AP114: =IF($F$114,AP112,AP113) -> 5831.366893 | AQ114: 6020.618055 | AR114: 5947.994231 | AS114: 6141.030416 | AT114: 6112.014977 | AU114: 6263.851024 | AV114: 6188.293198 | AW114: 6389.128045 | AX114: 6312.059062 | AY114: 6516.910606 | AZ114: 6438.300243 | BA114: 6647.248818 | BB114: 6615.841574 | BC114: 6780.193794 | BD114: 6698.407573 | BE114: 6915.79767 | BF114: 6832.375724 | BG114: 7054.113623 | BH114: 6969.023239 | BI114: 7195.195896 | BJ114: 7161.199685 | BK114: 7339.099814 | BL114: 7250.571777 | BM114: 7485.88181 | BN114: 7395.583213 | BO114: 7635.599446 | BP114: 7543.494877 | BQ114: 7788.311435 | BR114: 7751.512843 | BS114: 7944.077664 | BT114: 7848.25207 | BU114: 8102.959217 | BV114: =IF($F$114,BV112,BV113) -> 8005.217112 | BW114: 8265.018401 | BX114: 8165.321454 | BY114: 8430.318769 | BZ114: 8390.48679 | CA114: 8598.925145 | CB114: 8495.200441 | CC114: 8770.903648 | CD114: 8665.10445 | CE114: 8946.321721 | CF114: 8838.406539 | CG114: 9125.248155 | CH114: 9082.13274 | CI114: 9307.753118 | CJ114: 9195.478163 | CK114: 9493.908181 | CL114: 9379.387726 | CM114: 9683.786344 | CN114: 0 | CO114: 0 | CP114: 0 | CQ114: 0 | CR114: 0 | CS114: 0 | CT114: 0 | CU114: 0 | CV114: 0 | CW114: 0 | CX114: 0 | CY114: 0 | CZ114: 0 | DA114: 0 | DB114: =IF($F$114,DB112,DB113) -> 0 | DC114: 0 | DD114: 0 | DE114: 0 | DF114: 0 | DG114: 0 | DH114: 0 | DI114: 0 | DJ114: 0 | DK114: 0 | DL114: 0 | DM114: 0 | DN114: 0 | DO114: 0 | DP114: 0 | DQ114: 0 | DR114: 0 | DS114: 0 | DT114: 0 | DU114: 0 | DV114: 0 | DW114: 0 | DX114: 0 | DY114: 0 | DZ114: 0 | EA114: 0 | EB114: 0 | EC114: 0 | ED114: 0 | EE114: 0 | EF114: 0 | EG114: 0 | EH114: =IF($F$114,EH112,EH113) -> 0 | EI114: 0 | EJ114: 0 | EK114: 0 | EL114: 0 | EM114: 0 | EN114: 0 | EO114: 0 | EP114: 0 | EQ114: 0 | ER114: 0 | ES114: 0 | ET114: 0 | EU114: 0 | EV114: 0 | EW114: 0 | EX114: 0 | EY114: 0 | EZ114: 0
C116: Construction Period | J116: =I116+J7 -> 1 | K116: 2 | L116: 3 | M116: 4 | N116: 5 | O116: 6 | P116: 7 | Q116: 8 | R116: 9 | S116: 10 | T116: 11 | U116: 12 | V116: 13 | W116: 14 | X116: 15 | Y116: 16 | Z116: 17 | AA116: 18 | AB116: 19 | AC116: 20 | AD116: 21 | AE116: 21 | AF116: 21 | AG116: 21 | AH116: 21 | AI116: 21 | AJ116: 21 | AK116: 21 | AL116: 21 | AM116: 21 | AN116: 21 | AO116: 21 | AP116: =AO116+AP7 -> 21 | AQ116: 21 | AR116: 21 | AS116: 21 | AT116: 21 | AU116: 21 | AV116: 21 | AW116: 21 | AX116: 21 | AY116: 21 | AZ116: 21 | BA116: 21 | BB116: 21 | BC116: 21 | BD116: 21 | BE116: 21 | BF116: 21 | BG116: 21 | BH116: 21 | BI116: 21 | BJ116: 21 | BK116: 21 | BL116: 21 | BM116: 21 | BN116: 21 | BO116: 21 | BP116: 21 | BQ116: 21 | BR116: 21 | BS116: 21 | BT116: 21 | BU116: 21 | BV116: =BU116+BV7 -> 21 | BW116: 21 | BX116: 21 | BY116: 21 | BZ116: 21 | CA116: 21 | CB116: 21 | CC116: 21 | CD116: 21 | CE116: 21 | CF116: 21 | CG116: 21 | CH116: 21 | CI116: 21 | CJ116: 21 | CK116: 21 | CL116: 21 | CM116: 21 | CN116: 21 | CO116: 21 | CP116: 21 | CQ116: 21 | CR116: 21 | CS116: 21 | CT116: 21 | CU116: 21 | CV116: 21 | CW116: 21 | CX116: 21 | CY116: 21 | CZ116: 21 | DA116: 21 | DB116: =DA116+DB7 -> 21 | DC116: 21 | DD116: 21 | DE116: 21 | DF116: 21 | DG116: 21 | DH116: 21 | DI116: 21 | DJ116: 21 | DK116: 21 | DL116: 21 | DM116: 21 | DN116: 21 | DO116: 21 | DP116: 21 | DQ116: 21 | DR116: 21 | DS116: 21 | DT116: 21 | DU116: 21 | DV116: 21 | DW116: 21 | DX116: 21 | DY116: 21 | DZ116: 21 | EA116: 21 | EB116: 21 | EC116: 21 | ED116: 21 | EE116: 21 | EF116: 21 | EG116: 21 | EH116: =EG116+EH7 -> 21 | EI116: 21 | EJ116: 21 | EK116: 21 | EL116: 21 | EM116: 21 | EN116: 21 | EO116: 21 | EP116: 21 | EQ116: 21 | ER116: 21 | ES116: 21 | ET116: 21 | EU116: 21 | EV116: 21 | EW116: 21 | EX116: 21 | EY116: 21 | EZ116: 21
C117: Unadjusted Normal | G117: =F24 -> 8.4 | H117: =F25 -> 5.25 | J117: =_xlfn.NORM.DIST(J116,$G$117,$H$117,0)*J7 -> 0.02814050463 | K117: 0.03614541545 | L117: 0.04477317006 | M117: 0.05348423059 | N117: 0.06161365104 | O117: 0.06844967976 | P117: 0.07333464278 | Q117: 0.07576876791 | R117: 0.07549436796 | S117: 0.07254077082 | T117: 0.06721915716 | U117: 0.06006856311 | V117: 0.05176601195 | W117: 0.04302149095 | X117: 0.03448017729 | Y117: 0.02664997508 | Z117: 0.01986403211 | AA117: 0.01427845752 | AB117: 0.009897795199 | AC117: 0.006616661494 | AD117: 0.004265624818 | AE117: 0 | AF117: 0 | AG117: 0 | AH117: 0 | AI117: 0 | AJ117: 0 | AK117: 0 | AL117: 0 | AM117: 0 | AN117: 0 | AO117: 0 | AP117: =_xlfn.NORM.DIST(AP116,$G$117,$H$117,0)*AP7 -> 0 | AQ117: 0 | AR117: 0 | AS117: 0 | AT117: 0 | AU117: 0 | AV117: 0 | AW117: 0 | AX117: 0 | AY117: 0 | AZ117: 0 | BA117: 0 | BB117: 0 | BC117: 0 | BD117: 0 | BE117: 0 | BF117: 0 | BG117: 0 | BH117: 0 | BI117: 0 | BJ117: 0 | BK117: 0 | BL117: 0 | BM117: 0 | BN117: 0 | BO117: 0 | BP117: 0 | BQ117: 0 | BR117: 0 | BS117: 0 | BT117: 0 | BU117: 0 | BV117: =_xlfn.NORM.DIST(BV116,$G$117,$H$117,0)*BV7 -> 0 | BW117: 0 | BX117: 0 | BY117: 0 | BZ117: 0 | CA117: 0 | CB117: 0 | CC117: 0 | CD117: 0 | CE117: 0 | CF117: 0 | CG117: 0 | CH117: 0 | CI117: 0 | CJ117: 0 | CK117: 0 | CL117: 0 | CM117: 0 | CN117: 0 | CO117: 0 | CP117: 0 | CQ117: 0 | CR117: 0 | CS117: 0 | CT117: 0 | CU117: 0 | CV117: 0 | CW117: 0 | CX117: 0 | CY117: 0 | CZ117: 0 | DA117: 0 | DB117: =_xlfn.NORM.DIST(DB116,$G$117,$H$117,0)*DB7 -> 0 | DC117: 0 | DD117: 0 | DE117: 0 | DF117: 0 | DG117: 0 | DH117: 0 | DI117: 0 | DJ117: 0 | DK117: 0 | DL117: 0 | DM117: 0 | DN117: 0 | DO117: 0 | DP117: 0 | DQ117: 0 | DR117: 0 | DS117: 0 | DT117: 0 | DU117: 0 | DV117: 0 | DW117: 0 | DX117: 0 | DY117: 0 | DZ117: 0 | EA117: 0 | EB117: 0 | EC117: 0 | ED117: 0 | EE117: 0 | EF117: 0 | EG117: 0 | EH117: =_xlfn.NORM.DIST(EH116,$G$117,$H$117,0)*EH7 -> 0 | EI117: 0 | EJ117: 0 | EK117: 0 | EL117: 0 | EM117: 0 | EN117: 0 | EO117: 0 | EP117: 0 | EQ117: 0 | ER117: 0 | ES117: 0 | ET117: 0 | EU117: 0 | EV117: 0 | EW117: 0 | EX117: 0 | EY117: 0 | EZ117: 0
C118: S-Curve (Adjusted Normal) | H118: =SUM(J117:EZ117) -> 0.9278731477 | J118: =J117/$H$118*J7 -> 0.03032796531 | K118: 0.03895512608 | L118: 0.04825354648 | M118: 0.05764174847 | N118: 0.06640309744 | O118: 0.07377051479 | P118: 0.07903520321 | Q118: 0.08165854147 | R118: 0.08136281145 | S118: 0.07817962078 | T118: 0.07244433932 | U118: 0.06473790438 | V118: 0.05578996663 | W118: 0.04636570317 | X118: 0.03716044308 | Y118: 0.02872157164 | Z118: 0.02140813338 | AA118: 0.01538837239 | AB118: 0.01066718573 | AC118: 0.007130997929 | AD118: 0.00459720688 | AE118: 0 | AF118: 0 | AG118: 0 | AH118: 0 | AI118: 0 | AJ118: 0 | AK118: 0 | AL118: 0 | AM118: 0 | AN118: 0 | AO118: 0 | AP118: =AP117/$H$118*AP7 -> 0 | AQ118: 0 | AR118: 0 | AS118: 0 | AT118: 0 | AU118: 0 | AV118: 0 | AW118: 0 | AX118: 0 | AY118: 0 | AZ118: 0 | BA118: 0 | BB118: 0 | BC118: 0 | BD118: 0 | BE118: 0 | BF118: 0 | BG118: 0 | BH118: 0 | BI118: 0 | BJ118: 0 | BK118: 0 | BL118: 0 | BM118: 0 | BN118: 0 | BO118: 0 | BP118: 0 | BQ118: 0 | BR118: 0 | BS118: 0 | BT118: 0 | BU118: 0 | BV118: =BV117/$H$118*BV7 -> 0 | BW118: 0 | BX118: 0 | BY118: 0 | BZ118: 0 | CA118: 0 | CB118: 0 | CC118: 0 | CD118: 0 | CE118: 0 | CF118: 0 | CG118: 0 | CH118: 0 | CI118: 0 | CJ118: 0 | CK118: 0 | CL118: 0 | CM118: 0 | CN118: 0 | CO118: 0 | CP118: 0 | CQ118: 0 | CR118: 0 | CS118: 0 | CT118: 0 | CU118: 0 | CV118: 0 | CW118: 0 | CX118: 0 | CY118: 0 | CZ118: 0 | DA118: 0 | DB118: =DB117/$H$118*DB7 -> 0 | DC118: 0 | DD118: 0 | DE118: 0 | DF118: 0 | DG118: 0 | DH118: 0 | DI118: 0 | DJ118: 0 | DK118: 0 | DL118: 0 | DM118: 0 | DN118: 0 | DO118: 0 | DP118: 0 | DQ118: 0 | DR118: 0 | DS118: 0 | DT118: 0 | DU118: 0 | DV118: 0 | DW118: 0 | DX118: 0 | DY118: 0 | DZ118: 0 | EA118: 0 | EB118: 0 | EC118: 0 | ED118: 0 | EE118: 0 | EF118: 0 | EG118: 0 | EH118: =EH117/$H$118*EH7 -> 0 | EI118: 0 | EJ118: 0 | EK118: 0 | EL118: 0 | EM118: 0 | EN118: 0 | EO118: 0 | EP118: 0 | EQ118: 0 | ER118: 0 | ES118: 0 | ET118: 0 | EU118: 0 | EV118: 0 | EW118: 0 | EX118: 0 | EY118: 0 | EZ118: 0
D119: Capital Expenditures | G119: =F13 -> 21 | H119: =F23 -> 144000 | J119: =J118*$H$119 -> 4367.227004 | K119: 5609.538155 | L119: 6948.510693 | M119: 8300.41178 | N119: 9562.046032 | O119: 10622.95413 | P119: 11381.06926 | Q119: 11758.82997 | R119: 11716.24485 | S119: 11257.86539 | T119: 10431.98486 | U119: 9322.258231 | V119: 8033.755195 | W119: 6676.661257 | X119: 5351.103803 | Y119: 4135.906316 | Z119: 3082.771207 | AA119: 2215.925624 | AB119: 1536.074745 | AC119: 1026.863702 | AD119: 661.9977907 | AE119: 0 | AF119: 0 | AG119: 0 | AH119: 0 | AI119: 0 | AJ119: 0 | AK119: 0 | AL119: 0 | AM119: 0 | AN119: 0 | AO119: 0 | AP119: =AP118*$H$119 -> 0 | AQ119: 0 | AR119: 0 | AS119: 0 | AT119: 0 | AU119: 0 | AV119: 0 | AW119: 0 | AX119: 0 | AY119: 0 | AZ119: 0 | BA119: 0 | BB119: 0 | BC119: 0 | BD119: 0 | BE119: 0 | BF119: 0 | BG119: 0 | BH119: 0 | BI119: 0 | BJ119: 0 | BK119: 0 | BL119: 0 | BM119: 0 | BN119: 0 | BO119: 0 | BP119: 0 | BQ119: 0 | BR119: 0 | BS119: 0 | BT119: 0 | BU119: 0 | BV119: =BV118*$H$119 -> 0 | BW119: 0 | BX119: 0 | BY119: 0 | BZ119: 0 | CA119: 0 | CB119: 0 | CC119: 0 | CD119: 0 | CE119: 0 | CF119: 0 | CG119: 0 | CH119: 0 | CI119: 0 | CJ119: 0 | CK119: 0 | CL119: 0 | CM119: 0 | CN119: 0 | CO119: 0 | CP119: 0 | CQ119: 0 | CR119: 0 | CS119: 0 | CT119: 0 | CU119: 0 | CV119: 0 | CW119: 0 | CX119: 0 | CY119: 0 | CZ119: 0 | DA119: 0 | DB119: =DB118*$H$119 -> 0 | DC119: 0 | DD119: 0 | DE119: 0 | DF119: 0 | DG119: 0 | DH119: 0 | DI119: 0 | DJ119: 0 | DK119: 0 | DL119: 0 | DM119: 0 | DN119: 0 | DO119: 0 | DP119: 0 | DQ119: 0 | DR119: 0 | DS119: 0 | DT119: 0 | DU119: 0 | DV119: 0 | DW119: 0 | DX119: 0 | DY119: 0 | DZ119: 0 | EA119: 0 | EB119: 0 | EC119: 0 | ED119: 0 | EE119: 0 | EF119: 0 | EG119: 0 | EH119: =EH118*$H$119 -> 0 | EI119: 0 | EJ119: 0 | EK119: 0 | EL119: 0 | EM119: 0 | EN119: 0 | EO119: 0 | EP119: 0 | EQ119: 0 | ER119: 0 | ES119: 0 | ET119: 0 | EU119: 0 | EV119: 0 | EW119: 0 | EX119: 0 | EY119: 0 | EZ119: 0
C121: Pre-tax Project IRR | F121: =XIRR(J121:EZ121,J4:EZ4) -> 0.0760197252 | H121: =SUM(J121:EZ121) -> 291860.7078 | J121: =J114-J119 -> -4367.227004 | K121: =K114-K119 -> -5609.538155 | L121: -6948.510693 | M121: -8300.41178 | N121: -9562.046032 | O121: -10622.95413 | P121: -11381.06926 | Q121: -11758.82997 | R121: -11716.24485 | S121: -11257.86539 | T121: -10431.98486 | U121: -9322.258231 | V121: -8033.755195 | W121: -6676.661257 | X121: -5351.103803 | Y121: -4135.906316 | Z121: -3082.771207 | AA121: -2215.925624 | AB121: -1536.074745 | AC121: -1026.863702 | AD121: -661.9977907 | AE121: 0 | AF121: 5281.648658 | AG121: 5453.059266 | AH121: 5387.281632 | AI121: 5562.120452 | AJ121: 5495.027264 | AK121: 5673.362861 | AL121: 5646.557081 | AM121: 5786.830118 | AN121: 5717.026366 | AO121: 5902.56672 | AP121: 5831.366893 | AQ121: 6020.618055 | AR121: 5947.994231 | AS121: 6141.030416 | AT121: 6112.014977 | AU121: 6263.851024 | AV121: 6188.293198 | AW121: 6389.128045 | AX121: 6312.059062 | AY121: 6516.910606 | AZ121: 6438.300243 | BA121: 6647.248818 | BB121: 6615.841574 | BC121: 6780.193794 | BD121: 6698.407573 | BE121: 6915.79767 | BF121: 6832.375724 | BG121: 7054.113623 | BH121: 6969.023239 | BI121: 7195.195896 | BJ121: 7161.199685 | BK121: 7339.099814 | BL121: 7250.571777 | BM121: 7485.88181 | BN121: 7395.583213 | BO121: 7635.599446 | BP121: 7543.494877 | BQ121: 7788.311435 | BR121: 7751.512843 | BS121: 7944.077664 | BT121: 7848.25207 | BU121: 8102.959217 | BV121: 8005.217112 | BW121: =BW114-BW119 -> 8265.018401 | BX121: 8165.321454 | BY121: 8430.318769 | BZ121: 8390.48679 | CA121: 8598.925145 | CB121: 8495.200441 | CC121: 8770.903648 | CD121: 8665.10445 | CE121: 8946.321721 | CF121: 8838.406539 | CG121: 9125.248155 | CH121: 9082.13274 | CI121: 9307.753118 | CJ121: 9195.478163 | CK121: 9493.908181 | CL121: 9379.387726 | CM121: 9683.786344 | CN121: 0 | CO121: 0 | CP121: 0 | CQ121: 0 | CR121: 0 | CS121: 0 | CT121: 0 | CU121: 0 | CV121: 0 | CW121: 0 | CX121: 0 | CY121: 0 | CZ121: 0 | DA121: 0 | DB121: 0 | DC121: 0 | DD121: 0 | DE121: 0 | DF121: 0 | DG121: 0 | DH121: 0 | DI121: 0 | DJ121: 0 | DK121: 0 | DL121: 0 | DM121: 0 | DN121: 0 | DO121: 0 | DP121: 0 | DQ121: 0 | DR121: 0 | DS121: 0 | DT121: 0 | DU121: 0 | DV121: 0 | DW121: 0 | DX121: 0 | DY121: 0 | DZ121: 0 | EA121: 0 | EB121: 0 | EC121: 0 | ED121: 0 | EE121: 0 | EF121: 0 | EG121: 0 | EH121: 0 | EI121: =EI114-EI119 -> 0 | EJ121: 0 | EK121: 0 | EL121: 0 | EM121: 0 | EN121: 0 | EO121: 0 | EP121: 0 | EQ121: 0 | ER121: 0 | ES121: 0 | ET121: 0 | EU121: 0 | EV121: 0 | EW121: 0 | EX121: 0 | EY121: 0 | EZ121: 0
C123: Accumulated Plant | J123: =I123+J119 -> 4367.227004 | K123: 9976.765159 | L123: 16925.27585 | M123: 25225.68763 | N123: 34787.73366 | O123: 45410.68779 | P123: 56791.75705 | Q123: 68550.58703 | R123: 80266.83187 | S123: 91524.69727 | T123: 101956.6821 | U123: 111278.9404 | V123: 119312.6956 | W123: 125989.3568 | X123: 131340.4606 | Y123: 135476.3669 | Z123: 138559.1381 | AA123: 140775.0638 | AB123: 142311.1385 | AC123: 143338.0022 | AD123: 144000 | AE123: 144000 | AF123: 144000 | AG123: 144000 | AH123: 144000 | AI123: 144000 | AJ123: 144000 | AK123: 144000 | AL123: 144000 | AM123: 144000 | AN123: 144000 | AO123: 144000 | AP123: =AO123+AP119 -> 144000 | AQ123: 144000 | AR123: 144000 | AS123: 144000 | AT123: 144000 | AU123: 144000 | AV123: 144000 | AW123: 144000 | AX123: 144000 | AY123: 144000 | AZ123: 144000 | BA123: 144000 | BB123: 144000 | BC123: 144000 | BD123: 144000 | BE123: 144000 | BF123: 144000 | BG123: 144000 | BH123: 144000 | BI123: 144000 | BJ123: 144000 | BK123: 144000 | BL123: 144000 | BM123: 144000 | BN123: 144000 | BO123: 144000 | BP123: 144000 | BQ123: 144000 | BR123: 144000 | BS123: 144000 | BT123: 144000 | BU123: 144000 | BV123: =BU123+BV119 -> 144000 | BW123: 144000 | BX123: 144000 | BY123: 144000 | BZ123: 144000 | CA123: 144000 | CB123: 144000 | CC123: 144000 | CD123: 144000 | CE123: 144000 | CF123: 144000 | CG123: 144000 | CH123: 144000 | CI123: 144000 | CJ123: 144000 | CK123: 144000 | CL123: 144000 | CM123: 144000 | CN123: 144000 | CO123: 144000 | CP123: 144000 | CQ123: 144000 | CR123: 144000 | CS123: 144000 | CT123: 144000 | CU123: 144000 | CV123: 144000 | CW123: 144000 | CX123: 144000 | CY123: 144000 | CZ123: 144000 | DA123: 144000 | DB123: =DA123+DB119 -> 144000 | DC123: 144000 | DD123: 144000 | DE123: 144000 | DF123: 144000 | DG123: 144000 | DH123: 144000 | DI123: 144000 | DJ123: 144000 | DK123: 144000 | DL123: 144000 | DM123: 144000 | DN123: 144000 | DO123: 144000 | DP123: 144000 | DQ123: 144000 | DR123: 144000 | DS123: 144000 | DT123: 144000 | DU123: 144000 | DV123: 144000 | DW123: 144000 | DX123: 144000 | DY123: 144000 | DZ123: 144000 | EA123: 144000 | EB123: 144000 | EC123: 144000 | ED123: 144000 | EE123: 144000 | EF123: 144000 | EG123: 144000 | EH123: =EG123+EH119 -> 144000 | EI123: 144000 | EJ123: 144000 | EK123: 144000 | EL123: 144000 | EM123: 144000 | EN123: 144000 | EO123: 144000 | EP123: 144000 | EQ123: 144000 | ER123: 144000 | ES123: 144000 | ET123: 144000 | EU123: 144000 | EV123: 144000 | EW123: 144000 | EX123: 144000 | EY123: 144000 | EZ123: 144000
C124: Accumulated Depreciation | J124: =I124+J126 -> 0 | K124: =J124+K126 -> 0 | L124: 0 | M124: 0 | N124: 0 | O124: 0 | P124: 0 | Q124: 0 | R124: 0 | S124: 0 | T124: 0 | U124: 0 | V124: 0 | W124: 0 | X124: 0 | Y124: 0 | Z124: 0 | AA124: 0 | AB124: 0 | AC124: 0 | AD124: 0 | AE124: 2057.142857 | AF124: 4114.285714 | AG124: 6171.428571 | AH124: 8228.571429 | AI124: =AH124+AI126 -> 10285.71429 | AJ124: =AI124+AJ126 -> 12342.85714 | AK124: =AJ124+AK126 -> 14400 | AL124: =AK124+AL126 -> 16457.14286 | AM124: =AL124+AM126 -> 18514.28571 | AN124: =AM124+AN126 -> 20571.42857 | AO124: =AN124+AO126 -> 22628.57143 | AP124: =AO124+AP126 -> 24685.71429 | AQ124: =AP124+AQ126 -> 26742.85714 | AR124: =AQ124+AR126 -> 28800 | AS124: =AR124+AS126 -> 30857.14286 | AT124: =AS124+AT126 -> 32914.28571 | AU124: =AT124+AU126 -> 34971.42857 | AV124: =AU124+AV126 -> 37028.57143 | AW124: =AV124+AW126 -> 39085.71429 | AX124: =AW124+AX126 -> 41142.85714 | AY124: =AX124+AY126 -> 43200 | AZ124: =AY124+AZ126 -> 45257.14286 | BA124: =AZ124+BA126 -> 47314.28571 | BB124: =BA124+BB126 -> 49371.42857 | BC124: =BB124+BC126 -> 51428.57143 | BD124: =BC124+BD126 -> 53485.71429 | BE124: =BD124+BE126 -> 55542.85714 | BF124: =BE124+BF126 -> 57600 | BG124: =BF124+BG126 -> 59657.14286 | BH124: =BG124+BH126 -> 61714.28571 | BI124: =BH124+BI126 -> 63771.42857 | BJ124: =BI124+BJ126 -> 65828.57143 | BK124: =BJ124+BK126 -> 67885.71429 | BL124: =BK124+BL126 -> 69942.85714 | BM124: =BL124+BM126 -> 72000 | BN124: =BM124+BN126 -> 74057.14286 | BO124: =BN124+BO126 -> 76114.28571 | BP124: =BO124+BP126 -> 78171.42857 | BQ124: =BP124+BQ126 -> 80228.57143 | BR124: =BQ124+BR126 -> 82285.71429 | BS124: =BR124+BS126 -> 84342.85714 | BT124: =BS124+BT126 -> 86400 | BU124: =BT124+BU126 -> 88457.14286 | BV124: =BU124+BV126 -> 90514.28571 | BW124: =BV124+BW126 -> 92571.42857 | BX124: =BW124+BX126 -> 94628.57143 | BY124: =BX124+BY126 -> 96685.71429 | BZ124: =BY124+BZ126 -> 98742.85714 | CA124: =BZ124+CA126 -> 100800 | CB124: =CA124+CB126 -> 102857.1429 | CC124: =CB124+CC126 -> 104914.2857 | CD124: =CC124+CD126 -> 106971.4286 | CE124: =CD124+CE126 -> 109028.5714 | CF124: =CE124+CF126 -> 111085.7143 | CG124: =CF124+CG126 -> 113142.8571 | CH124: =CG124+CH126 -> 115200 | CI124: =CH124+CI126 -> 117257.1429 | CJ124: =CI124+CJ126 -> 119314.2857 | CK124: =CJ124+CK126 -> 121371.4286 | CL124: =CK124+CL126 -> 123428.5714 | CM124: =CL124+CM126 -> 125485.7143 | CN124: =CM124+CN126 -> 127542.8571 | CO124: =CN124+CO126 -> 129600 | CP124: =CO124+CP126 -> 131657.1429 | CQ124: =CP124+CQ126 -> 133714.2857 | CR124: =CQ124+CR126 -> 135771.4286 | CS124: =CR124+CS126 -> 137828.5714 | CT124: =CS124+CT126 -> 139885.7143 | CU124: =CT124+CU126 -> 141942.8571 | CV124: =CU124+CV126 -> 144000 | CW124: =CV124+CW126 -> 144000 | CX124: =CW124+CX126 -> 144000 | CY124: =CX124+CY126 -> 144000 | CZ124: =CY124+CZ126 -> 144000 | DA124: =CZ124+DA126 -> 144000 | DB124: =DA124+DB126 -> 144000 | DC124: =DB124+DC126 -> 144000 | DD124: =DC124+DD126 -> 144000 | DE124: =DD124+DE126 -> 144000 | DF124: =DE124+DF126 -> 144000 | DG124: =DF124+DG126 -> 144000 | DH124: =DG124+DH126 -> 144000 | DI124: =DH124+DI126 -> 144000 | DJ124: =DI124+DJ126 -> 144000 | DK124: =DJ124+DK126 -> 144000 | DL124: =DK124+DL126 -> 144000 | DM124: =DL124+DM126 -> 144000 | DN124: =DM124+DN126 -> 144000 | DO124: =DN124+DO126 -> 144000 | DP124: =DO124+DP126 -> 144000 | DQ124: =DP124+DQ126 -> 144000 | DR124: =DQ124+DR126 -> 144000 | DS124: =DR124+DS126 -> 144000 | DT124: =DS124+DT126 -> 144000 | DU124: =DT124+DU126 -> 144000 | DV124: =DU124+DV126 -> 144000 | DW124: =DV124+DW126 -> 144000 | DX124: =DW124+DX126 -> 144000 | DY124: =DX124+DY126 -> 144000 | DZ124: =DY124+DZ126 -> 144000 | EA124: =DZ124+EA126 -> 144000 | EB124: =EA124+EB126 -> 144000 | EC124: =EB124+EC126 -> 144000 | ED124: =EC124+ED126 -> 144000 | EE124: =ED124+EE126 -> 144000 | EF124: =EE124+EF126 -> 144000 | EG124: =EF124+EG126 -> 144000 | EH124: =EG124+EH126 -> 144000 | EI124: =EH124+EI126 -> 144000 | EJ124: =EI124+EJ126 -> 144000 | EK124: =EJ124+EK126 -> 144000 | EL124: =EK124+EL126 -> 144000 | EM124: =EL124+EM126 -> 144000 | EN124: =EM124+EN126 -> 144000 | EO124: =EN124+EO126 -> 144000 | EP124: =EO124+EP126 -> 144000 | EQ124: =EP124+EQ126 -> 144000 | ER124: =EQ124+ER126 -> 144000 | ES124: =ER124+ES126 -> 144000 | ET124: =ES124+ET126 -> 144000 | EU124: =ET124+EU126 -> 144000 | EV124: =EU124+EV126 -> 144000 | EW124: =EV124+EW126 -> 144000 | EX124: =EW124+EX126 -> 144000 | EY124: =EX124+EY126 -> 144000 | EZ124: =EY124+EZ126 -> 144000
C125: Net Plant | J125: =J123-J124 -> 4367.227004 | K125: =K123-K124 -> 9976.765159 | L125: 16925.27585 | M125: 25225.68763 | N125: 34787.73366 | O125: 45410.68779 | P125: 56791.75705 | Q125: 68550.58703 | R125: 80266.83187 | S125: 91524.69727 | T125: 101956.6821 | U125: 111278.9404 | V125: 119312.6956 | W125: 125989.3568 | X125: 131340.4606 | Y125: 135476.3669 | Z125: 138559.1381 | AA125: 140775.0638 | AB125: 142311.1385 | AC125: 143338.0022 | AD125: 144000 | AE125: 141942.8571 | AF125: 139885.7143 | AG125: 137828.5714 | AH125: 135771.4286 | AI125: =AI123-AI124 -> 133714.2857 | AJ125: 131657.1429 | AK125: 129600 | AL125: 127542.8571 | AM125: 125485.7143 | AN125: 123428.5714 | AO125: 121371.4286 | AP125: 119314.2857 | AQ125: 117257.1429 | AR125: 115200 | AS125: 113142.8571 | AT125: 111085.7143 | AU125: 109028.5714 | AV125: 106971.4286 | AW125: 104914.2857 | AX125: 102857.1429 | AY125: 100800 | AZ125: 98742.85714 | BA125: 96685.71429 | BB125: 94628.57143 | BC125: 92571.42857 | BD125: 90514.28571 | BE125: 88457.14286 | BF125: 86400 | BG125: 84342.85714 | BH125: 82285.71429 | BI125: 80228.57143 | BJ125: 78171.42857 | BK125: 76114.28571 | BL125: 74057.14286 | BM125: 72000 | BN125: 69942.85714 | BO125: 67885.71429 | BP125: 65828.57143 | BQ125: 63771.42857 | BR125: 61714.28571 | BS125: 59657.14286 | BT125: 57600 | BU125: 55542.85714 | BV125: 53485.71429 | BW125: 51428.57143 | BX125: 49371.42857 | BY125: 47314.28571 | BZ125: 45257.14286 | CA125: 43200 | CB125: 41142.85714 | CC125: 39085.71429 | CD125: 37028.57143 | CE125: 34971.42857 | CF125: 32914.28571 | CG125: 30857.14286 | CH125: 28800 | CI125: 26742.85714 | CJ125: 24685.71429 | CK125: 22628.57143 | CL125: 20571.42857 | CM125: 18514.28571 | CN125: 16457.14286 | CO125: 14400 | CP125: 12342.85714 | CQ125: 10285.71429 | CR125: 8228.571429 | CS125: 6171.428571 | CT125: 4114.285714 | CU125: =CU123-CU124 -> 2057.142857 | CV125: 0 | CW125: 0 | CX125: 0 | CY125: 0 | CZ125: 0 | DA125: 0 | DB125: 0 | DC125: 0 | DD125: 0 | DE125: 0 | DF125: 0 | DG125: 0 | DH125: 0 | DI125: 0 | DJ125: 0 | DK125: 0 | DL125: 0 | DM125: 0 | DN125: 0 | DO125: 0 | DP125: 0 | DQ125: 0 | DR125: 0 | DS125: 0 | DT125: 0 | DU125: 0 | DV125: 0 | DW125: 0 | DX125: 0 | DY125: 0 | DZ125: 0 | EA125: 0 | EB125: 0 | EC125: 0 | ED125: 0 | EE125: 0 | EF125: 0 | EG125: 0 | EH125: 0 | EI125: 0 | EJ125: 0 | EK125: 0 | EL125: 0 | EM125: 0 | EN125: 0 | EO125: 0 | EP125: 0 | EQ125: 0 | ER125: 0 | ES125: 0 | ET125: 0 | EU125: 0 | EV125: 0 | EW125: 0 | EX125: 0 | EY125: 0 | EZ125: 0
C126: Depreciation | G126: =F15*12/H3 -> 70 | J126: =J123/$G$126*J8 -> 0 | K126: 0 | L126: 0 | M126: 0 | N126: 0 | O126: 0 | P126: 0 | Q126: 0 | R126: 0 | S126: 0 | T126: 0 | U126: 0 | V126: 0 | W126: 0 | X126: 0 | Y126: 0 | Z126: 0 | AA126: 0 | AB126: 0 | AC126: 0 | AD126: 0 | AE126: 2057.142857 | AF126: 2057.142857 | AG126: 2057.142857 | AH126: 2057.142857 | AI126: 2057.142857 | AJ126: 2057.142857 | AK126: 2057.142857 | AL126: 2057.142857 | AM126: 2057.142857 | AN126: 2057.142857 | AO126: 2057.142857 | AP126: =AP123/$G$126*AP8 -> 2057.142857 | AQ126: 2057.142857 | AR126: 2057.142857 | AS126: 2057.142857 | AT126: 2057.142857 | AU126: 2057.142857 | AV126: 2057.142857 | AW126: 2057.142857 | AX126: 2057.142857 | AY126: 2057.142857 | AZ126: 2057.142857 | BA126: 2057.142857 | BB126: 2057.142857 | BC126: 2057.142857 | BD126: 2057.142857 | BE126: 2057.142857 | BF126: 2057.142857 | BG126: 2057.142857 | BH126: 2057.142857 | BI126: 2057.142857 | BJ126: 2057.142857 | BK126: 2057.142857 | BL126: 2057.142857 | BM126: 2057.142857 | BN126: 2057.142857 | BO126: 2057.142857 | BP126: 2057.142857 | BQ126: 2057.142857 | BR126: 2057.142857 | BS126: 2057.142857 | BT126: 2057.142857 | BU126: 2057.142857 | BV126: =BV123/$G$126*BV8 -> 2057.142857 | BW126: 2057.142857 | BX126: 2057.142857 | BY126: 2057.142857 | BZ126: 2057.142857 | CA126: 2057.142857 | CB126: 2057.142857 | CC126: 2057.142857 | CD126: 2057.142857 | CE126: 2057.142857 | CF126: 2057.142857 | CG126: 2057.142857 | CH126: 2057.142857 | CI126: 2057.142857 | CJ126: 2057.142857 | CK126: 2057.142857 | CL126: 2057.142857 | CM126: 2057.142857 | CN126: 2057.142857 | CO126: 2057.142857 | CP126: 2057.142857 | CQ126: 2057.142857 | CR126: 2057.142857 | CS126: 2057.142857 | CT126: 2057.142857 | CU126: 2057.142857 | CV126: 2057.142857 | CW126: 0 | CX126: 0 | CY126: 0 | CZ126: 0 | DA126: 0 | DB126: =DB123/$G$126*DB8 -> 0 | DC126: 0 | DD126: 0 | DE126: 0 | DF126: 0 | DG126: 0 | DH126: 0 | DI126: 0 | DJ126: 0 | DK126: 0 | DL126: 0 | DM126: 0 | DN126: 0 | DO126: 0 | DP126: 0 | DQ126: 0 | DR126: 0 | DS126: 0 | DT126: 0 | DU126: 0 | DV126: 0 | DW126: 0 | DX126: 0 | DY126: 0 | DZ126: 0 | EA126: 0 | EB126: 0 | EC126: 0 | ED126: 0 | EE126: 0 | EF126: 0 | EG126: 0 | EH126: =EH123/$G$126*EH8 -> 0 | EI126: 0 | EJ126: 0 | EK126: 0 | EL126: 0 | EM126: 0 | EN126: 0 | EO126: 0 | EP126: 0 | EQ126: 0 | ER126: 0 | ES126: 0 | ET126: 0 | EU126: 0 | EV126: 0 | EW126: 0 | EX126: 0 | EY126: 0 | EZ126: 0
C128: EBIT | J128: =J114-J126 -> 0 | K128: 0 | L128: 0 | M128: 0 | N128: 0 | O128: 0 | P128: 0 | Q128: 0 | R128: 0 | S128: 0 | T128: 0 | U128: 0 | V128: 0 | W128: 0 | X128: 0 | Y128: 0 | Z128: 0 | AA128: 0 | AB128: 0 | AC128: 0 | AD128: 0 | AE128: -2057.142857 | AF128: 3224.505801 | AG128: 3395.916409 | AH128: 3330.138774 | AI128: 3504.977595 | AJ128: 3437.884407 | AK128: 3616.220004 | AL128: 3589.414223 | AM128: 3729.687261 | AN128: 3659.883508 | AO128: 3845.423863 | AP128: =AP114-AP126 -> 3774.224036 | AQ128: 3963.475198 | AR128: 3890.851374 | AS128: 4083.887559 | AT128: 4054.87212 | AU128: 4206.708167 | AV128: 4131.150341 | AW128: 4331.985188 | AX128: 4254.916205 | AY128: 4459.767748 | AZ128: 4381.157386 | BA128: 4590.105961 | BB128: 4558.698717 | BC128: 4723.050937 | BD128: 4641.264716 | BE128: 4858.654813 | BF128: 4775.232867 | BG128: 4996.970766 | BH128: 4911.880382 | BI128: 5138.053039 | BJ128: 5104.056828 | BK128: 5281.956957 | BL128: 5193.42892 | BM128: 5428.738953 | BN128: 5338.440356 | BO128: 5578.456589 | BP128: 5486.35202 | BQ128: 5731.168578 | BR128: 5694.369986 | BS128: 5886.934807 | BT128: 5791.109213 | BU128: 6045.81636 | BV128: =BV114-BV126 -> 5948.074255 | BW128: 6207.875544 | BX128: 6108.178597 | BY128: 6373.175912 | BZ128: 6333.343933 | CA128: 6541.782288 | CB128: 6438.057584 | CC128: 6713.760791 | CD128: 6607.961592 | CE128: 6889.178863 | CF128: 6781.263681 | CG128: 7068.105298 | CH128: 7024.989883 | CI128: 7250.610261 | CJ128: 7138.335306 | CK128: 7436.765323 | CL128: 7322.244869 | CM128: 7626.643487 | CN128: -2057.142857 | CO128: -2057.142857 | CP128: -2057.142857 | CQ128: -2057.142857 | CR128: -2057.142857 | CS128: -2057.142857 | CT128: -2057.142857 | CU128: -2057.142857 | CV128: -2057.142857 | CW128: 0 | CX128: 0 | CY128: 0 | CZ128: 0 | DA128: 0 | DB128: =DB114-DB126 -> 0 | DC128: 0 | DD128: 0 | DE128: 0 | DF128: 0 | DG128: 0 | DH128: 0 | DI128: 0 | DJ128: 0 | DK128: 0 | DL128: 0 | DM128: 0 | DN128: 0 | DO128: 0 | DP128: 0 | DQ128: 0 | DR128: 0 | DS128: 0 | DT128: 0 | DU128: 0 | DV128: 0 | DW128: 0 | DX128: 0 | DY128: 0 | DZ128: 0 | EA128: 0 | EB128: 0 | EC128: 0 | ED128: 0 | EE128: 0 | EF128: 0 | EG128: 0 | EH128: =EH114-EH126 -> 0 | EI128: 0 | EJ128: 0 | EK128: 0 | EL128: 0 | EM128: 0 | EN128: 0 | EO128: 0 | EP128: 0 | EQ128: 0 | ER128: 0 | ES128: 0 | ET128: 0 | EU128: 0 | EV128: 0 | EW128: 0 | EX128: 0 | EY128: 0 | EZ128: 0
C129: Taxes on EBIT | G129: =F30 -> 0.21 | J129: =J128*$G$129 -> 0 | K129: 0 | L129: 0 | M129: 0 | N129: 0 | O129: 0 | P129: 0 | Q129: 0 | R129: 0 | S129: 0 | T129: 0 | U129: 0 | V129: 0 | W129: 0 | X129: 0 | Y129: 0 | Z129: 0 | AA129: 0 | AB129: 0 | AC129: 0 | AD129: 0 | AE129: -432 | AF129: 677.1462183 | AG129: 713.1424459 | AH129: 699.3291426 | AI129: 736.0452949 | AJ129: 721.9557255 | AK129: 759.4062008 | AL129: 753.7769869 | AM129: 783.2343248 | AN129: 768.5755368 | AO129: 807.5390113 | AP129: =AP128*$G$129 -> 792.5870475 | AQ129: 832.3297915 | AR129: 817.0787885 | AS129: 857.6163873 | AT129: 851.5231452 | AU129: 883.4087151 | AV129: 867.5415715 | AW129: 909.7168894 | AX129: 893.532403 | AY129: 936.5512272 | AZ129: 920.043051 | BA129: 963.9222517 | BB129: 957.3267305 | BC129: 991.8406967 | BD129: 974.6655903 | BE129: 1020.317511 | BF129: 1002.798902 | BG129: 1049.363861 | BH129: 1031.49488 | BI129: 1078.991138 | BJ129: 1071.851934 | BK129: 1109.210961 | BL129: 1090.620073 | BM129: 1140.03518 | BN129: 1121.072475 | BO129: 1171.475884 | BP129: 1152.133924 | BQ129: 1203.545401 | BR129: 1195.817697 | BS129: 1236.256309 | BT129: 1216.132935 | BU129: 1269.621436 | BV129: =BV128*$G$129 -> 1249.095593 | BW129: 1303.653864 | BX129: 1282.717505 | BY129: 1338.366942 | BZ129: 1330.002226 | CA129: 1373.77428 | CB129: 1351.992093 | CC129: 1409.889766 | CD129: 1387.671934 | CE129: 1446.727561 | CF129: 1424.065373 | CG129: 1484.302113 | CH129: 1475.247875 | CI129: 1522.628155 | CJ129: 1499.050414 | CK129: 1561.720718 | CL129: 1537.671422 | CM129: 1601.595132 | CN129: -432 | CO129: -432 | CP129: -432 | CQ129: -432 | CR129: -432 | CS129: -432 | CT129: -432 | CU129: -432 | CV129: -432 | CW129: 0 | CX129: 0 | CY129: 0 | CZ129: 0 | DA129: 0 | DB129: =DB128*$G$129 -> 0 | DC129: 0 | DD129: 0 | DE129: 0 | DF129: 0 | DG129: 0 | DH129: 0 | DI129: 0 | DJ129: 0 | DK129: 0 | DL129: 0 | DM129: 0 | DN129: 0 | DO129: 0 | DP129: 0 | DQ129: 0 | DR129: 0 | DS129: 0 | DT129: 0 | DU129: 0 | DV129: 0 | DW129: 0 | DX129: 0 | DY129: 0 | DZ129: 0 | EA129: 0 | EB129: 0 | EC129: 0 | ED129: 0 | EE129: 0 | EF129: 0 | EG129: 0 | EH129: =EH128*$G$129 -> 0 | EI129: 0 | EJ129: 0 | EK129: 0 | EL129: 0 | EM129: 0 | EN129: 0 | EO129: 0 | EP129: 0 | EQ129: 0 | ER129: 0 | ES129: 0 | ET129: 0 | EU129: 0 | EV129: 0 | EW129: 0 | EX129: 0 | EY129: 0 | EZ129: 0
C130: Post-tax Project IRR | F130: =XIRR(J130:EZ130,J4:EZ4) -> 0.06354061067 | J130: =J121-J129 -> -4367.227004 | K130: -5609.538155 | L130: -6948.510693 | M130: -8300.41178 | N130: -9562.046032 | O130: -10622.95413 | P130: -11381.06926 | Q130: -11758.82997 | R130: -11716.24485 | S130: -11257.86539 | T130: -10431.98486 | U130: -9322.258231 | V130: -8033.755195 | W130: -6676.661257 | X130: -5351.103803 | Y130: -4135.906316 | Z130: -3082.771207 | AA130: -2215.925624 | AB130: -1536.074745 | AC130: -1026.863702 | AD130: -661.9977907 | AE130: 432 | AF130: 4604.50244 | AG130: 4739.91682 | AH130: 4687.952489 | AI130: 4826.075157 | AJ130: 4773.071539 | AK130: 4913.95666 | AL130: 4892.780094 | AM130: 5003.595793 | AN130: 4948.450829 | AO130: 5095.027709 | AP130: =AP121-AP129 -> 5038.779845 | AQ130: 5188.288263 | AR130: 5130.915442 | AS130: 5283.414029 | AT130: 5260.491832 | AU130: 5380.442309 | AV130: 5320.751626 | AW130: 5479.411155 | AX130: 5418.526659 | AY130: 5580.359378 | AZ130: 5518.257192 | BA130: 5683.326566 | BB130: 5658.514843 | BC130: 5788.353097 | BD130: 5723.741982 | BE130: 5895.480159 | BF130: 5829.576822 | BG130: 6004.749762 | BH130: 5937.528359 | BI130: 6116.204758 | BJ130: 6089.347751 | BK130: 6229.888853 | BL130: 6159.951704 | BM130: 6345.84663 | BN130: 6274.510738 | BO130: 6464.123562 | BP130: 6391.360953 | BQ130: 6584.766034 | BR130: 6555.695146 | BS130: 6707.821354 | BT130: 6632.119136 | BU130: 6833.337781 | BV130: =BV121-BV129 -> 6756.121518 | BW130: 6961.364537 | BX130: 6882.603949 | BY130: 7091.951828 | BZ130: 7060.484564 | CA130: 7225.150864 | CB130: 7143.208348 | CC130: 7361.013882 | CD130: 7277.432515 | CE130: 7499.594159 | CF130: 7414.341165 | CG130: 7640.946042 | CH130: 7606.884864 | CI130: 7785.124963 | CJ130: 7696.427749 | CK130: 7932.187463 | CL130: 7841.716304 | CM130: 8082.191212 | CN130: 432 | CO130: 432 | CP130: 432 | CQ130: 432 | CR130: 432 | CS130: 432 | CT130: 432 | CU130: 432 | CV130: 432 | CW130: 0 | CX130: 0 | CY130: 0 | CZ130: 0 | DA130: 0 | DB130: =DB121-DB129 -> 0 | DC130: 0 | DD130: 0 | DE130: 0 | DF130: 0 | DG130: 0 | DH130: 0 | DI130: 0 | DJ130: 0 | DK130: 0 | DL130: 0 | DM130: 0 | DN130: 0 | DO130: 0 | DP130: 0 | DQ130: 0 | DR130: 0 | DS130: 0 | DT130: 0 | DU130: 0 | DV130: 0 | DW130: 0 | DX130: 0 | DY130: 0 | DZ130: 0 | EA130: 0 | EB130: 0 | EC130: 0 | ED130: 0 | EE130: 0 | EF130: 0 | EG130: 0 | EH130: =EH121-EH129 -> 0 | EI130: 0 | EJ130: 0 | EK130: 0 | EL130: 0 | EM130: 0 | EN130: 0 | EO130: 0 | EP130: 0 | EQ130: 0 | ER130: 0 | ES130: 0 | ET130: 0 | EU130: 0 | EV130: 0 | EW130: 0 | EX130: 0 | EY130: 0 | EZ130: 0
C131: NPV at Target IRR | F131: =F28 -> 0.1 | G131: =XNPV(F131,J130:EZ130,J4:EZ4) -> -45285.13978 | H131: npv_project | J131: ='Parallel Model P50'!J363 -> -4367.227004 | K131: ='Parallel Model P50'!K363 -> -5609.538155 | L131: ='Parallel Model P50'!L363 -> -6948.510693 | M131: ='Parallel Model P50'!M363 -> -8300.41178 | N131: ='Parallel Model P50'!N363 -> -9562.046032 | O131: ='Parallel Model P50'!O363 -> -10622.95413 | P131: ='Parallel Model P50'!P363 -> -11381.06926 | Q131: ='Parallel Model P50'!Q363 -> -11758.82997 | R131: ='Parallel Model P50'!R363 -> -11716.24485 | S131: ='Parallel Model P50'!S363 -> -11257.86539 | T131: ='Parallel Model P50'!T363 -> -10431.98486 | U131: ='Parallel Model P50'!U363 -> -9322.258231 | V131: ='Parallel Model P50'!V363 -> -8033.755195 | W131: ='Parallel Model P50'!W363 -> -6676.661257 | X131: ='Parallel Model P50'!X363 -> -5351.103803 | Y131: ='Parallel Model P50'!Y363 -> -4135.906316 | Z131: ='Parallel Model P50'!Z363 -> -3082.771207 | AA131: ='Parallel Model P50'!AA363 -> -2215.925624 | AB131: ='Parallel Model P50'!AB363 -> -1536.074745 | AC131: ='Parallel Model P50'!AC363 -> -1026.863702 | AD131: ='Parallel Model P50'!AD363 -> -661.9977907 | AE131: ='Parallel Model P50'!AE363 -> 432 | AF131: ='Parallel Model P50'!AF363 -> 4604.50244 | AG131: ='Parallel Model P50'!AG363 -> 4739.91682 | AH131: ='Parallel Model P50'!AH363 -> 4687.952489 | AI131: ='Parallel Model P50'!AI363 -> 4826.075157 | AJ131: ='Parallel Model P50'!AJ363 -> 4773.071539 | AK131: ='Parallel Model P50'!AK363 -> 4913.95666 | AL131: ='Parallel Model P50'!AL363 -> 4892.780094 | AM131: ='Parallel Model P50'!AM363 -> 5003.595793 | AN131: ='Parallel Model P50'!AN363 -> 4948.450829 | AO131: ='Parallel Model P50'!AO363 -> 5095.027709 | AP131: ='Parallel Model P50'!AP363 -> 5038.779845 | AQ131: ='Parallel Model P50'!AQ363 -> 5188.288263 | AR131: ='Parallel Model P50'!AR363 -> 5130.915442 | AS131: ='Parallel Model P50'!AS363 -> 5283.414029 | AT131: ='Parallel Model P50'!AT363 -> 5260.491832 | AU131: ='Parallel Model P50'!AU363 -> 5380.442309 | AV131: ='Parallel Model P50'!AV363 -> 5320.751626 | AW131: ='Parallel Model P50'!AW363 -> 5479.411155 | AX131: ='Parallel Model P50'!AX363 -> 5418.526659 | AY131: ='Parallel Model P50'!AY363 -> 5580.359378 | AZ131: ='Parallel Model P50'!AZ363 -> 5518.257192 | BA131: ='Parallel Model P50'!BA363 -> 5683.326566 | BB131: ='Parallel Model P50'!BB363 -> 5658.514843 | BC131: ='Parallel Model P50'!BC363 -> 5788.353097 | BD131: ='Parallel Model P50'!BD363 -> 5723.741982 | BE131: ='Parallel Model P50'!BE363 -> 5895.480159 | BF131: ='Parallel Model P50'!BF363 -> 5829.576822 | BG131: ='Parallel Model P50'!BG363 -> 6004.749762 | BH131: ='Parallel Model P50'!BH363 -> 5937.528359 | BI131: ='Parallel Model P50'!BI363 -> 6116.204758 | BJ131: ='Parallel Model P50'!BJ363 -> 6089.347751 | BK131: ='Parallel Model P50'!BK363 -> 6229.888853 | BL131: ='Parallel Model P50'!BL363 -> 6159.951704 | BM131: ='Parallel Model P50'!BM363 -> 6345.84663 | BN131: ='Parallel Model P50'!BN363 -> 6274.510738 | BO131: ='Parallel Model P50'!BO363 -> 6464.123562 | BP131: ='Parallel Model P50'!BP363 -> 6391.360953 | BQ131: ='Parallel Model P50'!BQ363 -> 6584.766034 | BR131: ='Parallel Model P50'!BR363 -> 6555.695146 | BS131: ='Parallel Model P50'!BS363 -> 6707.821354 | BT131: ='Parallel Model P50'!BT363 -> 6632.119136 | BU131: ='Parallel Model P50'!BU363 -> 6833.337781 | BV131: ='Parallel Model P50'!BV363 -> 6756.121518 | BW131: ='Parallel Model P50'!BW363 -> 6961.364537 | BX131: ='Parallel Model P50'!BX363 -> 6882.603949 | BY131: ='Parallel Model P50'!BY363 -> 7091.951828 | BZ131: ='Parallel Model P50'!BZ363 -> 7060.484564 | CA131: ='Parallel Model P50'!CA363 -> 7225.150864 | CB131: ='Parallel Model P50'!CB363 -> 7143.208348 | CC131: ='Parallel Model P50'!CC363 -> 7361.013882 | CD131: ='Parallel Model P50'!CD363 -> 7277.432515 | CE131: ='Parallel Model P50'!CE363 -> 7499.594159 | CF131: ='Parallel Model P50'!CF363 -> 7414.341165 | CG131: ='Parallel Model P50'!CG363 -> 7640.946042 | CH131: ='Parallel Model P50'!CH363 -> 7606.884864 | CI131: ='Parallel Model P50'!CI363 -> 7785.124963 | CJ131: ='Parallel Model P50'!CJ363 -> 7696.427749 | CK131: ='Parallel Model P50'!CK363 -> 7932.187463 | CL131: ='Parallel Model P50'!CL363 -> 7841.716304 | CM131: ='Parallel Model P50'!CM363 -> 8082.191212 | CN131: ='Parallel Model P50'!CN363 -> 432 | CO131: ='Parallel Model P50'!CO363 -> 432 | CP131: ='Parallel Model P50'!CP363 -> 432 | CQ131: ='Parallel Model P50'!CQ363 -> 432 | CR131: ='Parallel Model P50'!CR363 -> 432 | CS131: ='Parallel Model P50'!CS363 -> 432 | CT131: ='Parallel Model P50'!CT363 -> 432 | CU131: ='Parallel Model P50'!CU363 -> 432 | CV131: ='Parallel Model P50'!CV363 -> 432 | CW131: ='Parallel Model P50'!CW363 -> 0 | CX131: ='Parallel Model P50'!CX363 -> 0 | CY131: ='Parallel Model P50'!CY363 -> 0 | CZ131: ='Parallel Model P50'!CZ363 -> 0 | DA131: ='Parallel Model P50'!DA363 -> 0 | DB131: ='Parallel Model P50'!DB363 -> 0 | DC131: ='Parallel Model P50'!DC363 -> 0 | DD131: ='Parallel Model P50'!DD363 -> 0 | DE131: ='Parallel Model P50'!DE363 -> 0 | DF131: ='Parallel Model P50'!DF363 -> 0 | DG131: ='Parallel Model P50'!DG363 -> 0 | DH131: ='Parallel Model P50'!DH363 -> 0 | DI131: ='Parallel Model P50'!DI363 -> 0 | DJ131: ='Parallel Model P50'!DJ363 -> 0 | DK131: ='Parallel Model P50'!DK363 -> 0 | DL131: ='Parallel Model P50'!DL363 -> 0 | DM131: ='Parallel Model P50'!DM363 -> 0 | DN131: ='Parallel Model P50'!DN363 -> 0 | DO131: ='Parallel Model P50'!DO363 -> 0 | DP131: ='Parallel Model P50'!DP363 -> 0 | DQ131: ='Parallel Model P50'!DQ363 -> 0 | DR131: ='Parallel Model P50'!DR363 -> 0 | DS131: ='Parallel Model P50'!DS363 -> 0 | DT131: ='Parallel Model P50'!DT363 -> 0 | DU131: ='Parallel Model P50'!DU363 -> 0 | DV131: ='Parallel Model P50'!DV363 -> 0 | DW131: ='Parallel Model P50'!DW363 -> 0 | DX131: ='Parallel Model P50'!DX363 -> 0 | DY131: ='Parallel Model P50'!DY363 -> 0 | DZ131: ='Parallel Model P50'!DZ363 -> 0 | EA131: ='Parallel Model P50'!EA363 -> 0 | EB131: ='Parallel Model P50'!EB363 -> 0 | EC131: ='Parallel Model P50'!EC363 -> 0 | ED131: ='Parallel Model P50'!ED363 -> 0 | EE131: ='Parallel Model P50'!EE363 -> 0 | EF131: ='Parallel Model P50'!EF363 -> 0 | EG131: ='Parallel Model P50'!EG363 -> 0 | EH131: ='Parallel Model P50'!EH363 -> 0 | EI131: ='Parallel Model P50'!EI363 -> 0 | EJ131: ='Parallel Model P50'!EJ363 -> 0 | EK131: ='Parallel Model P50'!EK363 -> 0 | EL131: ='Parallel Model P50'!EL363 -> 0 | EM131: ='Parallel Model P50'!EM363 -> 0 | EN131: ='Parallel Model P50'!EN363 -> 0 | EO131: ='Parallel Model P50'!EO363 -> 0 | EP131: ='Parallel Model P50'!EP363 -> 0 | EQ131: ='Parallel Model P50'!EQ363 -> 0 | ER131: ='Parallel Model P50'!ER363 -> 0 | ES131: ='Parallel Model P50'!ES363 -> 0 | ET131: ='Parallel Model P50'!ET363 -> 0 | EU131: ='Parallel Model P50'!EU363 -> 0 | EV131: ='Parallel Model P50'!EV363 -> 0 | EW131: ='Parallel Model P50'!EW363 -> 0 | EX131: ='Parallel Model P50'!EX363 -> 0 | EY131: ='Parallel Model P50'!EY363 -> 0 | EZ131: ='Parallel Model P50'!EZ363 -> 0
A133: Sources and Uses
L134: =E204 -> FALSE | M134: =E205 -> TRUE
B135: Uses | J135: Computed | L135: P50 | M135: P99 | N135: Applied
C136: EPC | I136: =SUM(J119:EZ119) -> 144000 | J136: =SUM(J119:EZ119) -> 144000 | L136: =J136 -> 144000 | M136: =J136 -> 144000 | N136: =SUMPRODUCT($L$134:$M$134*L136:M136) -> 144000
C137: Development Fee | H137: =F27 -> 0.1 | I137: =H137*I143 -> 16572.10222 | J137: =I137 -> 16572.10222 | L137: =J137 -> 16572.10222 | M137: =L137 -> 16572.10222 | N137: =SUMPRODUCT($L$134:$M$134*L137:M137) -> 16572.10222
C138: IDC | I138: =N138 -> 2573.987713 | J138: =SUM(297:297) -> 2573.987714 | L138: ='Parallel Model P50'!H182 -> 3170.982152 | M138: ='Parallel Model P99'!H182 -> 2573.987713 | N138: =SUMPRODUCT($L$134:$M$134*L138:M138) -> 2573.987713
C139: IDC on Equity Bridge Loan
C140: Up-Front Fees | I140: =N140 -> 1584.428368 | J140: =SUM(J300:EZ300) -> 1584.428368 | L140: ='Parallel Model P50'!H184 -> 1819.525902 | M140: ='Parallel Model P99'!H184 -> 1584.428368 | N140: =SUMPRODUCT($L$134:$M$134*L140:M140) -> 1584.428368
C141: Commitment Fees | I141: =N141 -> 990.5038581 | J141: =SUM(J303:EZ303) -> 990.5038582 | L141: ='Parallel Model P50'!H185 -> 1065.786168 | M141: ='Parallel Model P99'!H185 -> 990.5038581 | N141: =SUMPRODUCT($L$134:$M$134*L141:M141) -> 990.5038581
C142: DSRA | I142: =N142 -> 0 | L142: ='Parallel Model P50'!H187 -> 0 | M142: ='Parallel Model P99'!H187 -> 0 | N142: =SUMPRODUCT($L$134:$M$134*L142:M142) -> 0
D143: Total | I143: =N143 -> 165721.0222 | J143: =SUM(I136:I142) -> 165721.0222 | K143: =J143-I143 -> -5.192036042e-06 | L143: ='Parallel Model P50'!H190 -> 166729.2158 | M143: ='Parallel Model P99'!H190 -> 165721.0222 | N143: =SUMPRODUCT($L$134:$M$134*L143:M143) -> 165721.0222
L144: =SUM(L136:L142) -> 166628.3964 | M144: =SUM(M136:M142) -> 165721.0222 | N144: =SUM(N136:N142) -> 165721.0222
B145: Sources
C146: Senior Debt (From Minimum) | I146: =E202 -> 105628.5579 | J146: =IFERROR(I146/$I$143,1) -> 0.6373878009 | L146: ='Parallel Model P50'!H205 -> 121301.7268
C147: Mezzanine Debt
C148: Equity | I148: =I143-I146-I147 -> 60092.46428
D149: Total | I149: =SUM(I146:I148) -> 165721.0222
C151: Equity Up-front | G151: =F41 -> 1 | I151: =G151*I148 -> 60092.46428
C152: Remaining Equity Pro-Rata | I152: =I148-I151 -> 0
C153: Total Left Over for Pro-Rata | I153: =I149-I151 -> 105628.5579
C154: Equity as Percent of Left Over Pro-Rata | I154: =I152/I153 -> 0
C155: Debt as Percent of Left Over Pro-Rata | I155: =IF(I146,(I146+I147)/I153) -> 1
A157: Re-financing Sources and Uses
C158: Re-financing Switch 1 | G158: =F77 -> 2056-10-01 | J158: =$G158=J$4 -> FALSE | K158: =$G158=K$4 -> FALSE | L158: FALSE | M158: FALSE | N158: FALSE | O158: FALSE | P158: FALSE | Q158: FALSE | R158: FALSE | S158: FALSE | T158: FALSE | U158: FALSE | V158: FALSE | W158: FALSE | X158: FALSE | Y158: FALSE | Z158: FALSE | AA158: FALSE | AB158: FALSE | AC158: FALSE | AD158: FALSE | AE158: FALSE | AF158: FALSE | AG158: FALSE | AH158: FALSE | AI158: FALSE | AJ158: FALSE | AK158: FALSE | AL158: FALSE | AM158: FALSE | AN158: FALSE | AO158: FALSE | AP158: FALSE | AQ158: FALSE | AR158: FALSE | AS158: FALSE | AT158: FALSE | AU158: FALSE | AV158: FALSE | AW158: FALSE | AX158: FALSE | AY158: FALSE | AZ158: FALSE | BA158: FALSE | BB158: FALSE | BC158: FALSE | BD158: FALSE | BE158: FALSE | BF158: FALSE | BG158: FALSE | BH158: FALSE | BI158: FALSE | BJ158: FALSE | BK158: FALSE | BL158: FALSE | BM158: FALSE | BN158: FALSE | BO158: FALSE | BP158: FALSE | BQ158: FALSE | BR158: FALSE | BS158: FALSE | BT158: FALSE | BU158: FALSE | BV158: FALSE | BW158: =$G158=BW$4 -> FALSE | BX158: FALSE | BY158: FALSE | BZ158: FALSE | CA158: FALSE | CB158: FALSE | CC158: FALSE | CD158: FALSE | CE158: FALSE | CF158: FALSE | CG158: FALSE | CH158: FALSE | CI158: FALSE | CJ158: FALSE | CK158: FALSE | CL158: FALSE | CM158: FALSE | CN158: FALSE | CO158: FALSE | CP158: FALSE | CQ158: FALSE | CR158: FALSE | CS158: FALSE | CT158: FALSE | CU158: FALSE | CV158: FALSE | CW158: FALSE | CX158: FALSE | CY158: TRUE | CZ158: FALSE | DA158: FALSE | DB158: FALSE | DC158: FALSE | DD158: FALSE | DE158: FALSE | DF158: FALSE | DG158: FALSE | DH158: FALSE | DI158: FALSE | DJ158: FALSE | DK158: FALSE | DL158: FALSE | DM158: FALSE | DN158: FALSE | DO158: FALSE | DP158: FALSE | DQ158: FALSE | DR158: FALSE | DS158: FALSE | DT158: FALSE | DU158: FALSE | DV158: FALSE | DW158: FALSE | DX158: FALSE | DY158: FALSE | DZ158: FALSE | EA158: FALSE | EB158: FALSE | EC158: FALSE | ED158: FALSE | EE158: FALSE | EF158: FALSE | EG158: FALSE | EH158: FALSE | EI158: =$G158=EI$4 -> FALSE | EJ158: FALSE | EK158: FALSE | EL158: FALSE | EM158: FALSE | EN158: FALSE | EO158: FALSE | EP158: FALSE | EQ158: FALSE | ER158: FALSE | ES158: FALSE | ET158: FALSE | EU158: FALSE | EV158: FALSE | EW158: FALSE | EX158: FALSE | EY158: FALSE | EZ158: FALSE
C159: Re-financing Switch 2 | G159: =F89 -> 2056-10-01 | J159: =J$4=$G159 -> FALSE | K159: =K$4=$G159 -> FALSE | L159: FALSE | M159: FALSE | N159: FALSE | O159: FALSE | P159: FALSE | Q159: FALSE | R159: FALSE | S159: FALSE | T159: FALSE | U159: FALSE | V159: FALSE | W159: FALSE | X159: FALSE | Y159: FALSE | Z159: FALSE | AA159: FALSE | AB159: FALSE | AC159: FALSE | AD159: FALSE | AE159: FALSE | AF159: FALSE | AG159: FALSE | AH159: FALSE | AI159: FALSE | AJ159: FALSE | AK159: FALSE | AL159: FALSE | AM159: FALSE | AN159: FALSE | AO159: FALSE | AP159: FALSE | AQ159: FALSE | AR159: FALSE | AS159: FALSE | AT159: FALSE | AU159: FALSE | AV159: FALSE | AW159: FALSE | AX159: FALSE | AY159: FALSE | AZ159: FALSE | BA159: FALSE | BB159: FALSE | BC159: FALSE | BD159: FALSE | BE159: FALSE | BF159: FALSE | BG159: FALSE | BH159: FALSE | BI159: FALSE | BJ159: FALSE | BK159: FALSE | BL159: FALSE | BM159: FALSE | BN159: FALSE | BO159: FALSE | BP159: FALSE | BQ159: FALSE | BR159: FALSE | BS159: FALSE | BT159: FALSE | BU159: FALSE | BV159: FALSE | BW159: =BW$4=$G159 -> FALSE | BX159: FALSE | BY159: FALSE | BZ159: FALSE | CA159: FALSE | CB159: FALSE | CC159: FALSE | CD159: FALSE | CE159: FALSE | CF159: FALSE | CG159: FALSE | CH159: FALSE | CI159: FALSE | CJ159: FALSE | CK159: FALSE | CL159: FALSE | CM159: FALSE | CN159: FALSE | CO159: FALSE | CP159: FALSE | CQ159: FALSE | CR159: FALSE | CS159: FALSE | CT159: FALSE | CU159: FALSE | CV159: FALSE | CW159: FALSE | CX159: FALSE | CY159: TRUE | CZ159: FALSE | DA159: FALSE | DB159: FALSE | DC159: FALSE | DD159: FALSE | DE159: FALSE | DF159: FALSE | DG159: FALSE | DH159: FALSE | DI159: FALSE | DJ159: FALSE | DK159: FALSE | DL159: FALSE | DM159: FALSE | DN159: FALSE | DO159: FALSE | DP159: FALSE | DQ159: FALSE | DR159: FALSE | DS159: FALSE | DT159: FALSE | DU159: FALSE | DV159: FALSE | DW159: FALSE | DX159: FALSE | DY159: FALSE | DZ159: FALSE | EA159: FALSE | EB159: FALSE | EC159: FALSE | ED159: FALSE | EE159: FALSE | EF159: FALSE | EG159: FALSE | EH159: FALSE | EI159: =EI$4=$G159 -> FALSE | EJ159: FALSE | EK159: FALSE | EL159: FALSE | EM159: FALSE | EN159: FALSE | EO159: FALSE | EP159: FALSE | EQ159: FALSE | ER159: FALSE | ES159: FALSE | ET159: FALSE | EU159: FALSE | EV159: FALSE | EW159: FALSE | EX159: FALSE | EY159: FALSE | EZ159: FALSE
C160: Re-financing Switch 3 | G160: =F101 -> 2056-10-01 | J160: =J$4=$G160 -> FALSE | K160: FALSE | L160: FALSE | M160: FALSE | N160: FALSE | O160: FALSE | P160: FALSE | Q160: FALSE | R160: FALSE | S160: FALSE | T160: FALSE | U160: FALSE | V160: FALSE | W160: FALSE | X160: FALSE | Y160: FALSE | Z160: FALSE | AA160: FALSE | AB160: FALSE | AC160: FALSE | AD160: FALSE | AE160: FALSE | AF160: FALSE | AG160: FALSE | AH160: FALSE | AI160: FALSE | AJ160: FALSE | AK160: FALSE | AL160: FALSE | AM160: FALSE | AN160: FALSE | AO160: FALSE | AP160: FALSE | AQ160: FALSE | AR160: FALSE | AS160: FALSE | AT160: FALSE | AU160: FALSE | AV160: FALSE | AW160: FALSE | AX160: FALSE | AY160: FALSE | AZ160: FALSE | BA160: FALSE | BB160: FALSE | BC160: FALSE | BD160: FALSE | BE160: FALSE | BF160: FALSE | BG160: FALSE | BH160: FALSE | BI160: FALSE | BJ160: FALSE | BK160: FALSE | BL160: FALSE | BM160: FALSE | BN160: FALSE | BO160: FALSE | BP160: FALSE | BQ160: FALSE | BR160: FALSE | BS160: FALSE | BT160: FALSE | BU160: FALSE | BV160: FALSE | BW160: FALSE | BX160: FALSE | BY160: FALSE | BZ160: FALSE | CA160: FALSE | CB160: FALSE | CC160: FALSE | CD160: FALSE | CE160: FALSE | CF160: FALSE | CG160: FALSE | CH160: FALSE | CI160: FALSE | CJ160: FALSE | CK160: FALSE | CL160: FALSE | CM160: FALSE | CN160: FALSE | CO160: FALSE | CP160: FALSE | CQ160: FALSE | CR160: FALSE | CS160: FALSE | CT160: FALSE | CU160: FALSE | CV160: FALSE | CW160: FALSE | CX160: FALSE | CY160: TRUE | CZ160: FALSE | DA160: FALSE | DB160: FALSE | DC160: FALSE | DD160: FALSE | DE160: FALSE | DF160: FALSE | DG160: FALSE | DH160: FALSE | DI160: FALSE | DJ160: FALSE | DK160: FALSE | DL160: FALSE | DM160: FALSE | DN160: FALSE | DO160: FALSE | DP160: FALSE | DQ160: FALSE | DR160: FALSE | DS160: FALSE | DT160: FALSE | DU160: FALSE | DV160: FALSE | DW160: FALSE | DX160: FALSE | DY160: FALSE | DZ160: FALSE | EA160: FALSE | EB160: FALSE | EC160: FALSE | ED160: FALSE | EE160: FALSE | EF160: FALSE | EG160: FALSE | EH160: FALSE | EI160: FALSE | EJ160: FALSE | EK160: FALSE | EL160: FALSE | EM160: FALSE | EN160: FALSE | EO160: FALSE | EP160: FALSE | EQ160: FALSE | ER160: FALSE | ES160: FALSE | ET160: FALSE | EU160: FALSE | EV160: FALSE | EW160: FALSE | EX160: FALSE | EY160: FALSE | EZ160: FALSE
C162: Sources:
D163: Re-financing Amount from Sculpting 1 | E163: Year/Amount | F163: =F75 -> 36 | G163: =E228 -> 0 | J163: =$G163*J158 -> 0 | K163: =$G163*K158 -> 0 | L163: 0 | M163: 0 | N163: 0 | O163: 0 | P163: 0 | Q163: 0 | R163: 0 | S163: 0 | T163: 0 | U163: 0 | V163: 0 | W163: 0 | X163: 0 | Y163: 0 | Z163: 0 | AA163: 0 | AB163: 0 | AC163: 0 | AD163: 0 | AE163: 0 | AF163: 0 | AG163: 0 | AH163: 0 | AI163: 0 | AJ163: 0 | AK163: 0 | AL163: 0 | AM163: 0 | AN163: 0 | AO163: 0 | AP163: 0 | AQ163: 0 | AR163: 0 | AS163: 0 | AT163: 0 | AU163: 0 | AV163: 0 | AW163: 0 | AX163: 0 | AY163: 0 | AZ163: 0 | BA163: 0 | BB163: 0 | BC163: 0 | BD163: 0 | BE163: 0 | BF163: 0 | BG163: 0 | BH163: 0 | BI163: 0 | BJ163: 0 | BK163: 0 | BL163: 0 | BM163: 0 | BN163: 0 | BO163: 0 | BP163: 0 | BQ163: 0 | BR163: 0 | BS163: 0 | BT163: 0 | BU163: 0 | BV163: 0 | BW163: =$G163*BW158 -> 0 | BX163: 0 | BY163: 0 | BZ163: 0 | CA163: 0 | CB163: 0 | CC163: 0 | CD163: 0 | CE163: 0 | CF163: 0 | CG163: 0 | CH163: 0 | CI163: 0 | CJ163: 0 | CK163: 0 | CL163: 0 | CM163: 0 | CN163: 0 | CO163: 0 | CP163: 0 | CQ163: 0 | CR163: 0 | CS163: 0 | CT163: 0 | CU163: 0 | CV163: 0 | CW163: 0 | CX163: 0 | CY163: 0 | CZ163: 0 | DA163: 0 | DB163: 0 | DC163: 0 | DD163: 0 | DE163: 0 | DF163: 0 | DG163: 0 | DH163: 0 | DI163: 0 | DJ163: 0 | DK163: 0 | DL163: 0 | DM163: 0 | DN163: 0 | DO163: 0 | DP163: 0 | DQ163: 0 | DR163: 0 | DS163: 0 | DT163: 0 | DU163: 0 | DV163: 0 | DW163: 0 | DX163: 0 | DY163: 0 | DZ163: 0 | EA163: 0 | EB163: 0 | EC163: 0 | ED163: 0 | EE163: 0 | EF163: 0 | EG163: 0 | EH163: 0 | EI163: =$G163*EI158 -> 0 | EJ163: 0 | EK163: 0 | EL163: 0 | EM163: 0 | EN163: 0 | EO163: 0 | EP163: 0 | EQ163: 0 | ER163: 0 | ES163: 0 | ET163: 0 | EU163: 0 | EV163: 0 | EW163: 0 | EX163: 0 | EY163: 0 | EZ163: 0
D164: Re-financing Amount from Sculpting 2 | E164: Year/Amount | F164: =F87 -> 36 | G164: =E236 -> 0 | J164: =$G164*J159 -> 0 | K164: 0 | L164: 0 | M164: 0 | N164: 0 | O164: 0 | P164: 0 | Q164: 0 | R164: 0 | S164: 0 | T164: 0 | U164: 0 | V164: 0 | W164: 0 | X164: 0 | Y164: 0 | Z164: 0 | AA164: 0 | AB164: 0 | AC164: 0 | AD164: 0 | AE164: 0 | AF164: 0 | AG164: 0 | AH164: 0 | AI164: 0 | AJ164: 0 | AK164: 0 | AL164: 0 | AM164: 0 | AN164: 0 | AO164: 0 | AP164: 0 | AQ164: 0 | AR164: 0 | AS164: 0 | AT164: 0 | AU164: 0 | AV164: 0 | AW164: 0 | AX164: 0 | AY164: 0 | AZ164: 0 | BA164: 0 | BB164: 0 | BC164: 0 | BD164: 0 | BE164: 0 | BF164: 0 | BG164: 0 | BH164: 0 | BI164: 0 | BJ164: 0 | BK164: 0 | BL164: 0 | BM164: 0 | BN164: 0 | BO164: 0 | BP164: 0 | BQ164: 0 | BR164: 0 | BS164: 0 | BT164: 0 | BU164: 0 | BV164: =$G164*BV159 -> 0 | BW164: 0 | BX164: 0 | BY164: 0 | BZ164: 0 | CA164: 0 | CB164: 0 | CC164: 0 | CD164: 0 | CE164: 0 | CF164: 0 | CG164: 0 | CH164: 0 | CI164: 0 | CJ164: 0 | CK164: 0 | CL164: 0 | CM164: 0 | CN164: 0 | CO164: 0 | CP164: 0 | CQ164: 0 | CR164: 0 | CS164: 0 | CT164: 0 | CU164: 0 | CV164: 0 | CW164: 0 | CX164: 0 | CY164: 0 | CZ164: 0 | DA164: 0 | DB164: 0 | DC164: 0 | DD164: 0 | DE164: 0 | DF164: 0 | DG164: 0 | DH164: 0 | DI164: 0 | DJ164: 0 | DK164: 0 | DL164: 0 | DM164: 0 | DN164: 0 | DO164: 0 | DP164: 0 | DQ164: 0 | DR164: 0 | DS164: 0 | DT164: 0 | DU164: 0 | DV164: 0 | DW164: 0 | DX164: 0 | DY164: 0 | DZ164: 0 | EA164: 0 | EB164: 0 | EC164: 0 | ED164: 0 | EE164: 0 | EF164: 0 | EG164: 0 | EH164: =$G164*EH159 -> 0 | EI164: 0 | EJ164: 0 | EK164: 0 | EL164: 0 | EM164: 0 | EN164: 0 | EO164: 0 | EP164: 0 | EQ164: 0 | ER164: 0 | ES164: 0 | ET164: 0 | EU164: 0 | EV164: 0 | EW164: 0 | EX164: 0 | EY164: 0 | EZ164: 0
D165: Re-financing Amount from Sculpting 3 | E165: Year/Amount | F165: =F99 -> 36 | G165: =E244 -> 0 | J165: =$G165*J160 -> 0 | K165: 0 | L165: 0 | M165: 0 | N165: 0 | O165: 0 | P165: 0 | Q165: 0 | R165: 0 | S165: 0 | T165: 0 | U165: 0 | V165: 0 | W165: 0 | X165: 0 | Y165: 0 | Z165: 0 | AA165: 0 | AB165: 0 | AC165: 0 | AD165: 0 | AE165: 0 | AF165: 0 | AG165: 0 | AH165: 0 | AI165: 0 | AJ165: 0 | AK165: 0 | AL165: 0 | AM165: 0 | AN165: 0 | AO165: 0 | AP165: 0 | AQ165: 0 | AR165: 0 | AS165: 0 | AT165: 0 | AU165: 0 | AV165: 0 | AW165: 0 | AX165: 0 | AY165: 0 | AZ165: 0 | BA165: 0 | BB165: 0 | BC165: 0 | BD165: 0 | BE165: 0 | BF165: 0 | BG165: 0 | BH165: 0 | BI165: 0 | BJ165: 0 | BK165: 0 | BL165: 0 | BM165: 0 | BN165: 0 | BO165: 0 | BP165: 0 | BQ165: 0 | BR165: 0 | BS165: 0 | BT165: 0 | BU165: 0 | BV165: =$G165*BV160 -> 0 | BW165: 0 | BX165: 0 | BY165: 0 | BZ165: 0 | CA165: 0 | CB165: 0 | CC165: 0 | CD165: 0 | CE165: 0 | CF165: 0 | CG165: 0 | CH165: 0 | CI165: 0 | CJ165: 0 | CK165: 0 | CL165: 0 | CM165: 0 | CN165: 0 | CO165: 0 | CP165: 0 | CQ165: 0 | CR165: 0 | CS165: 0 | CT165: 0 | CU165: 0 | CV165: 0 | CW165: 0 | CX165: 0 | CY165: 0 | CZ165: 0 | DA165: 0 | DB165: 0 | DC165: 0 | DD165: 0 | DE165: 0 | DF165: 0 | DG165: 0 | DH165: 0 | DI165: 0 | DJ165: 0 | DK165: 0 | DL165: 0 | DM165: 0 | DN165: 0 | DO165: 0 | DP165: 0 | DQ165: 0 | DR165: 0 | DS165: 0 | DT165: 0 | DU165: 0 | DV165: 0 | DW165: 0 | DX165: 0 | DY165: 0 | DZ165: 0 | EA165: 0 | EB165: 0 | EC165: 0 | ED165: 0 | EE165: 0 | EF165: 0 | EG165: 0 | EH165: =$G165*EH160 -> 0 | EI165: 0 | EJ165: 0 | EK165: 0 | EL165: 0 | EM165: 0 | EN165: 0 | EO165: 0 | EP165: 0 | EQ165: 0 | ER165: 0 | ES165: 0 | ET165: 0 | EU165: 0 | EV165: 0 | EW165: 0 | EX165: 0 | EY165: 0 | EZ165: 0
D166: Total | J166: =SUM(J163:J165) -> 0 | K166: =SUM(K163:K165) -> 0 | L166: 0 | M166: 0 | N166: 0 | O166: 0 | P166: 0 | Q166: 0 | R166: 0 | S166: 0 | T166: 0 | U166: 0 | V166: 0 | W166: 0 | X166: 0 | Y166: 0 | Z166: 0 | AA166: 0 | AB166: 0 | AC166: 0 | AD166: 0 | AE166: 0 | AF166: 0 | AG166: 0 | AH166: 0 | AI166: 0 | AJ166: 0 | AK166: 0 | AL166: 0 | AM166: 0 | AN166: 0 | AO166: 0 | AP166: 0 | AQ166: 0 | AR166: 0 | AS166: 0 | AT166: 0 | AU166: 0 | AV166: 0 | AW166: 0 | AX166: 0 | AY166: 0 | AZ166: 0 | BA166: 0 | BB166: 0 | BC166: 0 | BD166: 0 | BE166: 0 | BF166: 0 | BG166: 0 | BH166: 0 | BI166: 0 | BJ166: 0 | BK166: 0 | BL166: 0 | BM166: 0 | BN166: 0 | BO166: 0 | BP166: 0 | BQ166: 0 | BR166: 0 | BS166: 0 | BT166: 0 | BU166: 0 | BV166: 0 | BW166: =SUM(BW163:BW165) -> 0 | BX166: 0 | BY166: 0 | BZ166: 0 | CA166: 0 | CB166: 0 | CC166: 0 | CD166: 0 | CE166: 0 | CF166: 0 | CG166: 0 | CH166: 0 | CI166: 0 | CJ166: 0 | CK166: 0 | CL166: 0 | CM166: 0 | CN166: 0 | CO166: 0 | CP166: 0 | CQ166: 0 | CR166: 0 | CS166: 0 | CT166: 0 | CU166: 0 | CV166: 0 | CW166: 0 | CX166: 0 | CY166: 0 | CZ166: 0 | DA166: 0 | DB166: 0 | DC166: 0 | DD166: 0 | DE166: 0 | DF166: 0 | DG166: 0 | DH166: 0 | DI166: 0 | DJ166: 0 | DK166: 0 | DL166: 0 | DM166: 0 | DN166: 0 | DO166: 0 | DP166: 0 | DQ166: 0 | DR166: 0 | DS166: 0 | DT166: 0 | DU166: 0 | DV166: 0 | DW166: 0 | DX166: 0 | DY166: 0 | DZ166: 0 | EA166: 0 | EB166: 0 | EC166: 0 | ED166: 0 | EE166: 0 | EF166: 0 | EG166: 0 | EH166: 0 | EI166: =SUM(EI163:EI165) -> 0 | EJ166: 0 | EK166: 0 | EL166: 0 | EM166: 0 | EN166: 0 | EO166: 0 | EP166: 0 | EQ166: 0 | ER166: 0 | ES166: 0 | ET166: 0 | EU166: 0 | EV166: 0 | EW166: 0 | EX166: 0 | EY166: 0 | EZ166: 0
C168: Uses:
D169: Repayment of Base Debt | J169: =(J288-J290)*J158 -> 0 | K169: 0 | L169: 0 | M169: 0 | N169: 0 | O169: 0 | P169: 0 | Q169: 0 | R169: 0 | S169: 0 | T169: 0 | U169: 0 | V169: 0 | W169: 0 | X169: 0 | Y169: 0 | Z169: 0 | AA169: 0 | AB169: 0 | AC169: 0 | AD169: 0 | AE169: 0 | AF169: 0 | AG169: 0 | AH169: 0 | AI169: 0 | AJ169: 0 | AK169: 0 | AL169: 0 | AM169: 0 | AN169: 0 | AO169: 0 | AP169: =(AP288-AP290)*AP158 -> 0 | AQ169: 0 | AR169: 0 | AS169: 0 | AT169: 0 | AU169: 0 | AV169: 0 | AW169: 0 | AX169: 0 | AY169: 0 | AZ169: 0 | BA169: 0 | BB169: 0 | BC169: 0 | BD169: 0 | BE169: 0 | BF169: 0 | BG169: 0 | BH169: 0 | BI169: 0 | BJ169: 0 | BK169: 0 | BL169: 0 | BM169: 0 | BN169: 0 | BO169: 0 | BP169: 0 | BQ169: 0 | BR169: 0 | BS169: 0 | BT169: 0 | BU169: 0 | BV169: =(BV288-BV290)*BV158 -> 0 | BW169: 0 | BX169: 0 | BY169: 0 | BZ169: 0 | CA169: 0 | CB169: 0 | CC169: 0 | CD169: 0 | CE169: 0 | CF169: 0 | CG169: 0 | CH169: 0 | CI169: 0 | CJ169: 0 | CK169: 0 | CL169: 0 | CM169: 0 | CN169: 0 | CO169: 0 | CP169: 0 | CQ169: 0 | CR169: 0 | CS169: 0 | CT169: 0 | CU169: 0 | CV169: 0 | CW169: 0 | CX169: 0 | CY169: 0 | CZ169: 0 | DA169: 0 | DB169: =(DB288-DB290)*DB158 -> 0 | DC169: 0 | DD169: 0 | DE169: 0 | DF169: 0 | DG169: 0 | DH169: 0 | DI169: 0 | DJ169: 0 | DK169: 0 | DL169: 0 | DM169: 0 | DN169: 0 | DO169: 0 | DP169: 0 | DQ169: 0 | DR169: 0 | DS169: 0 | DT169: 0 | DU169: 0 | DV169: 0 | DW169: 0 | DX169: 0 | DY169: 0 | DZ169: 0 | EA169: 0 | EB169: 0 | EC169: 0 | ED169: 0 | EE169: 0 | EF169: 0 | EG169: 0 | EH169: =(EH288-EH290)*EH158 -> 0 | EI169: 0 | EJ169: 0 | EK169: 0 | EL169: 0 | EM169: 0 | EN169: 0 | EO169: 0 | EP169: 0 | EQ169: 0 | ER169: 0 | ES169: 0 | ET169: 0 | EU169: 0 | EV169: 0 | EW169: 0 | EX169: 0 | EY169: 0 | EZ169: 0
D170: Repayment of 1st Refi with 2nd Refi | J170: =J321 -> 0 | K170: 0 | L170: 0 | M170: 0 | N170: 0 | O170: 0 | P170: 0 | Q170: 0 | R170: 0 | S170: 0 | T170: 0 | U170: 0 | V170: 0 | W170: 0 | X170: 0 | Y170: 0 | Z170: 0 | AA170: 0 | AB170: 0 | AC170: 0 | AD170: 0 | AE170: 0 | AF170: 0 | AG170: 0 | AH170: 0 | AI170: 0 | AJ170: 0 | AK170: 0 | AL170: 0 | AM170: 0 | AN170: 0 | AO170: 0 | AP170: =AP321 -> 0 | AQ170: 0 | AR170: 0 | AS170: 0 | AT170: 0 | AU170: 0 | AV170: 0 | AW170: 0 | AX170: 0 | AY170: 0 | AZ170: 0 | BA170: 0 | BB170: 0 | BC170: 0 | BD170: 0 | BE170: 0 | BF170: 0 | BG170: 0 | BH170: 0 | BI170: 0 | BJ170: 0 | BK170: 0 | BL170: 0 | BM170: 0 | BN170: 0 | BO170: 0 | BP170: 0 | BQ170: 0 | BR170: 0 | BS170: 0 | BT170: 0 | BU170: 0 | BV170: =BV321 -> 0 | BW170: 0 | BX170: 0 | BY170: 0 | BZ170: 0 | CA170: 0 | CB170: 0 | CC170: 0 | CD170: 0 | CE170: 0 | CF170: 0 | CG170: 0 | CH170: 0 | CI170: 0 | CJ170: 0 | CK170: 0 | CL170: 0 | CM170: 0 | CN170: 0 | CO170: 0 | CP170: 0 | CQ170: 0 | CR170: 0 | CS170: 0 | CT170: 0 | CU170: 0 | CV170: 0 | CW170: 0 | CX170: 0 | CY170: 0 | CZ170: 0 | DA170: 0 | DB170: =DB321 -> 0 | DC170: 0 | DD170: 0 | DE170: 0 | DF170: 0 | DG170: 0 | DH170: 0 | DI170: 0 | DJ170: 0 | DK170: 0 | DL170: 0 | DM170: 0 | DN170: 0 | DO170: 0 | DP170: 0 | DQ170: 0 | DR170: 0 | DS170: 0 | DT170: 0 | DU170: 0 | DV170: 0 | DW170: 0 | DX170: 0 | DY170: 0 | DZ170: 0 | EA170: 0 | EB170: 0 | EC170: 0 | ED170: 0 | EE170: 0 | EF170: 0 | EG170: 0 | EH170: =EH321 -> 0 | EI170: 0 | EJ170: 0 | EK170: 0 | EL170: 0 | EM170: 0 | EN170: 0 | EO170: 0 | EP170: 0 | EQ170: 0 | ER170: 0 | ES170: 0 | ET170: 0 | EU170: 0 | EV170: 0 | EW170: 0 | EX170: 0 | EY170: 0 | EZ170: 0
D171: Repayment of 2nd Refi with 3rd Refi | J171: =J333 -> 0 | K171: 0 | L171: 0 | M171: 0 | N171: 0 | O171: 0 | P171: 0 | Q171: 0 | R171: 0 | S171: 0 | T171: 0 | U171: 0 | V171: 0 | W171: 0 | X171: 0 | Y171: 0 | Z171: 0 | AA171: 0 | AB171: 0 | AC171: 0 | AD171: 0 | AE171: 0 | AF171: 0 | AG171: 0 | AH171: 0 | AI171: 0 | AJ171: 0 | AK171: 0 | AL171: 0 | AM171: 0 | AN171: 0 | AO171: 0 | AP171: =AP333 -> 0 | AQ171: 0 | AR171: 0 | AS171: 0 | AT171: 0 | AU171: 0 | AV171: 0 | AW171: 0 | AX171: 0 | AY171: 0 | AZ171: 0 | BA171: 0 | BB171: 0 | BC171: 0 | BD171: 0 | BE171: 0 | BF171: 0 | BG171: 0 | BH171: 0 | BI171: 0 | BJ171: 0 | BK171: 0 | BL171: 0 | BM171: 0 | BN171: 0 | BO171: 0 | BP171: 0 | BQ171: 0 | BR171: 0 | BS171: 0 | BT171: 0 | BU171: 0 | BV171: =BV333 -> 0 | BW171: 0 | BX171: 0 | BY171: 0 | BZ171: 0 | CA171: 0 | CB171: 0 | CC171: 0 | CD171: 0 | CE171: 0 | CF171: 0 | CG171: 0 | CH171: 0 | CI171: 0 | CJ171: 0 | CK171: 0 | CL171: 0 | CM171: 0 | CN171: 0 | CO171: 0 | CP171: 0 | CQ171: 0 | CR171: 0 | CS171: 0 | CT171: 0 | CU171: 0 | CV171: 0 | CW171: 0 | CX171: 0 | CY171: 0 | CZ171: 0 | DA171: 0 | DB171: =DB333 -> 0 | DC171: 0 | DD171: 0 | DE171: 0 | DF171: 0 | DG171: 0 | DH171: 0 | DI171: 0 | DJ171: 0 | DK171: 0 | DL171: 0 | DM171: 0 | DN171: 0 | DO171: 0 | DP171: 0 | DQ171: 0 | DR171: 0 | DS171: 0 | DT171: 0 | DU171: 0 | DV171: 0 | DW171: 0 | DX171: 0 | DY171: 0 | DZ171: 0 | EA171: 0 | EB171: 0 | EC171: 0 | ED171: 0 | EE171: 0 | EF171: 0 | EG171: 0 | EH171: =EH333 -> 0 | EI171: 0 | EJ171: 0 | EK171: 0 | EL171: 0 | EM171: 0 | EN171: 0 | EO171: 0 | EP171: 0 | EQ171: 0 | ER171: 0 | ES171: 0 | ET171: 0 | EU171: 0 | EV171: 0 | EW171: 0 | EX171: 0 | EY171: 0 | EZ171: 0
D172: Re-financing Fees and Swap Unwind
D173: Super Dividends | J173: =J166-J169-J170-J171-J172 -> 0 | K173: =K166-K169-K170-K171-K172 -> 0 | L173: 0 | M173: 0 | N173: 0 | O173: 0 | P173: 0 | Q173: 0 | R173: 0 | S173: 0 | T173: 0 | U173: 0 | V173: 0 | W173: 0 | X173: 0 | Y173: 0 | Z173: 0 | AA173: 0 | AB173: 0 | AC173: 0 | AD173: 0 | AE173: 0 | AF173: 0 | AG173: 0 | AH173: 0 | AI173: 0 | AJ173: 0 | AK173: 0 | AL173: 0 | AM173: 0 | AN173: 0 | AO173: 0 | AP173: 0 | AQ173: 0 | AR173: 0 | AS173: 0 | AT173: 0 | AU173: 0 | AV173: 0 | AW173: 0 | AX173: 0 | AY173: 0 | AZ173: 0 | BA173: 0 | BB173: 0 | BC173: 0 | BD173: 0 | BE173: 0 | BF173: 0 | BG173: 0 | BH173: 0 | BI173: 0 | BJ173: 0 | BK173: 0 | BL173: 0 | BM173: 0 | BN173: 0 | BO173: 0 | BP173: 0 | BQ173: 0 | BR173: 0 | BS173: 0 | BT173: 0 | BU173: 0 | BV173: 0 | BW173: =BW166-BW169-BW170-BW171-BW172 -> 0 | BX173: 0 | BY173: 0 | BZ173: 0 | CA173: 0 | CB173: 0 | CC173: 0 | CD173: 0 | CE173: 0 | CF173: 0 | CG173: 0 | CH173: 0 | CI173: 0 | CJ173: 0 | CK173: 0 | CL173: 0 | CM173: 0 | CN173: 0 | CO173: 0 | CP173: 0 | CQ173: 0 | CR173: 0 | CS173: 0 | CT173: 0 | CU173: 0 | CV173: 0 | CW173: 0 | CX173: 0 | CY173: 0 | CZ173: 0 | DA173: 0 | DB173: 0 | DC173: 0 | DD173: 0 | DE173: 0 | DF173: 0 | DG173: 0 | DH173: 0 | DI173: 0 | DJ173: 0 | DK173: 0 | DL173: 0 | DM173: 0 | DN173: 0 | DO173: 0 | DP173: 0 | DQ173: 0 | DR173: 0 | DS173: 0 | DT173: 0 | DU173: 0 | DV173: 0 | DW173: 0 | DX173: 0 | DY173: 0 | DZ173: 0 | EA173: 0 | EB173: 0 | EC173: 0 | ED173: 0 | EE173: 0 | EF173: 0 | EG173: 0 | EH173: 0 | EI173: =EI166-EI169-EI170-EI171-EI172 -> 0 | EJ173: 0 | EK173: 0 | EL173: 0 | EM173: 0 | EN173: 0 | EO173: 0 | EP173: 0 | EQ173: 0 | ER173: 0 | ES173: 0 | ET173: 0 | EU173: 0 | EV173: 0 | EW173: 0 | EX173: 0 | EY173: 0 | EZ173: 0
A175: Sizing Using Alternative Methods with Different Parallel Models
B177: CFADS - P50 -- First UDF | J177: ='Parallel Model P50'!J253 -> 0 | K177: ='Parallel Model P50'!K253 -> 0 | L177: ='Parallel Model P50'!L253 -> 0 | M177: ='Parallel Model P50'!M253 -> 0 | N177: ='Parallel Model P50'!N253 -> 0 | O177: ='Parallel Model P50'!O253 -> 0 | P177: ='Parallel Model P50'!P253 -> 0 | Q177: ='Parallel Model P50'!Q253 -> 0 | R177: ='Parallel Model P50'!R253 -> 0 | S177: ='Parallel Model P50'!S253 -> 0 | T177: ='Parallel Model P50'!T253 -> 0 | U177: ='Parallel Model P50'!U253 -> 0 | V177: ='Parallel Model P50'!V253 -> 0 | W177: ='Parallel Model P50'!W253 -> 0 | X177: ='Parallel Model P50'!X253 -> 0 | Y177: ='Parallel Model P50'!Y253 -> 0 | Z177: ='Parallel Model P50'!Z253 -> 0 | AA177: ='Parallel Model P50'!AA253 -> 0 | AB177: ='Parallel Model P50'!AB253 -> 0 | AC177: ='Parallel Model P50'!AC253 -> 0 | AD177: ='Parallel Model P50'!AD253 -> 0 | AE177: ='Parallel Model P50'!AE253 -> 0 | AF177: ='Parallel Model P50'!AF253 -> 5281.648658 | AG177: ='Parallel Model P50'!AG253 -> 5453.059266 | AH177: ='Parallel Model P50'!AH253 -> 5387.281632 | AI177: ='Parallel Model P50'!AI253 -> 5560.184188 | AJ177: ='Parallel Model P50'!AJ253 -> 5230.266473 | AK177: ='Parallel Model P50'!AK253 -> 5363.419195 | AL177: ='Parallel Model P50'!AL253 -> 5334.026796 | AM177: ='Parallel Model P50'!AM253 -> 5464.632802 | AN177: ='Parallel Model P50'!AN253 -> 5400.549689 | AO177: ='Parallel Model P50'!AO253 -> 5538.217441 | AP177: ='Parallel Model P50'!AP253 -> 5472.506169 | AQ177: ='Parallel Model P50'!AQ253 -> 5612.575719 | AR177: ='Parallel Model P50'!AR253 -> 5545.19353 | AS177: ='Parallel Model P50'!AS253 -> 5687.702568 | AT177: ='Parallel Model P50'!AT253 -> 5654.203627 | AU177: ='Parallel Model P50'!AU253 -> 5785.97915 | AV177: ='Parallel Model P50'!AV253 -> 5714.674951 | AW177: ='Parallel Model P50'!AW253 -> 5861.724282 | AX177: ='Parallel Model P50'!AX253 -> 5788.555985 | AY177: ='Parallel Model P50'!AY253 -> 5938.101433 | AZ177: ='Parallel Model P50'!AZ253 -> 5863.01794 | BA177: ='Parallel Model P50'!BA253 -> 6015.095395 | BB177: ='Parallel Model P50'!BB253 -> 5976.576656 | BC177: ='Parallel Model P50'!BC253 -> 6108.305614 | BD177: ='Parallel Model P50'!BD253 -> 6028.529101 | BE177: ='Parallel Model P50'!BE253 -> 6185.062399 | BF177: ='Parallel Model P50'!BF253 -> 6103.132417 | BG177: ='Parallel Model P50'!BG253 -> 6262.229129 | BH177: ='Parallel Model P50'!BH253 -> 6178.083825 | BI177: ='Parallel Model P50'!BI253 -> 6339.776122 | BJ177: ='Parallel Model P50'!BJ253 -> 6295.060601 | BK177: ='Parallel Model P50'!BK253 -> 6417.533896 | BL177: ='Parallel Model P50'!BL253 -> 6328.762555 | BM177: ='Parallel Model P50'!BM253 -> 6495.740179 | BN177: ='Parallel Model P50'!BN253 -> 6404.55643 | BO177: ='Parallel Model P50'!BO253 -> 6574.225992 | BP177: ='Parallel Model P50'!BP253 -> 6480.560144 | BQ177: ='Parallel Model P50'!BQ253 -> 6652.953681 | BR177: ='Parallel Model P50'!BR253 -> 6623.882794 | BS177: ='Parallel Model P50'!BS253 -> 6776.009002 | BT177: ='Parallel Model P50'!BT253 -> 6700.306783 | BU177: ='Parallel Model P50'!BU253 -> 6901.525429 | BV177: ='Parallel Model P50'!BV253 -> 6824.309166 | BW177: ='Parallel Model P50'!BW253 -> 7029.552185 | BX177: ='Parallel Model P50'!BX253 -> 6950.791596 | BY177: ='Parallel Model P50'!BY253 -> 7160.139476 | BZ177: ='Parallel Model P50'!BZ253 -> 7128.672212 | CA177: ='Parallel Model P50'!CA253 -> 7293.338512 | CB177: ='Parallel Model P50'!CB253 -> 7211.395996 | CC177: ='Parallel Model P50'!CC253 -> 7429.201529 | CD177: ='Parallel Model P50'!CD253 -> 7345.620163 | CE177: ='Parallel Model P50'!CE253 -> 7567.781807 | CF177: ='Parallel Model P50'!CF253 -> 7482.528813 | CG177: ='Parallel Model P50'!CG253 -> 7709.13369 | CH177: ='Parallel Model P50'!CH253 -> 7675.072512 | CI177: ='Parallel Model P50'!CI253 -> 7853.312611 | CJ177: ='Parallel Model P50'!CJ253 -> 7764.615396 | CK177: ='Parallel Model P50'!CK253 -> 8000.37511 | CL177: ='Parallel Model P50'!CL253 -> 7909.903951 | CM177: ='Parallel Model P50'!CM253 -> 8150.37886 | CN177: ='Parallel Model P50'!CN253 -> 0 | CO177: ='Parallel Model P50'!CO253 -> 0 | CP177: ='Parallel Model P50'!CP253 -> 0 | CQ177: ='Parallel Model P50'!CQ253 -> 0 | CR177: ='Parallel Model P50'!CR253 -> 0 | CS177: ='Parallel Model P50'!CS253 -> 0 | CT177: ='Parallel Model P50'!CT253 -> 0 | CU177: ='Parallel Model P50'!CU253 -> 0 | CV177: ='Parallel Model P50'!CV253 -> 0 | CW177: ='Parallel Model P50'!CW253 -> 0 | CX177: ='Parallel Model P50'!CX253 -> 0 | CY177: ='Parallel Model P50'!CY253 -> 0 | CZ177: ='Parallel Model P50'!CZ253 -> 0 | DA177: ='Parallel Model P50'!DA253 -> 0 | DB177: ='Parallel Model P50'!DB253 -> 0 | DC177: ='Parallel Model P50'!DC253 -> 0 | DD177: ='Parallel Model P50'!DD253 -> 0 | DE177: ='Parallel Model P50'!DE253 -> 0 | DF177: ='Parallel Model P50'!DF253 -> 0 | DG177: ='Parallel Model P50'!DG253 -> 0 | DH177: ='Parallel Model P50'!DH253 -> 0 | DI177: ='Parallel Model P50'!DI253 -> 0 | DJ177: ='Parallel Model P50'!DJ253 -> 0 | DK177: ='Parallel Model P50'!DK253 -> 0 | DL177: ='Parallel Model P50'!DL253 -> 0 | DM177: ='Parallel Model P50'!DM253 -> 0 | DN177: ='Parallel Model P50'!DN253 -> 0 | DO177: ='Parallel Model P50'!DO253 -> 0 | DP177: ='Parallel Model P50'!DP253 -> 0 | DQ177: ='Parallel Model P50'!DQ253 -> 0 | DR177: ='Parallel Model P50'!DR253 -> 0 | DS177: ='Parallel Model P50'!DS253 -> 0 | DT177: ='Parallel Model P50'!DT253 -> 0 | DU177: ='Parallel Model P50'!DU253 -> 0 | DV177: ='Parallel Model P50'!DV253 -> 0 | DW177: ='Parallel Model P50'!DW253 -> 0 | DX177: ='Parallel Model P50'!DX253 -> 0 | DY177: ='Parallel Model P50'!DY253 -> 0 | DZ177: ='Parallel Model P50'!DZ253 -> 0 | EA177: ='Parallel Model P50'!EA253 -> 0 | EB177: ='Parallel Model P50'!EB253 -> 0 | EC177: ='Parallel Model P50'!EC253 -> 0 | ED177: ='Parallel Model P50'!ED253 -> 0 | EE177: ='Parallel Model P50'!EE253 -> 0 | EF177: ='Parallel Model P50'!EF253 -> 0 | EG177: ='Parallel Model P50'!EG253 -> 0 | EH177: ='Parallel Model P50'!EH253 -> 0 | EI177: ='Parallel Model P50'!EI253 -> 0 | EJ177: ='Parallel Model P50'!EJ253 -> 0 | EK177: ='Parallel Model P50'!EK253 -> 0 | EL177: ='Parallel Model P50'!EL253 -> 0 | EM177: ='Parallel Model P50'!EM253 -> 0 | EN177: ='Parallel Model P50'!EN253 -> 0 | EO177: ='Parallel Model P50'!EO253 -> 0 | EP177: ='Parallel Model P50'!EP253 -> 0 | EQ177: ='Parallel Model P50'!EQ253 -> 0 | ER177: ='Parallel Model P50'!ER253 -> 0 | ES177: ='Parallel Model P50'!ES253 -> 0 | ET177: ='Parallel Model P50'!ET253 -> 0 | EU177: ='Parallel Model P50'!EU253 -> 0 | EV177: ='Parallel Model P50'!EV253 -> 0 | EW177: ='Parallel Model P50'!EW253 -> 0 | EX177: ='Parallel Model P50'!EX253 -> 0 | EY177: ='Parallel Model P50'!EY253 -> 0 | EZ177: ='Parallel Model P50'!EZ253 -> 0
B178: CFADS - P99 -- Second UDF | J178: ='Parallel Model P99'!J253 -> 0 | K178: ='Parallel Model P99'!K253 -> 0 | L178: ='Parallel Model P99'!L253 -> 0 | M178: ='Parallel Model P99'!M253 -> 0 | N178: ='Parallel Model P99'!N253 -> 0 | O178: ='Parallel Model P99'!O253 -> 0 | P178: ='Parallel Model P99'!P253 -> 0 | Q178: ='Parallel Model P99'!Q253 -> 0 | R178: ='Parallel Model P99'!R253 -> 0 | S178: ='Parallel Model P99'!S253 -> 0 | T178: ='Parallel Model P99'!T253 -> 0 | U178: ='Parallel Model P99'!U253 -> 0 | V178: ='Parallel Model P99'!V253 -> 0 | W178: ='Parallel Model P99'!W253 -> 0 | X178: ='Parallel Model P99'!X253 -> 0 | Y178: ='Parallel Model P99'!Y253 -> 0 | Z178: ='Parallel Model P99'!Z253 -> 0 | AA178: ='Parallel Model P99'!AA253 -> 0 | AB178: ='Parallel Model P99'!AB253 -> 0 | AC178: ='Parallel Model P99'!AC253 -> 0 | AD178: ='Parallel Model P99'!AD253 -> 0 | AE178: ='Parallel Model P99'!AE253 -> 0 | AF178: ='Parallel Model P99'!AF253 -> 3401.925953 | AG178: ='Parallel Model P99'!AG253 -> 3523.166753 | AH178: ='Parallel Model P99'!AH253 -> 3469.964472 | AI178: ='Parallel Model P99'!AI253 -> 3593.630088 | AJ178: ='Parallel Model P99'!AJ253 -> 3539.363762 | AK178: ='Parallel Model P99'!AK253 -> 3665.50269 | AL178: ='Parallel Model P99'!AL253 -> 3640.759442 | AM178: ='Parallel Model P99'!AM253 -> 3738.812744 | AN178: ='Parallel Model P99'!AN253 -> 3682.354058 | AO178: ='Parallel Model P99'!AO253 -> 3813.588999 | AP178: ='Parallel Model P99'!AP253 -> 3756.001139 | AQ178: ='Parallel Model P99'!AQ253 -> 3889.860779 | AR178: ='Parallel Model P99'!AR253 -> 3831.121162 | AS178: ='Parallel Model P99'!AS253 -> 3967.657994 | AT178: ='Parallel Model P99'!AT253 -> 3940.875107 | AU178: ='Parallel Model P99'!AU253 -> 4047.011154 | AV178: ='Parallel Model P99'!AV253 -> 3985.898457 | AW178: ='Parallel Model P99'!AW253 -> 4127.951377 | AX178: ='Parallel Model P99'!AX253 -> 4065.616426 | AY178: ='Parallel Model P99'!AY253 -> 4210.510405 | AZ178: ='Parallel Model P99'!AZ253 -> 4146.928754 | BA178: ='Parallel Model P99'!BA253 -> 4294.720613 | BB178: ='Parallel Model P99'!BB253 -> 4265.729954 | BC178: ='Parallel Model P99'!BC253 -> 4380.615025 | BD178: ='Parallel Model P99'!BD253 -> 4314.464676 | BE178: ='Parallel Model P99'!BE253 -> 4468.227326 | BF178: ='Parallel Model P99'!BF253 -> 4232.616852 | BG178: ='Parallel Model P99'!BG253 -> 4260.232705 | BH178: ='Parallel Model P99'!BH253 -> 4191.221138 | BI178: ='Parallel Model P99'!BI253 -> 4302.956602 | BJ178: ='Parallel Model P99'!BJ253 -> 4262.759372 | BK178: ='Parallel Model P99'!BK253 -> 4345.454052 | BL178: ='Parallel Model P99'!BL253 -> 4272.683231 | BM178: ='Parallel Model P99'!BM253 -> 4387.946276 | BN178: ='Parallel Model P99'!BN253 -> 4313.217118 | BO178: ='Parallel Model P99'!BO253 -> 4430.274557 | BP178: ='Parallel Model P99'!BP253 -> 4353.531876 | BQ178: ='Parallel Model P99'!BQ253 -> 4472.403326 | BR178: ='Parallel Model P99'!BR253 -> 4445.569256 | BS178: ='Parallel Model P99'!BS253 -> 4551.908131 | BT178: ='Parallel Model P99'!BT253 -> 4490.678646 | BU178: ='Parallel Model P99'!BU253 -> 4633.003032 | BV178: ='Parallel Model P99'!BV253 -> 4570.548957 | BW178: ='Parallel Model P99'!BW253 -> 4715.719831 | BX178: ='Parallel Model P99'!BX253 -> 4652.016675 | BY178: ='Parallel Model P99'!BY253 -> 4800.090967 | BZ178: ='Parallel Model P99'!BZ253 -> 4771.044906 | CA178: ='Parallel Model P99'!CA253 -> 4886.149525 | CB178: ='Parallel Model P99'!CB253 -> 4819.872761 | CC178: ='Parallel Model P99'!CC253 -> 4973.929254 | CD178: ='Parallel Model P99'!CD253 -> 4906.326955 | CE178: ='Parallel Model P99'!CE253 -> 5063.464578 | CF178: ='Parallel Model P99'!CF253 -> 4994.510233 | CG178: ='Parallel Model P99'!CG253 -> 5154.790608 | CH178: ='Parallel Model P99'!CH253 -> 5123.350218 | CI178: ='Parallel Model P99'!CI253 -> 5247.943159 | CJ178: ='Parallel Model P99'!CJ253 -> 5176.203058 | CK178: ='Parallel Model P99'!CK253 -> 5342.958761 | CL178: ='Parallel Model P99'!CL253 -> 5269.783858 | CM178: ='Parallel Model P99'!CM253 -> 5439.874675 | CN178: ='Parallel Model P99'!CN253 -> 0 | CO178: ='Parallel Model P99'!CO253 -> 0 | CP178: ='Parallel Model P99'!CP253 -> 0 | CQ178: ='Parallel Model P99'!CQ253 -> 0 | CR178: ='Parallel Model P99'!CR253 -> 0 | CS178: ='Parallel Model P99'!CS253 -> 0 | CT178: ='Parallel Model P99'!CT253 -> 0 | CU178: ='Parallel Model P99'!CU253 -> 0 | CV178: ='Parallel Model P99'!CV253 -> 0 | CW178: ='Parallel Model P99'!CW253 -> 0 | CX178: ='Parallel Model P99'!CX253 -> 0 | CY178: ='Parallel Model P99'!CY253 -> 0 | CZ178: ='Parallel Model P99'!CZ253 -> 0 | DA178: ='Parallel Model P99'!DA253 -> 0 | DB178: ='Parallel Model P99'!DB253 -> 0 | DC178: ='Parallel Model P99'!DC253 -> 0 | DD178: ='Parallel Model P99'!DD253 -> 0 | DE178: ='Parallel Model P99'!DE253 -> 0 | DF178: ='Parallel Model P99'!DF253 -> 0 | DG178: ='Parallel Model P99'!DG253 -> 0 | DH178: ='Parallel Model P99'!DH253 -> 0 | DI178: ='Parallel Model P99'!DI253 -> 0 | DJ178: ='Parallel Model P99'!DJ253 -> 0 | DK178: ='Parallel Model P99'!DK253 -> 0 | DL178: ='Parallel Model P99'!DL253 -> 0 | DM178: ='Parallel Model P99'!DM253 -> 0 | DN178: ='Parallel Model P99'!DN253 -> 0 | DO178: ='Parallel Model P99'!DO253 -> 0 | DP178: ='Parallel Model P99'!DP253 -> 0 | DQ178: ='Parallel Model P99'!DQ253 -> 0 | DR178: ='Parallel Model P99'!DR253 -> 0 | DS178: ='Parallel Model P99'!DS253 -> 0 | DT178: ='Parallel Model P99'!DT253 -> 0 | DU178: ='Parallel Model P99'!DU253 -> 0 | DV178: ='Parallel Model P99'!DV253 -> 0 | DW178: ='Parallel Model P99'!DW253 -> 0 | DX178: ='Parallel Model P99'!DX253 -> 0 | DY178: ='Parallel Model P99'!DY253 -> 0 | DZ178: ='Parallel Model P99'!DZ253 -> 0 | EA178: ='Parallel Model P99'!EA253 -> 0 | EB178: ='Parallel Model P99'!EB253 -> 0 | EC178: ='Parallel Model P99'!EC253 -> 0 | ED178: ='Parallel Model P99'!ED253 -> 0 | EE178: ='Parallel Model P99'!EE253 -> 0 | EF178: ='Parallel Model P99'!EF253 -> 0 | EG178: ='Parallel Model P99'!EG253 -> 0 | EH178: ='Parallel Model P99'!EH253 -> 0 | EI178: ='Parallel Model P99'!EI253 -> 0 | EJ178: ='Parallel Model P99'!EJ253 -> 0 | EK178: ='Parallel Model P99'!EK253 -> 0 | EL178: ='Parallel Model P99'!EL253 -> 0 | EM178: ='Parallel Model P99'!EM253 -> 0 | EN178: ='Parallel Model P99'!EN253 -> 0 | EO178: ='Parallel Model P99'!EO253 -> 0 | EP178: ='Parallel Model P99'!EP253 -> 0 | EQ178: ='Parallel Model P99'!EQ253 -> 0 | ER178: ='Parallel Model P99'!ER253 -> 0 | ES178: ='Parallel Model P99'!ES253 -> 0 | ET178: ='Parallel Model P99'!ET253 -> 0 | EU178: ='Parallel Model P99'!EU253 -> 0 | EV178: ='Parallel Model P99'!EV253 -> 0 | EW178: ='Parallel Model P99'!EW253 -> 0 | EX178: ='Parallel Model P99'!EX253 -> 0 | EY178: ='Parallel Model P99'!EY253 -> 0 | EZ178: ='Parallel Model P99'!EZ253 -> 0
B180: Base Debt Size - P50 Case
C181: Repayment Switch - Base Debt | G181: =F45 -> 2039-10-01 | J181: =AND(NOT(J7),J4<$G$181) -> FALSE | K181: FALSE | L181: FALSE | M181: FALSE | N181: FALSE | O181: FALSE | P181: FALSE | Q181: FALSE | R181: FALSE | S181: FALSE | T181: FALSE | U181: FALSE | V181: FALSE | W181: FALSE | X181: FALSE | Y181: FALSE | Z181: FALSE | AA181: FALSE | AB181: FALSE | AC181: FALSE | AD181: FALSE | AE181: TRUE | AF181: TRUE | AG181: TRUE | AH181: TRUE | AI181: TRUE | AJ181: TRUE | AK181: TRUE | AL181: TRUE | AM181: TRUE | AN181: TRUE | AO181: TRUE | AP181: =AND(NOT(AP7),AP4<$G$181) -> TRUE | AQ181: TRUE | AR181: TRUE | AS181: TRUE | AT181: TRUE | AU181: TRUE | AV181: TRUE | AW181: TRUE | AX181: TRUE | AY181: TRUE | AZ181: TRUE | BA181: TRUE | BB181: TRUE | BC181: TRUE | BD181: TRUE | BE181: TRUE | BF181: TRUE | BG181: TRUE | BH181: TRUE | BI181: TRUE | BJ181: TRUE | BK181: TRUE | BL181: TRUE | BM181: TRUE | BN181: TRUE | BO181: TRUE | BP181: TRUE | BQ181: FALSE | BR181: FALSE | BS181: FALSE | BT181: FALSE | BU181: FALSE | BV181: =AND(NOT(BV7),BV4<$G$181) -> FALSE | BW181: FALSE | BX181: FALSE | BY181: FALSE | BZ181: FALSE | CA181: FALSE | CB181: FALSE | CC181: FALSE | CD181: FALSE | CE181: FALSE | CF181: FALSE | CG181: FALSE | CH181: FALSE | CI181: FALSE | CJ181: FALSE | CK181: FALSE | CL181: FALSE | CM181: FALSE | CN181: FALSE | CO181: FALSE | CP181: FALSE | CQ181: FALSE | CR181: FALSE | CS181: FALSE | CT181: FALSE | CU181: FALSE | CV181: FALSE | CW181: FALSE | CX181: FALSE | CY181: FALSE | CZ181: FALSE | DA181: FALSE | DB181: =AND(NOT(DB7),DB4<$G$181) -> FALSE | DC181: FALSE | DD181: FALSE | DE181: FALSE | DF181: FALSE | DG181: FALSE | DH181: FALSE | DI181: FALSE | DJ181: FALSE | DK181: FALSE | DL181: FALSE | DM181: FALSE | DN181: FALSE | DO181: FALSE | DP181: FALSE | DQ181: FALSE | DR181: FALSE | DS181: FALSE | DT181: FALSE | DU181: FALSE | DV181: FALSE | DW181: FALSE | DX181: FALSE | DY181: FALSE | DZ181: FALSE | EA181: FALSE | EB181: FALSE | EC181: FALSE | ED181: FALSE | EE181: FALSE | EF181: FALSE | EG181: FALSE | EH181: =AND(NOT(EH7),EH4<$G$181) -> FALSE | EI181: FALSE | EJ181: FALSE | EK181: FALSE | EL181: FALSE | EM181: FALSE | EN181: FALSE | EO181: FALSE | EP181: FALSE | EQ181: FALSE | ER181: FALSE | ES181: FALSE | ET181: FALSE | EU181: FALSE | EV181: FALSE | EW181: FALSE | EX181: FALSE | EY181: FALSE | EZ181: FALSE
C182: CFADS - P50 | J182: =J181*J177 -> 0 | K182: =K181*K177 -> 0 | L182: 0 | M182: 0 | N182: 0 | O182: 0 | P182: 0 | Q182: 0 | R182: 0 | S182: 0 | T182: 0 | U182: 0 | V182: 0 | W182: 0 | X182: 0 | Y182: 0 | Z182: 0 | AA182: 0 | AB182: 0 | AC182: 0 | AD182: 0 | AE182: 0 | AF182: 5281.648658 | AG182: 5453.059266 | AH182: 5387.281632 | AI182: 5560.184188 | AJ182: 5230.266473 | AK182: 5363.419195 | AL182: 5334.026796 | AM182: 5464.632802 | AN182: 5400.549689 | AO182: 5538.217441 | AP182: 5472.506169 | AQ182: 5612.575719 | AR182: 5545.19353 | AS182: 5687.702568 | AT182: 5654.203627 | AU182: 5785.97915 | AV182: 5714.674951 | AW182: 5861.724282 | AX182: 5788.555985 | AY182: 5938.101433 | AZ182: 5863.01794 | BA182: 6015.095395 | BB182: 5976.576656 | BC182: 6108.305614 | BD182: 6028.529101 | BE182: 6185.062399 | BF182: 6103.132417 | BG182: 6262.229129 | BH182: 6178.083825 | BI182: 6339.776122 | BJ182: 6295.060601 | BK182: 6417.533896 | BL182: 6328.762555 | BM182: 6495.740179 | BN182: 6404.55643 | BO182: 6574.225992 | BP182: 6480.560144 | BQ182: 0 | BR182: 0 | BS182: 0 | BT182: 0 | BU182: 0 | BV182: 0 | BW182: =BW181*BW177 -> 0 | BX182: 0 | BY182: 0 | BZ182: 0 | CA182: 0 | CB182: 0 | CC182: 0 | CD182: 0 | CE182: 0 | CF182: 0 | CG182: 0 | CH182: 0 | CI182: 0 | CJ182: 0 | CK182: 0 | CL182: 0 | CM182: 0 | CN182: 0 | CO182: 0 | CP182: 0 | CQ182: 0 | CR182: 0 | CS182: 0 | CT182: 0 | CU182: 0 | CV182: 0 | CW182: 0 | CX182: 0 | CY182: 0 | CZ182: 0 | DA182: 0 | DB182: 0 | DC182: 0 | DD182: 0 | DE182: 0 | DF182: 0 | DG182: 0 | DH182: 0 | DI182: 0 | DJ182: 0 | DK182: 0 | DL182: 0 | DM182: 0 | DN182: 0 | DO182: 0 | DP182: 0 | DQ182: 0 | DR182: 0 | DS182: 0 | DT182: 0 | DU182: 0 | DV182: 0 | DW182: 0 | DX182: 0 | DY182: 0 | DZ182: 0 | EA182: 0 | EB182: 0 | EC182: 0 | ED182: 0 | EE182: 0 | EF182: 0 | EG182: 0 | EH182: 0 | EI182: =EI181*EI177 -> 0 | EJ182: 0 | EK182: 0 | EL182: 0 | EM182: 0 | EN182: 0 | EO182: 0 | EP182: 0 | EQ182: 0 | ER182: 0 | ES182: 0 | ET182: 0 | EU182: 0 | EV182: 0 | EW182: 0 | EX182: 0 | EY182: 0 | EZ182: 0
C183: Target DSCR | G183: =F37 -> 1.27 | J183: =$G$183 -> 1.27 | K183: 1.27 | L183: 1.27 | M183: 1.27 | N183: 1.27 | O183: 1.27 | P183: 1.27 | Q183: 1.27 | R183: 1.27 | S183: 1.27 | T183: 1.27 | U183: 1.27 | V183: 1.27 | W183: 1.27 | X183: 1.27 | Y183: 1.27 | Z183: 1.27 | AA183: 1.27 | AB183: 1.27 | AC183: 1.27 | AD183: 1.27 | AE183: 1.27 | AF183: 1.27 | AG183: 1.27 | AH183: 1.27 | AI183: 1.27 | AJ183: 1.27 | AK183: 1.27 | AL183: 1.27 | AM183: 1.27 | AN183: 1.27 | AO183: 1.27 | AP183: =$G$183 -> 1.27 | AQ183: 1.27 | AR183: 1.27 | AS183: 1.27 | AT183: 1.27 | AU183: 1.27 | AV183: 1.27 | AW183: 1.27 | AX183: 1.27 | AY183: 1.27 | AZ183: 1.27 | BA183: 1.27 | BB183: 1.27 | BC183: 1.27 | BD183: 1.27 | BE183: 1.27 | BF183: 1.27 | BG183: 1.27 | BH183: 1.27 | BI183: 1.27 | BJ183: 1.27 | BK183: 1.27 | BL183: 1.27 | BM183: 1.27 | BN183: 1.27 | BO183: 1.27 | BP183: 1.27 | BQ183: 1.27 | BR183: 1.27 | BS183: 1.27 | BT183: 1.27 | BU183: 1.27 | BV183: =$G$183 -> 1.27 | BW183: 1.27 | BX183: 1.27 | BY183: 1.27 | BZ183: 1.27 | CA183: 1.27 | CB183: 1.27 | CC183: 1.27 | CD183: 1.27 | CE183: 1.27 | CF183: 1.27 | CG183: 1.27 | CH183: 1.27 | CI183: 1.27 | CJ183: 1.27 | CK183: 1.27 | CL183: 1.27 | CM183: 1.27 | CN183: 1.27 | CO183: 1.27 | CP183: 1.27 | CQ183: 1.27 | CR183: 1.27 | CS183: 1.27 | CT183: 1.27 | CU183: 1.27 | CV183: 1.27 | CW183: 1.27 | CX183: 1.27 | CY183: 1.27 | CZ183: 1.27 | DA183: 1.27 | DB183: =$G$183 -> 1.27 | DC183: 1.27 | DD183: 1.27 | DE183: 1.27 | DF183: 1.27 | DG183: 1.27 | DH183: 1.27 | DI183: 1.27 | DJ183: 1.27 | DK183: 1.27 | DL183: 1.27 | DM183: 1.27 | DN183: 1.27 | DO183: 1.27 | DP183: 1.27 | DQ183: 1.27 | DR183: 1.27 | DS183: 1.27 | DT183: 1.27 | DU183: 1.27 | DV183: 1.27 | DW183: 1.27 | DX183: 1.27 | DY183: 1.27 | DZ183: 1.27 | EA183: 1.27 | EB183: 1.27 | EC183: 1.27 | ED183: 1.27 | EE183: 1.27 | EF183: 1.27 | EG183: 1.27 | EH183: =$G$183 -> 1.27 | EI183: 1.27 | EJ183: 1.27 | EK183: 1.27 | EL183: 1.27 | EM183: 1.27 | EN183: 1.27 | EO183: 1.27 | EP183: 1.27 | EQ183: 1.27 | ER183: 1.27 | ES183: 1.27 | ET183: 1.27 | EU183: 1.27 | EV183: 1.27 | EW183: 1.27 | EX183: 1.27 | EY183: 1.27 | EZ183: 1.27
C184: Senior Debt Service | E184: =F75 -> 36 | J184: =J182/J183 -> 0 | K184: =K182/K183 -> 0 | L184: 0 | M184: 0 | N184: 0 | O184: 0 | P184: 0 | Q184: 0 | R184: 0 | S184: 0 | T184: 0 | U184: 0 | V184: 0 | W184: 0 | X184: 0 | Y184: 0 | Z184: 0 | AA184: 0 | AB184: 0 | AC184: 0 | AD184: 0 | AE184: 0 | AF184: 4158.778471 | AG184: 4293.747454 | AH184: 4241.954041 | AI184: =AI182/AI183 -> 4378.097785 | AJ184: 4118.320057 | AK184: 4223.164721 | AL184: 4200.021099 | AM184: 4302.860474 | AN184: 4252.40133 | AO184: 4360.801134 | AP184: 4309.059976 | AQ184: 4419.35096 | AR184: 4366.294118 | AS184: 4478.505959 | AT184: 4452.12884 | AU184: 4555.889094 | AV184: 4499.744056 | AW184: 4615.53093 | AX184: 4557.918098 | AY184: 4675.67042 | AZ184: 4616.549559 | BA184: 4736.295587 | BB184: 4705.965871 | BC184: 4809.68946 | BD184: 4746.873308 | BE184: 4870.127874 | BF184: 4805.616076 | BG184: 4930.889078 | BH184: 4864.632933 | BI184: 4991.949703 | BJ184: 4956.740631 | BK184: 5053.176296 | BL184: 4983.277603 | BM184: 5114.756046 | BN184: 5042.957819 | BO184: 5176.555899 | BP184: 5102.803263 | BQ184: 0 | BR184: 0 | BS184: 0 | BT184: 0 | BU184: 0 | BV184: 0 | BW184: 0 | BX184: 0 | BY184: 0 | BZ184: 0 | CA184: 0 | CB184: 0 | CC184: 0 | CD184: 0 | CE184: 0 | CF184: 0 | CG184: 0 | CH184: 0 | CI184: 0 | CJ184: 0 | CK184: 0 | CL184: 0 | CM184: 0 | CN184: 0 | CO184: 0 | CP184: 0 | CQ184: 0 | CR184: 0 | CS184: 0 | CT184: 0 | CU184: =CU182/CU183 -> 0 | CV184: 0 | CW184: 0 | CX184: 0 | CY184: 0 | CZ184: 0 | DA184: 0 | DB184: 0 | DC184: 0 | DD184: 0 | DE184: 0 | DF184: 0 | DG184: 0 | DH184: 0 | DI184: 0 | DJ184: 0 | DK184: 0 | DL184: 0 | DM184: 0 | DN184: 0 | DO184: 0 | DP184: 0 | DQ184: 0 | DR184: 0 | DS184: 0 | DT184: 0 | DU184: 0 | DV184: 0 | DW184: 0 | DX184: 0 | DY184: 0 | DZ184: 0 | EA184: 0 | EB184: 0 | EC184: 0 | ED184: 0 | EE184: 0 | EF184: 0 | EG184: 0 | EH184: 0 | EI184: 0 | EJ184: 0 | EK184: 0 | EL184: 0 | EM184: 0 | EN184: 0 | EO184: 0 | EP184: 0 | EQ184: 0 | ER184: 0 | ES184: 0 | ET184: 0 | EU184: 0 | EV184: 0 | EW184: 0 | EX184: 0 | EY184: 0 | EZ184: 0
C185: Interest Rate | J185: =LOOKUP(J4,47:47,50:50)/12*J3 -> 0.0025 | K185: 0.0025 | L185: 0.0025 | M185: 0.0025 | N185: 0.0025 | O185: 0.0025 | P185: 0.0025 | Q185: 0.0025 | R185: 0.0025 | S185: 0.0025 | T185: 0.0025 | U185: 0.0025 | V185: 0.0025 | W185: 0.0025 | X185: 0.0025 | Y185: 0.0025 | Z185: 0.0025 | AA185: 0.0025 | AB185: 0.0025 | AC185: 0.0025 | AD185: 0.0025 | AE185: 0.01625 | AF185: 0.01625 | AG185: 0.01625 | AH185: 0.01625 | AI185: 0.01625 | AJ185: 0.01625 | AK185: 0.01625 | AL185: 0.01625 | AM185: 0.0175 | AN185: 0.0175 | AO185: 0.0175 | AP185: =LOOKUP(AP4,47:47,50:50)/12*AP3 -> 0.0175 | AQ185: 0.0175 | AR185: 0.0175 | AS185: 0.0175 | AT185: 0.0175 | AU185: 0.01875 | AV185: 0.01875 | AW185: 0.01875 | AX185: 0.01875 | AY185: 0.01875 | AZ185: 0.01875 | BA185: 0.01875 | BB185: 0.01875 | BC185: 0.02 | BD185: 0.02 | BE185: 0.02 | BF185: 0.02 | BG185: 0.02 | BH185: 0.02 | BI185: 0.02 | BJ185: 0.02 | BK185: 0.02 | BL185: 0.02 | BM185: 0.02 | BN185: 0.02 | BO185: 0.02 | BP185: 0.02 | BQ185: 0.02 | BR185: 0.02 | BS185: 0.02 | BT185: 0.02 | BU185: 0.02 | BV185: =LOOKUP(BV4,47:47,50:50)/12*BV3 -> 0.02 | BW185: 0.02 | BX185: 0.02 | BY185: 0.02 | BZ185: 0.02 | CA185: 0.02 | CB185: 0.02 | CC185: 0.02 | CD185: 0.02 | CE185: 0.02 | CF185: 0.02 | CG185: 0.02 | CH185: 0.02 | CI185: 0.02 | CJ185: 0.02 | CK185: 0.02 | CL185: 0.02 | CM185: 0.02 | CN185: 0.02 | CO185: 0.02 | CP185: 0.02 | CQ185: 0.02 | CR185: 0.02 | CS185: 0.02 | CT185: 0.02 | CU185: 0.02 | CV185: 0.02 | CW185: 0.02 | CX185: 0.02 | CY185: 0.02 | CZ185: 0.02 | DA185: 0.02 | DB185: =LOOKUP(DB4,47:47,50:50)/12*DB3 -> 0.02 | DC185: 0.02 | DD185: 0.02 | DE185: 0.02 | DF185: 0.02 | DG185: 0.02 | DH185: 0.02 | DI185: 0.02 | DJ185: 0.02 | DK185: 0.02 | DL185: 0.02 | DM185: 0.02 | DN185: 0.02 | DO185: 0.02 | DP185: 0.02 | DQ185: 0.02 | DR185: 0.02 | DS185: 0.02 | DT185: 0.02 | DU185: 0.02 | DV185: 0.02 | DW185: 0.02 | DX185: 0.02 | DY185: 0.02 | DZ185: 0.02 | EA185: 0.02 | EB185: 0.02 | EC185: 0.02 | ED185: 0.02 | EE185: 0.02 | EF185: 0.02 | EG185: 0.02 | EH185: =LOOKUP(EH4,47:47,50:50)/12*EH3 -> 0.02 | EI185: 0.02 | EJ185: 0.02 | EK185: 0.02 | EL185: 0.02 | EM185: 0.02 | EN185: 0.02 | EO185: 0.02 | EP185: 0.02 | EQ185: 0.02 | ER185: 0.02 | ES185: 0.02 | ET185: 0.02 | EU185: 0.02 | EV185: 0.02 | EW185: 0.02 | EX185: 0.02 | EY185: 0.02 | EZ185: 0.02
C186: Interest Rate Index | I186: 1 | J186: =I186*(1+J181*J185) -> 1 | K186: =J186*(1+K181*K185) -> 1 | L186: 1 | M186: 1 | N186: 1 | O186: 1 | P186: 1 | Q186: 1 | R186: 1 | S186: 1 | T186: 1 | U186: 1 | V186: 1 | W186: 1 | X186: 1 | Y186: 1 | Z186: 1 | AA186: 1 | AB186: 1 | AC186: 1 | AD186: 1 | AE186: 1.01625 | AF186: 1.032764063 | AG186: 1.049546479 | AH186: 1.066601609 | AI186: 1.083933885 | AJ186: 1.101547811 | AK186: 1.119447962 | AL186: 1.137638992 | AM186: 1.157547674 | AN186: 1.177804759 | AO186: 1.198416342 | AP186: 1.219388628 | AQ186: 1.240727929 | AR186: 1.262440668 | AS186: 1.284533379 | AT186: 1.307012713 | AU186: 1.331519202 | AV186: 1.356485187 | AW186: 1.381919284 | AX186: 1.407830271 | AY186: 1.434227088 | AZ186: 1.461118846 | BA186: 1.488514824 | BB186: 1.516424477 | BC186: 1.546752967 | BD186: 1.577688026 | BE186: 1.609241787 | BF186: 1.641426623 | BG186: 1.674255155 | BH186: 1.707740258 | BI186: 1.741895063 | BJ186: 1.776732965 | BK186: 1.812267624 | BL186: 1.848512976 | BM186: 1.885483236 | BN186: 1.923192901 | BO186: 1.961656759 | BP186: 2.000889894 | BQ186: 2.000889894 | BR186: 2.000889894 | BS186: 2.000889894 | BT186: 2.000889894 | BU186: 2.000889894 | BV186: 2.000889894 | BW186: =BV186*(1+BW181*BW185) -> 2.000889894 | BX186: 2.000889894 | BY186: 2.000889894 | BZ186: 2.000889894 | CA186: 2.000889894 | CB186: 2.000889894 | CC186: 2.000889894 | CD186: 2.000889894 | CE186: 2.000889894 | CF186: 2.000889894 | CG186: 2.000889894 | CH186: 2.000889894 | CI186: 2.000889894 | CJ186: 2.000889894 | CK186: 2.000889894 | CL186: 2.000889894 | CM186: 2.000889894 | CN186: 2.000889894 | CO186: 2.000889894 | CP186: 2.000889894 | CQ186: 2.000889894 | CR186: 2.000889894 | CS186: 2.000889894 | CT186: 2.000889894 | CU186: 2.000889894 | CV186: 2.000889894 | CW186: 2.000889894 | CX186: 2.000889894 | CY186: 2.000889894 | CZ186: 2.000889894 | DA186: 2.000889894 | DB186: 2.000889894 | DC186: 2.000889894 | DD186: 2.000889894 | DE186: 2.000889894 | DF186: 2.000889894 | DG186: 2.000889894 | DH186: 2.000889894 | DI186: 2.000889894 | DJ186: 2.000889894 | DK186: 2.000889894 | DL186: 2.000889894 | DM186: 2.000889894 | DN186: 2.000889894 | DO186: 2.000889894 | DP186: 2.000889894 | DQ186: 2.000889894 | DR186: 2.000889894 | DS186: 2.000889894 | DT186: 2.000889894 | DU186: 2.000889894 | DV186: 2.000889894 | DW186: 2.000889894 | DX186: 2.000889894 | DY186: 2.000889894 | DZ186: 2.000889894 | EA186: 2.000889894 | EB186: 2.000889894 | EC186: 2.000889894 | ED186: 2.000889894 | EE186: 2.000889894 | EF186: 2.000889894 | EG186: 2.000889894 | EH186: 2.000889894 | EI186: =EH186*(1+EI181*EI185) -> 2.000889894 | EJ186: 2.000889894 | EK186: 2.000889894 | EL186: 2.000889894 | EM186: 2.000889894 | EN186: 2.000889894 | EO186: 2.000889894 | EP186: 2.000889894 | EQ186: 2.000889894 | ER186: 2.000889894 | ES186: 2.000889894 | ET186: 2.000889894 | EU186: 2.000889894 | EV186: 2.000889894 | EW186: 2.000889894 | EX186: 2.000889894 | EY186: 2.000889894 | EZ186: 2.000889894
C187: PV of Debt Service | E187: =SUMPRODUCT(J184:EZ184/J186:EZ186) -> 121301.7268 | BD187: ='Parallel Model P50'!BD276 -> 1.572792527 | BE187: ='Parallel Model P50'!BE276 -> 1.60042646 | BF187: ='Parallel Model P50'!BF276 -> 1.62854592 | BG187: ='Parallel Model P50'!BG276 -> 1.657159439 | BH187: ='Parallel Model P50'!BH276 -> 1.686275697 | BI187: ='Parallel Model P50'!BI276 -> 1.715903527 | BJ187: ='Parallel Model P50'!BJ276 -> 1.746051918 | BK187: ='Parallel Model P50'!BK276 -> 1.776730015 | BL187: ='Parallel Model P50'!BL276 -> 1.807947126 | BM187: ='Parallel Model P50'!BM276 -> 1.83971272 | BN187: ='Parallel Model P50'!BN276 -> 1.872036436 | BO187: ='Parallel Model P50'!BO276 -> 1.904928078 | BP187: ='Parallel Model P50'!BP276 -> 1.938397626 | BQ187: ='Parallel Model P50'!BQ276 -> 1 | BR187: ='Parallel Model P50'!BR276 -> 1 | BS187: ='Parallel Model P50'!BS276 -> 1 | BT187: ='Parallel Model P50'!BT276 -> 1 | BU187: ='Parallel Model P50'!BU276 -> 1 | BV187: ='Parallel Model P50'!BV276 -> 1 | BW187: ='Parallel Model P50'!BW276 -> 1 | BX187: ='Parallel Model P50'!BX276 -> 1 | BY187: ='Parallel Model P50'!BY276 -> 1 | BZ187: ='Parallel Model P50'!BZ276 -> 1 | CA187: ='Parallel Model P50'!CA276 -> 1 | CB187: ='Parallel Model P50'!CB276 -> 1 | CC187: ='Parallel Model P50'!CC276 -> 1 | CD187: ='Parallel Model P50'!CD276 -> 1 | CE187: ='Parallel Model P50'!CE276 -> 1 | CF187: ='Parallel Model P50'!CF276 -> 1 | CG187: ='Parallel Model P50'!CG276 -> 1 | CH187: ='Parallel Model P50'!CH276 -> 1 | CI187: ='Parallel Model P50'!CI276 -> 1 | CJ187: ='Parallel Model P50'!CJ276 -> 1 | CK187: ='Parallel Model P50'!CK276 -> 1 | CL187: ='Parallel Model P50'!CL276 -> 1 | CM187: ='Parallel Model P50'!CM276 -> 1 | CN187: ='Parallel Model P50'!CN276 -> 1 | CO187: ='Parallel Model P50'!CO276 -> 1 | CP187: ='Parallel Model P50'!CP276 -> 1 | CQ187: ='Parallel Model P50'!CQ276 -> 1 | CR187: ='Parallel Model P50'!CR276 -> 1 | CS187: ='Parallel Model P50'!CS276 -> 1 | CT187: ='Parallel Model P50'!CT276 -> 1 | CU187: ='Parallel Model P50'!CU276 -> 1 | CV187: ='Parallel Model P50'!CV276 -> 1 | CW187: ='Parallel Model P50'!CW276 -> 0 | CX187: ='Parallel Model P50'!CX276 -> 0 | CY187: ='Parallel Model P50'!CY276 -> 0 | CZ187: ='Parallel Model P50'!CZ276 -> 0 | DA187: ='Parallel Model P50'!DA276 -> 0 | DB187: ='Parallel Model P50'!DB276 -> 0 | DC187: ='Parallel Model P50'!DC276 -> 0 | DD187: ='Parallel Model P50'!DD276 -> 0 | DE187: ='Parallel Model P50'!DE276 -> 0 | DF187: ='Parallel Model P50'!DF276 -> 0 | DG187: ='Parallel Model P50'!DG276 -> 0 | DH187: ='Parallel Model P50'!DH276 -> 0 | DI187: ='Parallel Model P50'!DI276 -> 0 | DJ187: ='Parallel Model P50'!DJ276 -> 0 | DK187: ='Parallel Model P50'!DK276 -> 0 | DL187: ='Parallel Model P50'!DL276 -> 0 | DM187: ='Parallel Model P50'!DM276 -> 0 | DN187: ='Parallel Model P50'!DN276 -> 0 | DO187: ='Parallel Model P50'!DO276 -> 0 | DP187: ='Parallel Model P50'!DP276 -> 0 | DQ187: ='Parallel Model P50'!DQ276 -> 0 | DR187: ='Parallel Model P50'!DR276 -> 0 | DS187: ='Parallel Model P50'!DS276 -> 0 | DT187: ='Parallel Model P50'!DT276 -> 0 | DU187: ='Parallel Model P50'!DU276 -> 0 | DV187: ='Parallel Model P50'!DV276 -> 0 | DW187: ='Parallel Model P50'!DW276 -> 0 | DX187: ='Parallel Model P50'!DX276 -> 0 | DY187: ='Parallel Model P50'!DY276 -> 0 | DZ187: ='Parallel Model P50'!DZ276 -> 0 | EA187: ='Parallel Model P50'!EA276 -> 0 | EB187: ='Parallel Model P50'!EB276 -> 0 | EC187: ='Parallel Model P50'!EC276 -> 0 | ED187: ='Parallel Model P50'!ED276 -> 0 | EE187: ='Parallel Model P50'!EE276 -> 0 | EF187: ='Parallel Model P50'!EF276 -> 0 | EG187: ='Parallel Model P50'!EG276 -> 0 | EH187: ='Parallel Model P50'!EH276 -> 0 | EI187: ='Parallel Model P50'!EI276 -> 0 | EJ187: ='Parallel Model P50'!EJ276 -> 0 | EK187: ='Parallel Model P50'!EK276 -> 0 | EL187: ='Parallel Model P50'!EL276 -> 0 | EM187: ='Parallel Model P50'!EM276 -> 0 | EN187: ='Parallel Model P50'!EN276 -> 0 | EO187: ='Parallel Model P50'!EO276 -> 0 | EP187: ='Parallel Model P50'!EP276 -> 0 | EQ187: ='Parallel Model P50'!EQ276 -> 0 | ER187: ='Parallel Model P50'!ER276 -> 0 | ES187: ='Parallel Model P50'!ES276 -> 0 | ET187: ='Parallel Model P50'!ET276 -> 0 | EU187: ='Parallel Model P50'!EU276 -> 0 | EV187: ='Parallel Model P50'!EV276 -> 0 | EW187: ='Parallel Model P50'!EW276 -> 0 | EX187: ='Parallel Model P50'!EX276 -> 0 | EY187: ='Parallel Model P50'!EY276 -> 0 | EZ187: ='Parallel Model P50'!EZ276 -> 0
C188: PV of Debt Service from Parallel Model | E188: ='Parallel Model P50'!S175 -> 121301.7268 | J188: ='Parallel Model P50'!J269 -> 0 | K188: ='Parallel Model P50'!K269 -> 0 | L188: ='Parallel Model P50'!L269 -> 0 | M188: ='Parallel Model P50'!M269 -> 0 | N188: ='Parallel Model P50'!N269 -> 0 | O188: ='Parallel Model P50'!O269 -> 0 | P188: ='Parallel Model P50'!P269 -> 0 | Q188: ='Parallel Model P50'!Q269 -> 0 | R188: ='Parallel Model P50'!R269 -> 0 | S188: ='Parallel Model P50'!S269 -> 0 | T188: ='Parallel Model P50'!T269 -> 0 | U188: ='Parallel Model P50'!U269 -> 0 | V188: ='Parallel Model P50'!V269 -> 0 | W188: ='Parallel Model P50'!W269 -> 0 | X188: ='Parallel Model P50'!X269 -> 0 | Y188: ='Parallel Model P50'!Y269 -> 0 | Z188: ='Parallel Model P50'!Z269 -> 0 | AA188: ='Parallel Model P50'!AA269 -> 0 | AB188: ='Parallel Model P50'!AB269 -> 0 | AC188: ='Parallel Model P50'!AC269 -> 0 | AD188: ='Parallel Model P50'!AD269 -> 0 | AE188: ='Parallel Model P50'!AE269 -> 0 | AF188: ='Parallel Model P50'!AF269 -> 4158.778469 | AG188: ='Parallel Model P50'!AG269 -> 4293.747452 | AH188: ='Parallel Model P50'!AH269 -> 4241.954039 | AI188: ='Parallel Model P50'!AI269 -> 4378.097784 | AJ188: ='Parallel Model P50'!AJ269 -> 4118.320056 | AK188: ='Parallel Model P50'!AK269 -> 4223.164719 | AL188: ='Parallel Model P50'!AL269 -> 4200.021098 | AM188: ='Parallel Model P50'!AM269 -> 4302.860472 | AN188: ='Parallel Model P50'!AN269 -> 4252.401328 | AO188: ='Parallel Model P50'!AO269 -> 4360.801133 | AP188: ='Parallel Model P50'!AP269 -> 4309.059974 | AQ188: ='Parallel Model P50'!AQ269 -> 4419.350958 | AR188: ='Parallel Model P50'!AR269 -> 4366.294116 | AS188: ='Parallel Model P50'!AS269 -> 4478.505957 | AT188: ='Parallel Model P50'!AT269 -> 4452.128839 | AU188: ='Parallel Model P50'!AU269 -> 4555.889092 | AV188: ='Parallel Model P50'!AV269 -> 4499.744054 | AW188: ='Parallel Model P50'!AW269 -> 4615.530928 | AX188: ='Parallel Model P50'!AX269 -> 4557.918096 | AY188: ='Parallel Model P50'!AY269 -> 4675.670418 | AZ188: ='Parallel Model P50'!AZ269 -> 4616.549557 | BA188: ='Parallel Model P50'!BA269 -> 4736.295585 | BB188: ='Parallel Model P50'!BB269 -> 4705.965869 | BC188: ='Parallel Model P50'!BC269 -> 4809.689458 | BD188: ='Parallel Model P50'!BD269 -> 4746.873306 | BE188: ='Parallel Model P50'!BE269 -> 4870.127871 | BF188: ='Parallel Model P50'!BF269 -> 4805.616074 | BG188: ='Parallel Model P50'!BG269 -> 4930.889076 | BH188: ='Parallel Model P50'!BH269 -> 4864.632931 | BI188: ='Parallel Model P50'!BI269 -> 4991.9497 | BJ188: ='Parallel Model P50'!BJ269 -> 4956.740629 | BK188: ='Parallel Model P50'!BK269 -> 5053.176294 | BL188: ='Parallel Model P50'!BL269 -> 4983.2776 | BM188: ='Parallel Model P50'!BM269 -> 5114.756044 | BN188: ='Parallel Model P50'!BN269 -> 5042.957817 | BO188: ='Parallel Model P50'!BO269 -> 5176.555897 | BP188: ='Parallel Model P50'!BP269 -> 5102.803261 | BQ188: ='Parallel Model P50'!BQ269 -> 0 | BR188: ='Parallel Model P50'!BR269 -> 0 | BS188: ='Parallel Model P50'!BS269 -> 0 | BT188: ='Parallel Model P50'!BT269 -> 0 | BU188: ='Parallel Model P50'!BU269 -> 0 | BV188: ='Parallel Model P50'!BV269 -> 0 | BW188: ='Parallel Model P50'!BW269 -> 0 | BX188: ='Parallel Model P50'!BX269 -> 0 | BY188: ='Parallel Model P50'!BY269 -> 0 | BZ188: ='Parallel Model P50'!BZ269 -> 0 | CA188: ='Parallel Model P50'!CA269 -> 0 | CB188: ='Parallel Model P50'!CB269 -> 0 | CC188: ='Parallel Model P50'!CC269 -> 0 | CD188: ='Parallel Model P50'!CD269 -> 0 | CE188: ='Parallel Model P50'!CE269 -> 0 | CF188: ='Parallel Model P50'!CF269 -> 0 | CG188: ='Parallel Model P50'!CG269 -> 0 | CH188: ='Parallel Model P50'!CH269 -> 0 | CI188: ='Parallel Model P50'!CI269 -> 0 | CJ188: ='Parallel Model P50'!CJ269 -> 0 | CK188: ='Parallel Model P50'!CK269 -> 0 | CL188: ='Parallel Model P50'!CL269 -> 0 | CM188: ='Parallel Model P50'!CM269 -> 0 | CN188: ='Parallel Model P50'!CN269 -> 0 | CO188: ='Parallel Model P50'!CO269 -> 0 | CP188: ='Parallel Model P50'!CP269 -> 0 | CQ188: ='Parallel Model P50'!CQ269 -> 0 | CR188: ='Parallel Model P50'!CR269 -> 0 | CS188: ='Parallel Model P50'!CS269 -> 0 | CT188: ='Parallel Model P50'!CT269 -> 0 | CU188: ='Parallel Model P50'!CU269 -> 0 | CV188: ='Parallel Model P50'!CV269 -> 0 | CW188: ='Parallel Model P50'!CW269 -> 0 | CX188: ='Parallel Model P50'!CX269 -> 0 | CY188: ='Parallel Model P50'!CY269 -> 0 | CZ188: ='Parallel Model P50'!CZ269 -> 0 | DA188: ='Parallel Model P50'!DA269 -> 0 | DB188: ='Parallel Model P50'!DB269 -> 0 | DC188: ='Parallel Model P50'!DC269 -> 0 | DD188: ='Parallel Model P50'!DD269 -> 0 | DE188: ='Parallel Model P50'!DE269 -> 0 | DF188: ='Parallel Model P50'!DF269 -> 0 | DG188: ='Parallel Model P50'!DG269 -> 0 | DH188: ='Parallel Model P50'!DH269 -> 0 | DI188: ='Parallel Model P50'!DI269 -> 0 | DJ188: ='Parallel Model P50'!DJ269 -> 0 | DK188: ='Parallel Model P50'!DK269 -> 0 | DL188: ='Parallel Model P50'!DL269 -> 0 | DM188: ='Parallel Model P50'!DM269 -> 0 | DN188: ='Parallel Model P50'!DN269 -> 0 | DO188: ='Parallel Model P50'!DO269 -> 0 | DP188: ='Parallel Model P50'!DP269 -> 0 | DQ188: ='Parallel Model P50'!DQ269 -> 0 | DR188: ='Parallel Model P50'!DR269 -> 0 | DS188: ='Parallel Model P50'!DS269 -> 0 | DT188: ='Parallel Model P50'!DT269 -> 0 | DU188: ='Parallel Model P50'!DU269 -> 0 | DV188: ='Parallel Model P50'!DV269 -> 0 | DW188: ='Parallel Model P50'!DW269 -> 0 | DX188: ='Parallel Model P50'!DX269 -> 0 | DY188: ='Parallel Model P50'!DY269 -> 0 | DZ188: ='Parallel Model P50'!DZ269 -> 0 | EA188: ='Parallel Model P50'!EA269 -> 0 | EB188: ='Parallel Model P50'!EB269 -> 0 | EC188: ='Parallel Model P50'!EC269 -> 0 | ED188: ='Parallel Model P50'!ED269 -> 0 | EE188: ='Parallel Model P50'!EE269 -> 0 | EF188: ='Parallel Model P50'!EF269 -> 0 | EG188: ='Parallel Model P50'!EG269 -> 0 | EH188: ='Parallel Model P50'!EH269 -> 0 | EI188: ='Parallel Model P50'!EI269 -> 0 | EJ188: ='Parallel Model P50'!EJ269 -> 0 | EK188: ='Parallel Model P50'!EK269 -> 0 | EL188: ='Parallel Model P50'!EL269 -> 0 | EM188: ='Parallel Model P50'!EM269 -> 0 | EN188: ='Parallel Model P50'!EN269 -> 0 | EO188: ='Parallel Model P50'!EO269 -> 0 | EP188: ='Parallel Model P50'!EP269 -> 0 | EQ188: ='Parallel Model P50'!EQ269 -> 0 | ER188: ='Parallel Model P50'!ER269 -> 0 | ES188: ='Parallel Model P50'!ES269 -> 0 | ET188: ='Parallel Model P50'!ET269 -> 0 | EU188: ='Parallel Model P50'!EU269 -> 0 | EV188: ='Parallel Model P50'!EV269 -> 0 | EW188: ='Parallel Model P50'!EW269 -> 0 | EX188: ='Parallel Model P50'!EX269 -> 0 | EY188: ='Parallel Model P50'!EY269 -> 0 | EZ188: ='Parallel Model P50'!EZ269 -> 0
B190: Base Debt Size - P99 Case
C191: CFADS - P99 | J191: =J178*J181 -> 0 | K191: =K178*K181 -> 0 | L191: 0 | M191: 0 | N191: 0 | O191: 0 | P191: 0 | Q191: 0 | R191: 0 | S191: 0 | T191: 0 | U191: 0 | V191: 0 | W191: 0 | X191: 0 | Y191: 0 | Z191: 0 | AA191: 0 | AB191: 0 | AC191: 0 | AD191: 0 | AE191: 0 | AF191: 3401.925953 | AG191: 3523.166753 | AH191: 3469.964472 | AI191: 3593.630088 | AJ191: 3539.363762 | AK191: 3665.50269 | AL191: 3640.759442 | AM191: 3738.812744 | AN191: 3682.354058 | AO191: 3813.588999 | AP191: 3756.001139 | AQ191: 3889.860779 | AR191: 3831.121162 | AS191: 3967.657994 | AT191: 3940.875107 | AU191: 4047.011154 | AV191: 3985.898457 | AW191: 4127.951377 | AX191: 4065.616426 | AY191: 4210.510405 | AZ191: 4146.928754 | BA191: 4294.720613 | BB191: 4265.729954 | BC191: 4380.615025 | BD191: 4314.464676 | BE191: 4468.227326 | BF191: 4232.616852 | BG191: 4260.232705 | BH191: 4191.221138 | BI191: 4302.956602 | BJ191: 4262.759372 | BK191: 4345.454052 | BL191: 4272.683231 | BM191: 4387.946276 | BN191: 4313.217118 | BO191: 4430.274557 | BP191: 4353.531876 | BQ191: 0 | BR191: 0 | BS191: 0 | BT191: 0 | BU191: 0 | BV191: 0 | BW191: =BW178*BW181 -> 0 | BX191: 0 | BY191: 0 | BZ191: 0 | CA191: 0 | CB191: 0 | CC191: 0 | CD191: 0 | CE191: 0 | CF191: 0 | CG191: 0 | CH191: 0 | CI191: 0 | CJ191: 0 | CK191: 0 | CL191: 0 | CM191: 0 | CN191: 0 | CO191: 0 | CP191: 0 | CQ191: 0 | CR191: 0 | CS191: 0 | CT191: 0 | CU191: 0 | CV191: 0 | CW191: 0 | CX191: 0 | CY191: 0 | CZ191: 0 | DA191: 0 | DB191: 0 | DC191: 0 | DD191: 0 | DE191: 0 | DF191: 0 | DG191: 0 | DH191: 0 | DI191: 0 | DJ191: 0 | DK191: 0 | DL191: 0 | DM191: 0 | DN191: 0 | DO191: 0 | DP191: 0 | DQ191: 0 | DR191: 0 | DS191: 0 | DT191: 0 | DU191: 0 | DV191: 0 | DW191: 0 | DX191: 0 | DY191: 0 | DZ191: 0 | EA191: 0 | EB191: 0 | EC191: 0 | ED191: 0 | EE191: 0 | EF191: 0 | EG191: 0 | EH191: 0 | EI191: =EI178*EI181 -> 0 | EJ191: 0 | EK191: 0 | EL191: 0 | EM191: 0 | EN191: 0 | EO191: 0 | EP191: 0 | EQ191: 0 | ER191: 0 | ES191: 0 | ET191: 0 | EU191: 0 | EV191: 0 | EW191: 0 | EX191: 0 | EY191: 0 | EZ191: 0
C192: Target DSCR | G192: =F36 -> 1 | J192: =$G$192 -> 1 | K192: 1 | L192: 1 | M192: 1 | N192: 1 | O192: 1 | P192: 1 | Q192: 1 | R192: 1 | S192: 1 | T192: 1 | U192: 1 | V192: 1 | W192: 1 | X192: 1 | Y192: 1 | Z192: 1 | AA192: 1 | AB192: 1 | AC192: 1 | AD192: 1 | AE192: 1 | AF192: 1 | AG192: 1 | AH192: 1 | AI192: 1 | AJ192: 1 | AK192: 1 | AL192: 1 | AM192: 1 | AN192: 1 | AO192: 1 | AP192: =$G$192 -> 1 | AQ192: 1 | AR192: 1 | AS192: 1 | AT192: 1 | AU192: 1 | AV192: 1 | AW192: 1 | AX192: 1 | AY192: 1 | AZ192: 1 | BA192: 1 | BB192: 1 | BC192: 1 | BD192: 1 | BE192: 1 | BF192: 1 | BG192: 1 | BH192: 1 | BI192: 1 | BJ192: 1 | BK192: 1 | BL192: 1 | BM192: 1 | BN192: 1 | BO192: 1 | BP192: 1 | BQ192: 1 | BR192: 1 | BS192: 1 | BT192: 1 | BU192: 1 | BV192: =$G$192 -> 1 | BW192: 1 | BX192: 1 | BY192: 1 | BZ192: 1 | CA192: 1 | CB192: 1 | CC192: 1 | CD192: 1 | CE192: 1 | CF192: 1 | CG192: 1 | CH192: 1 | CI192: 1 | CJ192: 1 | CK192: 1 | CL192: 1 | CM192: 1 | CN192: 1 | CO192: 1 | CP192: 1 | CQ192: 1 | CR192: 1 | CS192: 1 | CT192: 1 | CU192: 1 | CV192: 1 | CW192: 1 | CX192: 1 | CY192: 1 | CZ192: 1 | DA192: 1 | DB192: =$G$192 -> 1 | DC192: 1 | DD192: 1 | DE192: 1 | DF192: 1 | DG192: 1 | DH192: 1 | DI192: 1 | DJ192: 1 | DK192: 1 | DL192: 1 | DM192: 1 | DN192: 1 | DO192: 1 | DP192: 1 | DQ192: 1 | DR192: 1 | DS192: 1 | DT192: 1 | DU192: 1 | DV192: 1 | DW192: 1 | DX192: 1 | DY192: 1 | DZ192: 1 | EA192: 1 | EB192: 1 | EC192: 1 | ED192: 1 | EE192: 1 | EF192: 1 | EG192: 1 | EH192: =$G$192 -> 1 | EI192: 1 | EJ192: 1 | EK192: 1 | EL192: 1 | EM192: 1 | EN192: 1 | EO192: 1 | EP192: 1 | EQ192: 1 | ER192: 1 | ES192: 1 | ET192: 1 | EU192: 1 | EV192: 1 | EW192: 1 | EX192: 1 | EY192: 1 | EZ192: 1
C193: Senior Debt Service | J193: =J191/J192 -> 0 | K193: =K191/K192 -> 0 | L193: 0 | M193: 0 | N193: 0 | O193: 0 | P193: 0 | Q193: 0 | R193: 0 | S193: 0 | T193: 0 | U193: 0 | V193: 0 | W193: 0 | X193: 0 | Y193: 0 | Z193: 0 | AA193: 0 | AB193: 0 | AC193: 0 | AD193: 0 | AE193: 0 | AF193: 3401.925953 | AG193: 3523.166753 | AH193: 3469.964472 | AI193: 3593.630088 | AJ193: 3539.363762 | AK193: 3665.50269 | AL193: 3640.759442 | AM193: 3738.812744 | AN193: 3682.354058 | AO193: 3813.588999 | AP193: 3756.001139 | AQ193: 3889.860779 | AR193: 3831.121162 | AS193: 3967.657994 | AT193: 3940.875107 | AU193: 4047.011154 | AV193: 3985.898457 | AW193: 4127.951377 | AX193: 4065.616426 | AY193: 4210.510405 | AZ193: 4146.928754 | BA193: 4294.720613 | BB193: 4265.729954 | BC193: 4380.615025 | BD193: 4314.464676 | BE193: 4468.227326 | BF193: 4232.616852 | BG193: 4260.232705 | BH193: 4191.221138 | BI193: 4302.956602 | BJ193: 4262.759372 | BK193: 4345.454052 | BL193: 4272.683231 | BM193: 4387.946276 | BN193: 4313.217118 | BO193: 4430.274557 | BP193: 4353.531876 | BQ193: 0 | BR193: 0 | BS193: 0 | BT193: 0 | BU193: 0 | BV193: 0 | BW193: =BW191/BW192 -> 0 | BX193: 0 | BY193: 0 | BZ193: 0 | CA193: 0 | CB193: 0 | CC193: 0 | CD193: 0 | CE193: 0 | CF193: 0 | CG193: 0 | CH193: 0 | CI193: 0 | CJ193: 0 | CK193: 0 | CL193: 0 | CM193: 0 | CN193: 0 | CO193: 0 | CP193: 0 | CQ193: 0 | CR193: 0 | CS193: 0 | CT193: 0 | CU193: 0 | CV193: 0 | CW193: 0 | CX193: 0 | CY193: 0 | CZ193: 0 | DA193: 0 | DB193: 0 | DC193: 0 | DD193: 0 | DE193: 0 | DF193: 0 | DG193: 0 | DH193: 0 | DI193: 0 | DJ193: 0 | DK193: 0 | DL193: 0 | DM193: 0 | DN193: 0 | DO193: 0 | DP193: 0 | DQ193: 0 | DR193: 0 | DS193: 0 | DT193: 0 | DU193: 0 | DV193: 0 | DW193: 0 | DX193: 0 | DY193: 0 | DZ193: 0 | EA193: 0 | EB193: 0 | EC193: 0 | ED193: 0 | EE193: 0 | EF193: 0 | EG193: 0 | EH193: 0 | EI193: =EI191/EI192 -> 0 | EJ193: 0 | EK193: 0 | EL193: 0 | EM193: 0 | EN193: 0 | EO193: 0 | EP193: 0 | EQ193: 0 | ER193: 0 | ES193: 0 | ET193: 0 | EU193: 0 | EV193: 0 | EW193: 0 | EX193: 0 | EY193: 0 | EZ193: 0
C194: Interest Rate | J194: =J185 -> 0.0025 | K194: 0.0025 | L194: 0.0025 | M194: 0.0025 | N194: 0.0025 | O194: 0.0025 | P194: 0.0025 | Q194: 0.0025 | R194: 0.0025 | S194: 0.0025 | T194: 0.0025 | U194: 0.0025 | V194: 0.0025 | W194: 0.0025 | X194: 0.0025 | Y194: 0.0025 | Z194: 0.0025 | AA194: 0.0025 | AB194: 0.0025 | AC194: 0.0025 | AD194: 0.0025 | AE194: 0.01625 | AF194: 0.01625 | AG194: 0.01625 | AH194: 0.01625 | AI194: 0.01625 | AJ194: 0.01625 | AK194: 0.01625 | AL194: 0.01625 | AM194: 0.0175 | AN194: 0.0175 | AO194: 0.0175 | AP194: =AP185 -> 0.0175 | AQ194: 0.0175 | AR194: 0.0175 | AS194: 0.0175 | AT194: 0.0175 | AU194: 0.01875 | AV194: 0.01875 | AW194: 0.01875 | AX194: 0.01875 | AY194: 0.01875 | AZ194: 0.01875 | BA194: 0.01875 | BB194: 0.01875 | BC194: 0.02 | BD194: 0.02 | BE194: 0.02 | BF194: 0.02 | BG194: 0.02 | BH194: 0.02 | BI194: 0.02 | BJ194: 0.02 | BK194: 0.02 | BL194: 0.02 | BM194: 0.02 | BN194: 0.02 | BO194: 0.02 | BP194: 0.02 | BQ194: 0.02 | BR194: 0.02 | BS194: 0.02 | BT194: 0.02 | BU194: 0.02 | BV194: =BV185 -> 0.02 | BW194: 0.02 | BX194: 0.02 | BY194: 0.02 | BZ194: 0.02 | CA194: 0.02 | CB194: 0.02 | CC194: 0.02 | CD194: 0.02 | CE194: 0.02 | CF194: 0.02 | CG194: 0.02 | CH194: 0.02 | CI194: 0.02 | CJ194: 0.02 | CK194: 0.02 | CL194: 0.02 | CM194: 0.02 | CN194: 0.02 | CO194: 0.02 | CP194: 0.02 | CQ194: 0.02 | CR194: 0.02 | CS194: 0.02 | CT194: 0.02 | CU194: 0.02 | CV194: 0.02 | CW194: 0.02 | CX194: 0.02 | CY194: 0.02 | CZ194: 0.02 | DA194: 0.02 | DB194: =DB185 -> 0.02 | DC194: 0.02 | DD194: 0.02 | DE194: 0.02 | DF194: 0.02 | DG194: 0.02 | DH194: 0.02 | DI194: 0.02 | DJ194: 0.02 | DK194: 0.02 | DL194: 0.02 | DM194: 0.02 | DN194: 0.02 | DO194: 0.02 | DP194: 0.02 | DQ194: 0.02 | DR194: 0.02 | DS194: 0.02 | DT194: 0.02 | DU194: 0.02 | DV194: 0.02 | DW194: 0.02 | DX194: 0.02 | DY194: 0.02 | DZ194: 0.02 | EA194: 0.02 | EB194: 0.02 | EC194: 0.02 | ED194: 0.02 | EE194: 0.02 | EF194: 0.02 | EG194: 0.02 | EH194: =EH185 -> 0.02 | EI194: 0.02 | EJ194: 0.02 | EK194: 0.02 | EL194: 0.02 | EM194: 0.02 | EN194: 0.02 | EO194: 0.02 | EP194: 0.02 | EQ194: 0.02 | ER194: 0.02 | ES194: 0.02 | ET194: 0.02 | EU194: 0.02 | EV194: 0.02 | EW194: 0.02 | EX194: 0.02 | EY194: 0.02 | EZ194: 0.02
C195: Interest Rate Index | I195: 1 | J195: =I195*(1+J194*J181) -> 1 | K195: =J195*(1+K194*K181) -> 1 | L195: 1 | M195: 1 | N195: 1 | O195: 1 | P195: 1 | Q195: 1 | R195: 1 | S195: 1 | T195: 1 | U195: 1 | V195: 1 | W195: 1 | X195: 1 | Y195: 1 | Z195: 1 | AA195: 1 | AB195: 1 | AC195: 1 | AD195: 1 | AE195: 1.01625 | AF195: 1.032764063 | AG195: 1.049546479 | AH195: 1.066601609 | AI195: 1.083933885 | AJ195: 1.101547811 | AK195: 1.119447962 | AL195: 1.137638992 | AM195: 1.157547674 | AN195: 1.177804759 | AO195: 1.198416342 | AP195: 1.219388628 | AQ195: 1.240727929 | AR195: 1.262440668 | AS195: 1.284533379 | AT195: 1.307012713 | AU195: 1.331519202 | AV195: 1.356485187 | AW195: 1.381919284 | AX195: 1.407830271 | AY195: 1.434227088 | AZ195: 1.461118846 | BA195: 1.488514824 | BB195: 1.516424477 | BC195: 1.546752967 | BD195: 1.577688026 | BE195: 1.609241787 | BF195: 1.641426623 | BG195: 1.674255155 | BH195: 1.707740258 | BI195: 1.741895063 | BJ195: 1.776732965 | BK195: 1.812267624 | BL195: 1.848512976 | BM195: 1.885483236 | BN195: 1.923192901 | BO195: 1.961656759 | BP195: 2.000889894 | BQ195: 2.000889894 | BR195: 2.000889894 | BS195: 2.000889894 | BT195: 2.000889894 | BU195: 2.000889894 | BV195: 2.000889894 | BW195: =BV195*(1+BW194*BW181) -> 2.000889894 | BX195: 2.000889894 | BY195: 2.000889894 | BZ195: 2.000889894 | CA195: 2.000889894 | CB195: 2.000889894 | CC195: 2.000889894 | CD195: 2.000889894 | CE195: 2.000889894 | CF195: 2.000889894 | CG195: 2.000889894 | CH195: 2.000889894 | CI195: 2.000889894 | CJ195: 2.000889894 | CK195: 2.000889894 | CL195: 2.000889894 | CM195: 2.000889894 | CN195: 2.000889894 | CO195: 2.000889894 | CP195: 2.000889894 | CQ195: 2.000889894 | CR195: 2.000889894 | CS195: 2.000889894 | CT195: 2.000889894 | CU195: 2.000889894 | CV195: 2.000889894 | CW195: 2.000889894 | CX195: 2.000889894 | CY195: 2.000889894 | CZ195: 2.000889894 | DA195: 2.000889894 | DB195: 2.000889894 | DC195: 2.000889894 | DD195: 2.000889894 | DE195: 2.000889894 | DF195: 2.000889894 | DG195: 2.000889894 | DH195: 2.000889894 | DI195: 2.000889894 | DJ195: 2.000889894 | DK195: 2.000889894 | DL195: 2.000889894 | DM195: 2.000889894 | DN195: 2.000889894 | DO195: 2.000889894 | DP195: 2.000889894 | DQ195: 2.000889894 | DR195: 2.000889894 | DS195: 2.000889894 | DT195: 2.000889894 | DU195: 2.000889894 | DV195: 2.000889894 | DW195: 2.000889894 | DX195: 2.000889894 | DY195: 2.000889894 | DZ195: 2.000889894 | EA195: 2.000889894 | EB195: 2.000889894 | EC195: 2.000889894 | ED195: 2.000889894 | EE195: 2.000889894 | EF195: 2.000889894 | EG195: 2.000889894 | EH195: 2.000889894 | EI195: =EH195*(1+EI194*EI181) -> 2.000889894 | EJ195: 2.000889894 | EK195: 2.000889894 | EL195: 2.000889894 | EM195: 2.000889894 | EN195: 2.000889894 | EO195: 2.000889894 | EP195: 2.000889894 | EQ195: 2.000889894 | ER195: 2.000889894 | ES195: 2.000889894 | ET195: 2.000889894 | EU195: 2.000889894 | EV195: 2.000889894 | EW195: 2.000889894 | EX195: 2.000889894 | EY195: 2.000889894 | EZ195: 2.000889894
C196: PV of Debt Service | E196: =IF(SUMPRODUCT(J193:EZ193/J195:EZ195)>0,SUMPRODUCT(J193:EZ193/J195:EZ195)) -> 105628.5579
C197: PV of Debt Service from Parallel Model | E197: ='Parallel Model P99'!S175 -> 105628.5579
C199: Total Project Cost | E199: =I143 -> 165721.0222
C200: Debt Size from Debt to Capital | E200: =I143*F200 -> 130919.6075 | F200: =F39 -> 0.79
C202: Debt Applied | E202: =MIN(E200,E196,E187) -> 105628.5579
C203: Minimum of P50 or P99 | E203: =MIN(E187,E196) -> 105628.5579
C204: P50 Applied | E204: =E203=E187 -> FALSE
C205: P99 Applied | E205: =NOT(E204) -> TRUE
C206: Cash Flow for Debt Size | E206: =IF(E204,C204,C205) -> P99 Applied
C207: Debt Sizing Method | E207: =IF(E202=E200,"Max Debt to Cap","DSCR") -> DSCR
B209: Sculpting with Total/Mezzanine Debt
C210: Repayment Switch | F210: =F13 -> 21 | G210: =F63+F13 -> 39 | J210: =AND(J1>$F$210,J1<=$G$210) -> FALSE | K210: FALSE | L210: FALSE | M210: FALSE | N210: FALSE | O210: FALSE | P210: FALSE | Q210: FALSE | R210: FALSE | S210: FALSE | T210: FALSE | U210: FALSE | V210: FALSE | W210: FALSE | X210: FALSE | Y210: FALSE | Z210: FALSE | AA210: FALSE | AB210: FALSE | AC210: FALSE | AD210: FALSE | AE210: TRUE | AF210: TRUE | AG210: TRUE | AH210: TRUE | AI210: TRUE | AJ210: TRUE | AK210: TRUE | AL210: TRUE | AM210: TRUE | AN210: TRUE | AO210: TRUE | AP210: =AND(AP1>$F$210,AP1<=$G$210) -> TRUE | AQ210: TRUE | AR210: TRUE | AS210: TRUE | AT210: TRUE | AU210: TRUE | AV210: TRUE | AW210: FALSE | AX210: FALSE | AY210: FALSE | AZ210: FALSE | BA210: FALSE | BB210: FALSE | BC210: FALSE | BD210: FALSE | BE210: FALSE | BF210: FALSE | BG210: FALSE | BH210: FALSE | BI210: FALSE | BJ210: FALSE | BK210: FALSE | BL210: FALSE | BM210: FALSE | BN210: FALSE | BO210: FALSE | BP210: FALSE | BQ210: FALSE | BR210: FALSE | BS210: FALSE | BT210: FALSE | BU210: FALSE | BV210: =AND(BV1>$F$210,BV1<=$G$210) -> FALSE | BW210: FALSE | BX210: FALSE | BY210: FALSE | BZ210: FALSE | CA210: FALSE | CB210: FALSE | CC210: FALSE | CD210: FALSE | CE210: FALSE | CF210: FALSE | CG210: FALSE | CH210: FALSE | CI210: FALSE | CJ210: FALSE | CK210: FALSE | CL210: FALSE | CM210: FALSE | CN210: FALSE | CO210: FALSE | CP210: FALSE | CQ210: FALSE | CR210: FALSE | CS210: FALSE | CT210: FALSE | CU210: FALSE | CV210: FALSE | CW210: FALSE | CX210: FALSE | CY210: FALSE | CZ210: FALSE | DA210: FALSE | DB210: =AND(DB1>$F$210,DB1<=$G$210) -> FALSE | DC210: FALSE | DD210: FALSE | DE210: FALSE | DF210: FALSE | DG210: FALSE | DH210: FALSE | DI210: FALSE | DJ210: FALSE | DK210: FALSE | DL210: FALSE | DM210: FALSE | DN210: FALSE | DO210: FALSE | DP210: FALSE | DQ210: FALSE | DR210: FALSE | DS210: FALSE | DT210: FALSE | DU210: FALSE | DV210: FALSE | DW210: FALSE | DX210: FALSE | DY210: FALSE | DZ210: FALSE | EA210: FALSE | EB210: FALSE | EC210: FALSE | ED210: FALSE | EE210: FALSE | EF210: FALSE | EG210: FALSE | EH210: =AND(EH1>$F$210,EH1<=$G$210) -> FALSE | EI210: FALSE | EJ210: FALSE | EK210: FALSE | EL210: FALSE | EM210: FALSE | EN210: FALSE | EO210: FALSE | EP210: FALSE | EQ210: FALSE | ER210: FALSE | ES210: FALSE | ET210: FALSE | EU210: FALSE | EV210: FALSE | EW210: FALSE | EX210: FALSE | EY210: FALSE | EZ210: FALSE
C211: CFADS | J211: =J411 -> 0 | K211: 0 | L211: 0 | M211: 0 | N211: 0 | O211: 0 | P211: 0 | Q211: 0 | R211: 0 | S211: 0 | T211: 0 | U211: 0 | V211: 0 | W211: 0 | X211: 0 | Y211: 0 | Z211: 0 | AA211: 0 | AB211: 0 | AC211: 0 | AD211: 0 | AE211: 0 | AF211: 5281.648658 | AG211: 5453.059266 | AH211: 5387.281632 | AI211: 5284.615417 | AJ211: 5180.048733 | AK211: 5314.410255 | AL211: 5286.173632 | AM211: 5414.602072 | AN211: 5351.769227 | AO211: 5490.731174 | AP211: =AP411 -> 5426.252828 | AQ211: 5567.598365 | AR211: 5501.427879 | AS211: 5645.190709 | AT211: 5612.878107 | AU211: 5743.212767 | AV211: 5673.167117 | AW211: 5821.518153 | AX211: 5749.572547 | AY211: 5900.382205 | AZ211: 5826.479754 | BA211: 5979.777962 | BB211: 5942.392433 | BC211: 6073.26988 | BD211: 5994.655256 | BE211: 6152.387685 | BF211: 6071.552683 | BG211: 6232.484888 | BH211: 6150.621948 | BI211: 6314.653829 | BJ211: 6272.390125 | BK211: 6397.385223 | BL211: 6311.243834 | BM211: 6480.916071 | BN211: 6392.548933 | BO211: 6565.103747 | BP211: 6474.450327 | BQ211: 6649.9291 | BR211: 6620.858213 | BS211: 6772.984421 | BT211: 6697.282202 | BU211: 6898.500848 | BV211: =BV411 -> 6821.284585 | BW211: 7026.527604 | BX211: 6947.767015 | BY211: 7157.114894 | BZ211: 7125.647631 | CA211: 7290.313931 | CB211: 7208.371415 | CC211: 7426.176948 | CD211: 7342.595582 | CE211: 7564.757226 | CF211: 7479.504232 | CG211: 7706.109109 | CH211: 7672.047931 | CI211: 7850.28803 | CJ211: 7761.590815 | CK211: 7997.350529 | CL211: 7906.87937 | CM211: 8147.354278 | CN211: 0 | CO211: 0 | CP211: 0 | CQ211: 0 | CR211: 0 | CS211: 0 | CT211: 0 | CU211: 0 | CV211: 0 | CW211: 0 | CX211: 0 | CY211: 0 | CZ211: 0 | DA211: 0 | DB211: =DB411 -> 0 | DC211: 0 | DD211: 0 | DE211: 0 | DF211: 0 | DG211: 0 | DH211: 0 | DI211: 0 | DJ211: 0 | DK211: 0 | DL211: 0 | DM211: 0 | DN211: 0 | DO211: 0 | DP211: 0 | DQ211: 0 | DR211: 0 | DS211: 0 | DT211: 0 | DU211: 0 | DV211: 0 | DW211: 0 | DX211: 0 | DY211: 0 | DZ211: 0 | EA211: 0 | EB211: 0 | EC211: 0 | ED211: 0 | EE211: 0 | EF211: 0 | EG211: 0 | EH211: =EH411 -> 0 | EI211: 0 | EJ211: 0 | EK211: 0 | EL211: 0 | EM211: 0 | EN211: 0 | EO211: 0 | EP211: 0 | EQ211: 0 | ER211: 0 | ES211: 0 | ET211: 0 | EU211: 0 | EV211: 0 | EW211: 0 | EX211: 0 | EY211: 0 | EZ211: 0
C212: Target Total Debt Service | G212: =F60 -> 1.2 | J212: =(J211/$G$212)*J210 -> 0 | K212: 0 | L212: 0 | M212: 0 | N212: 0 | O212: 0 | P212: 0 | Q212: 0 | R212: 0 | S212: 0 | T212: 0 | U212: 0 | V212: 0 | W212: 0 | X212: 0 | Y212: 0 | Z212: 0 | AA212: 0 | AB212: 0 | AC212: 0 | AD212: 0 | AE212: 0 | AF212: 4401.373882 | AG212: 4544.216055 | AH212: 4489.40136 | AI212: 4403.846181 | AJ212: 4316.707278 | AK212: 4428.675213 | AL212: 4405.144693 | AM212: 4512.168393 | AN212: 4459.807689 | AO212: 4575.609312 | AP212: =(AP211/$G$212)*AP210 -> 4521.877356 | AQ212: 4639.665304 | AR212: 4584.523232 | AS212: 4704.325591 | AT212: 4677.398423 | AU212: 4786.010639 | AV212: 4727.639264 | AW212: 0 | AX212: 0 | AY212: 0 | AZ212: 0 | BA212: 0 | BB212: 0 | BC212: 0 | BD212: 0 | BE212: 0 | BF212: 0 | BG212: 0 | BH212: 0 | BI212: 0 | BJ212: 0 | BK212: 0 | BL212: 0 | BM212: 0 | BN212: 0 | BO212: 0 | BP212: 0 | BQ212: 0 | BR212: 0 | BS212: 0 | BT212: 0 | BU212: 0 | BV212: =(BV211/$G$212)*BV210 -> 0 | BW212: 0 | BX212: 0 | BY212: 0 | BZ212: 0 | CA212: 0 | CB212: 0 | CC212: 0 | CD212: 0 | CE212: 0 | CF212: 0 | CG212: 0 | CH212: 0 | CI212: 0 | CJ212: 0 | CK212: 0 | CL212: 0 | CM212: 0 | CN212: 0 | CO212: 0 | CP212: 0 | CQ212: 0 | CR212: 0 | CS212: 0 | CT212: 0 | CU212: 0 | CV212: 0 | CW212: 0 | CX212: 0 | CY212: 0 | CZ212: 0 | DA212: 0 | DB212: =(DB211/$G$212)*DB210 -> 0 | DC212: 0 | DD212: 0 | DE212: 0 | DF212: 0 | DG212: 0 | DH212: 0 | DI212: 0 | DJ212: 0 | DK212: 0 | DL212: 0 | DM212: 0 | DN212: 0 | DO212: 0 | DP212: 0 | DQ212: 0 | DR212: 0 | DS212: 0 | DT212: 0 | DU212: 0 | DV212: 0 | DW212: 0 | DX212: 0 | DY212: 0 | DZ212: 0 | EA212: 0 | EB212: 0 | EC212: 0 | ED212: 0 | EE212: 0 | EF212: 0 | EG212: 0 | EH212: =(EH211/$G$212)*EH210 -> 0 | EI212: 0 | EJ212: 0 | EK212: 0 | EL212: 0 | EM212: 0 | EN212: 0 | EO212: 0 | EP212: 0 | EQ212: 0 | ER212: 0 | ES212: 0 | ET212: 0 | EU212: 0 | EV212: 0 | EW212: 0 | EX212: 0 | EY212: 0 | EZ212: 0
C213: Other Debt Service | J213: =J184 -> 0 | K213: 0 | L213: 0 | M213: 0 | N213: 0 | O213: 0 | P213: 0 | Q213: 0 | R213: 0 | S213: 0 | T213: 0 | U213: 0 | V213: 0 | W213: 0 | X213: 0 | Y213: 0 | Z213: 0 | AA213: 0 | AB213: 0 | AC213: 0 | AD213: 0 | AE213: 0 | AF213: 4158.778471 | AG213: 4293.747454 | AH213: 4241.954041 | AI213: 4378.097785 | AJ213: 4118.320057 | AK213: 4223.164721 | AL213: 4200.021099 | AM213: 4302.860474 | AN213: 4252.40133 | AO213: 4360.801134 | AP213: =AP184 -> 4309.059976 | AQ213: 4419.35096 | AR213: 4366.294118 | AS213: 4478.505959 | AT213: 4452.12884 | AU213: 4555.889094 | AV213: 4499.744056 | AW213: 4615.53093 | AX213: 4557.918098 | AY213: 4675.67042 | AZ213: 4616.549559 | BA213: 4736.295587 | BB213: 4705.965871 | BC213: 4809.68946 | BD213: 4746.873308 | BE213: 4870.127874 | BF213: 4805.616076 | BG213: 4930.889078 | BH213: 4864.632933 | BI213: 4991.949703 | BJ213: 4956.740631 | BK213: 5053.176296 | BL213: 4983.277603 | BM213: 5114.756046 | BN213: 5042.957819 | BO213: 5176.555899 | BP213: 5102.803263 | BQ213: 0 | BR213: 0 | BS213: 0 | BT213: 0 | BU213: 0 | BV213: =BV184 -> 0 | BW213: 0 | BX213: 0 | BY213: 0 | BZ213: 0 | CA213: 0 | CB213: 0 | CC213: 0 | CD213: 0 | CE213: 0 | CF213: 0 | CG213: 0 | CH213: 0 | CI213: 0 | CJ213: 0 | CK213: 0 | CL213: 0 | CM213: 0 | CN213: 0 | CO213: 0 | CP213: 0 | CQ213: 0 | CR213: 0 | CS213: 0 | CT213: 0 | CU213: 0 | CV213: 0 | CW213: 0 | CX213: 0 | CY213: 0 | CZ213: 0 | DA213: 0 | DB213: =DB184 -> 0 | DC213: 0 | DD213: 0 | DE213: 0 | DF213: 0 | DG213: 0 | DH213: 0 | DI213: 0 | DJ213: 0 | DK213: 0 | DL213: 0 | DM213: 0 | DN213: 0 | DO213: 0 | DP213: 0 | DQ213: 0 | DR213: 0 | DS213: 0 | DT213: 0 | DU213: 0 | DV213: 0 | DW213: 0 | DX213: 0 | DY213: 0 | DZ213: 0 | EA213: 0 | EB213: 0 | EC213: 0 | ED213: 0 | EE213: 0 | EF213: 0 | EG213: 0 | EH213: =EH184 -> 0 | EI213: 0 | EJ213: 0 | EK213: 0 | EL213: 0 | EM213: 0 | EN213: 0 | EO213: 0 | EP213: 0 | EQ213: 0 | ER213: 0 | ES213: 0 | ET213: 0 | EU213: 0 | EV213: 0 | EW213: 0 | EX213: 0 | EY213: 0 | EZ213: 0
C214: Debt Service to Mezzanine | J214: =J212-J213 -> 0 | K214: =K212-K213 -> 0 | L214: 0 | M214: 0 | N214: 0 | O214: 0 | P214: 0 | Q214: 0 | R214: 0 | S214: 0 | T214: 0 | U214: 0 | V214: 0 | W214: 0 | X214: 0 | Y214: 0 | Z214: 0 | AA214: 0 | AB214: 0 | AC214: 0 | AD214: 0 | AE214: 0 | AF214: 242.5954108 | AG214: 250.4686015 | AH214: 247.447319 | AI214: =AI212-AI213 -> 25.74839538 | AJ214: 198.3872203 | AK214: 205.510492 | AL214: 205.123594 | AM214: 209.307919 | AN214: 207.4063588 | AO214: 214.8081772 | AP214: 212.8173806 | AQ214: 220.3143446 | AR214: 218.2291145 | AS214: 225.8196319 | AT214: 225.2695824 | AU214: 230.1215452 | AV214: 227.8952081 | AW214: -4615.53093 | AX214: -4557.918098 | AY214: -4675.67042 | AZ214: -4616.549559 | BA214: -4736.295587 | BB214: -4705.965871 | BC214: -4809.68946 | BD214: -4746.873308 | BE214: -4870.127874 | BF214: -4805.616076 | BG214: -4930.889078 | BH214: -4864.632933 | BI214: -4991.949703 | BJ214: -4956.740631 | BK214: -5053.176296 | BL214: -4983.277603 | BM214: -5114.756046 | BN214: -5042.957819 | BO214: -5176.555899 | BP214: -5102.803263 | BQ214: 0 | BR214: 0 | BS214: 0 | BT214: 0 | BU214: 0 | BV214: 0 | BW214: 0 | BX214: 0 | BY214: 0 | BZ214: 0 | CA214: 0 | CB214: 0 | CC214: 0 | CD214: 0 | CE214: 0 | CF214: 0 | CG214: 0 | CH214: 0 | CI214: 0 | CJ214: 0 | CK214: 0 | CL214: 0 | CM214: 0 | CN214: 0 | CO214: 0 | CP214: 0 | CQ214: 0 | CR214: 0 | CS214: 0 | CT214: 0 | CU214: =CU212-CU213 -> 0 | CV214: 0 | CW214: 0 | CX214: 0 | CY214: 0 | CZ214: 0 | DA214: 0 | DB214: 0 | DC214: 0 | DD214: 0 | DE214: 0 | DF214: 0 | DG214: 0 | DH214: 0 | DI214: 0 | DJ214: 0 | DK214: 0 | DL214: 0 | DM214: 0 | DN214: 0 | DO214: 0 | DP214: 0 | DQ214: 0 | DR214: 0 | DS214: 0 | DT214: 0 | DU214: 0 | DV214: 0 | DW214: 0 | DX214: 0 | DY214: 0 | DZ214: 0 | EA214: 0 | EB214: 0 | EC214: 0 | ED214: 0 | EE214: 0 | EF214: 0 | EG214: 0 | EH214: 0 | EI214: 0 | EJ214: 0 | EK214: 0 | EL214: 0 | EM214: 0 | EN214: 0 | EO214: 0 | EP214: 0 | EQ214: 0 | ER214: 0 | ES214: 0 | ET214: 0 | EU214: 0 | EV214: 0 | EW214: 0 | EX214: 0 | EY214: 0 | EZ214: 0
C215: Interest Rate | G215: =F84 -> 0.035 | J215: =$G$215/12*J3 -> 0.002916666667 | K215: 0.002916666667 | L215: 0.002916666667 | M215: 0.002916666667 | N215: 0.002916666667 | O215: 0.002916666667 | P215: 0.002916666667 | Q215: 0.002916666667 | R215: 0.002916666667 | S215: 0.002916666667 | T215: 0.002916666667 | U215: 0.002916666667 | V215: 0.002916666667 | W215: 0.002916666667 | X215: 0.002916666667 | Y215: 0.002916666667 | Z215: 0.002916666667 | AA215: 0.002916666667 | AB215: 0.002916666667 | AC215: 0.002916666667 | AD215: 0.002916666667 | AE215: 0.0175 | AF215: 0.0175 | AG215: 0.0175 | AH215: 0.0175 | AI215: 0.0175 | AJ215: 0.0175 | AK215: 0.0175 | AL215: 0.0175 | AM215: 0.0175 | AN215: 0.0175 | AO215: 0.0175 | AP215: =$G$215/12*AP3 -> 0.0175 | AQ215: 0.0175 | AR215: 0.0175 | AS215: 0.0175 | AT215: 0.0175 | AU215: 0.0175 | AV215: 0.0175 | AW215: 0.0175 | AX215: 0.0175 | AY215: 0.0175 | AZ215: 0.0175 | BA215: 0.0175 | BB215: 0.0175 | BC215: 0.0175 | BD215: 0.0175 | BE215: 0.0175 | BF215: 0.0175 | BG215: 0.0175 | BH215: 0.0175 | BI215: 0.0175 | BJ215: 0.0175 | BK215: 0.0175 | BL215: 0.0175 | BM215: 0.0175 | BN215: 0.0175 | BO215: 0.0175 | BP215: 0.0175 | BQ215: 0.0175 | BR215: 0.0175 | BS215: 0.0175 | BT215: 0.0175 | BU215: 0.0175 | BV215: =$G$215/12*BV3 -> 0.0175 | BW215: 0.0175 | BX215: 0.0175 | BY215: 0.0175 | BZ215: 0.0175 | CA215: 0.0175 | CB215: 0.0175 | CC215: 0.0175 | CD215: 0.0175 | CE215: 0.0175 | CF215: 0.0175 | CG215: 0.0175 | CH215: 0.0175 | CI215: 0.0175 | CJ215: 0.0175 | CK215: 0.0175 | CL215: 0.0175 | CM215: 0.0175 | CN215: 0.0175 | CO215: 0.0175 | CP215: 0.0175 | CQ215: 0.0175 | CR215: 0.0175 | CS215: 0.0175 | CT215: 0.0175 | CU215: 0.0175 | CV215: 0.0175 | CW215: 0.0175 | CX215: 0.0175 | CY215: 0.0175 | CZ215: 0.0175 | DA215: 0.0175 | DB215: =$G$215/12*DB3 -> 0.0175 | DC215: 0.0175 | DD215: 0.0175 | DE215: 0.0175 | DF215: 0.0175 | DG215: 0.0175 | DH215: 0.0175 | DI215: 0.0175 | DJ215: 0.0175 | DK215: 0.0175 | DL215: 0.0175 | DM215: 0.0175 | DN215: 0.0175 | DO215: 0.0175 | DP215: 0.0175 | DQ215: 0.0175 | DR215: 0.0175 | DS215: 0.0175 | DT215: 0.0175 | DU215: 0.0175 | DV215: 0.0175 | DW215: 0.0175 | DX215: 0.0175 | DY215: 0.0175 | DZ215: 0.0175 | EA215: 0.0175 | EB215: 0.0175 | EC215: 0.0175 | ED215: 0.0175 | EE215: 0.0175 | EF215: 0.0175 | EG215: 0.0175 | EH215: =$G$215/12*EH3 -> 0.0175 | EI215: 0.0175 | EJ215: 0.0175 | EK215: 0.0175 | EL215: 0.0175 | EM215: 0.0175 | EN215: 0.0175 | EO215: 0.0175 | EP215: 0.0175 | EQ215: 0.0175 | ER215: 0.0175 | ES215: 0.0175 | ET215: 0.0175 | EU215: 0.0175 | EV215: 0.0175 | EW215: 0.0175 | EX215: 0.0175 | EY215: 0.0175 | EZ215: 0.0175
